Workbook

Sheet Protect
B2: Empire District Gas Company
B3: WNAR Filing
B4: Password Protection Worksheet
B6: This worksheet provides password protection for the report pages to prevent unintentional formula changes. The password is "WNAR".
G11: All Report Worksheets are Protected

Sheet Final Checklist
B2: Empire District Gas Company
B3: Annual WNAR Filing
B4: Final Checklist
B7: Data Table List | C7: Check For | D7: Result | E7: Initials | F7: Initials
B8: Validation Lists | C8: Changes from prior filings | D8: Ok, no prior filings | E8: RS
B9: Rate Case Summary | C9: Verify Final WNAR Billing Determinants | D9: Copied from rate case workpapers received from Dana Liner | E9: RS
B10: Beta Coefficient | C10: Matches tariff sheets | D10: Ok until reset by new rate case | E10: RS
B11: Billing Determinants | C11: Matches Rate Case Summary above | D11: Ok until reset by new rate case | E11: RS
B12: Volumetric Rates | C12: Matches tariff sheets | D12: Ok until reset by new rate case | E12: RS
B13: Normal HDD | C13: Matches Rate Case filing workpapers | D13: Ok until reset by new rate case | E13: RS
B14: Reconciliation Period Adjustment | C14: Ties out on Reconciliation Worksheet | D14: Checked and ties. | E14: RS
B15: Meter Read Schedule | C15: Reconcile with Revenue Dept. | D15: Reconciled with Kendra Billing in Rev. Dept accrual workpapers | E15: RS
B16: Customer Count | C16: Reconcile with Revenue Dept. | D16: Reconciled with Kendra Billing in Rev. Dept accrual workpapers | E16: RS
B17: KCI Actual Temperatures | C17: Temperatures are updated from NOAA website | D17: Reconciled with Kendra Billing in Rev. Dept accrual workpapers | E17: RS
B18: KCI Normal HDD | C18: Matches Rate Case filing workpapers | D18: Checked, matched, and recon with Kendra Billing in Rev. Dept. | E18: RS
B19: CAWNA Amounts | C19: Ties out on Reconciliation Worksheet | D19: Checked and ties. | E19: RS
B20: WNAR Rates | C20: Ties out on Reconciliation Worksheet | D20: Checked and ties. | E20: RS
B23: Report Worksheets | C23: Check For | D23: Result | E23: Initials | F23: Initials
B24: All Report Pages | C24: Correct year is showing on the dropdown menus. | D24: Checked OK. | E24: RS
B25: Reconciliaion worksheet | C25: No cells are shaded yellow, which indicates inconsistencies. | D25: Checked OK. | E25: RS
B26: Protect worksheet | C26: Password protection is turned on for report worksheets | D26: Checked OK. | E26: RS

Sheet Reconciliation
B2: Empire District Gas Company | E2: Filing Year
B3: WNAR Filing
B4: CAWNA Summary
B5: Year | C5: =DateSet!C2 -> 2023
B6: Analysis Start | C6: =DateSet!C3 -> 2022-09-01
B8: CAWNA Amounts
B9: Res | C9: CAWNA Worksheets | F9: CAWNA Amount Table | I9: Difference
B10: MonthFlow | C10: North | D10: NW | E10: South | F10: North | G10: NW | H10: South | I10: North | J10: NW | K10: South
B11: =$C$6 -> 2022-09-01 | C11: ='CAWNA North'!M11 -> 5862.17 | D11: ='CAWNA NW'!M11 -> 3608.5 | E11: ='CAWNA South'!M11 -> 18300.01 | F11: =SUMPRODUCT((CAWNAAmounts[Month]=$B11)*(CAWNAAmounts[Territory]=F$10)*(CAWNAAmounts[CustClass]=$B$9)*CAWNAAmounts[CAWNA]) -> 5862.17 | G11: =SUMPRODUCT((CAWNAAmounts[Month]=$B11)*(CAWNAAmounts[Territory]=G$10)*(CAWNAAmounts[CustClass]=$B$9)*CAWNAAmounts[CAWNA]) -> 3608.5 | H11: =SUMPRODUCT((CAWNAAmounts[Month]=$B11)*(CAWNAAmounts[Territory]=H$10)*(CAWNAAmounts[CustClass]=$B$9)*CAWNAAmounts[CAWNA]) -> 18300.01 | I11: =C11-F11 -> 0 | J11: =D11-G11 -> 0 | K11: =E11-H11 -> 0
B12: =EDATE(B11,1) -> 2022-10-01 | C12: ='CAWNA North'!M12 -> 10328.18 | D12: ='CAWNA NW'!M12 -> 3967.81 | E12: ='CAWNA South'!M12 -> 31999.85 | F12: =SUMPRODUCT((CAWNAAmounts[Month]=$B12)*(CAWNAAmounts[Territory]=F$10)*(CAWNAAmounts[CustClass]=$B$9)*CAWNAAmounts[CAWNA]) -> 10328.18 | G12: =SUMPRODUCT((CAWNAAmounts[Month]=$B12)*(CAWNAAmounts[Territory]=G$10)*(CAWNAAmounts[CustClass]=$B$9)*CAWNAAmounts[CAWNA]) -> 3967.81 | H12: =SUMPRODUCT((CAWNAAmounts[Month]=$B12)*(CAWNAAmounts[Territory]=H$10)*(CAWNAAmounts[CustClass]=$B$9)*CAWNAAmounts[CAWNA]) -> 31999.85 | I12: =C12-F12 -> 0 | J12: =D12-G12 -> 0 | K12: 0
B13: =EDATE(B12,1) -> 2022-11-01 | C13: ='CAWNA North'!M13 -> 2347.44 | D13: ='CAWNA NW'!M13 -> 3807.66 | E13: ='CAWNA South'!M13 -> 8210.26 | F13: =SUMPRODUCT((CAWNAAmounts[Month]=$B13)*(CAWNAAmounts[Territory]=F$10)*(CAWNAAmounts[CustClass]=$B$9)*CAWNAAmounts[CAWNA]) -> 2347.44 | G13: =SUMPRODUCT((CAWNAAmounts[Month]=$B13)*(CAWNAAmounts[Territory]=G$10)*(CAWNAAmounts[CustClass]=$B$9)*CAWNAAmounts[CAWNA]) -> 3807.66 | H13: =SUMPRODUCT((CAWNAAmounts[Month]=$B13)*(CAWNAAmounts[Territory]=H$10)*(CAWNAAmounts[CustClass]=$B$9)*CAWNAAmounts[CAWNA]) -> 8210.26 | I13: 0 | J13: 0 | K13: 0
B14: =EDATE(B13,1) -> 2022-12-01 | C14: ='CAWNA North'!M14 -> -15401.2 | D14: ='CAWNA NW'!M14 -> -8230.91 | E14: ='CAWNA South'!M14 -> -37580.27 | F14: =SUMPRODUCT((CAWNAAmounts[Month]=$B14)*(CAWNAAmounts[Territory]=F$10)*(CAWNAAmounts[CustClass]=$B$9)*CAWNAAmounts[CAWNA]) -> -15401.2 | G14: =SUMPRODUCT((CAWNAAmounts[Month]=$B14)*(CAWNAAmounts[Territory]=G$10)*(CAWNAAmounts[CustClass]=$B$9)*CAWNAAmounts[CAWNA]) -> -8230.91 | H14: =SUMPRODUCT((CAWNAAmounts[Month]=$B14)*(CAWNAAmounts[Territory]=H$10)*(CAWNAAmounts[CustClass]=$B$9)*CAWNAAmounts[CAWNA]) -> -37580.27 | I14: 0 | J14: 0 | K14: 0
B15: =EDATE(B14,1) -> 2023-01-01 | C15: ='CAWNA North'!M15 -> 64545.76 | D15: ='CAWNA NW'!M15 -> 38795.63 | E15: ='CAWNA South'!M15 -> 190196.8 | F15: =SUMPRODUCT((CAWNAAmounts[Month]=$B15)*(CAWNAAmounts[Territory]=F$10)*(CAWNAAmounts[CustClass]=$B$9)*CAWNAAmounts[CAWNA]) -> 64545.76 | G15: =SUMPRODUCT((CAWNAAmounts[Month]=$B15)*(CAWNAAmounts[Territory]=G$10)*(CAWNAAmounts[CustClass]=$B$9)*CAWNAAmounts[CAWNA]) -> 38795.63 | H15: =SUMPRODUCT((CAWNAAmounts[Month]=$B15)*(CAWNAAmounts[Territory]=H$10)*(CAWNAAmounts[CustClass]=$B$9)*CAWNAAmounts[CAWNA]) -> 190196.8 | I15: 0 | J15: 0 | K15: 0
B16: =EDATE(B15,1) -> 2023-02-01 | C16: ='CAWNA North'!M16 -> 13744.57 | D16: ='CAWNA NW'!M16 -> 8280.85 | E16: ='CAWNA South'!M16 -> 47540.74 | F16: =SUMPRODUCT((CAWNAAmounts[Month]=$B16)*(CAWNAAmounts[Territory]=F$10)*(CAWNAAmounts[CustClass]=$B$9)*CAWNAAmounts[CAWNA]) -> 13744.57 | G16: =SUMPRODUCT((CAWNAAmounts[Month]=$B16)*(CAWNAAmounts[Territory]=G$10)*(CAWNAAmounts[CustClass]=$B$9)*CAWNAAmounts[CAWNA]) -> 8280.85 | H16: =SUMPRODUCT((CAWNAAmounts[Month]=$B16)*(CAWNAAmounts[Territory]=H$10)*(CAWNAAmounts[CustClass]=$B$9)*CAWNAAmounts[CAWNA]) -> 47540.74 | I16: 0 | J16: 0 | K16: 0
B17: =EDATE(B16,1) -> 2023-03-01 | C17: ='CAWNA North'!M17 -> -11114.01 | D17: ='CAWNA NW'!M17 -> -7034.51 | E17: ='CAWNA South'!M17 -> -45026.34 | F17: =SUMPRODUCT((CAWNAAmounts[Month]=$B17)*(CAWNAAmounts[Territory]=F$10)*(CAWNAAmounts[CustClass]=$B$9)*CAWNAAmounts[CAWNA]) -> -11114.01 | G17: =SUMPRODUCT((CAWNAAmounts[Month]=$B17)*(CAWNAAmounts[Territory]=G$10)*(CAWNAAmounts[CustClass]=$B$9)*CAWNAAmounts[CAWNA]) -> -7034.51 | H17: =SUMPRODUCT((CAWNAAmounts[Month]=$B17)*(CAWNAAmounts[Territory]=H$10)*(CAWNAAmounts[CustClass]=$B$9)*CAWNAAmounts[CAWNA]) -> -45026.34 | I17: 0 | J17: 0 | K17: 0
B18: 2023-04-01 | C18: ='CAWNA North'!M18 -> 8500.38 | D18: ='CAWNA NW'!M18 -> 3752.53 | E18: ='CAWNA South'!M18 -> 31942.85 | F18: =SUMPRODUCT((CAWNAAmounts[Month]=$B18)*(CAWNAAmounts[Territory]=F$10)*(CAWNAAmounts[CustClass]=$B$9)*CAWNAAmounts[CAWNA]) -> 8500.38 | G18: =SUMPRODUCT((CAWNAAmounts[Month]=$B18)*(CAWNAAmounts[Territory]=G$10)*(CAWNAAmounts[CustClass]=$B$9)*CAWNAAmounts[CAWNA]) -> 3752.53 | H18: =SUMPRODUCT((CAWNAAmounts[Month]=$B18)*(CAWNAAmounts[Territory]=H$10)*(CAWNAAmounts[CustClass]=$B$9)*CAWNAAmounts[CAWNA]) -> 31942.85 | I18: 0 | J18: 0 | K18: 0
B19: 2023-05-01 | C19: ='CAWNA North'!M19 -> 8727.97 | D19: ='CAWNA NW'!M19 -> 5757.77 | E19: ='CAWNA South'!M19 -> 26202.65 | F19: =SUMPRODUCT((CAWNAAmounts[Month]=$B19)*(CAWNAAmounts[Territory]=F$10)*(CAWNAAmounts[CustClass]=$B$9)*CAWNAAmounts[CAWNA]) -> 8727.97 | G19: =SUMPRODUCT((CAWNAAmounts[Month]=$B19)*(CAWNAAmounts[Territory]=G$10)*(CAWNAAmounts[CustClass]=$B$9)*CAWNAAmounts[CAWNA]) -> 5757.77 | H19: =SUMPRODUCT((CAWNAAmounts[Month]=$B19)*(CAWNAAmounts[Territory]=H$10)*(CAWNAAmounts[CustClass]=$B$9)*CAWNAAmounts[CAWNA]) -> 26202.65 | I19: 0 | J19: 0 | K19: 0
B20: 2023-06-01 | C20: ='CAWNA North'!M20 -> 1236.63 | D20: ='CAWNA NW'!M20 -> 748.66 | E20: ='CAWNA South'!M20 -> 3930.59 | F20: =SUMPRODUCT((CAWNAAmounts[Month]=$B20)*(CAWNAAmounts[Territory]=F$10)*(CAWNAAmounts[CustClass]=$B$9)*CAWNAAmounts[CAWNA]) -> 1236.63 | G20: =SUMPRODUCT((CAWNAAmounts[Month]=$B20)*(CAWNAAmounts[Territory]=G$10)*(CAWNAAmounts[CustClass]=$B$9)*CAWNAAmounts[CAWNA]) -> 748.66 | H20: =SUMPRODUCT((CAWNAAmounts[Month]=$B20)*(CAWNAAmounts[Territory]=H$10)*(CAWNAAmounts[CustClass]=$B$9)*CAWNAAmounts[CAWNA]) -> 3930.59 | I20: 0 | J20: 0 | K20: 0
B21: 2023-07-01 | C21: ='CAWNA North'!M21 -> 0 | D21: ='CAWNA NW'!M21 -> 0 | E21: ='CAWNA South'!M21 -> 0 | F21: =SUMPRODUCT((CAWNAAmounts[Month]=$B21)*(CAWNAAmounts[Territory]=F$10)*(CAWNAAmounts[CustClass]=$B$9)*CAWNAAmounts[CAWNA]) -> 0 | G21: =SUMPRODUCT((CAWNAAmounts[Month]=$B21)*(CAWNAAmounts[Territory]=G$10)*(CAWNAAmounts[CustClass]=$B$9)*CAWNAAmounts[CAWNA]) -> 0 | H21: =SUMPRODUCT((CAWNAAmounts[Month]=$B21)*(CAWNAAmounts[Territory]=H$10)*(CAWNAAmounts[CustClass]=$B$9)*CAWNAAmounts[CAWNA]) -> 0 | I21: 0 | J21: 0 | K21: 0
B22: =EDATE(B21,1) -> 2023-08-01 | C22: ='CAWNA North'!M22 -> 0 | D22: ='CAWNA NW'!M22 -> 0 | E22: ='CAWNA South'!M22 -> 0 | F22: =SUMPRODUCT((CAWNAAmounts[Month]=$B22)*(CAWNAAmounts[Territory]=F$10)*(CAWNAAmounts[CustClass]=$B$9)*CAWNAAmounts[CAWNA]) -> 0 | G22: =SUMPRODUCT((CAWNAAmounts[Month]=$B22)*(CAWNAAmounts[Territory]=G$10)*(CAWNAAmounts[CustClass]=$B$9)*CAWNAAmounts[CAWNA]) -> 0 | H22: =SUMPRODUCT((CAWNAAmounts[Month]=$B22)*(CAWNAAmounts[Territory]=H$10)*(CAWNAAmounts[CustClass]=$B$9)*CAWNAAmounts[CAWNA]) -> 0 | I22: 0 | J22: 0 | K22: 0
B23: Total | C23: =SUM(C11:C22) -> 88777.89 | D23: =SUM(D11:D22) -> 53453.99 | E23: 275717.14 | F23: 88777.89 | G23: 53453.99 | H23: 275717.14 | I23: 0 | J23: 0 | K23: 0
B25: SCFS | C25: CAWNA Worksheets | F25: CAWNA Amount Table | I25: Difference
B26: MonthFlow | C26: North | D26: NW | E26: South | F26: North | G26: NW | H26: South | I26: North | J26: NW | K26: South
B27: =$C$6 -> 2022-09-01 | C27: ='CAWNA North'!M30 -> 2263.9 | D27: ='CAWNA NW'!M30 -> 1367.84 | E27: ='CAWNA South'!M30 -> 5444.99 | F27: =SUMPRODUCT((CAWNAAmounts[Month]=$B27)*(CAWNAAmounts[Territory]=F$10)*(CAWNAAmounts[CustClass]=$B$25)*CAWNAAmounts[CAWNA]) -> 2263.9 | G27: =SUMPRODUCT((CAWNAAmounts[Month]=$B27)*(CAWNAAmounts[Territory]=G$10)*(CAWNAAmounts[CustClass]=$B$25)*CAWNAAmounts[CAWNA]) -> 1367.84 | H27: =SUMPRODUCT((CAWNAAmounts[Month]=$B27)*(CAWNAAmounts[Territory]=H$10)*(CAWNAAmounts[CustClass]=$B$25)*CAWNAAmounts[CAWNA]) -> 5444.99 | I27: =C27-F27 -> 0 | J27: =D27-G27 -> 0 | K27: =E27-H27 -> 0
B28: =EDATE(B27,1) -> 2022-10-01 | C28: ='CAWNA North'!M31 -> 3941.77 | D28: ='CAWNA NW'!M31 -> 1494.12 | E28: ='CAWNA South'!M31 -> 9497.67 | F28: =SUMPRODUCT((CAWNAAmounts[Month]=$B28)*(CAWNAAmounts[Territory]=F$10)*(CAWNAAmounts[CustClass]=$B$25)*CAWNAAmounts[CAWNA]) -> 3941.77 | G28: =SUMPRODUCT((CAWNAAmounts[Month]=$B28)*(CAWNAAmounts[Territory]=G$10)*(CAWNAAmounts[CustClass]=$B$25)*CAWNAAmounts[CAWNA]) -> 1494.12 | H28: =SUMPRODUCT((CAWNAAmounts[Month]=$B28)*(CAWNAAmounts[Territory]=H$10)*(CAWNAAmounts[CustClass]=$B$25)*CAWNAAmounts[CAWNA]) -> 9497.67 | I28: =C28-F28 -> 0 | J28: =D28-G28 -> 0 | K28: =E28-H28 -> 0
B29: =EDATE(B28,1) -> 2022-11-01 | C29: ='CAWNA North'!M32 -> 894.45 | D29: ='CAWNA NW'!M32 -> 1425.55 | E29: ='CAWNA South'!M32 -> 2445.57 | F29: =SUMPRODUCT((CAWNAAmounts[Month]=$B29)*(CAWNAAmounts[Territory]=F$10)*(CAWNAAmounts[CustClass]=$B$25)*CAWNAAmounts[CAWNA]) -> 894.45 | G29: =SUMPRODUCT((CAWNAAmounts[Month]=$B29)*(CAWNAAmounts[Territory]=G$10)*(CAWNAAmounts[CustClass]=$B$25)*CAWNAAmounts[CAWNA]) -> 1425.55 | H29: =SUMPRODUCT((CAWNAAmounts[Month]=$B29)*(CAWNAAmounts[Territory]=H$10)*(CAWNAAmounts[CustClass]=$B$25)*CAWNAAmounts[CAWNA]) -> 2445.57 | I29: 0 | J29: 0 | K29: 0
B30: =EDATE(B29,1) -> 2022-12-01 | C30: ='CAWNA North'!M33 -> -5845.83 | D30: ='CAWNA NW'!M33 -> -3093.35 | E30: ='CAWNA South'!M33 -> -11159.72 | F30: =SUMPRODUCT((CAWNAAmounts[Month]=$B30)*(CAWNAAmounts[Territory]=F$10)*(CAWNAAmounts[CustClass]=$B$25)*CAWNAAmounts[CAWNA]) -> -5845.83 | G30: =SUMPRODUCT((CAWNAAmounts[Month]=$B30)*(CAWNAAmounts[Territory]=G$10)*(CAWNAAmounts[CustClass]=$B$25)*CAWNAAmounts[CAWNA]) -> -3093.35 | H30: =SUMPRODUCT((CAWNAAmounts[Month]=$B30)*(CAWNAAmounts[Territory]=H$10)*(CAWNAAmounts[CustClass]=$B$25)*CAWNAAmounts[CAWNA]) -> -11159.72 | I30: 0 | J30: 0 | K30: 0
B31: =EDATE(B30,1) -> 2023-01-01 | C31: ='CAWNA North'!M34 -> 24484.6 | D31: ='CAWNA NW'!M34 -> 14583.82 | E31: ='CAWNA South'!M34 -> 56264.9 | F31: =SUMPRODUCT((CAWNAAmounts[Month]=$B31)*(CAWNAAmounts[Territory]=F$10)*(CAWNAAmounts[CustClass]=$B$25)*CAWNAAmounts[CAWNA]) -> 24484.6 | G31: =SUMPRODUCT((CAWNAAmounts[Month]=$B31)*(CAWNAAmounts[Territory]=G$10)*(CAWNAAmounts[CustClass]=$B$25)*CAWNAAmounts[CAWNA]) -> 14583.82 | H31: =SUMPRODUCT((CAWNAAmounts[Month]=$B31)*(CAWNAAmounts[Territory]=H$10)*(CAWNAAmounts[CustClass]=$B$25)*CAWNAAmounts[CAWNA]) -> 56264.9 | I31: 0 | J31: 0 | K31: 0
B32: =EDATE(B31,1) -> 2023-02-01 | C32: ='CAWNA North'!M35 -> 5200.04 | D32: ='CAWNA NW'!M35 -> 3117.22 | E32: ='CAWNA South'!M35 -> 14048.51 | F32: =SUMPRODUCT((CAWNAAmounts[Month]=$B32)*(CAWNAAmounts[Territory]=F$10)*(CAWNAAmounts[CustClass]=$B$25)*CAWNAAmounts[CAWNA]) -> 5200.04 | G32: =SUMPRODUCT((CAWNAAmounts[Month]=$B32)*(CAWNAAmounts[Territory]=G$10)*(CAWNAAmounts[CustClass]=$B$25)*CAWNAAmounts[CAWNA]) -> 3117.22 | H32: =SUMPRODUCT((CAWNAAmounts[Month]=$B32)*(CAWNAAmounts[Territory]=H$10)*(CAWNAAmounts[CustClass]=$B$25)*CAWNAAmounts[CAWNA]) -> 14048.51 | I32: 0 | J32: 0 | K32: 0
B33: =EDATE(B32,1) -> 2023-03-01 | C33: ='CAWNA North'!M36 -> -4247.38 | D33: ='CAWNA NW'!M36 -> -2675.78 | E33: ='CAWNA South'!M36 -> -13364.7 | F33: =SUMPRODUCT((CAWNAAmounts[Month]=$B33)*(CAWNAAmounts[Territory]=F$10)*(CAWNAAmounts[CustClass]=$B$25)*CAWNAAmounts[CAWNA]) -> -4247.38 | G33: =SUMPRODUCT((CAWNAAmounts[Month]=$B33)*(CAWNAAmounts[Territory]=G$10)*(CAWNAAmounts[CustClass]=$B$25)*CAWNAAmounts[CAWNA]) -> -2675.78 | H33: =SUMPRODUCT((CAWNAAmounts[Month]=$B33)*(CAWNAAmounts[Territory]=H$10)*(CAWNAAmounts[CustClass]=$B$25)*CAWNAAmounts[CAWNA]) -> -13364.7 | I33: 0 | J33: 0 | K33: 0
B34: 2023-04-01 | C34: ='CAWNA North'!M37 -> 3256.4 | D34: ='CAWNA NW'!M37 -> 1437.17 | E34: ='CAWNA South'!M37 -> 9498.77 | F34: =SUMPRODUCT((CAWNAAmounts[Month]=$B34)*(CAWNAAmounts[Territory]=F$10)*(CAWNAAmounts[CustClass]=$B$25)*CAWNAAmounts[CAWNA]) -> 3256.4 | G34: =SUMPRODUCT((CAWNAAmounts[Month]=$B34)*(CAWNAAmounts[Territory]=G$10)*(CAWNAAmounts[CustClass]=$B$25)*CAWNAAmounts[CAWNA]) -> 1437.17 | H34: =SUMPRODUCT((CAWNAAmounts[Month]=$B34)*(CAWNAAmounts[Territory]=H$10)*(CAWNAAmounts[CustClass]=$B$25)*CAWNAAmounts[CAWNA]) -> 9498.77 | I34: 0 | J34: 0 | K34: 0
B35: 2023-05-01 | C35: ='CAWNA North'!M38 -> 3418.93 | D35: ='CAWNA NW'!M38 -> 2216.73 | E35: ='CAWNA South'!M38 -> 7833.7 | F35: =SUMPRODUCT((CAWNAAmounts[Month]=$B35)*(CAWNAAmounts[Territory]=F$10)*(CAWNAAmounts[CustClass]=$B$25)*CAWNAAmounts[CAWNA]) -> 3418.93 | G35: =SUMPRODUCT((CAWNAAmounts[Month]=$B35)*(CAWNAAmounts[Territory]=G$10)*(CAWNAAmounts[CustClass]=$B$25)*CAWNAAmounts[CAWNA]) -> 2216.73 | H35: =SUMPRODUCT((CAWNAAmounts[Month]=$B35)*(CAWNAAmounts[Territory]=H$10)*(CAWNAAmounts[CustClass]=$B$25)*CAWNAAmounts[CAWNA]) -> 7833.7 | I35: 0 | J35: 0 | K35: 0
B36: 2023-06-01 | C36: ='CAWNA North'!M39 -> 486 | D36: ='CAWNA NW'!M39 -> 289.34 | E36: ='CAWNA South'!M39 -> 1173.88 | F36: =SUMPRODUCT((CAWNAAmounts[Month]=$B36)*(CAWNAAmounts[Territory]=F$10)*(CAWNAAmounts[CustClass]=$B$25)*CAWNAAmounts[CAWNA]) -> 486 | G36: =SUMPRODUCT((CAWNAAmounts[Month]=$B36)*(CAWNAAmounts[Territory]=G$10)*(CAWNAAmounts[CustClass]=$B$25)*CAWNAAmounts[CAWNA]) -> 289.34 | H36: =SUMPRODUCT((CAWNAAmounts[Month]=$B36)*(CAWNAAmounts[Territory]=H$10)*(CAWNAAmounts[CustClass]=$B$25)*CAWNAAmounts[CAWNA]) -> 1173.88 | I36: 0 | J36: 0 | K36: 0
B37: 2023-07-01 | C37: ='CAWNA North'!M40 -> 0 | D37: ='CAWNA NW'!M40 -> 0 | E37: ='CAWNA South'!M40 -> 0 | F37: =SUMPRODUCT((CAWNAAmounts[Month]=$B37)*(CAWNAAmounts[Territory]=F$10)*(CAWNAAmounts[CustClass]=$B$25)*CAWNAAmounts[CAWNA]) -> 0 | G37: =SUMPRODUCT((CAWNAAmounts[Month]=$B37)*(CAWNAAmounts[Territory]=G$10)*(CAWNAAmounts[CustClass]=$B$25)*CAWNAAmounts[CAWNA]) -> 0 | H37: =SUMPRODUCT((CAWNAAmounts[Month]=$B37)*(CAWNAAmounts[Territory]=H$10)*(CAWNAAmounts[CustClass]=$B$25)*CAWNAAmounts[CAWNA]) -> 0 | I37: 0 | J37: 0 | K37: 0
B38: =EDATE(B37,1) -> 2023-08-01 | C38: ='CAWNA North'!M41 -> 0 | D38: ='CAWNA NW'!M41 -> 0 | E38: ='CAWNA South'!M41 -> 0 | F38: =SUMPRODUCT((CAWNAAmounts[Month]=$B38)*(CAWNAAmounts[Territory]=F$10)*(CAWNAAmounts[CustClass]=$B$25)*CAWNAAmounts[CAWNA]) -> 0 | G38: =SUMPRODUCT((CAWNAAmounts[Month]=$B38)*(CAWNAAmounts[Territory]=G$10)*(CAWNAAmounts[CustClass]=$B$25)*CAWNAAmounts[CAWNA]) -> 0 | H38: =SUMPRODUCT((CAWNAAmounts[Month]=$B38)*(CAWNAAmounts[Territory]=H$10)*(CAWNAAmounts[CustClass]=$B$25)*CAWNAAmounts[CAWNA]) -> 0 | I38: 0 | J38: 0 | K38: 0
B39: Total | C39: =SUM(C27:C38) -> 33852.88 | D39: =SUM(D27:D38) -> 20162.66 | E39: =SUM(E27:E38) -> 81683.57 | F39: =SUM(F27:F38) -> 33852.88 | G39: =SUM(G27:G38) -> 20162.66 | H39: =SUM(H27:H38) -> 81683.57 | I39: =SUM(I27:I38) -> 0 | J39: =SUM(J27:J38) -> 0 | K39: =SUM(K27:K38) -> 0
B41: WNAR Rates
B42: CAWNA | C42: CAWNA Summary Wrksht | E42: WNAR Rates Table | G42: Difference
B43: Territory | C43: Res | D43: SCFS | E43: Res | F43: SCFS | G43: Res | H43: SGS
B44: All | C44: ='CAWNA Summary'!C29 -> 0.01632 | D44: ='CAWNA Summary'!D29 -> 0.01896 | E44: =SUMPRODUCT((WNARRates[Year]=$C$5)*(WNARRates[CustClass]=E$43)*WNARRates[AdjCAWNA]) -> 0.01632 | F44: =SUMPRODUCT((WNARRates[Year]=$C$5)*(WNARRates[CustClass]=F$43)*WNARRates[AdjCAWNA]) -> 0.01896 | G44: =C44-E44 -> 0 | H44: =D44-F44 -> 0

Sheet CAWNA Summary
B2: Empire District Gas Company | E2: Filing Year
B3: WNAR Filing
B4: CAWNA Summary
B5: Year | C5: =DateSet!C2 -> 2023
B6: Analysis Start | C6: =DateSet!C3 -> 2022-09-01
B7: New Rate Effecc. | C7: 2023-10-01
B9: Current Period Dollar Adjustment
B10: Customer Class | C10: Res | G10: SCFS | K10: Notes
B11: MonthFlow | C11: North | D11: NW | E11: South | F11: Combined | G11: North | H11: NW | I11: South | J11: Combined
B12: =$C$6 -> 2022-09-01 | C12: =SUMPRODUCT((CAWNAAmounts[Month]=$B12)*(CAWNAAmounts[Territory]=C$11)*(CAWNAAmounts[CustClass]=$C$10)*CAWNAAmounts[CAWNA]) -> 5862.17 | D12: =SUMPRODUCT((CAWNAAmounts[Month]=$B12)*(CAWNAAmounts[Territory]=D$11)*(CAWNAAmounts[CustClass]=$C$10)*CAWNAAmounts[CAWNA]) -> 3608.5 | E12: =SUMPRODUCT((CAWNAAmounts[Month]=$B12)*(CAWNAAmounts[Territory]=E$11)*(CAWNAAmounts[CustClass]=$C$10)*CAWNAAmounts[CAWNA]) -> 18300.01 | F12: =SUM(C12:E12) -> 27770.68 | G12: =SUMPRODUCT((CAWNAAmounts[Month]=$B12)*(CAWNAAmounts[Territory]=G$11)*(CAWNAAmounts[CustClass]=$G$10)*CAWNAAmounts[CAWNA]) -> 2263.9 | H12: =SUMPRODUCT((CAWNAAmounts[Month]=$B12)*(CAWNAAmounts[Territory]=H$11)*(CAWNAAmounts[CustClass]=$G$10)*CAWNAAmounts[CAWNA]) -> 1367.84 | I12: =SUMPRODUCT((CAWNAAmounts[Month]=$B12)*(CAWNAAmounts[Territory]=I$11)*(CAWNAAmounts[CustClass]=$G$10)*CAWNAAmounts[CAWNA]) -> 5444.99 | J12: =SUM(G12:I12) -> 9076.73 | K12: From CAWNA Amounts table
B13: =EDATE(B12,1) -> 2022-10-01 | C13: =SUMPRODUCT((CAWNAAmounts[Month]=$B13)*(CAWNAAmounts[Territory]=C$11)*(CAWNAAmounts[CustClass]=$C$10)*CAWNAAmounts[CAWNA]) -> 10328.18 | D13: =SUMPRODUCT((CAWNAAmounts[Month]=$B13)*(CAWNAAmounts[Territory]=D$11)*(CAWNAAmounts[CustClass]=$C$10)*CAWNAAmounts[CAWNA]) -> 3967.81 | E13: =SUMPRODUCT((CAWNAAmounts[Month]=$B13)*(CAWNAAmounts[Territory]=E$11)*(CAWNAAmounts[CustClass]=$C$10)*CAWNAAmounts[CAWNA]) -> 31999.85 | F13: =SUM(C13:E13) -> 46295.84 | G13: =SUMPRODUCT((CAWNAAmounts[Month]=$B13)*(CAWNAAmounts[Territory]=G$11)*(CAWNAAmounts[CustClass]=$G$10)*CAWNAAmounts[CAWNA]) -> 3941.77 | H13: =SUMPRODUCT((CAWNAAmounts[Month]=$B13)*(CAWNAAmounts[Territory]=H$11)*(CAWNAAmounts[CustClass]=$G$10)*CAWNAAmounts[CAWNA]) -> 1494.12 | I13: =SUMPRODUCT((CAWNAAmounts[Month]=$B13)*(CAWNAAmounts[Territory]=I$11)*(CAWNAAmounts[CustClass]=$G$10)*CAWNAAmounts[CAWNA]) -> 9497.67 | J13: =SUM(G13:I13) -> 14933.56 | K13: From CAWNA Amounts table
B14: =EDATE(B13,1) -> 2022-11-01 | C14: =SUMPRODUCT((CAWNAAmounts[Month]=$B14)*(CAWNAAmounts[Territory]=C$11)*(CAWNAAmounts[CustClass]=$C$10)*CAWNAAmounts[CAWNA]) -> 2347.44 | D14: =SUMPRODUCT((CAWNAAmounts[Month]=$B14)*(CAWNAAmounts[Territory]=D$11)*(CAWNAAmounts[CustClass]=$C$10)*CAWNAAmounts[CAWNA]) -> 3807.66 | E14: =SUMPRODUCT((CAWNAAmounts[Month]=$B14)*(CAWNAAmounts[Territory]=E$11)*(CAWNAAmounts[CustClass]=$C$10)*CAWNAAmounts[CAWNA]) -> 8210.26 | F14: 14365.36 | G14: =SUMPRODUCT((CAWNAAmounts[Month]=$B14)*(CAWNAAmounts[Territory]=G$11)*(CAWNAAmounts[CustClass]=$G$10)*CAWNAAmounts[CAWNA]) -> 894.45 | H14: =SUMPRODUCT((CAWNAAmounts[Month]=$B14)*(CAWNAAmounts[Territory]=H$11)*(CAWNAAmounts[CustClass]=$G$10)*CAWNAAmounts[CAWNA]) -> 1425.55 | I14: =SUMPRODUCT((CAWNAAmounts[Month]=$B14)*(CAWNAAmounts[Territory]=I$11)*(CAWNAAmounts[CustClass]=$G$10)*CAWNAAmounts[CAWNA]) -> 2445.57 | J14: 4765.57 | K14: From CAWNA Amounts table
B15: =EDATE(B14,1) -> 2022-12-01 | C15: =SUMPRODUCT((CAWNAAmounts[Month]=$B15)*(CAWNAAmounts[Territory]=C$11)*(CAWNAAmounts[CustClass]=$C$10)*CAWNAAmounts[CAWNA]) -> -15401.2 | D15: =SUMPRODUCT((CAWNAAmounts[Month]=$B15)*(CAWNAAmounts[Territory]=D$11)*(CAWNAAmounts[CustClass]=$C$10)*CAWNAAmounts[CAWNA]) -> -8230.91 | E15: =SUMPRODUCT((CAWNAAmounts[Month]=$B15)*(CAWNAAmounts[Territory]=E$11)*(CAWNAAmounts[CustClass]=$C$10)*CAWNAAmounts[CAWNA]) -> -37580.27 | F15: -61212.38 | G15: =SUMPRODUCT((CAWNAAmounts[Month]=$B15)*(CAWNAAmounts[Territory]=G$11)*(CAWNAAmounts[CustClass]=$G$10)*CAWNAAmounts[CAWNA]) -> -5845.83 | H15: =SUMPRODUCT((CAWNAAmounts[Month]=$B15)*(CAWNAAmounts[Territory]=H$11)*(CAWNAAmounts[CustClass]=$G$10)*CAWNAAmounts[CAWNA]) -> -3093.35 | I15: =SUMPRODUCT((CAWNAAmounts[Month]=$B15)*(CAWNAAmounts[Territory]=I$11)*(CAWNAAmounts[CustClass]=$G$10)*CAWNAAmounts[CAWNA]) -> -11159.72 | J15: -20098.9 | K15: From CAWNA Amounts table
B16: =EDATE(B15,1) -> 2023-01-01 | C16: =SUMPRODUCT((CAWNAAmounts[Month]=$B16)*(CAWNAAmounts[Territory]=C$11)*(CAWNAAmounts[CustClass]=$C$10)*CAWNAAmounts[CAWNA]) -> 64545.76 | D16: =SUMPRODUCT((CAWNAAmounts[Month]=$B16)*(CAWNAAmounts[Territory]=D$11)*(CAWNAAmounts[CustClass]=$C$10)*CAWNAAmounts[CAWNA]) -> 38795.63 | E16: =SUMPRODUCT((CAWNAAmounts[Month]=$B16)*(CAWNAAmounts[Territory]=E$11)*(CAWNAAmounts[CustClass]=$C$10)*CAWNAAmounts[CAWNA]) -> 190196.8 | F16: 293538.19 | G16: =SUMPRODUCT((CAWNAAmounts[Month]=$B16)*(CAWNAAmounts[Territory]=G$11)*(CAWNAAmounts[CustClass]=$G$10)*CAWNAAmounts[CAWNA]) -> 24484.6 | H16: =SUMPRODUCT((CAWNAAmounts[Month]=$B16)*(CAWNAAmounts[Territory]=H$11)*(CAWNAAmounts[CustClass]=$G$10)*CAWNAAmounts[CAWNA]) -> 14583.82 | I16: =SUMPRODUCT((CAWNAAmounts[Month]=$B16)*(CAWNAAmounts[Territory]=I$11)*(CAWNAAmounts[CustClass]=$G$10)*CAWNAAmounts[CAWNA]) -> 56264.9 | J16: 95333.32 | K16: From CAWNA Amounts table
B17: =EDATE(B16,1) -> 2023-02-01 | C17: =SUMPRODUCT((CAWNAAmounts[Month]=$B17)*(CAWNAAmounts[Territory]=C$11)*(CAWNAAmounts[CustClass]=$C$10)*CAWNAAmounts[CAWNA]) -> 13744.57 | D17: =SUMPRODUCT((CAWNAAmounts[Month]=$B17)*(CAWNAAmounts[Territory]=D$11)*(CAWNAAmounts[CustClass]=$C$10)*CAWNAAmounts[CAWNA]) -> 8280.85 | E17: =SUMPRODUCT((CAWNAAmounts[Month]=$B17)*(CAWNAAmounts[Territory]=E$11)*(CAWNAAmounts[CustClass]=$C$10)*CAWNAAmounts[CAWNA]) -> 47540.74 | F17: 69566.16 | G17: =SUMPRODUCT((CAWNAAmounts[Month]=$B17)*(CAWNAAmounts[Territory]=G$11)*(CAWNAAmounts[CustClass]=$G$10)*CAWNAAmounts[CAWNA]) -> 5200.04 | H17: =SUMPRODUCT((CAWNAAmounts[Month]=$B17)*(CAWNAAmounts[Territory]=H$11)*(CAWNAAmounts[CustClass]=$G$10)*CAWNAAmounts[CAWNA]) -> 3117.22 | I17: =SUMPRODUCT((CAWNAAmounts[Month]=$B17)*(CAWNAAmounts[Territory]=I$11)*(CAWNAAmounts[CustClass]=$G$10)*CAWNAAmounts[CAWNA]) -> 14048.51 | J17: 22365.77 | K17: From CAWNA Amounts table
B18: =EDATE(B17,1) -> 2023-03-01 | C18: =SUMPRODUCT((CAWNAAmounts[Month]=$B18)*(CAWNAAmounts[Territory]=C$11)*(CAWNAAmounts[CustClass]=$C$10)*CAWNAAmounts[CAWNA]) -> -11114.01 | D18: =SUMPRODUCT((CAWNAAmounts[Month]=$B18)*(CAWNAAmounts[Territory]=D$11)*(CAWNAAmounts[CustClass]=$C$10)*CAWNAAmounts[CAWNA]) -> -7034.51 | E18: =SUMPRODUCT((CAWNAAmounts[Month]=$B18)*(CAWNAAmounts[Territory]=E$11)*(CAWNAAmounts[CustClass]=$C$10)*CAWNAAmounts[CAWNA]) -> -45026.34 | F18: -63174.86 | G18: =SUMPRODUCT((CAWNAAmounts[Month]=$B18)*(CAWNAAmounts[Territory]=G$11)*(CAWNAAmounts[CustClass]=$G$10)*CAWNAAmounts[CAWNA]) -> -4247.38 | H18: =SUMPRODUCT((CAWNAAmounts[Month]=$B18)*(CAWNAAmounts[Territory]=H$11)*(CAWNAAmounts[CustClass]=$G$10)*CAWNAAmounts[CAWNA]) -> -2675.78 | I18: =SUMPRODUCT((CAWNAAmounts[Month]=$B18)*(CAWNAAmounts[Territory]=I$11)*(CAWNAAmounts[CustClass]=$G$10)*CAWNAAmounts[CAWNA]) -> -13364.7 | J18: -20287.86 | K18: From CAWNA Amounts table
B19: 2023-04-01 | C19: =SUMPRODUCT((CAWNAAmounts[Month]=$B19)*(CAWNAAmounts[Territory]=C$11)*(CAWNAAmounts[CustClass]=$C$10)*CAWNAAmounts[CAWNA]) -> 8500.38 | D19: =SUMPRODUCT((CAWNAAmounts[Month]=$B19)*(CAWNAAmounts[Territory]=D$11)*(CAWNAAmounts[CustClass]=$C$10)*CAWNAAmounts[CAWNA]) -> 3752.53 | E19: =SUMPRODUCT((CAWNAAmounts[Month]=$B19)*(CAWNAAmounts[Territory]=E$11)*(CAWNAAmounts[CustClass]=$C$10)*CAWNAAmounts[CAWNA]) -> 31942.85 | F19: 44195.76 | G19: =SUMPRODUCT((CAWNAAmounts[Month]=$B19)*(CAWNAAmounts[Territory]=G$11)*(CAWNAAmounts[CustClass]=$G$10)*CAWNAAmounts[CAWNA]) -> 3256.4 | H19: =SUMPRODUCT((CAWNAAmounts[Month]=$B19)*(CAWNAAmounts[Territory]=H$11)*(CAWNAAmounts[CustClass]=$G$10)*CAWNAAmounts[CAWNA]) -> 1437.17 | I19: =SUMPRODUCT((CAWNAAmounts[Month]=$B19)*(CAWNAAmounts[Territory]=I$11)*(CAWNAAmounts[CustClass]=$G$10)*CAWNAAmounts[CAWNA]) -> 9498.77 | J19: 14192.34 | K19: From CAWNA Amounts table
B20: 2023-05-01 | C20: =SUMPRODUCT((CAWNAAmounts[Month]=$B20)*(CAWNAAmounts[Territory]=C$11)*(CAWNAAmounts[CustClass]=$C$10)*CAWNAAmounts[CAWNA]) -> 8727.97 | D20: =SUMPRODUCT((CAWNAAmounts[Month]=$B20)*(CAWNAAmounts[Territory]=D$11)*(CAWNAAmounts[CustClass]=$C$10)*CAWNAAmounts[CAWNA]) -> 5757.77 | E20: =SUMPRODUCT((CAWNAAmounts[Month]=$B20)*(CAWNAAmounts[Territory]=E$11)*(CAWNAAmounts[CustClass]=$C$10)*CAWNAAmounts[CAWNA]) -> 26202.65 | F20: 40688.39 | G20: =SUMPRODUCT((CAWNAAmounts[Month]=$B20)*(CAWNAAmounts[Territory]=G$11)*(CAWNAAmounts[CustClass]=$G$10)*CAWNAAmounts[CAWNA]) -> 3418.93 | H20: =SUMPRODUCT((CAWNAAmounts[Month]=$B20)*(CAWNAAmounts[Territory]=H$11)*(CAWNAAmounts[CustClass]=$G$10)*CAWNAAmounts[CAWNA]) -> 2216.73 | I20: =SUMPRODUCT((CAWNAAmounts[Month]=$B20)*(CAWNAAmounts[Territory]=I$11)*(CAWNAAmounts[CustClass]=$G$10)*CAWNAAmounts[CAWNA]) -> 7833.7 | J20: 13469.36 | K20: From CAWNA Amounts table
B21: 2023-06-01 | C21: =SUMPRODUCT((CAWNAAmounts[Month]=$B21)*(CAWNAAmounts[Territory]=C$11)*(CAWNAAmounts[CustClass]=$C$10)*CAWNAAmounts[CAWNA]) -> 1236.63 | D21: =SUMPRODUCT((CAWNAAmounts[Month]=$B21)*(CAWNAAmounts[Territory]=D$11)*(CAWNAAmounts[CustClass]=$C$10)*CAWNAAmounts[CAWNA]) -> 748.66 | E21: =SUMPRODUCT((CAWNAAmounts[Month]=$B21)*(CAWNAAmounts[Territory]=E$11)*(CAWNAAmounts[CustClass]=$C$10)*CAWNAAmounts[CAWNA]) -> 3930.59 | F21: 5915.88 | G21: =SUMPRODUCT((CAWNAAmounts[Month]=$B21)*(CAWNAAmounts[Territory]=G$11)*(CAWNAAmounts[CustClass]=$G$10)*CAWNAAmounts[CAWNA]) -> 486 | H21: =SUMPRODUCT((CAWNAAmounts[Month]=$B21)*(CAWNAAmounts[Territory]=H$11)*(CAWNAAmounts[CustClass]=$G$10)*CAWNAAmounts[CAWNA]) -> 289.34 | I21: =SUMPRODUCT((CAWNAAmounts[Month]=$B21)*(CAWNAAmounts[Territory]=I$11)*(CAWNAAmounts[CustClass]=$G$10)*CAWNAAmounts[CAWNA]) -> 1173.88 | J21: 1949.22 | K21: From CAWNA Amounts table
B22: 2023-07-01 | C22: =SUMPRODUCT((CAWNAAmounts[Month]=$B22)*(CAWNAAmounts[Territory]=C$11)*(CAWNAAmounts[CustClass]=$C$10)*CAWNAAmounts[CAWNA]) -> 0 | D22: =SUMPRODUCT((CAWNAAmounts[Month]=$B22)*(CAWNAAmounts[Territory]=D$11)*(CAWNAAmounts[CustClass]=$C$10)*CAWNAAmounts[CAWNA]) -> 0 | E22: =SUMPRODUCT((CAWNAAmounts[Month]=$B22)*(CAWNAAmounts[Territory]=E$11)*(CAWNAAmounts[CustClass]=$C$10)*CAWNAAmounts[CAWNA]) -> 0 | F22: 0 | G22: =SUMPRODUCT((CAWNAAmounts[Month]=$B22)*(CAWNAAmounts[Territory]=G$11)*(CAWNAAmounts[CustClass]=$G$10)*CAWNAAmounts[CAWNA]) -> 0 | H22: =SUMPRODUCT((CAWNAAmounts[Month]=$B22)*(CAWNAAmounts[Territory]=H$11)*(CAWNAAmounts[CustClass]=$G$10)*CAWNAAmounts[CAWNA]) -> 0 | I22: =SUMPRODUCT((CAWNAAmounts[Month]=$B22)*(CAWNAAmounts[Territory]=I$11)*(CAWNAAmounts[CustClass]=$G$10)*CAWNAAmounts[CAWNA]) -> 0 | J22: 0 | K22: From CAWNA Amounts table
B23: =EDATE(B22,1) -> 2023-08-01 | C23: =SUMPRODUCT((CAWNAAmounts[Month]=$B23)*(CAWNAAmounts[Territory]=C$11)*(CAWNAAmounts[CustClass]=$C$10)*CAWNAAmounts[CAWNA]) -> 0 | D23: =SUMPRODUCT((CAWNAAmounts[Month]=$B23)*(CAWNAAmounts[Territory]=D$11)*(CAWNAAmounts[CustClass]=$C$10)*CAWNAAmounts[CAWNA]) -> 0 | E23: =SUMPRODUCT((CAWNAAmounts[Month]=$B23)*(CAWNAAmounts[Territory]=E$11)*(CAWNAAmounts[CustClass]=$C$10)*CAWNAAmounts[CAWNA]) -> 0 | F23: 0 | G23: =SUMPRODUCT((CAWNAAmounts[Month]=$B23)*(CAWNAAmounts[Territory]=G$11)*(CAWNAAmounts[CustClass]=$G$10)*CAWNAAmounts[CAWNA]) -> 0 | H23: =SUMPRODUCT((CAWNAAmounts[Month]=$B23)*(CAWNAAmounts[Territory]=H$11)*(CAWNAAmounts[CustClass]=$G$10)*CAWNAAmounts[CAWNA]) -> 0 | I23: =SUMPRODUCT((CAWNAAmounts[Month]=$B23)*(CAWNAAmounts[Territory]=I$11)*(CAWNAAmounts[CustClass]=$G$10)*CAWNAAmounts[CAWNA]) -> 0 | J23: 0 | K23: From CAWNA Amounts table
B24: Total Adjustment | C24: =SUM(C12:C23) -> 88777.89 | D24: =SUM(D12:D23) -> 53453.99 | E24: 275717.14 | F24: 417949.02 | G24: 33852.88 | H24: 20162.66 | I24: 81683.57 | J24: 135699.11
B25: Enter Total Adj Amounts in Reconciling Period Adjustment Table (ReconPerAdj)
B27: CAWNA Rate Calculation | C27: Res | D27: SCFS
B28: Billing Determinants | C28: =INDEX(BillDeter[BillingDeterminants],MATCH(C27,BillDeter[CustClass],0)) -> 25605076.09 | D28: =INDEX(BillDeter[BillingDeterminants],MATCH(D27,BillDeter[CustClass],0)) -> 7155623
B29: CAWNA Rate | C29: =ROUND(F24/C28,5) -> 0.01632 | D29: =ROUND(J24/D28,5) -> 0.01896

Sheet CAWNA South
B2: Empire District Gas Company | F2: Filing Year
B3: Billing Cycle and HDD Data Summary
B4: Territory | C4: South
B5: Year | C5: =DateSet!C2 -> 2023
B6: Analysis Start | C6: =DateSet!C3 -> 2022-09-01
B8: Cust Class | C8: Res | D8: South
B9: MonthFlow | C9: Meter Read Dates | E9: Days/ Cycle | F9: Heating Degree Days | H9: Difference | I9: No. of Bills | J9: Beta Coeff. | K9: WNAR | L9: WRVR | M9: WNAi
C10: Begin | D10: End | F10: NDDij | G10: ADDij | H10: (NDDij - ADDij) | I10: Cij | J10: b | K10: h*i*j | L10: Vol. Rate | M10: k*l
B11: =$C$6 -> 2022-09-01 | C11: =SUMPRODUCT((MeterReadSch[MonthBill]=$B11)*MeterReadSch[South]) -> 2022-08-30 | D11: =SUMPRODUCT((MeterReadSch[MonthFlow]=$B11)*MeterReadSch[South]) -> 2022-09-29 | E11: =D11-C11 -> 30 | F11: =SUMPRODUCT((KCITempAct[Date]>=$C11)*(KCITempAct[Date]<$D11)*KCITempAct[KCINHDDAdj]) -> 45.1 | G11: =SUMPRODUCT((KCITempAct[Date]>=$C11)*(KCITempAct[Date]<$D11)*KCITempAct[KCIHDDAdj]) -> 17.5 | H11: =F11-G11 -> 27.6 | I11: =SUMPRODUCT((CustCount[MonthFlow]=$B11)*CustCount[S-RS]) -> 24699 | J11: =INDEX(BetaCoeff[BetaCoeff],MATCH(C$8,BetaCoeff[CustClass],0)) -> 0.1234365 | K11: =H11*I11*J11 -> 84145.72393 | L11: =SUMPRODUCT((VolRates[BeginDate]<=B11)*(VolRates[EndDate]>=D11)*(VolRates[CustClass]=$C$8)*VolRates[VolRate]) -> 0.21748 | M11: =ROUND(K11*L11,2) -> 18300.01
B12: =EDATE(B11,1) -> 2022-10-01 | C12: =SUMPRODUCT((MeterReadSch[MonthBill]=$B12)*MeterReadSch[South]) -> 2022-09-29 | D12: =SUMPRODUCT((MeterReadSch[MonthFlow]=$B12)*MeterReadSch[South]) -> 2022-10-31 | E12: =D12-C12 -> 32 | F12: =SUMPRODUCT((KCITempAct[Date]>=$C12)*(KCITempAct[Date]<$D12)*KCITempAct[KCINHDDAdj]) -> 282.1333333 | G12: =SUMPRODUCT((KCITempAct[Date]>=$C12)*(KCITempAct[Date]<$D12)*KCITempAct[KCIHDDAdj]) -> 234.5 | H12: 47.63333333 | I12: =SUMPRODUCT((CustCount[MonthFlow]=$B12)*CustCount[S-RS]) -> 25025 | J12: =INDEX(BetaCoeff[BetaCoeff],MATCH(C$8,BetaCoeff[CustClass],0)) -> 0.1234365 | K12: 147139.291 | L12: =SUMPRODUCT((VolRates[BeginDate]<=B12)*(VolRates[EndDate]>=D12)*(VolRates[CustClass]=$C$8)*VolRates[VolRate]) -> 0.21748 | M12: =ROUND(K12*L12,2) -> 31999.85
B13: =EDATE(B12,1) -> 2022-11-01 | C13: =SUMPRODUCT((MeterReadSch[MonthBill]=$B13)*MeterReadSch[South]) -> 2022-10-31 | D13: =SUMPRODUCT((MeterReadSch[MonthFlow]=$B13)*MeterReadSch[South]) -> 2022-11-29 | E13: 29 | F13: =SUMPRODUCT((KCITempAct[Date]>=$C13)*(KCITempAct[Date]<$D13)*KCITempAct[KCINHDDAdj]) -> 601.65 | G13: =SUMPRODUCT((KCITempAct[Date]>=$C13)*(KCITempAct[Date]<$D13)*KCITempAct[KCIHDDAdj]) -> 589.5 | H13: 12.15 | I13: =SUMPRODUCT((CustCount[MonthFlow]=$B13)*CustCount[S-RS]) -> 25172 | J13: =INDEX(BetaCoeff[BetaCoeff],MATCH(C$8,BetaCoeff[CustClass],0)) -> 0.1234365 | K13: 37751.79447 | L13: =SUMPRODUCT((VolRates[BeginDate]<=B13)*(VolRates[EndDate]>=D13)*(VolRates[CustClass]=$C$8)*VolRates[VolRate]) -> 0.21748 | M13: 8210.26
B14: =EDATE(B13,1) -> 2022-12-01 | C14: =SUMPRODUCT((MeterReadSch[MonthBill]=$B14)*MeterReadSch[South]) -> 2022-11-29 | D14: =SUMPRODUCT((MeterReadSch[MonthFlow]=$B14)*MeterReadSch[South]) -> 2022-12-29 | E14: 30 | F14: =SUMPRODUCT((KCITempAct[Date]>=$C14)*(KCITempAct[Date]<$D14)*KCITempAct[KCINHDDAdj]) -> 935.5166667 | G14: =SUMPRODUCT((KCITempAct[Date]>=$C14)*(KCITempAct[Date]<$D14)*KCITempAct[KCIHDDAdj]) -> 991 | H14: -55.48333333 | I14: =SUMPRODUCT((CustCount[MonthFlow]=$B14)*CustCount[S-RS]) -> 25231 | J14: =INDEX(BetaCoeff[BetaCoeff],MATCH(C$8,BetaCoeff[CustClass],0)) -> 0.1234365 | K14: -172798.7543 | L14: =SUMPRODUCT((VolRates[BeginDate]<=B14)*(VolRates[EndDate]>=D14)*(VolRates[CustClass]=$C$8)*VolRates[VolRate]) -> 0.21748 | M14: -37580.27
B15: =EDATE(B14,1) -> 2023-01-01 | C15: =SUMPRODUCT((MeterReadSch[MonthBill]=$B15)*MeterReadSch[South]) -> 2022-12-29 | D15: =SUMPRODUCT((MeterReadSch[MonthFlow]=$B15)*MeterReadSch[South]) -> 2023-01-30 | E15: 32 | F15: =SUMPRODUCT((KCITempAct[Date]>=$C15)*(KCITempAct[Date]<$D15)*KCITempAct[KCINHDDAdj]) -> 1134.75 | G15: =SUMPRODUCT((KCITempAct[Date]>=$C15)*(KCITempAct[Date]<$D15)*KCITempAct[KCIHDDAdj]) -> 854 | H15: 280.75 | I15: =SUMPRODUCT((CustCount[MonthFlow]=$B15)*CustCount[S-RS]) -> 25236 | J15: =INDEX(BetaCoeff[BetaCoeff],MATCH(C$8,BetaCoeff[CustClass],0)) -> 0.1234365 | K15: 874548.4666 | L15: =SUMPRODUCT((VolRates[BeginDate]<=B15)*(VolRates[EndDate]>=D15)*(VolRates[CustClass]=$C$8)*VolRates[VolRate]) -> 0.21748 | M15: 190196.8
B16: =EDATE(B15,1) -> 2023-02-01 | C16: =SUMPRODUCT((MeterReadSch[MonthBill]=$B16)*MeterReadSch[South]) -> 2023-01-30 | D16: =SUMPRODUCT((MeterReadSch[MonthFlow]=$B16)*MeterReadSch[South]) -> 2023-02-27 | E16: 28 | F16: =SUMPRODUCT((KCITempAct[Date]>=$C16)*(KCITempAct[Date]<$D16)*KCITempAct[KCINHDDAdj]) -> 900.65 | G16: =SUMPRODUCT((KCITempAct[Date]>=$C16)*(KCITempAct[Date]<$D16)*KCITempAct[KCIHDDAdj]) -> 830.5 | H16: 70.15 | I16: =SUMPRODUCT((CustCount[MonthFlow]=$B16)*CustCount[S-RS]) -> 25245 | J16: =INDEX(BetaCoeff[BetaCoeff],MATCH(C$8,BetaCoeff[CustClass],0)) -> 0.1234365 | K16: 218598.2341 | L16: =SUMPRODUCT((VolRates[BeginDate]<=B16)*(VolRates[EndDate]>=D16)*(VolRates[CustClass]=$C$8)*VolRates[VolRate]) -> 0.21748 | M16: 47540.74
B17: =EDATE(B16,1) -> 2023-03-01 | C17: =SUMPRODUCT((MeterReadSch[MonthBill]=$B17)*MeterReadSch[South]) -> 2023-02-27 | D17: =SUMPRODUCT((MeterReadSch[MonthFlow]=$B17)*MeterReadSch[South]) -> 2023-03-30 | E17: 31 | F17: =SUMPRODUCT((KCITempAct[Date]>=$C17)*(KCITempAct[Date]<$D17)*KCITempAct[KCINHDDAdj]) -> 659.85 | G17: =SUMPRODUCT((KCITempAct[Date]>=$C17)*(KCITempAct[Date]<$D17)*KCITempAct[KCIHDDAdj]) -> 727 | H17: -67.15 | I17: =SUMPRODUCT((CustCount[MonthFlow]=$B17)*CustCount[S-RS]) -> 24978 | J17: =INDEX(BetaCoeff[BetaCoeff],MATCH(C$8,BetaCoeff[CustClass],0)) -> 0.1234365 | K17: -207036.6716 | L17: =SUMPRODUCT((VolRates[BeginDate]<=B17)*(VolRates[EndDate]>=D17)*(VolRates[CustClass]=$C$8)*VolRates[VolRate]) -> 0.21748 | M17: -45026.34
B18: 2023-04-01 | C18: =SUMPRODUCT((MeterReadSch[MonthBill]=$B18)*MeterReadSch[South]) -> 2023-03-30 | D18: =SUMPRODUCT((MeterReadSch[MonthFlow]=$B18)*MeterReadSch[South]) -> 2023-04-29 | E18: 30 | F18: =SUMPRODUCT((KCITempAct[Date]>=$C18)*(KCITempAct[Date]<$D18)*KCITempAct[KCINHDDAdj]) -> 341.3833333 | G18: =SUMPRODUCT((KCITempAct[Date]>=$C18)*(KCITempAct[Date]<$D18)*KCITempAct[KCIHDDAdj]) -> 293.5 | H18: 47.88333333 | I18: =SUMPRODUCT((CustCount[MonthFlow]=$B18)*CustCount[S-RS]) -> 24850 | J18: =INDEX(BetaCoeff[BetaCoeff],MATCH(C$8,BetaCoeff[CustClass],0)) -> 0.1234365 | K18: 146877.1942 | L18: =SUMPRODUCT((VolRates[BeginDate]<=B18)*(VolRates[EndDate]>=D18)*(VolRates[CustClass]=$C$8)*VolRates[VolRate]) -> 0.21748 | M18: 31942.85
B19: 2023-05-01 | C19: =SUMPRODUCT((MeterReadSch[MonthBill]=$B19)*MeterReadSch[South]) -> 2023-04-29 | D19: =SUMPRODUCT((MeterReadSch[MonthFlow]=$B19)*MeterReadSch[South]) -> 2023-05-30 | E19: 31 | F19: =SUMPRODUCT((KCITempAct[Date]>=$C19)*(KCITempAct[Date]<$D19)*KCITempAct[KCINHDDAdj]) -> 119.7666667 | G19: =SUMPRODUCT((KCITempAct[Date]>=$C19)*(KCITempAct[Date]<$D19)*KCITempAct[KCIHDDAdj]) -> 80 | H19: 39.76666667 | I19: =SUMPRODUCT((CustCount[MonthFlow]=$B19)*CustCount[S-RS]) -> 24545 | J19: =INDEX(BetaCoeff[BetaCoeff],MATCH(C$8,BetaCoeff[CustClass],0)) -> 0.1234365 | K19: 120483.0143 | L19: =SUMPRODUCT((VolRates[BeginDate]<=B19)*(VolRates[EndDate]>=D19)*(VolRates[CustClass]=$C$8)*VolRates[VolRate]) -> 0.21748 | M19: 26202.65
B20: 2023-06-01 | C20: =SUMPRODUCT((MeterReadSch[MonthBill]=$B20)*MeterReadSch[South]) -> 2023-05-30 | D20: =SUMPRODUCT((MeterReadSch[MonthFlow]=$B20)*MeterReadSch[South]) -> 2023-06-29 | E20: 30 | F20: =SUMPRODUCT((KCITempAct[Date]>=$C20)*(KCITempAct[Date]<$D20)*KCITempAct[KCINHDDAdj]) -> 8.483333333 | G20: =SUMPRODUCT((KCITempAct[Date]>=$C20)*(KCITempAct[Date]<$D20)*KCITempAct[KCIHDDAdj]) -> 2.5 | H20: 5.983333333 | I20: =SUMPRODUCT((CustCount[MonthFlow]=$B20)*CustCount[S-RS]) -> 24471 | J20: =INDEX(BetaCoeff[BetaCoeff],MATCH(C$8,BetaCoeff[CustClass],0)) -> 0.1234365 | K20: 18073.34397 | L20: =SUMPRODUCT((VolRates[BeginDate]<=B20)*(VolRates[EndDate]>=D20)*(VolRates[CustClass]=$C$8)*VolRates[VolRate]) -> 0.21748 | M20: 3930.59
B21: 2023-07-01 | C21: =SUMPRODUCT((MeterReadSch[MonthBill]=$B21)*MeterReadSch[South]) -> 2023-06-29 | D21: =SUMPRODUCT((MeterReadSch[MonthFlow]=$B21)*MeterReadSch[South]) -> 2023-07-25 | E21: 26 | F21: =SUMPRODUCT((KCITempAct[Date]>=$C21)*(KCITempAct[Date]<$D21)*KCITempAct[KCINHDDAdj]) -> 0.01666666667 | G21: =SUMPRODUCT((KCITempAct[Date]>=$C21)*(KCITempAct[Date]<$D21)*KCITempAct[KCIHDDAdj]) -> 0 | H21: 0.01666666667 | I21: =SUMPRODUCT((CustCount[MonthFlow]=$B21)*CustCount[S-RS]) -> 0 | J21: =INDEX(BetaCoeff[BetaCoeff],MATCH(C$8,BetaCoeff[CustClass],0)) -> 0.1234365 | K21: 0 | L21: =SUMPRODUCT((VolRates[BeginDate]<=B21)*(VolRates[EndDate]>=D21)*(VolRates[CustClass]=$C$8)*VolRates[VolRate]) -> 0.21748 | M21: 0
B22: =EDATE(B21,1) -> 2023-08-01 | C22: =SUMPRODUCT((MeterReadSch[MonthBill]=$B22)*MeterReadSch[South]) -> 2023-07-25 | D22: =SUMPRODUCT((MeterReadSch[MonthFlow]=$B22)*MeterReadSch[South]) -> 2023-08-25 | E22: 31 | F22: =SUMPRODUCT((KCITempAct[Date]>=$C22)*(KCITempAct[Date]<$D22)*KCITempAct[KCINHDDAdj]) -> 0 | G22: =SUMPRODUCT((KCITempAct[Date]>=$C22)*(KCITempAct[Date]<$D22)*KCITempAct[KCIHDDAdj]) -> 0 | H22: 0 | I22: =SUMPRODUCT((CustCount[MonthFlow]=$B22)*CustCount[S-RS]) -> 0 | J22: =INDEX(BetaCoeff[BetaCoeff],MATCH(C$8,BetaCoeff[CustClass],0)) -> 0.1234365 | K22: 0 | L22: =SUMPRODUCT((VolRates[BeginDate]<=B22)*(VolRates[EndDate]>=D22)*(VolRates[CustClass]=$C$8)*VolRates[VolRate]) -> 0.21748 | M22: 0
B23: Totals | C23: =C11 -> 2022-08-30 | D23: =D22 -> 2023-08-25 | E23: 360 | F23: =SUM(F11:F22) -> 5029.3 | G23: =SUM(G11:G22) -> 4620 | H23: 409.3 | I23: 249452 | J23: =J22 -> 0.1234365 | K23: 1267781.637 | L23: =ROUND(M23/K23,5) -> 0.21748 | M23: 275717.14
B24: Reconciling Period Adj. | D24: =M23 -> 275717.14 | E24: Enter in Reconciling Period Adjustment Table (ReconPerAdj)
B25: Enter WNA Amounts in Column M in CAWNA Amounts Table
B27: Small Comm. | C27: SCFS
B28: MonthFlow | C28: Meter Read Dates | E28: Days/ Cycle | F28: Heating Degree Days | H28: Difference | I28: No. of Bills | J28: Beta Coeff. | K28: WNAR | L28: WRVR | M28: WNAi
C29: Begin | D29: End | F29: NDDij | G29: ADDij | H29: (NDDij - ADDij) | I29: Cij | J29: b | K29: h*i*j | L29: Vol. Rate | M29: k*l
B30: =$C$6 -> 2022-09-01 | C30: =SUMPRODUCT((MeterReadSch[MonthBill]=$B30)*MeterReadSch[South]) -> 2022-08-30 | D30: =SUMPRODUCT((MeterReadSch[MonthFlow]=$B30)*MeterReadSch[South]) -> 2022-09-29 | E30: =D30-C30 -> 30 | F30: =SUMPRODUCT((KCITempAct[Date]>=$C30)*(KCITempAct[Date]<$D30)*KCITempAct[KCINHDDAdj]) -> 45.1 | G30: =SUMPRODUCT((KCITempAct[Date]>=$C30)*(KCITempAct[Date]<$D30)*KCITempAct[KCIHDDAdj]) -> 17.5 | H30: =F30-G30 -> 27.6 | I30: =SUMPRODUCT((CustCount[MonthFlow]=$B30)*CustCount[S-SC]) -> 2713 | J30: =INDEX(BetaCoeff[BetaCoeff],MATCH(C$27,BetaCoeff[CustClass],0)) -> 0.2793279 | K30: =H30*I30*J30 -> 20915.73796 | L30: =SUMPRODUCT((VolRates[BeginDate]<=B30)*(VolRates[EndDate]>=D30)*(VolRates[CustClass]=$C$27)*VolRates[VolRate]) -> 0.26033 | M30: =ROUND(K30*L30,2) -> 5444.99
B31: =EDATE(B30,1) -> 2022-10-01 | C31: =SUMPRODUCT((MeterReadSch[MonthBill]=$B31)*MeterReadSch[South]) -> 2022-09-29 | D31: =SUMPRODUCT((MeterReadSch[MonthFlow]=$B31)*MeterReadSch[South]) -> 2022-10-31 | E31: =D31-C31 -> 32 | F31: =SUMPRODUCT((KCITempAct[Date]>=$C31)*(KCITempAct[Date]<$D31)*KCITempAct[KCINHDDAdj]) -> 282.1333333 | G31: =SUMPRODUCT((KCITempAct[Date]>=$C31)*(KCITempAct[Date]<$D31)*KCITempAct[KCIHDDAdj]) -> 234.5 | H31: 47.63333333 | I31: =SUMPRODUCT((CustCount[MonthFlow]=$B31)*CustCount[S-SC]) -> 2742 | J31: =INDEX(BetaCoeff[BetaCoeff],MATCH(C$27,BetaCoeff[CustClass],0)) -> 0.2793279 | K31: 36483.18462 | L31: =SUMPRODUCT((VolRates[BeginDate]<=B31)*(VolRates[EndDate]>=D31)*(VolRates[CustClass]=$C$27)*VolRates[VolRate]) -> 0.26033 | M31: =ROUND(K31*L31,2) -> 9497.67
B32: =EDATE(B31,1) -> 2022-11-01 | C32: =SUMPRODUCT((MeterReadSch[MonthBill]=$B32)*MeterReadSch[South]) -> 2022-10-31 | D32: =SUMPRODUCT((MeterReadSch[MonthFlow]=$B32)*MeterReadSch[South]) -> 2022-11-29 | E32: 29 | F32: =SUMPRODUCT((KCITempAct[Date]>=$C32)*(KCITempAct[Date]<$D32)*KCITempAct[KCINHDDAdj]) -> 601.65 | G32: =SUMPRODUCT((KCITempAct[Date]>=$C32)*(KCITempAct[Date]<$D32)*KCITempAct[KCIHDDAdj]) -> 589.5 | H32: 12.15 | I32: =SUMPRODUCT((CustCount[MonthFlow]=$B32)*CustCount[S-SC]) -> 2768 | J32: =INDEX(BetaCoeff[BetaCoeff],MATCH(C$27,BetaCoeff[CustClass],0)) -> 0.2793279 | K32: 9394.13247 | L32: =SUMPRODUCT((VolRates[BeginDate]<=B32)*(VolRates[EndDate]>=D32)*(VolRates[CustClass]=$C$27)*VolRates[VolRate]) -> 0.26033 | M32: 2445.57
B33: 2022-12-01 | C33: =SUMPRODUCT((MeterReadSch[MonthBill]=$B33)*MeterReadSch[South]) -> 2022-11-29 | D33: =SUMPRODUCT((MeterReadSch[MonthFlow]=$B33)*MeterReadSch[South]) -> 2022-12-29 | E33: 30 | F33: =SUMPRODUCT((KCITempAct[Date]>=$C33)*(KCITempAct[Date]<$D33)*KCITempAct[KCINHDDAdj]) -> 935.5166667 | G33: =SUMPRODUCT((KCITempAct[Date]>=$C33)*(KCITempAct[Date]<$D33)*KCITempAct[KCIHDDAdj]) -> 991 | H33: -55.48333333 | I33: =SUMPRODUCT((CustCount[MonthFlow]=$B33)*CustCount[S-SC]) -> 2766 | J33: =INDEX(BetaCoeff[BetaCoeff],MATCH(C$27,BetaCoeff[CustClass],0)) -> 0.2793279 | K33: -42867.5869 | L33: =SUMPRODUCT((VolRates[BeginDate]<=B33)*(VolRates[EndDate]>=D33)*(VolRates[CustClass]=$C$27)*VolRates[VolRate]) -> 0.26033 | M33: -11159.72
B34: 2023-01-01 | C34: =SUMPRODUCT((MeterReadSch[MonthBill]=$B34)*MeterReadSch[South]) -> 2022-12-29 | D34: =SUMPRODUCT((MeterReadSch[MonthFlow]=$B34)*MeterReadSch[South]) -> 2023-01-30 | E34: 32 | F34: =SUMPRODUCT((KCITempAct[Date]>=$C34)*(KCITempAct[Date]<$D34)*KCITempAct[KCINHDDAdj]) -> 1134.75 | G34: =SUMPRODUCT((KCITempAct[Date]>=$C34)*(KCITempAct[Date]<$D34)*KCITempAct[KCIHDDAdj]) -> 854 | H34: 280.75 | I34: =SUMPRODUCT((CustCount[MonthFlow]=$B34)*CustCount[S-SC]) -> 2756 | J34: =INDEX(BetaCoeff[BetaCoeff],MATCH(C$27,BetaCoeff[CustClass],0)) -> 0.2793279 | K34: 216129.1246 | L34: =SUMPRODUCT((VolRates[BeginDate]<=B34)*(VolRates[EndDate]>=D34)*(VolRates[CustClass]=$C$27)*VolRates[VolRate]) -> 0.26033 | M34: 56264.9
B35: 2023-02-01 | C35: =SUMPRODUCT((MeterReadSch[MonthBill]=$B35)*MeterReadSch[South]) -> 2023-01-30 | D35: =SUMPRODUCT((MeterReadSch[MonthFlow]=$B35)*MeterReadSch[South]) -> 2023-02-27 | E35: 28 | F35: =SUMPRODUCT((KCITempAct[Date]>=$C35)*(KCITempAct[Date]<$D35)*KCITempAct[KCINHDDAdj]) -> 900.65 | G35: =SUMPRODUCT((KCITempAct[Date]>=$C35)*(KCITempAct[Date]<$D35)*KCITempAct[KCIHDDAdj]) -> 830.5 | H35: 70.15 | I35: =SUMPRODUCT((CustCount[MonthFlow]=$B35)*CustCount[S-SC]) -> 2754 | J35: =INDEX(BetaCoeff[BetaCoeff],MATCH(C$27,BetaCoeff[CustClass],0)) -> 0.2793279 | K35: 53964.22292 | L35: =SUMPRODUCT((VolRates[BeginDate]<=B35)*(VolRates[EndDate]>=D35)*(VolRates[CustClass]=$C$27)*VolRates[VolRate]) -> 0.26033 | M35: 14048.51
B36: 2023-03-01 | C36: =SUMPRODUCT((MeterReadSch[MonthBill]=$B36)*MeterReadSch[South]) -> 2023-02-27 | D36: =SUMPRODUCT((MeterReadSch[MonthFlow]=$B36)*MeterReadSch[South]) -> 2023-03-30 | E36: 31 | F36: =SUMPRODUCT((KCITempAct[Date]>=$C36)*(KCITempAct[Date]<$D36)*KCITempAct[KCINHDDAdj]) -> 659.85 | G36: =SUMPRODUCT((KCITempAct[Date]>=$C36)*(KCITempAct[Date]<$D36)*KCITempAct[KCIHDDAdj]) -> 727 | H36: -67.15 | I36: =SUMPRODUCT((CustCount[MonthFlow]=$B36)*CustCount[S-SC]) -> 2737 | J36: =INDEX(BetaCoeff[BetaCoeff],MATCH(C$27,BetaCoeff[CustClass],0)) -> 0.2793279 | K36: -51337.54904 | L36: =SUMPRODUCT((VolRates[BeginDate]<=B36)*(VolRates[EndDate]>=D36)*(VolRates[CustClass]=$C$27)*VolRates[VolRate]) -> 0.26033 | M36: -13364.7
B37: 2023-04-01 | C37: =SUMPRODUCT((MeterReadSch[MonthBill]=$B37)*MeterReadSch[South]) -> 2023-03-30 | D37: =SUMPRODUCT((MeterReadSch[MonthFlow]=$B37)*MeterReadSch[South]) -> 2023-04-29 | E37: 30 | F37: =SUMPRODUCT((KCITempAct[Date]>=$C37)*(KCITempAct[Date]<$D37)*KCITempAct[KCINHDDAdj]) -> 341.3833333 | G37: =SUMPRODUCT((KCITempAct[Date]>=$C37)*(KCITempAct[Date]<$D37)*KCITempAct[KCIHDDAdj]) -> 293.5 | H37: 47.88333333 | I37: =SUMPRODUCT((CustCount[MonthFlow]=$B37)*CustCount[S-SC]) -> 2728 | J37: =INDEX(BetaCoeff[BetaCoeff],MATCH(C$27,BetaCoeff[CustClass],0)) -> 0.2793279 | K37: 36487.41178 | L37: =SUMPRODUCT((VolRates[BeginDate]<=B37)*(VolRates[EndDate]>=D37)*(VolRates[CustClass]=$C$27)*VolRates[VolRate]) -> 0.26033 | M37: 9498.77
B38: =EDATE(B37,1) -> 2023-05-01 | C38: =SUMPRODUCT((MeterReadSch[MonthBill]=$B38)*MeterReadSch[South]) -> 2023-04-29 | D38: =SUMPRODUCT((MeterReadSch[MonthFlow]=$B38)*MeterReadSch[South]) -> 2023-05-30 | E38: 31 | F38: =SUMPRODUCT((KCITempAct[Date]>=$C38)*(KCITempAct[Date]<$D38)*KCITempAct[KCINHDDAdj]) -> 119.7666667 | G38: =SUMPRODUCT((KCITempAct[Date]>=$C38)*(KCITempAct[Date]<$D38)*KCITempAct[KCIHDDAdj]) -> 80 | H38: 39.76666667 | I38: =SUMPRODUCT((CustCount[MonthFlow]=$B38)*CustCount[S-SC]) -> 2709 | J38: =INDEX(BetaCoeff[BetaCoeff],MATCH(C$27,BetaCoeff[CustClass],0)) -> 0.2793279 | K38: 30091.40808 | L38: =SUMPRODUCT((VolRates[BeginDate]<=B38)*(VolRates[EndDate]>=D38)*(VolRates[CustClass]=$C$27)*VolRates[VolRate]) -> 0.26033 | M38: 7833.7
B39: =EDATE(B38,1) -> 2023-06-01 | C39: =SUMPRODUCT((MeterReadSch[MonthBill]=$B39)*MeterReadSch[South]) -> 2023-05-30 | D39: =SUMPRODUCT((MeterReadSch[MonthFlow]=$B39)*MeterReadSch[South]) -> 2023-06-29 | E39: 30 | F39: =SUMPRODUCT((KCITempAct[Date]>=$C39)*(KCITempAct[Date]<$D39)*KCITempAct[KCINHDDAdj]) -> 8.483333333 | G39: =SUMPRODUCT((KCITempAct[Date]>=$C39)*(KCITempAct[Date]<$D39)*KCITempAct[KCIHDDAdj]) -> 2.5 | H39: 5.983333333 | I39: =SUMPRODUCT((CustCount[MonthFlow]=$B39)*CustCount[S-SC]) -> 2698 | J39: =INDEX(BetaCoeff[BetaCoeff],MATCH(C$27,BetaCoeff[CustClass],0)) -> 0.2793279 | K39: 4509.199601 | L39: =SUMPRODUCT((VolRates[BeginDate]<=B39)*(VolRates[EndDate]>=D39)*(VolRates[CustClass]=$C$27)*VolRates[VolRate]) -> 0.26033 | M39: 1173.88
B40: 2023-07-01 | C40: =SUMPRODUCT((MeterReadSch[MonthBill]=$B40)*MeterReadSch[South]) -> 2023-06-29 | D40: =SUMPRODUCT((MeterReadSch[MonthFlow]=$B40)*MeterReadSch[South]) -> 2023-07-25 | E40: 26 | F40: =SUMPRODUCT((KCITempAct[Date]>=$C40)*(KCITempAct[Date]<$D40)*KCITempAct[KCINHDDAdj]) -> 0.01666666667 | G40: =SUMPRODUCT((KCITempAct[Date]>=$C40)*(KCITempAct[Date]<$D40)*KCITempAct[KCIHDDAdj]) -> 0 | H40: 0.01666666667 | I40: =SUMPRODUCT((CustCount[MonthFlow]=$B40)*CustCount[S-SC]) -> 0 | J40: =INDEX(BetaCoeff[BetaCoeff],MATCH(C$27,BetaCoeff[CustClass],0)) -> 0.2793279 | K40: 0 | L40: =SUMPRODUCT((VolRates[BeginDate]<=B40)*(VolRates[EndDate]>=D40)*(VolRates[CustClass]=$C$27)*VolRates[VolRate]) -> 0.26033 | M40: 0
B41: 2023-08-01 | C41: =SUMPRODUCT((MeterReadSch[MonthBill]=$B41)*MeterReadSch[South]) -> 2023-07-25 | D41: =SUMPRODUCT((MeterReadSch[MonthFlow]=$B41)*MeterReadSch[South]) -> 2023-08-25 | E41: 31 | F41: =SUMPRODUCT((KCITempAct[Date]>=$C41)*(KCITempAct[Date]<$D41)*KCITempAct[KCINHDDAdj]) -> 0 | G41: =SUMPRODUCT((KCITempAct[Date]>=$C41)*(KCITempAct[Date]<$D41)*KCITempAct[KCIHDDAdj]) -> 0 | H41: 0 | I41: =SUMPRODUCT((CustCount[MonthFlow]=$B41)*CustCount[S-SC]) -> 0 | J41: =INDEX(BetaCoeff[BetaCoeff],MATCH(C$27,BetaCoeff[CustClass],0)) -> 0.2793279 | K41: 0 | L41: =SUMPRODUCT((VolRates[BeginDate]<=B41)*(VolRates[EndDate]>=D41)*(VolRates[CustClass]=$C$27)*VolRates[VolRate]) -> 0.26033 | M41: 0
B42: Totals | C42: =C30 -> 2022-08-30 | D42: =D41 -> 2023-08-25 | E42: 360 | F42: =SUM(F30:F41) -> 5029.3 | G42: =SUM(G30:G41) -> 4620 | H42: =SUM(H30:H41) -> 409.3 | I42: =SUM(I30:I41) -> 27371 | J42: =J41 -> 0.2793279 | K42: =SUM(K30:K41) -> 313769.2861 | L42: =ROUND(M42/K42,5) -> 0.26033 | M42: =SUM(M30:M41) -> 81683.57
B43: Reconciling Period Adj. | D43: =M42 -> 81683.57 | E43: Enter in Reconciling Period Adjustment Table (ReconPerAdj)
B44: Enter WNA Amounts in Column M in CAWNA Amounts Table

Sheet CAWNA NW
B2: Empire District Gas Company | F2: Filing Year
B3: Billing Cycle and HDD Data Summary
B4: Territory | C4: NW
B5: Year | C5: =DateSet!C2 -> 2023
B6: Analysis Start | C6: =DateSet!C3 -> 2022-09-01
B8: Cust Class | C8: Res | D8: NW
B9: MonthFlow | C9: Meter Read Dates | E9: Days/ Cycle | F9: Heating Degree Days | H9: Difference | I9: No. of Bills | J9: Beta Coeff. | K9: WNAR | L9: WRVR | M9: WNAi
C10: Begin | D10: End | F10: NDDij | G10: ADDij | H10: (NDDij - ADDij) | I10: Cij | J10: b | K10: h*i*j | L10: Vol. Rate | M10: k*l
B11: =$C$6 -> 2022-09-01 | C11: =SUMPRODUCT((MeterReadSch[MonthBill]=$B11)*MeterReadSch[NW]) -> 2022-08-29 | D11: =SUMPRODUCT((MeterReadSch[MonthFlow]=$B11)*MeterReadSch[NW]) -> 2022-09-28 | E11: =D11-C11 -> 30 | F11: =SUMPRODUCT((KCITempAct[Date]>=$C11)*(KCITempAct[Date]<$D11)*KCITempAct[KCINHDDAdj]) -> 41.53333333 | G11: =SUMPRODUCT((KCITempAct[Date]>=$C11)*(KCITempAct[Date]<$D11)*KCITempAct[KCIHDDAdj]) -> 13.5 | H11: =F11-G11 -> 28.03333333 | I11: =SUMPRODUCT((CustCount[MonthFlow]=$B11)*CustCount[NW-RS]) -> 4795 | J11: =INDEX(BetaCoeff[BetaCoeff],MATCH(C$8,BetaCoeff[CustClass],0)) -> 0.1234365 | K11: =H11*I11*J11 -> 16592.31376 | L11: =SUMPRODUCT((VolRates[BeginDate]<=B11)*(VolRates[EndDate]>=D11)*(VolRates[CustClass]=$C$8)*VolRates[VolRate]) -> 0.21748 | M11: =ROUND(K11*L11,2) -> 3608.5
B12: =EDATE(B11,1) -> 2022-10-01 | C12: =SUMPRODUCT((MeterReadSch[MonthBill]=$B12)*MeterReadSch[NW]) -> 2022-09-28 | D12: =SUMPRODUCT((MeterReadSch[MonthFlow]=$B12)*MeterReadSch[NW]) -> 2022-10-28 | E12: =D12-C12 -> 30 | F12: =SUMPRODUCT((KCITempAct[Date]>=$C12)*(KCITempAct[Date]<$D12)*KCITempAct[KCINHDDAdj]) -> 246.35 | G12: =SUMPRODUCT((KCITempAct[Date]>=$C12)*(KCITempAct[Date]<$D12)*KCITempAct[KCIHDDAdj]) -> 216 | H12: 30.35 | I12: =SUMPRODUCT((CustCount[MonthFlow]=$B12)*CustCount[NW-RS]) -> 4870 | J12: =INDEX(BetaCoeff[BetaCoeff],MATCH(C$8,BetaCoeff[CustClass],0)) -> 0.1234365 | K12: 18244.47016 | L12: =SUMPRODUCT((VolRates[BeginDate]<=B12)*(VolRates[EndDate]>=D12)*(VolRates[CustClass]=$C$8)*VolRates[VolRate]) -> 0.21748 | M12: =ROUND(K12*L12,2) -> 3967.81
B13: =EDATE(B12,1) -> 2022-11-01 | C13: =SUMPRODUCT((MeterReadSch[MonthBill]=$B13)*MeterReadSch[NW]) -> 2022-10-28 | D13: =SUMPRODUCT((MeterReadSch[MonthFlow]=$B13)*MeterReadSch[NW]) -> 2022-11-29 | E13: 32 | F13: =SUMPRODUCT((KCITempAct[Date]>=$C13)*(KCITempAct[Date]<$D13)*KCITempAct[KCINHDDAdj]) -> 641 | G13: =SUMPRODUCT((KCITempAct[Date]>=$C13)*(KCITempAct[Date]<$D13)*KCITempAct[KCIHDDAdj]) -> 612 | H13: 29 | I13: =SUMPRODUCT((CustCount[MonthFlow]=$B13)*CustCount[NW-RS]) -> 4891 | J13: =INDEX(BetaCoeff[BetaCoeff],MATCH(C$8,BetaCoeff[CustClass],0)) -> 0.1234365 | K13: 17508.10972 | L13: =SUMPRODUCT((VolRates[BeginDate]<=B13)*(VolRates[EndDate]>=D13)*(VolRates[CustClass]=$C$8)*VolRates[VolRate]) -> 0.21748 | M13: 3807.66
B14: =EDATE(B13,1) -> 2022-12-01 | C14: =SUMPRODUCT((MeterReadSch[MonthBill]=$B14)*MeterReadSch[NW]) -> 2022-11-29 | D14: =SUMPRODUCT((MeterReadSch[MonthFlow]=$B14)*MeterReadSch[NW]) -> 2022-12-27 | E14: 28 | F14: =SUMPRODUCT((KCITempAct[Date]>=$C14)*(KCITempAct[Date]<$D14)*KCITempAct[KCINHDDAdj]) -> 871.35 | G14: =SUMPRODUCT((KCITempAct[Date]>=$C14)*(KCITempAct[Date]<$D14)*KCITempAct[KCIHDDAdj]) -> 934 | H14: -62.65 | I14: =SUMPRODUCT((CustCount[MonthFlow]=$B14)*CustCount[NW-RS]) -> 4894 | J14: =INDEX(BetaCoeff[BetaCoeff],MATCH(C$8,BetaCoeff[CustClass],0)) -> 0.1234365 | K14: -37846.75417 | L14: =SUMPRODUCT((VolRates[BeginDate]<=B14)*(VolRates[EndDate]>=D14)*(VolRates[CustClass]=$C$8)*VolRates[VolRate]) -> 0.21748 | M14: -8230.91
B15: =EDATE(B14,1) -> 2023-01-01 | C15: =SUMPRODUCT((MeterReadSch[MonthBill]=$B15)*MeterReadSch[NW]) -> 2022-12-27 | D15: =SUMPRODUCT((MeterReadSch[MonthFlow]=$B15)*MeterReadSch[NW]) -> 2023-01-26 | E15: 30 | F15: =SUMPRODUCT((KCITempAct[Date]>=$C15)*(KCITempAct[Date]<$D15)*KCITempAct[KCINHDDAdj]) -> 1064.433333 | G15: =SUMPRODUCT((KCITempAct[Date]>=$C15)*(KCITempAct[Date]<$D15)*KCITempAct[KCIHDDAdj]) -> 769.5 | H15: 294.9333333 | I15: =SUMPRODUCT((CustCount[MonthFlow]=$B15)*CustCount[NW-RS]) -> 4900 | J15: =INDEX(BetaCoeff[BetaCoeff],MATCH(C$8,BetaCoeff[CustClass],0)) -> 0.1234365 | K15: 178387.1382 | L15: =SUMPRODUCT((VolRates[BeginDate]<=B15)*(VolRates[EndDate]>=D15)*(VolRates[CustClass]=$C$8)*VolRates[VolRate]) -> 0.21748 | M15: 38795.63
B16: =EDATE(B15,1) -> 2023-02-01 | C16: =SUMPRODUCT((MeterReadSch[MonthBill]=$B16)*MeterReadSch[NW]) -> 2023-01-26 | D16: =SUMPRODUCT((MeterReadSch[MonthFlow]=$B16)*MeterReadSch[NW]) -> 2023-02-27 | E16: 32 | F16: =SUMPRODUCT((KCITempAct[Date]>=$C16)*(KCITempAct[Date]<$D16)*KCITempAct[KCINHDDAdj]) -> 1035.133333 | G16: =SUMPRODUCT((KCITempAct[Date]>=$C16)*(KCITempAct[Date]<$D16)*KCITempAct[KCIHDDAdj]) -> 972 | H16: 63.13333333 | I16: =SUMPRODUCT((CustCount[MonthFlow]=$B16)*CustCount[NW-RS]) -> 4886 | J16: =INDEX(BetaCoeff[BetaCoeff],MATCH(C$8,BetaCoeff[CustClass],0)) -> 0.1234365 | K16: 38076.39132 | L16: =SUMPRODUCT((VolRates[BeginDate]<=B16)*(VolRates[EndDate]>=D16)*(VolRates[CustClass]=$C$8)*VolRates[VolRate]) -> 0.21748 | M16: 8280.85
B17: =EDATE(B16,1) -> 2023-03-01 | C17: =SUMPRODUCT((MeterReadSch[MonthBill]=$B17)*MeterReadSch[NW]) -> 2023-02-27 | D17: =SUMPRODUCT((MeterReadSch[MonthFlow]=$B17)*MeterReadSch[NW]) -> 2023-03-28 | E17: 29 | F17: =SUMPRODUCT((KCITempAct[Date]>=$C17)*(KCITempAct[Date]<$D17)*KCITempAct[KCINHDDAdj]) -> 628.5666667 | G17: =SUMPRODUCT((KCITempAct[Date]>=$C17)*(KCITempAct[Date]<$D17)*KCITempAct[KCIHDDAdj]) -> 683 | H17: -54.43333333 | I17: =SUMPRODUCT((CustCount[MonthFlow]=$B17)*CustCount[NW-RS]) -> 4814 | J17: =INDEX(BetaCoeff[BetaCoeff],MATCH(C$8,BetaCoeff[CustClass],0)) -> 0.1234365 | K17: -32345.55556 | L17: =SUMPRODUCT((VolRates[BeginDate]<=B17)*(VolRates[EndDate]>=D17)*(VolRates[CustClass]=$C$8)*VolRates[VolRate]) -> 0.21748 | M17: -7034.51
B18: 2023-04-01 | C18: =SUMPRODUCT((MeterReadSch[MonthBill]=$B18)*MeterReadSch[NW]) -> 2023-03-28 | D18: =SUMPRODUCT((MeterReadSch[MonthFlow]=$B18)*MeterReadSch[NW]) -> 2023-04-26 | E18: 29 | F18: =SUMPRODUCT((KCITempAct[Date]>=$C18)*(KCITempAct[Date]<$D18)*KCITempAct[KCINHDDAdj]) -> 344.3666667 | G18: =SUMPRODUCT((KCITempAct[Date]>=$C18)*(KCITempAct[Date]<$D18)*KCITempAct[KCIHDDAdj]) -> 315 | H18: 29.36666667 | I18: =SUMPRODUCT((CustCount[MonthFlow]=$B18)*CustCount[NW-RS]) -> 4760 | J18: =INDEX(BetaCoeff[BetaCoeff],MATCH(C$8,BetaCoeff[CustClass],0)) -> 0.1234365 | K18: 17254.6123 | L18: =SUMPRODUCT((VolRates[BeginDate]<=B18)*(VolRates[EndDate]>=D18)*(VolRates[CustClass]=$C$8)*VolRates[VolRate]) -> 0.21748 | M18: 3752.53
B19: 2023-05-01 | C19: =SUMPRODUCT((MeterReadSch[MonthBill]=$B19)*MeterReadSch[NW]) -> 2023-04-26 | D19: =SUMPRODUCT((MeterReadSch[MonthFlow]=$B19)*MeterReadSch[NW]) -> 2023-05-30 | E19: 34 | F19: =SUMPRODUCT((KCITempAct[Date]>=$C19)*(KCITempAct[Date]<$D19)*KCITempAct[KCINHDDAdj]) -> 148.0666667 | G19: =SUMPRODUCT((KCITempAct[Date]>=$C19)*(KCITempAct[Date]<$D19)*KCITempAct[KCIHDDAdj]) -> 102.5 | H19: 45.56666667 | I19: =SUMPRODUCT((CustCount[MonthFlow]=$B19)*CustCount[NW-RS]) -> 4707 | J19: =INDEX(BetaCoeff[BetaCoeff],MATCH(C$8,BetaCoeff[CustClass],0)) -> 0.1234365 | K19: 26474.94442 | L19: =SUMPRODUCT((VolRates[BeginDate]<=B19)*(VolRates[EndDate]>=D19)*(VolRates[CustClass]=$C$8)*VolRates[VolRate]) -> 0.21748 | M19: 5757.77
B20: 2023-06-01 | C20: =SUMPRODUCT((MeterReadSch[MonthBill]=$B20)*MeterReadSch[NW]) -> 2023-05-30 | D20: =SUMPRODUCT((MeterReadSch[MonthFlow]=$B20)*MeterReadSch[NW]) -> 2023-06-28 | E20: 29 | F20: =SUMPRODUCT((KCITempAct[Date]>=$C20)*(KCITempAct[Date]<$D20)*KCITempAct[KCINHDDAdj]) -> 8.483333333 | G20: =SUMPRODUCT((KCITempAct[Date]>=$C20)*(KCITempAct[Date]<$D20)*KCITempAct[KCIHDDAdj]) -> 2.5 | H20: 5.983333333 | I20: =SUMPRODUCT((CustCount[MonthFlow]=$B20)*CustCount[NW-RS]) -> 4661 | J20: =INDEX(BetaCoeff[BetaCoeff],MATCH(C$8,BetaCoeff[CustClass],0)) -> 0.1234365 | K20: 3442.4362 | L20: =SUMPRODUCT((VolRates[BeginDate]<=B20)*(VolRates[EndDate]>=D20)*(VolRates[CustClass]=$C$8)*VolRates[VolRate]) -> 0.21748 | M20: 748.66
B21: 2023-07-01 | C21: =SUMPRODUCT((MeterReadSch[MonthBill]=$B21)*MeterReadSch[NW]) -> 2023-06-28 | D21: =SUMPRODUCT((MeterReadSch[MonthFlow]=$B21)*MeterReadSch[NW]) -> 2023-07-25 | E21: 27 | F21: =SUMPRODUCT((KCITempAct[Date]>=$C21)*(KCITempAct[Date]<$D21)*KCITempAct[KCINHDDAdj]) -> 0.01666666667 | G21: =SUMPRODUCT((KCITempAct[Date]>=$C21)*(KCITempAct[Date]<$D21)*KCITempAct[KCIHDDAdj]) -> 0 | H21: 0.01666666667 | I21: =SUMPRODUCT((CustCount[MonthFlow]=$B21)*CustCount[NW-RS]) -> 0 | J21: =INDEX(BetaCoeff[BetaCoeff],MATCH(C$8,BetaCoeff[CustClass],0)) -> 0.1234365 | K21: 0 | L21: =SUMPRODUCT((VolRates[BeginDate]<=B21)*(VolRates[EndDate]>=D21)*(VolRates[CustClass]=$C$8)*VolRates[VolRate]) -> 0.21748 | M21: 0
B22: =EDATE(B21,1) -> 2023-08-01 | C22: =SUMPRODUCT((MeterReadSch[MonthBill]=$B22)*MeterReadSch[NW]) -> 2023-07-25 | D22: =SUMPRODUCT((MeterReadSch[MonthFlow]=$B22)*MeterReadSch[NW]) -> 2023-08-25 | E22: 31 | F22: =SUMPRODUCT((KCITempAct[Date]>=$C22)*(KCITempAct[Date]<$D22)*KCITempAct[KCINHDDAdj]) -> 0 | G22: =SUMPRODUCT((KCITempAct[Date]>=$C22)*(KCITempAct[Date]<$D22)*KCITempAct[KCIHDDAdj]) -> 0 | H22: 0 | I22: =SUMPRODUCT((CustCount[MonthFlow]=$B22)*CustCount[NW-RS]) -> 0 | J22: =INDEX(BetaCoeff[BetaCoeff],MATCH(C$8,BetaCoeff[CustClass],0)) -> 0.1234365 | K22: 0 | L22: =SUMPRODUCT((VolRates[BeginDate]<=B22)*(VolRates[EndDate]>=D22)*(VolRates[CustClass]=$C$8)*VolRates[VolRate]) -> 0.21748 | M22: 0
B23: Totals | C23: =C11 -> 2022-08-29 | D23: =D22 -> 2023-08-25 | E23: 361 | F23: =SUM(F11:F22) -> 5029.3 | G23: =SUM(G11:G22) -> 4620 | H23: 409.3 | I23: 48178 | J23: =J22 -> 0.1234365 | K23: =SUM(K11:K22) -> 245788.1063 | L23: =ROUND(M23/K23,5) -> 0.21748 | M23: 53453.99
B24: Reconciling Period Adj. | D24: =M23 -> 53453.99 | E24: Enter in Reconciling Period Adjustment Table (ReconPerAdj)
B25: Enter WNA Amounts in Column M in CAWNA Amounts Table
B27: Small Comm. | C27: SCFS | D27: NW
B28: MonthFlow | C28: Meter Read Dates | E28: Days/ Cycle | F28: Heating Degree Days | H28: Difference | I28: No. of Bills | J28: Beta Coeff. | K28: WNAR | L28: WRVR | M28: WNAi
C29: Begin | D29: End | F29: NDDij | G29: ADDij | H29: (NDDij - ADDij) | I29: Cij | J29: b | K29: h*i*j | L29: Vol. Rate | M29: k*l
B30: =$C$6 -> 2022-09-01 | C30: =SUMPRODUCT((MeterReadSch[MonthBill]=$B30)*MeterReadSch[NW]) -> 2022-08-29 | D30: =SUMPRODUCT((MeterReadSch[MonthFlow]=$B30)*MeterReadSch[NW]) -> 2022-09-28 | E30: =D30-C30 -> 30 | F30: =SUMPRODUCT((KCITempAct[Date]>=$C30)*(KCITempAct[Date]<$D30)*KCITempAct[KCINHDDAdj]) -> 41.53333333 | G30: =SUMPRODUCT((KCITempAct[Date]>=$C30)*(KCITempAct[Date]<$D30)*KCITempAct[KCIHDDAdj]) -> 13.5 | H30: =F30-G30 -> 28.03333333 | I30: =SUMPRODUCT((CustCount[MonthFlow]=$B30)*CustCount[NW-SC]) -> 671 | J30: =INDEX(BetaCoeff[BetaCoeff],MATCH(C$27,BetaCoeff[CustClass],0)) -> 0.2793279 | K30: =H30*I30*J30 -> 5254.260219 | L30: =SUMPRODUCT((VolRates[BeginDate]<=B30)*(VolRates[EndDate]>=D30)*(VolRates[CustClass]=$C$27)*VolRates[VolRate]) -> 0.26033 | M30: =ROUND(K30*L30,2) -> 1367.84
B31: =EDATE(B30,1) -> 2022-10-01 | C31: =SUMPRODUCT((MeterReadSch[MonthBill]=$B31)*MeterReadSch[NW]) -> 2022-09-28 | D31: =SUMPRODUCT((MeterReadSch[MonthFlow]=$B31)*MeterReadSch[NW]) -> 2022-10-28 | E31: =D31-C31 -> 30 | F31: =SUMPRODUCT((KCITempAct[Date]>=$C31)*(KCITempAct[Date]<$D31)*KCITempAct[KCINHDDAdj]) -> 246.35 | G31: =SUMPRODUCT((KCITempAct[Date]>=$C31)*(KCITempAct[Date]<$D31)*KCITempAct[KCIHDDAdj]) -> 216 | H31: 30.35 | I31: =SUMPRODUCT((CustCount[MonthFlow]=$B31)*CustCount[NW-SC]) -> 677 | J31: =INDEX(BetaCoeff[BetaCoeff],MATCH(C$27,BetaCoeff[CustClass],0)) -> 0.2793279 | K31: 5739.336395 | L31: =SUMPRODUCT((VolRates[BeginDate]<=B31)*(VolRates[EndDate]>=D31)*(VolRates[CustClass]=$C$27)*VolRates[VolRate]) -> 0.26033 | M31: =ROUND(K31*L31,2) -> 1494.12
B32: =EDATE(B31,1) -> 2022-11-01 | C32: =SUMPRODUCT((MeterReadSch[MonthBill]=$B32)*MeterReadSch[NW]) -> 2022-10-28 | D32: =SUMPRODUCT((MeterReadSch[MonthFlow]=$B32)*MeterReadSch[NW]) -> 2022-11-29 | E32: 32 | F32: =SUMPRODUCT((KCITempAct[Date]>=$C32)*(KCITempAct[Date]<$D32)*KCITempAct[KCINHDDAdj]) -> 641 | G32: =SUMPRODUCT((KCITempAct[Date]>=$C32)*(KCITempAct[Date]<$D32)*KCITempAct[KCIHDDAdj]) -> 612 | H32: 29 | I32: =SUMPRODUCT((CustCount[MonthFlow]=$B32)*CustCount[NW-SC]) -> 676 | J32: =INDEX(BetaCoeff[BetaCoeff],MATCH(C$27,BetaCoeff[CustClass],0)) -> 0.2793279 | K32: 5475.944152 | L32: =SUMPRODUCT((VolRates[BeginDate]<=B32)*(VolRates[EndDate]>=D32)*(VolRates[CustClass]=$C$27)*VolRates[VolRate]) -> 0.26033 | M32: 1425.55
B33: 2022-12-01 | C33: =SUMPRODUCT((MeterReadSch[MonthBill]=$B33)*MeterReadSch[NW]) -> 2022-11-29 | D33: =SUMPRODUCT((MeterReadSch[MonthFlow]=$B33)*MeterReadSch[NW]) -> 2022-12-27 | E33: 28 | F33: =SUMPRODUCT((KCITempAct[Date]>=$C33)*(KCITempAct[Date]<$D33)*KCITempAct[KCINHDDAdj]) -> 871.35 | G33: =SUMPRODUCT((KCITempAct[Date]>=$C33)*(KCITempAct[Date]<$D33)*KCITempAct[KCIHDDAdj]) -> 934 | H33: -62.65 | I33: =SUMPRODUCT((CustCount[MonthFlow]=$B33)*CustCount[NW-SC]) -> 679 | J33: =INDEX(BetaCoeff[BetaCoeff],MATCH(C$27,BetaCoeff[CustClass],0)) -> 0.2793279 | K33: -11882.4273 | L33: =SUMPRODUCT((VolRates[BeginDate]<=B33)*(VolRates[EndDate]>=D33)*(VolRates[CustClass]=$C$27)*VolRates[VolRate]) -> 0.26033 | M33: -3093.35
B34: 2023-01-01 | C34: =SUMPRODUCT((MeterReadSch[MonthBill]=$B34)*MeterReadSch[NW]) -> 2022-12-27 | D34: =SUMPRODUCT((MeterReadSch[MonthFlow]=$B34)*MeterReadSch[NW]) -> 2023-01-26 | E34: 30 | F34: =SUMPRODUCT((KCITempAct[Date]>=$C34)*(KCITempAct[Date]<$D34)*KCITempAct[KCINHDDAdj]) -> 1064.433333 | G34: =SUMPRODUCT((KCITempAct[Date]>=$C34)*(KCITempAct[Date]<$D34)*KCITempAct[KCIHDDAdj]) -> 769.5 | H34: 294.9333333 | I34: =SUMPRODUCT((CustCount[MonthFlow]=$B34)*CustCount[NW-SC]) -> 680 | J34: =INDEX(BetaCoeff[BetaCoeff],MATCH(C$27,BetaCoeff[CustClass],0)) -> 0.2793279 | K34: 56020.51388 | L34: =SUMPRODUCT((VolRates[BeginDate]<=B34)*(VolRates[EndDate]>=D34)*(VolRates[CustClass]=$C$27)*VolRates[VolRate]) -> 0.26033 | M34: 14583.82
B35: 2023-02-01 | C35: =SUMPRODUCT((MeterReadSch[MonthBill]=$B35)*MeterReadSch[NW]) -> 2023-01-26 | D35: =SUMPRODUCT((MeterReadSch[MonthFlow]=$B35)*MeterReadSch[NW]) -> 2023-02-27 | E35: 32 | F35: =SUMPRODUCT((KCITempAct[Date]>=$C35)*(KCITempAct[Date]<$D35)*KCITempAct[KCINHDDAdj]) -> 1035.133333 | G35: =SUMPRODUCT((KCITempAct[Date]>=$C35)*(KCITempAct[Date]<$D35)*KCITempAct[KCIHDDAdj]) -> 972 | H35: 63.13333333 | I35: =SUMPRODUCT((CustCount[MonthFlow]=$B35)*CustCount[NW-SC]) -> 679 | J35: =INDEX(BetaCoeff[BetaCoeff],MATCH(C$27,BetaCoeff[CustClass],0)) -> 0.2793279 | K35: 11974.09806 | L35: =SUMPRODUCT((VolRates[BeginDate]<=B35)*(VolRates[EndDate]>=D35)*(VolRates[CustClass]=$C$27)*VolRates[VolRate]) -> 0.26033 | M35: 3117.22
B36: 2023-03-01 | C36: =SUMPRODUCT((MeterReadSch[MonthBill]=$B36)*MeterReadSch[NW]) -> 2023-02-27 | D36: =SUMPRODUCT((MeterReadSch[MonthFlow]=$B36)*MeterReadSch[NW]) -> 2023-03-28 | E36: 29 | F36: =SUMPRODUCT((KCITempAct[Date]>=$C36)*(KCITempAct[Date]<$D36)*KCITempAct[KCINHDDAdj]) -> 628.5666667 | G36: =SUMPRODUCT((KCITempAct[Date]>=$C36)*(KCITempAct[Date]<$D36)*KCITempAct[KCIHDDAdj]) -> 683 | H36: -54.43333333 | I36: =SUMPRODUCT((CustCount[MonthFlow]=$B36)*CustCount[NW-SC]) -> 676 | J36: =INDEX(BetaCoeff[BetaCoeff],MATCH(C$27,BetaCoeff[CustClass],0)) -> 0.2793279 | K36: -10278.41011 | L36: =SUMPRODUCT((VolRates[BeginDate]<=B36)*(VolRates[EndDate]>=D36)*(VolRates[CustClass]=$C$27)*VolRates[VolRate]) -> 0.26033 | M36: -2675.78
B37: 2023-04-01 | C37: =SUMPRODUCT((MeterReadSch[MonthBill]=$B37)*MeterReadSch[NW]) -> 2023-03-28 | D37: =SUMPRODUCT((MeterReadSch[MonthFlow]=$B37)*MeterReadSch[NW]) -> 2023-04-26 | E37: 29 | F37: =SUMPRODUCT((KCITempAct[Date]>=$C37)*(KCITempAct[Date]<$D37)*KCITempAct[KCINHDDAdj]) -> 344.3666667 | G37: =SUMPRODUCT((KCITempAct[Date]>=$C37)*(KCITempAct[Date]<$D37)*KCITempAct[KCIHDDAdj]) -> 315 | H37: 29.36666667 | I37: =SUMPRODUCT((CustCount[MonthFlow]=$B37)*CustCount[NW-SC]) -> 673 | J37: =INDEX(BetaCoeff[BetaCoeff],MATCH(C$27,BetaCoeff[CustClass],0)) -> 0.2793279 | K37: 5520.571439 | L37: =SUMPRODUCT((VolRates[BeginDate]<=B37)*(VolRates[EndDate]>=D37)*(VolRates[CustClass]=$C$27)*VolRates[VolRate]) -> 0.26033 | M37: 1437.17
B38: =EDATE(B37,1) -> 2023-05-01 | C38: =SUMPRODUCT((MeterReadSch[MonthBill]=$B38)*MeterReadSch[NW]) -> 2023-04-26 | D38: =SUMPRODUCT((MeterReadSch[MonthFlow]=$B38)*MeterReadSch[NW]) -> 2023-05-30 | E38: 34 | F38: =SUMPRODUCT((KCITempAct[Date]>=$C38)*(KCITempAct[Date]<$D38)*KCITempAct[KCINHDDAdj]) -> 148.0666667 | G38: =SUMPRODUCT((KCITempAct[Date]>=$C38)*(KCITempAct[Date]<$D38)*KCITempAct[KCIHDDAdj]) -> 102.5 | H38: 45.56666667 | I38: =SUMPRODUCT((CustCount[MonthFlow]=$B38)*CustCount[NW-SC]) -> 669 | J38: =INDEX(BetaCoeff[BetaCoeff],MATCH(C$27,BetaCoeff[CustClass],0)) -> 0.2793279 | K38: 8515.059636 | L38: =SUMPRODUCT((VolRates[BeginDate]<=B38)*(VolRates[EndDate]>=D38)*(VolRates[CustClass]=$C$27)*VolRates[VolRate]) -> 0.26033 | M38: 2216.73
B39: =EDATE(B38,1) -> 2023-06-01 | C39: =SUMPRODUCT((MeterReadSch[MonthBill]=$B39)*MeterReadSch[NW]) -> 2023-05-30 | D39: =SUMPRODUCT((MeterReadSch[MonthFlow]=$B39)*MeterReadSch[NW]) -> 2023-06-28 | E39: 29 | F39: =SUMPRODUCT((KCITempAct[Date]>=$C39)*(KCITempAct[Date]<$D39)*KCITempAct[KCINHDDAdj]) -> 8.483333333 | G39: =SUMPRODUCT((KCITempAct[Date]>=$C39)*(KCITempAct[Date]<$D39)*KCITempAct[KCIHDDAdj]) -> 2.5 | H39: 5.983333333 | I39: =SUMPRODUCT((CustCount[MonthFlow]=$B39)*CustCount[NW-SC]) -> 665 | J39: =INDEX(BetaCoeff[BetaCoeff],MATCH(C$27,BetaCoeff[CustClass],0)) -> 0.2793279 | K39: 1111.422437 | L39: =SUMPRODUCT((VolRates[BeginDate]<=B39)*(VolRates[EndDate]>=D39)*(VolRates[CustClass]=$C$27)*VolRates[VolRate]) -> 0.26033 | M39: 289.34
B40: 2023-07-01 | C40: =SUMPRODUCT((MeterReadSch[MonthBill]=$B40)*MeterReadSch[NW]) -> 2023-06-28 | D40: =SUMPRODUCT((MeterReadSch[MonthFlow]=$B40)*MeterReadSch[NW]) -> 2023-07-25 | E40: 27 | F40: =SUMPRODUCT((KCITempAct[Date]>=$C40)*(KCITempAct[Date]<$D40)*KCITempAct[KCINHDDAdj]) -> 0.01666666667 | G40: =SUMPRODUCT((KCITempAct[Date]>=$C40)*(KCITempAct[Date]<$D40)*KCITempAct[KCIHDDAdj]) -> 0 | H40: 0.01666666667 | I40: =SUMPRODUCT((CustCount[MonthFlow]=$B40)*CustCount[NW-SC]) -> 0 | J40: =INDEX(BetaCoeff[BetaCoeff],MATCH(C$27,BetaCoeff[CustClass],0)) -> 0.2793279 | K40: 0 | L40: =SUMPRODUCT((VolRates[BeginDate]<=B40)*(VolRates[EndDate]>=D40)*(VolRates[CustClass]=$C$27)*VolRates[VolRate]) -> 0.26033 | M40: 0
B41: 2023-08-01 | C41: =SUMPRODUCT((MeterReadSch[MonthBill]=$B41)*MeterReadSch[NW]) -> 2023-07-25 | D41: =SUMPRODUCT((MeterReadSch[MonthFlow]=$B41)*MeterReadSch[NW]) -> 2023-08-25 | E41: 31 | F41: =SUMPRODUCT((KCITempAct[Date]>=$C41)*(KCITempAct[Date]<$D41)*KCITempAct[KCINHDDAdj]) -> 0 | G41: =SUMPRODUCT((KCITempAct[Date]>=$C41)*(KCITempAct[Date]<$D41)*KCITempAct[KCIHDDAdj]) -> 0 | H41: 0 | I41: =SUMPRODUCT((CustCount[MonthFlow]=$B41)*CustCount[NW-SC]) -> 0 | J41: =INDEX(BetaCoeff[BetaCoeff],MATCH(C$27,BetaCoeff[CustClass],0)) -> 0.2793279 | K41: 0 | L41: =SUMPRODUCT((VolRates[BeginDate]<=B41)*(VolRates[EndDate]>=D41)*(VolRates[CustClass]=$C$27)*VolRates[VolRate]) -> 0.26033 | M41: 0
B42: Totals | C42: =C30 -> 2022-08-29 | D42: =D41 -> 2023-08-25 | E42: 361 | F42: =SUM(F30:F41) -> 5029.3 | G42: =SUM(G30:G41) -> 4620 | H42: =SUM(H30:H41) -> 409.3 | I42: =SUM(I30:I41) -> 6745 | J42: =J41 -> 0.2793279 | K42: =SUM(K30:K41) -> 77450.3688 | L42: =ROUND(M42/K42,5) -> 0.26033 | M42: =SUM(M30:M41) -> 20162.66
B43: Reconciling Period Adj. | D43: =M42 -> 20162.66 | E43: Enter in Reconciling Period Adjustment Table (ReconPerAdj)
B44: Enter WNA Amounts in Column M in CAWNA Amounts Table

Sheet CAWNA North
B2: Empire District Gas Company | F2: Filing Year
B3: Billing Cycle and HDD Data Summary
B4: Territory | C4: North
B5: Year | C5: =DateSet!C2 -> 2023
B6: Analysis Start | C6: =DateSet!C3 -> 2022-09-01
B8: Cust Class | C8: Res | D8: North
B9: MonthFlow | C9: Meter Read Dates | E9: Days/ Cycle | F9: Heating Degree Days | H9: Difference | I9: No. of Bills | J9: Beta Coeff. | K9: WNAR | L9: WRVR | M9: WNAi
C10: Begin | D10: End | F10: NDDij | G10: ADDij | H10: (NDDij - ADDij) | I10: Cij | J10: b | K10: h*i*j | L10: Vol. Rate | M10: k*l
B11: =$C$6 -> 2022-09-01 | C11: =SUMPRODUCT((MeterReadSch[MonthBill]=$B11)*MeterReadSch[North]) -> 2022-08-29 | D11: =SUMPRODUCT((MeterReadSch[MonthFlow]=$B11)*MeterReadSch[North]) -> 2022-09-29 | E11: =D11-C11 -> 31 | F11: =SUMPRODUCT((KCITempAct[Date]>=$C11)*(KCITempAct[Date]<$D11)*KCITempAct[KCINHDDAdj]) -> 45.1 | G11: =SUMPRODUCT((KCITempAct[Date]>=$C11)*(KCITempAct[Date]<$D11)*KCITempAct[KCIHDDAdj]) -> 17.5 | H11: =F11-G11 -> 27.6 | I11: =SUMPRODUCT((CustCount[MonthFlow]=$B11)*CustCount[N-RS]) -> 7912 | J11: =INDEX(BetaCoeff[BetaCoeff],MATCH(C$8,BetaCoeff[CustClass],0)) -> 0.1234365 | K11: =H11*I11*J11 -> 26954.97663 | L11: =SUMPRODUCT((VolRates[BeginDate]<=B11)*(VolRates[EndDate]>=D11)*(VolRates[CustClass]=$C$8)*VolRates[VolRate]) -> 0.21748 | M11: =ROUND(K11*L11,2) -> 5862.17
B12: =EDATE(B11,1) -> 2022-10-01 | C12: =SUMPRODUCT((MeterReadSch[MonthBill]=$B12)*MeterReadSch[North]) -> 2022-09-29 | D12: =SUMPRODUCT((MeterReadSch[MonthFlow]=$B12)*MeterReadSch[North]) -> 2022-10-31 | E12: =D12-C12 -> 32 | F12: =SUMPRODUCT((KCITempAct[Date]>=$C12)*(KCITempAct[Date]<$D12)*KCITempAct[KCINHDDAdj]) -> 282.1333333 | G12: =SUMPRODUCT((KCITempAct[Date]>=$C12)*(KCITempAct[Date]<$D12)*KCITempAct[KCIHDDAdj]) -> 234.5 | H12: 47.63333333 | I12: =SUMPRODUCT((CustCount[MonthFlow]=$B12)*CustCount[N-RS]) -> 8077 | J12: =INDEX(BetaCoeff[BetaCoeff],MATCH(C$8,BetaCoeff[CustClass],0)) -> 0.1234365 | K12: 47490.27188 | L12: =SUMPRODUCT((VolRates[BeginDate]<=B12)*(VolRates[EndDate]>=D12)*(VolRates[CustClass]=$C$8)*VolRates[VolRate]) -> 0.21748 | M12: =ROUND(K12*L12,2) -> 10328.18
B13: =EDATE(B12,1) -> 2022-11-01 | C13: =SUMPRODUCT((MeterReadSch[MonthBill]=$B13)*MeterReadSch[North]) -> 2022-10-31 | D13: =SUMPRODUCT((MeterReadSch[MonthFlow]=$B13)*MeterReadSch[North]) -> 2022-11-28 | E13: 28 | F13: =SUMPRODUCT((KCITempAct[Date]>=$C13)*(KCITempAct[Date]<$D13)*KCITempAct[KCINHDDAdj]) -> 576.7333333 | G13: =SUMPRODUCT((KCITempAct[Date]>=$C13)*(KCITempAct[Date]<$D13)*KCITempAct[KCIHDDAdj]) -> 566 | H13: 10.73333333 | I13: =SUMPRODUCT((CustCount[MonthFlow]=$B13)*CustCount[N-RS]) -> 8147 | J13: =INDEX(BetaCoeff[BetaCoeff],MATCH(C$8,BetaCoeff[CustClass],0)) -> 0.1234365 | K13: 10793.83891 | L13: =SUMPRODUCT((VolRates[BeginDate]<=B13)*(VolRates[EndDate]>=D13)*(VolRates[CustClass]=$C$8)*VolRates[VolRate]) -> 0.21748 | M13: 2347.44
B14: =EDATE(B13,1) -> 2022-12-01 | C14: =SUMPRODUCT((MeterReadSch[MonthBill]=$B14)*MeterReadSch[North]) -> 2022-11-28 | D14: =SUMPRODUCT((MeterReadSch[MonthFlow]=$B14)*MeterReadSch[North]) -> 2022-12-28 | E14: 30 | F14: =SUMPRODUCT((KCITempAct[Date]>=$C14)*(KCITempAct[Date]<$D14)*KCITempAct[KCINHDDAdj]) -> 928.1666667 | G14: =SUMPRODUCT((KCITempAct[Date]>=$C14)*(KCITempAct[Date]<$D14)*KCITempAct[KCIHDDAdj]) -> 998.5 | H14: -70.33333333 | I14: =SUMPRODUCT((CustCount[MonthFlow]=$B14)*CustCount[N-RS]) -> 8157 | J14: =INDEX(BetaCoeff[BetaCoeff],MATCH(C$8,BetaCoeff[CustClass],0)) -> 0.1234365 | K14: -70816.63098 | L14: =SUMPRODUCT((VolRates[BeginDate]<=B14)*(VolRates[EndDate]>=D14)*(VolRates[CustClass]=$C$8)*VolRates[VolRate]) -> 0.21748 | M14: -15401.2
B15: =EDATE(B14,1) -> 2023-01-01 | C15: =SUMPRODUCT((MeterReadSch[MonthBill]=$B15)*MeterReadSch[North]) -> 2022-12-28 | D15: =SUMPRODUCT((MeterReadSch[MonthFlow]=$B15)*MeterReadSch[North]) -> 2023-01-27 | E15: 30 | F15: =SUMPRODUCT((KCITempAct[Date]>=$C15)*(KCITempAct[Date]<$D15)*KCITempAct[KCINHDDAdj]) -> 1065.583333 | G15: =SUMPRODUCT((KCITempAct[Date]>=$C15)*(KCITempAct[Date]<$D15)*KCITempAct[KCIHDDAdj]) -> 771 | H15: 294.5833333 | I15: =SUMPRODUCT((CustCount[MonthFlow]=$B15)*CustCount[N-RS]) -> 8162 | J15: =INDEX(BetaCoeff[BetaCoeff],MATCH(C$8,BetaCoeff[CustClass],0)) -> 0.1234365 | K15: 296789.3834 | L15: =SUMPRODUCT((VolRates[BeginDate]<=B15)*(VolRates[EndDate]>=D15)*(VolRates[CustClass]=$C$8)*VolRates[VolRate]) -> 0.21748 | M15: 64545.76
B16: =EDATE(B15,1) -> 2023-02-01 | C16: =SUMPRODUCT((MeterReadSch[MonthBill]=$B16)*MeterReadSch[North]) -> 2023-01-27 | D16: =SUMPRODUCT((MeterReadSch[MonthFlow]=$B16)*MeterReadSch[North]) -> 2023-02-26 | E16: 30 | F16: =SUMPRODUCT((KCITempAct[Date]>=$C16)*(KCITempAct[Date]<$D16)*KCITempAct[KCINHDDAdj]) -> 971.7833333 | G16: =SUMPRODUCT((KCITempAct[Date]>=$C16)*(KCITempAct[Date]<$D16)*KCITempAct[KCIHDDAdj]) -> 909 | H16: 62.78333333 | I16: =SUMPRODUCT((CustCount[MonthFlow]=$B16)*CustCount[N-RS]) -> 8155 | J16: =INDEX(BetaCoeff[BetaCoeff],MATCH(C$8,BetaCoeff[CustClass],0)) -> 0.1234365 | K16: 63199.25141 | L16: =SUMPRODUCT((VolRates[BeginDate]<=B16)*(VolRates[EndDate]>=D16)*(VolRates[CustClass]=$C$8)*VolRates[VolRate]) -> 0.21748 | M16: 13744.57
B17: =EDATE(B16,1) -> 2023-03-01 | C17: =SUMPRODUCT((MeterReadSch[MonthBill]=$B17)*MeterReadSch[North]) -> 2023-02-26 | D17: =SUMPRODUCT((MeterReadSch[MonthFlow]=$B17)*MeterReadSch[North]) -> 2023-03-29 | E17: 31 | F17: =SUMPRODUCT((KCITempAct[Date]>=$C17)*(KCITempAct[Date]<$D17)*KCITempAct[KCINHDDAdj]) -> 675.5833333 | G17: =SUMPRODUCT((KCITempAct[Date]>=$C17)*(KCITempAct[Date]<$D17)*KCITempAct[KCIHDDAdj]) -> 727 | H17: =F17-G17 -> -51.41666667 | I17: =SUMPRODUCT((CustCount[MonthFlow]=$B17)*CustCount[N-RS]) -> 8052 | J17: =INDEX(BetaCoeff[BetaCoeff],MATCH(C$8,BetaCoeff[CustClass],0)) -> 0.1234365 | K17: =H17*I17*J17 -> -51103.57506 | L17: =SUMPRODUCT((VolRates[BeginDate]<=B17)*(VolRates[EndDate]>=D17)*(VolRates[CustClass]=$C$8)*VolRates[VolRate]) -> 0.21748 | M17: -11114.01
B18: 2023-04-01 | C18: =SUMPRODUCT((MeterReadSch[MonthBill]=$B18)*MeterReadSch[North]) -> 2023-03-29 | D18: =SUMPRODUCT((MeterReadSch[MonthFlow]=$B18)*MeterReadSch[North]) -> 2023-04-28 | E18: 30 | F18: =SUMPRODUCT((KCITempAct[Date]>=$C18)*(KCITempAct[Date]<$D18)*KCITempAct[KCINHDDAdj]) -> 346.7 | G18: =SUMPRODUCT((KCITempAct[Date]>=$C18)*(KCITempAct[Date]<$D18)*KCITempAct[KCIHDDAdj]) -> 307 | H18: 39.7 | I18: =SUMPRODUCT((CustCount[MonthFlow]=$B18)*CustCount[N-RS]) -> 7976 | J18: =INDEX(BetaCoeff[BetaCoeff],MATCH(C$8,BetaCoeff[CustClass],0)) -> 0.1234365 | K18: 39085.8221 | L18: =SUMPRODUCT((VolRates[BeginDate]<=B18)*(VolRates[EndDate]>=D18)*(VolRates[CustClass]=$C$8)*VolRates[VolRate]) -> 0.21748 | M18: 8500.38
B19: 2023-05-01 | C19: =SUMPRODUCT((MeterReadSch[MonthBill]=$B19)*MeterReadSch[North]) -> 2023-04-28 | D19: =SUMPRODUCT((MeterReadSch[MonthFlow]=$B19)*MeterReadSch[North]) -> 2023-05-30 | E19: 32 | F19: =SUMPRODUCT((KCITempAct[Date]>=$C19)*(KCITempAct[Date]<$D19)*KCITempAct[KCINHDDAdj]) -> 129.0166667 | G19: =SUMPRODUCT((KCITempAct[Date]>=$C19)*(KCITempAct[Date]<$D19)*KCITempAct[KCIHDDAdj]) -> 87 | H19: 42.01666667 | I19: =SUMPRODUCT((CustCount[MonthFlow]=$B19)*CustCount[N-RS]) -> 7738 | J19: =INDEX(BetaCoeff[BetaCoeff],MATCH(C$8,BetaCoeff[CustClass],0)) -> 0.1234365 | K19: 40132.28795 | L19: =SUMPRODUCT((VolRates[BeginDate]<=B19)*(VolRates[EndDate]>=D19)*(VolRates[CustClass]=$C$8)*VolRates[VolRate]) -> 0.21748 | M19: 8727.97
B20: 2023-06-01 | C20: =SUMPRODUCT((MeterReadSch[MonthBill]=$B20)*MeterReadSch[North]) -> 2023-05-30 | D20: =SUMPRODUCT((MeterReadSch[MonthFlow]=$B20)*MeterReadSch[North]) -> 2023-06-28 | E20: 29 | F20: =SUMPRODUCT((KCITempAct[Date]>=$C20)*(KCITempAct[Date]<$D20)*KCITempAct[KCINHDDAdj]) -> 8.483333333 | G20: =SUMPRODUCT((KCITempAct[Date]>=$C20)*(KCITempAct[Date]<$D20)*KCITempAct[KCIHDDAdj]) -> 2.5 | H20: 5.983333333 | I20: =SUMPRODUCT((CustCount[MonthFlow]=$B20)*CustCount[N-RS]) -> 7699 | J20: =INDEX(BetaCoeff[BetaCoeff],MATCH(C$8,BetaCoeff[CustClass],0)) -> 0.1234365 | K20: 5686.186721 | L20: =SUMPRODUCT((VolRates[BeginDate]<=B20)*(VolRates[EndDate]>=D20)*(VolRates[CustClass]=$C$8)*VolRates[VolRate]) -> 0.21748 | M20: 1236.63
B21: 2023-07-01 | C21: =SUMPRODUCT((MeterReadSch[MonthBill]=$B21)*MeterReadSch[North]) -> 2023-06-28 | D21: =SUMPRODUCT((MeterReadSch[MonthFlow]=$B21)*MeterReadSch[North]) -> 2023-07-25 | E21: 27 | F21: =SUMPRODUCT((KCITempAct[Date]>=$C21)*(KCITempAct[Date]<$D21)*KCITempAct[KCINHDDAdj]) -> 0.01666666667 | G21: =SUMPRODUCT((KCITempAct[Date]>=$C21)*(KCITempAct[Date]<$D21)*KCITempAct[KCIHDDAdj]) -> 0 | H21: 0.01666666667 | I21: =SUMPRODUCT((CustCount[MonthFlow]=$B21)*CustCount[N-RS]) -> 0 | J21: =INDEX(BetaCoeff[BetaCoeff],MATCH(C$8,BetaCoeff[CustClass],0)) -> 0.1234365 | K21: 0 | L21: =SUMPRODUCT((VolRates[BeginDate]<=B21)*(VolRates[EndDate]>=D21)*(VolRates[CustClass]=$C$8)*VolRates[VolRate]) -> 0.21748 | M21: 0
B22: =EDATE(B21,1) -> 2023-08-01 | C22: =SUMPRODUCT((MeterReadSch[MonthBill]=$B22)*MeterReadSch[North]) -> 2023-07-25 | D22: =SUMPRODUCT((MeterReadSch[MonthFlow]=$B22)*MeterReadSch[North]) -> 2023-08-25 | E22: 31 | F22: =SUMPRODUCT((KCITempAct[Date]>=$C22)*(KCITempAct[Date]<$D22)*KCITempAct[KCINHDDAdj]) -> 0 | G22: =SUMPRODUCT((KCITempAct[Date]>=$C22)*(KCITempAct[Date]<$D22)*KCITempAct[KCIHDDAdj]) -> 0 | H22: 0 | I22: =SUMPRODUCT((CustCount[MonthFlow]=$B22)*CustCount[N-RS]) -> 0 | J22: =INDEX(BetaCoeff[BetaCoeff],MATCH(C$8,BetaCoeff[CustClass],0)) -> 0.1234365 | K22: 0 | L22: =SUMPRODUCT((VolRates[BeginDate]<=B22)*(VolRates[EndDate]>=D22)*(VolRates[CustClass]=$C$8)*VolRates[VolRate]) -> 0.21748 | M22: 0
B23: Totals | C23: =C11 -> 2022-08-29 | D23: =D22 -> 2023-08-25 | E23: 361 | F23: =SUM(F11:F22) -> 5029.3 | G23: =SUM(G11:G22) -> 4620 | H23: 409.3 | I23: 80075 | J23: =J22 -> 0.1234365 | K23: 408211.8129 | L23: =ROUND(M23/K23,5) -> 0.21748 | M23: 88777.89
B24: Reconciling Period Adj. | D24: =M23 -> 88777.89 | E24: Enter in Reconciling Period Adjustment Table (ReconPerAdj)
B25: Enter WNA Amounts in Column M in CAWNA Amounts Table
B27: Small Comm. | C27: SCFS | D27: North
B28: MonthFlow | C28: Meter Read Dates | E28: Days/ Cycle | F28: Heating Degree Days | H28: Difference | I28: No. of Bills | J28: Beta Coeff. | K28: WNAR | L28: WRVR | M28: WNAi
C29: Begin | D29: End | F29: NDDij | G29: ADDij | H29: (NDDij - ADDij) | I29: Cij | J29: b | K29: h*i*j | L29: Vol. Rate | M29: k*l
B30: =$C$6 -> 2022-09-01 | C30: =SUMPRODUCT((MeterReadSch[MonthBill]=$B30)*MeterReadSch[North]) -> 2022-08-29 | D30: =SUMPRODUCT((MeterReadSch[MonthFlow]=$B30)*MeterReadSch[North]) -> 2022-09-29 | E30: =D30-C30 -> 31 | F30: =SUMPRODUCT((KCITempAct[Date]>=$C30)*(KCITempAct[Date]<$D30)*KCITempAct[KCINHDDAdj]) -> 45.1 | G30: =SUMPRODUCT((KCITempAct[Date]>=$C30)*(KCITempAct[Date]<$D30)*KCITempAct[KCIHDDAdj]) -> 17.5 | H30: =F30-G30 -> 27.6 | I30: =SUMPRODUCT((CustCount[MonthFlow]=$B30)*CustCount[N-SC]) -> 1128 | J30: =INDEX(BetaCoeff[BetaCoeff],MATCH(C$27,BetaCoeff[CustClass],0)) -> 0.2793279 | K30: =H30*I30*J30 -> 8696.259645 | L30: =SUMPRODUCT((VolRates[BeginDate]<=B30)*(VolRates[EndDate]>=D30)*(VolRates[CustClass]=$C$27)*VolRates[VolRate]) -> 0.26033 | M30: =ROUND(K30*L30,2) -> 2263.9
B31: =EDATE(B30,1) -> 2022-10-01 | C31: =SUMPRODUCT((MeterReadSch[MonthBill]=$B31)*MeterReadSch[North]) -> 2022-09-29 | D31: =SUMPRODUCT((MeterReadSch[MonthFlow]=$B31)*MeterReadSch[North]) -> 2022-10-31 | E31: =D31-C31 -> 32 | F31: =SUMPRODUCT((KCITempAct[Date]>=$C31)*(KCITempAct[Date]<$D31)*KCITempAct[KCINHDDAdj]) -> 282.1333333 | G31: =SUMPRODUCT((KCITempAct[Date]>=$C31)*(KCITempAct[Date]<$D31)*KCITempAct[KCIHDDAdj]) -> 234.5 | H31: =F31-G31 -> 47.63333333 | I31: =SUMPRODUCT((CustCount[MonthFlow]=$B31)*CustCount[N-SC]) -> 1138 | J31: =INDEX(BetaCoeff[BetaCoeff],MATCH(C$27,BetaCoeff[CustClass],0)) -> 0.2793279 | K31: =H31*I31*J31 -> 15141.45299 | L31: =SUMPRODUCT((VolRates[BeginDate]<=B31)*(VolRates[EndDate]>=D31)*(VolRates[CustClass]=$C$27)*VolRates[VolRate]) -> 0.26033 | M31: =ROUND(K31*L31,2) -> 3941.77
B32: =EDATE(B31,1) -> 2022-11-01 | C32: =SUMPRODUCT((MeterReadSch[MonthBill]=$B32)*MeterReadSch[North]) -> 2022-10-31 | D32: =SUMPRODUCT((MeterReadSch[MonthFlow]=$B32)*MeterReadSch[North]) -> 2022-11-28 | E32: 28 | F32: =SUMPRODUCT((KCITempAct[Date]>=$C32)*(KCITempAct[Date]<$D32)*KCITempAct[KCINHDDAdj]) -> 576.7333333 | G32: =SUMPRODUCT((KCITempAct[Date]>=$C32)*(KCITempAct[Date]<$D32)*KCITempAct[KCIHDDAdj]) -> 566 | H32: 10.73333333 | I32: =SUMPRODUCT((CustCount[MonthFlow]=$B32)*CustCount[N-SC]) -> 1146 | J32: =INDEX(BetaCoeff[BetaCoeff],MATCH(C$27,BetaCoeff[CustClass],0)) -> 0.2793279 | K32: 3435.844901 | L32: =SUMPRODUCT((VolRates[BeginDate]<=B32)*(VolRates[EndDate]>=D32)*(VolRates[CustClass]=$C$27)*VolRates[VolRate]) -> 0.26033 | M32: 894.45
B33: 2022-12-01 | C33: =SUMPRODUCT((MeterReadSch[MonthBill]=$B33)*MeterReadSch[North]) -> 2022-11-28 | D33: =SUMPRODUCT((MeterReadSch[MonthFlow]=$B33)*MeterReadSch[North]) -> 2022-12-28 | E33: 30 | F33: =SUMPRODUCT((KCITempAct[Date]>=$C33)*(KCITempAct[Date]<$D33)*KCITempAct[KCINHDDAdj]) -> 928.1666667 | G33: =SUMPRODUCT((KCITempAct[Date]>=$C33)*(KCITempAct[Date]<$D33)*KCITempAct[KCIHDDAdj]) -> 998.5 | H33: -70.33333333 | I33: =SUMPRODUCT((CustCount[MonthFlow]=$B33)*CustCount[N-SC]) -> 1143 | J33: =INDEX(BetaCoeff[BetaCoeff],MATCH(C$27,BetaCoeff[CustClass],0)) -> 0.2793279 | K33: -22455.44921 | L33: =SUMPRODUCT((VolRates[BeginDate]<=B33)*(VolRates[EndDate]>=D33)*(VolRates[CustClass]=$C$27)*VolRates[VolRate]) -> 0.26033 | M33: -5845.83
B34: 2023-01-01 | C34: =SUMPRODUCT((MeterReadSch[MonthBill]=$B34)*MeterReadSch[North]) -> 2022-12-28 | D34: =SUMPRODUCT((MeterReadSch[MonthFlow]=$B34)*MeterReadSch[North]) -> 2023-01-27 | E34: 30 | F34: =SUMPRODUCT((KCITempAct[Date]>=$C34)*(KCITempAct[Date]<$D34)*KCITempAct[KCINHDDAdj]) -> 1065.583333 | G34: =SUMPRODUCT((KCITempAct[Date]>=$C34)*(KCITempAct[Date]<$D34)*KCITempAct[KCIHDDAdj]) -> 771 | H34: 294.5833333 | I34: =SUMPRODUCT((CustCount[MonthFlow]=$B34)*CustCount[N-SC]) -> 1143 | J34: =INDEX(BetaCoeff[BetaCoeff],MATCH(C$27,BetaCoeff[CustClass],0)) -> 0.2793279 | K34: 94052.14805 | L34: =SUMPRODUCT((VolRates[BeginDate]<=B34)*(VolRates[EndDate]>=D34)*(VolRates[CustClass]=$C$27)*VolRates[VolRate]) -> 0.26033 | M34: 24484.6
B35: 2023-02-01 | C35: =SUMPRODUCT((MeterReadSch[MonthBill]=$B35)*MeterReadSch[North]) -> 2023-01-27 | D35: =SUMPRODUCT((MeterReadSch[MonthFlow]=$B35)*MeterReadSch[North]) -> 2023-02-26 | E35: 30 | F35: =SUMPRODUCT((KCITempAct[Date]>=$C35)*(KCITempAct[Date]<$D35)*KCITempAct[KCINHDDAdj]) -> 971.7833333 | G35: =SUMPRODUCT((KCITempAct[Date]>=$C35)*(KCITempAct[Date]<$D35)*KCITempAct[KCIHDDAdj]) -> 909 | H35: 62.78333333 | I35: =SUMPRODUCT((CustCount[MonthFlow]=$B35)*CustCount[N-SC]) -> 1139 | J35: =INDEX(BetaCoeff[BetaCoeff],MATCH(C$27,BetaCoeff[CustClass],0)) -> 0.2793279 | K35: 19974.79865 | L35: =SUMPRODUCT((VolRates[BeginDate]<=B35)*(VolRates[EndDate]>=D35)*(VolRates[CustClass]=$C$27)*VolRates[VolRate]) -> 0.26033 | M35: 5200.04
B36: 2023-03-01 | C36: =SUMPRODUCT((MeterReadSch[MonthBill]=$B36)*MeterReadSch[North]) -> 2023-02-26 | D36: =SUMPRODUCT((MeterReadSch[MonthFlow]=$B36)*MeterReadSch[North]) -> 2023-03-29 | E36: 31 | F36: =SUMPRODUCT((KCITempAct[Date]>=$C36)*(KCITempAct[Date]<$D36)*KCITempAct[KCINHDDAdj]) -> 675.5833333 | G36: =SUMPRODUCT((KCITempAct[Date]>=$C36)*(KCITempAct[Date]<$D36)*KCITempAct[KCIHDDAdj]) -> 727 | H36: -51.41666667 | I36: =SUMPRODUCT((CustCount[MonthFlow]=$B36)*CustCount[N-SC]) -> 1136 | J36: =INDEX(BetaCoeff[BetaCoeff],MATCH(C$27,BetaCoeff[CustClass],0)) -> 0.2793279 | K36: -16315.35642 | L36: =SUMPRODUCT((VolRates[BeginDate]<=B36)*(VolRates[EndDate]>=D36)*(VolRates[CustClass]=$C$27)*VolRates[VolRate]) -> 0.26033 | M36: -4247.38
B37: 2023-04-01 | C37: =SUMPRODUCT((MeterReadSch[MonthBill]=$B37)*MeterReadSch[North]) -> 2023-03-29 | D37: =SUMPRODUCT((MeterReadSch[MonthFlow]=$B37)*MeterReadSch[North]) -> 2023-04-28 | E37: 30 | F37: =SUMPRODUCT((KCITempAct[Date]>=$C37)*(KCITempAct[Date]<$D37)*KCITempAct[KCINHDDAdj]) -> 346.7 | G37: =SUMPRODUCT((KCITempAct[Date]>=$C37)*(KCITempAct[Date]<$D37)*KCITempAct[KCIHDDAdj]) -> 307 | H37: 39.7 | I37: =SUMPRODUCT((CustCount[MonthFlow]=$B37)*CustCount[N-SC]) -> 1128 | J37: =INDEX(BetaCoeff[BetaCoeff],MATCH(C$27,BetaCoeff[CustClass],0)) -> 0.2793279 | K37: 12508.75029 | L37: =SUMPRODUCT((VolRates[BeginDate]<=B37)*(VolRates[EndDate]>=D37)*(VolRates[CustClass]=$C$27)*VolRates[VolRate]) -> 0.26033 | M37: 3256.4
B38: =EDATE(B37,1) -> 2023-05-01 | C38: =SUMPRODUCT((MeterReadSch[MonthBill]=$B38)*MeterReadSch[North]) -> 2023-04-28 | D38: =SUMPRODUCT((MeterReadSch[MonthFlow]=$B38)*MeterReadSch[North]) -> 2023-05-30 | E38: 32 | F38: =SUMPRODUCT((KCITempAct[Date]>=$C38)*(KCITempAct[Date]<$D38)*KCITempAct[KCINHDDAdj]) -> 129.0166667 | G38: =SUMPRODUCT((KCITempAct[Date]>=$C38)*(KCITempAct[Date]<$D38)*KCITempAct[KCIHDDAdj]) -> 87 | H38: 42.01666667 | I38: =SUMPRODUCT((CustCount[MonthFlow]=$B38)*CustCount[N-SC]) -> 1119 | J38: =INDEX(BetaCoeff[BetaCoeff],MATCH(C$27,BetaCoeff[CustClass],0)) -> 0.2793279 | K38: 13133.06211 | L38: =SUMPRODUCT((VolRates[BeginDate]<=B38)*(VolRates[EndDate]>=D38)*(VolRates[CustClass]=$C$27)*VolRates[VolRate]) -> 0.26033 | M38: 3418.93
B39: 2023-06-01 | C39: =SUMPRODUCT((MeterReadSch[MonthBill]=$B39)*MeterReadSch[North]) -> 2023-05-30 | D39: =SUMPRODUCT((MeterReadSch[MonthFlow]=$B39)*MeterReadSch[North]) -> 2023-06-28 | E39: 29 | F39: =SUMPRODUCT((KCITempAct[Date]>=$C39)*(KCITempAct[Date]<$D39)*KCITempAct[KCINHDDAdj]) -> 8.483333333 | G39: =SUMPRODUCT((KCITempAct[Date]>=$C39)*(KCITempAct[Date]<$D39)*KCITempAct[KCIHDDAdj]) -> 2.5 | H39: 5.983333333 | I39: =SUMPRODUCT((CustCount[MonthFlow]=$B39)*CustCount[N-SC]) -> 1117 | J39: =INDEX(BetaCoeff[BetaCoeff],MATCH(C$27,BetaCoeff[CustClass],0)) -> 0.2793279 | K39: 1866.855431 | L39: =SUMPRODUCT((VolRates[BeginDate]<=B39)*(VolRates[EndDate]>=D39)*(VolRates[CustClass]=$C$27)*VolRates[VolRate]) -> 0.26033 | M39: 486
B40: 2023-07-01 | C40: =SUMPRODUCT((MeterReadSch[MonthBill]=$B40)*MeterReadSch[North]) -> 2023-06-28 | D40: =SUMPRODUCT((MeterReadSch[MonthFlow]=$B40)*MeterReadSch[North]) -> 2023-07-25 | E40: 27 | F40: =SUMPRODUCT((KCITempAct[Date]>=$C40)*(KCITempAct[Date]<$D40)*KCITempAct[KCINHDDAdj]) -> 0.01666666667 | G40: =SUMPRODUCT((KCITempAct[Date]>=$C40)*(KCITempAct[Date]<$D40)*KCITempAct[KCIHDDAdj]) -> 0 | H40: 0.01666666667 | I40: =SUMPRODUCT((CustCount[MonthFlow]=$B40)*CustCount[N-SC]) -> 0 | J40: =INDEX(BetaCoeff[BetaCoeff],MATCH(C$27,BetaCoeff[CustClass],0)) -> 0.2793279 | K40: 0 | L40: =SUMPRODUCT((VolRates[BeginDate]<=B40)*(VolRates[EndDate]>=D40)*(VolRates[CustClass]=$C$27)*VolRates[VolRate]) -> 0.26033 | M40: 0
B41: 2023-08-01 | C41: =SUMPRODUCT((MeterReadSch[MonthBill]=$B41)*MeterReadSch[North]) -> 2023-07-25 | D41: =SUMPRODUCT((MeterReadSch[MonthFlow]=$B41)*MeterReadSch[North]) -> 2023-08-25 | E41: 31 | F41: =SUMPRODUCT((KCITempAct[Date]>=$C41)*(KCITempAct[Date]<$D41)*KCITempAct[KCINHDDAdj]) -> 0 | G41: =SUMPRODUCT((KCITempAct[Date]>=$C41)*(KCITempAct[Date]<$D41)*KCITempAct[KCIHDDAdj]) -> 0 | H41: 0 | I41: =SUMPRODUCT((CustCount[MonthFlow]=$B41)*CustCount[N-SC]) -> 0 | J41: =INDEX(BetaCoeff[BetaCoeff],MATCH(C$27,BetaCoeff[CustClass],0)) -> 0.2793279 | K41: 0 | L41: =SUMPRODUCT((VolRates[BeginDate]<=B41)*(VolRates[EndDate]>=D41)*(VolRates[CustClass]=$C$27)*VolRates[VolRate]) -> 0.26033 | M41: 0
B42: Totals | C42: =C30 -> 2022-08-29 | D42: =D41 -> 2023-08-25 | E42: =D42-C42 -> 361 | F42: =SUM(F30:F41) -> 5029.3 | G42: =SUM(G30:G41) -> 4620 | H42: =SUM(H30:H41) -> 409.3 | I42: =SUM(I30:I41) -> 11337 | J42: =J41 -> 0.2793279 | K42: =SUM(K30:K41) -> 130038.3664 | L42: =ROUND(M42/K42,5) -> 0.26033 | M42: =SUM(M30:M41) -> 33852.88
B43: Reconciling Period Adj. | D43: =M42 -> 33852.88 | E43: Enter in Reconciling Period Adjustment Table (ReconPerAdj)
B44: Enter WNA Amounts in Column M in CAWNA Amounts Table

Sheet WNAR Rates
A1: Year | B1: BeginDate | C1: EndDate | D1: CustClass | E1: CAWNA | F1: ARR | G1: Combined | H1: AdjCAWNA | I1: AdjSRR | J1: AdjCombined | K1: Preparer's Notes | L1: Reviewer's Notes
A2: 2023 | B2: 2023-10-01 | C2: 2024-09-30 | D2: Res | E2: 0.01632 | F2: 0 | G2: =WNARRates[[#This Row],[CAWNA]]+WNARRates[[#This Row],[ARR]] -> 0.01632 | H2: =WNARRates[[#This Row],[CAWNA]] -> 0.01632 | I2: =WNARRates[[#This Row],[ARR]] -> 0 | J2: =WNARRates[[#This Row],[AdjCAWNA]]+WNARRates[[#This Row],[AdjSRR]] -> 0.01632 | K2: Worksheet CAWNA Summary row 29, column C
A3: 2023 | B3: 2023-10-01 | C3: 2024-09-30 | D3: SCFS | E3: 0.01896 | F3: 0 | G3: =WNARRates[[#This Row],[CAWNA]]+WNARRates[[#This Row],[ARR]] -> 0.01896 | H3: =WNARRates[[#This Row],[CAWNA]] -> 0.01896 | I3: =WNARRates[[#This Row],[ARR]] -> 0 | J3: =WNARRates[[#This Row],[AdjCAWNA]]+WNARRates[[#This Row],[AdjSRR]] -> 0.01896 | K3: Worksheet CAWNA Summary row 29, column D

Sheet CAWNA Amounts
A1: Month | B1: Territory | C1: CustClass | D1: CAWNA | E1: Preparer's Notes | F1: Reviewer's Notes
A2: 2022-09-01 | B2: North | C2: Res | D2: 5862.17 | E2: Worksheet CAWNA North row 11, column M
A3: 2022-10-01 | B3: North | C3: Res | D3: 10328.18 | E3: Worksheet CAWNA North row 12, column M
A4: 2022-11-01 | B4: North | C4: Res | D4: 2347.44 | E4: Worksheet CAWNA North row 13, column M
A5: 2022-12-01 | B5: North | C5: Res | D5: -15401.2 | E5: Worksheet CAWNA North row 14, column M
A6: 2023-01-01 | B6: North | C6: Res | D6: 64545.76 | E6: Worksheet CAWNA North row 15, column M
A7: 2023-02-01 | B7: North | C7: Res | D7: 13744.57 | E7: Worksheet CAWNA North row 16, column M
A8: 2023-03-01 | B8: North | C8: Res | D8: -11114.01 | E8: Worksheet CAWNA North row 17, column M
A9: 2023-04-01 | B9: North | C9: Res | D9: 8500.38 | E9: Worksheet CAWNA North row 18, column M
A10: 2023-05-01 | B10: North | C10: Res | D10: 8727.97 | E10: Worksheet CAWNA North row 19, column M
A11: 2023-06-01 | B11: North | C11: Res | D11: 1236.63 | E11: Worksheet CAWNA North row 20, column M
A12: 2023-07-01 | B12: North | C12: Res | D12: 0 | E12: Worksheet CAWNA North row 21, column M
A13: 2023-08-01 | B13: North | C13: Res | D13: 0 | E13: Worksheet CAWNA North row 22, column M
A14: 2022-09-01 | B14: North | C14: SCFS | D14: 2263.9 | E14: Worksheet CAWNA North row 30, column M
A15: 2022-10-01 | B15: North | C15: SCFS | D15: 3941.77 | E15: Worksheet CAWNA North row 31, column M
A16: 2022-11-01 | B16: North | C16: SCFS | D16: 894.45 | E16: Worksheet CAWNA North row 32, column M
A17: 2022-12-01 | B17: North | C17: SCFS | D17: -5845.83 | E17: Worksheet CAWNA North row 33, column M
A18: 2023-01-01 | B18: North | C18: SCFS | D18: 24484.6 | E18: Worksheet CAWNA North row 34, column M
A19: 2023-02-01 | B19: North | C19: SCFS | D19: 5200.04 | E19: Worksheet CAWNA North row 35, column M
A20: 2023-03-01 | B20: North | C20: SCFS | D20: -4247.38 | E20: Worksheet CAWNA North row 36, column M
A21: 2023-04-01 | B21: North | C21: SCFS | D21: 3256.4 | E21: Worksheet CAWNA North row 37, column M
A22: 2023-05-01 | B22: North | C22: SCFS | D22: 3418.93 | E22: Worksheet CAWNA North row 38, column M
A23: 2023-06-01 | B23: North | C23: SCFS | D23: 486 | E23: Worksheet CAWNA North row 39, column M
A24: 2023-07-01 | B24: North | C24: SCFS | D24: 0 | E24: Worksheet CAWNA North row 40, column M
A25: 2023-08-01 | B25: North | C25: SCFS | D25: 0 | E25: Worksheet CAWNA North row 41, column M
A26: 2022-09-01 | B26: NW | C26: Res | D26: 3608.5 | E26: Worksheet CAWNA NW row 11, column M
A27: 2022-10-01 | B27: NW | C27: Res | D27: 3967.81 | E27: Worksheet CAWNA NW row 12, column M
A28: 2022-11-01 | B28: NW | C28: Res | D28: 3807.66 | E28: Worksheet CAWNA NW row 13, column M
A29: 2022-12-01 | B29: NW | C29: Res | D29: -8230.91 | E29: Worksheet CAWNA NW row 14, column M
A30: 2023-01-01 | B30: NW | C30: Res | D30: 38795.63 | E30: Worksheet CAWNA NW row 15, column M
A31: 2023-02-01 | B31: NW | C31: Res | D31: 8280.85 | E31: Worksheet CAWNA NW row 16, column M
A32: 2023-03-01 | B32: NW | C32: Res | D32: -7034.51 | E32: Worksheet CAWNA NW row 17, column M
A33: 2023-04-01 | B33: NW | C33: Res | D33: 3752.53 | E33: Worksheet CAWNA NW row 18, column M
A34: 2023-05-01 | B34: NW | C34: Res | D34: 5757.77 | E34: Worksheet CAWNA NW row 19, column M
A35: 2023-06-01 | B35: NW | C35: Res | D35: 748.66 | E35: Worksheet CAWNA NW row 20, column M
A36: 2023-07-01 | B36: NW | C36: Res | D36: 0 | E36: Worksheet CAWNA NW row 21, column M
A37: 2023-08-01 | B37: NW | C37: Res | D37: 0 | E37: Worksheet CAWNA NW row 22, column M
A38: 2022-09-01 | B38: NW | C38: SCFS | D38: 1367.84 | E38: Worksheet CAWNA NW row 30, column M
A39: 2022-10-01 | B39: NW | C39: SCFS | D39: 1494.12 | E39: Worksheet CAWNA NW row 31, column M
A40: 2022-11-01 | B40: NW | C40: SCFS | D40: 1425.55 | E40: Worksheet CAWNA NW row 32, column M
A41: 2022-12-01 | B41: NW | C41: SCFS | D41: -3093.35 | E41: Worksheet CAWNA NW row 33, column M
A42: 2023-01-01 | B42: NW | C42: SCFS | D42: 14583.82 | E42: Worksheet CAWNA NW row 34, column M
A43: 2023-02-01 | B43: NW | C43: SCFS | D43: 3117.22 | E43: Worksheet CAWNA NW row 35, column M
A44: 2023-03-01 | B44: NW | C44: SCFS | D44: -2675.78 | E44: Worksheet CAWNA NW row 36, column M
A45: 2023-04-01 | B45: NW | C45: SCFS | D45: 1437.17 | E45: Worksheet CAWNA NW row 37, column M
A46: 2023-05-01 | B46: NW | C46: SCFS | D46: 2216.73 | E46: Worksheet CAWNA NW row 38, column M
A47: 2023-06-01 | B47: NW | C47: SCFS | D47: 289.34 | E47: Worksheet CAWNA NW row 39, column M
A48: 2023-07-01 | B48: NW | C48: SCFS | D48: 0 | E48: Worksheet CAWNA NW row 40, column M
A49: 2023-08-01 | B49: NW | C49: SCFS | D49: 0 | E49: Worksheet CAWNA NW row 41, column M
A50: 2022-09-01 | B50: South | C50: Res | D50: 18300.01 | E50: Worksheet CAWNA South row 11, column M
A51: 2022-10-01 | B51: South | C51: Res | D51: 31999.85 | E51: Worksheet CAWNA South row 12, column M
A52: 2022-11-01 | B52: South | C52: Res | D52: 8210.26 | E52: Worksheet CAWNA South row 13, column M
A53: 2022-12-01 | B53: South | C53: Res | D53: -37580.27 | E53: Worksheet CAWNA South row 14, column M
A54: 2023-01-01 | B54: South | C54: Res | D54: 190196.8 | E54: Worksheet CAWNA South row 15, column M
A55: 2023-02-01 | B55: South | C55: Res | D55: 47540.74 | E55: Worksheet CAWNA South row 16, column M
A56: 2023-03-01 | B56: South | C56: Res | D56: -45026.34 | E56: Worksheet CAWNA South row 17, column M
A57: 2023-04-01 | B57: South | C57: Res | D57: 31942.85 | E57: Worksheet CAWNA South row 18, column M
A58: 2023-05-01 | B58: South | C58: Res | D58: 26202.65 | E58: Worksheet CAWNA South row 19, column M
A59: 2023-06-01 | B59: South | C59: Res | D59: 3930.59 | E59: Worksheet CAWNA South row 20, column M
A60: 2023-07-01 | B60: South | C60: Res | D60: 0 | E60: Worksheet CAWNA South row 21, column M
A61: 2023-08-01 | B61: South | C61: Res | D61: 0 | E61: Worksheet CAWNA South row 22, column M
A62: 2022-09-01 | B62: South | C62: SCFS | D62: 5444.99 | E62: Worksheet CAWNA South row 30, column M
A63: 2022-10-01 | B63: South | C63: SCFS | D63: 9497.67 | E63: Worksheet CAWNA South row 31, column M
A64: 2022-11-01 | B64: South | C64: SCFS | D64: 2445.57 | E64: Worksheet CAWNA South row 32, column M
A65: 2022-12-01 | B65: South | C65: SCFS | D65: -11159.72 | E65: Worksheet CAWNA South row 33, column M
A66: 2023-01-01 | B66: South | C66: SCFS | D66: 56264.9 | E66: Worksheet CAWNA South row 34, column M
A67: 2023-02-01 | B67: South | C67: SCFS | D67: 14048.51 | E67: Worksheet CAWNA South row 35, column M
A68: 2023-03-01 | B68: South | C68: SCFS | D68: -13364.7 | E68: Worksheet CAWNA South row 36, column M
A69: 2023-04-01 | B69: South | C69: SCFS | D69: 9498.77 | E69: Worksheet CAWNA South row 37, column M
A70: 2023-05-01 | B70: South | C70: SCFS | D70: 7833.7 | E70: Worksheet CAWNA South row 38, column M
A71: 2023-06-01 | B71: South | C71: SCFS | D71: 1173.88 | E71: Worksheet CAWNA South row 39, column M
A72: 2023-07-01 | B72: South | C72: SCFS | D72: 0 | E72: Worksheet CAWNA South row 40, column M
A73: 2023-08-01 | B73: South | C73: SCFS | D73: 0 | E73: Worksheet CAWNA South row 41, column M

Sheet NHDD
A1: Month | B1: Day | C1: KCINHDD | D1: Preparer's Notes | E1: Reviewer's Notes
A2: 1 | B2: 1 | C2: 36.4 | D2: From Commission Staff (rate case)
A3: 1 | B3: 2 | C3: 35.58333333 | D3: From Commission Staff (rate case)
A4: 1 | B4: 3 | C4: 35.61666667 | D4: From Commission Staff (rate case)
A5: 1 | B5: 4 | C5: 37.56666667 | D5: From Commission Staff (rate case)
A6: 1 | B6: 5 | C6: 36.75 | D6: From Commission Staff (rate case)
A7: 1 | B7: 6 | C7: 37.41666667 | D7: From Commission Staff (rate case)
A8: 1 | B8: 7 | C8: 37.01666667 | D8: From Commission Staff (rate case)
A9: 1 | B9: 8 | C9: 34.48333333 | D9: From Commission Staff (rate case)
A10: 1 | B10: 9 | C10: 35.33333333 | D10: From Commission Staff (rate case)
A11: 1 | B11: 10 | C11: 35.46666667 | D11: From Commission Staff (rate case)
A12: 1 | B12: 11 | C12: 33.03333333 | D12: From Commission Staff (rate case)
A13: 1 | B13: 12 | C13: 35.31666667 | D13: From Commission Staff (rate case)
A14: 1 | B14: 13 | C14: 38.45 | D14: From Commission Staff (rate case)
A15: 1 | B15: 14 | C15: 36.01666667 | D15: From Commission Staff (rate case)
A16: 1 | B16: 15 | C16: 37.25 | D16: From Commission Staff (rate case)
A17: 1 | B17: 16 | C17: 36.73333333 | D17: From Commission Staff (rate case)
A18: 1 | B18: 17 | C18: 37.75 | D18: From Commission Staff (rate case)
A19: 1 | B19: 18 | C19: 37.16666667 | D19: From Commission Staff (rate case)
A20: 1 | B20: 19 | C20: 35.98333333 | D20: From Commission Staff (rate case)
A21: 1 | B21: 20 | C21: 35.93333333 | D21: From Commission Staff (rate case)
A22: 1 | B22: 21 | C22: 33.8 | D22: From Commission Staff (rate case)
A23: 1 | B23: 22 | C23: 33.43333333 | D23: From Commission Staff (rate case)
A24: 1 | B24: 23 | C24: 36.41666667 | D24: From Commission Staff (rate case)
A25: 1 | B25: 24 | C25: 35.8 | D25: From Commission Staff (rate case)
A26: 1 | B26: 25 | C26: 34.06666667 | D26: From Commission Staff (rate case)
A27: 1 | B27: 26 | C27: 33.05 | D27: From Commission Staff (rate case)
A28: 1 | B28: 27 | C28: 33.5 | D28: From Commission Staff (rate case)
A29: 1 | B29: 28 | C29: 33.06666667 | D29: From Commission Staff (rate case)
A30: 1 | B30: 29 | C30: 34.86666667 | D30: From Commission Staff (rate case)
A31: 1 | B31: 30 | C31: 36.31666667 | D31: From Commission Staff (rate case)
A32: 1 | B32: 31 | C32: 32.7 | D32: From Commission Staff (rate case)
A33: 2 | B33: 1 | C33: 33.26666667 | D33: From Commission Staff (rate case)
A34: 2 | B34: 2 | C34: 33.7 | D34: From Commission Staff (rate case)
A35: 2 | B35: 3 | C35: 32.66666667 | D35: From Commission Staff (rate case)
A36: 2 | B36: 4 | C36: 35.5 | D36: From Commission Staff (rate case)
A37: 2 | B37: 5 | C37: 35.61666667 | D37: From Commission Staff (rate case)
A38: 2 | B38: 6 | C38: 32.71666667 | D38: From Commission Staff (rate case)
A39: 2 | B39: 7 | C39: 34.33333333 | D39: From Commission Staff (rate case)
A40: 2 | B40: 8 | C40: 36.26666667 | D40: From Commission Staff (rate case)
A41: 2 | B41: 9 | C41: 34.51666667 | D41: From Commission Staff (rate case)
A42: 2 | B42: 10 | C42: 33.88333333 | D42: From Commission Staff (rate case)
A43: 2 | B43: 11 | C43: 35.08333333 | D43: From Commission Staff (rate case)
A44: 2 | B44: 12 | C44: 36.6 | D44: From Commission Staff (rate case)
A45: 2 | B45: 13 | C45: 33.26666667 | D45: From Commission Staff (rate case)
A46: 2 | B46: 14 | C46: 30.71666667 | D46: From Commission Staff (rate case)
A47: 2 | B47: 15 | C47: 33.76666667 | D47: From Commission Staff (rate case)
A48: 2 | B48: 16 | C48: 34.56666667 | D48: From Commission Staff (rate case)
A49: 2 | B49: 17 | C49: 29.55 | D49: From Commission Staff (rate case)
A50: 2 | B50: 18 | C50: 28.05 | D50: From Commission Staff (rate case)
A51: 2 | B51: 19 | C51: 27.25 | D51: From Commission Staff (rate case)
A52: 2 | B52: 20 | C52: 26.1 | D52: From Commission Staff (rate case)
A53: 2 | B53: 21 | C53: 29.15 | D53: From Commission Staff (rate case)
A54: 2 | B54: 22 | C54: 27.78333333 | D54: From Commission Staff (rate case)
A55: 2 | B55: 23 | C55: 27.9 | D55: From Commission Staff (rate case)
A56: 2 | B56: 24 | C56: 29.4 | D56: From Commission Staff (rate case)
A57: 2 | B57: 25 | C57: 29.68333333 | D57: From Commission Staff (rate case)
A58: 2 | B58: 26 | C58: 30.3 | D58: From Commission Staff (rate case)
A59: 2 | B59: 27 | C59: 30.65 | D59: From Commission Staff (rate case)
A60: 2 | B60: 28 | C60: 27.9 | D60: From Commission Staff (rate case)
A61: 3 | B61: 1 | C61: 27.53333333 | D61: From Commission Staff (rate case)
A62: 3 | B62: 2 | C62: 30.35 | D62: From Commission Staff (rate case)
A63: 3 | B63: 3 | C63: 28.8 | D63: From Commission Staff (rate case)
A64: 3 | B64: 4 | C64: 25.11666667 | D64: From Commission Staff (rate case)
A65: 3 | B65: 5 | C65: 23.93333333 | D65: From Commission Staff (rate case)
A66: 3 | B66: 6 | C66: 22.66666667 | D66: From Commission Staff (rate case)
A67: 3 | B67: 7 | C67: 22.05 | D67: From Commission Staff (rate case)
A68: 3 | B68: 8 | C68: 22.65 | D68: From Commission Staff (rate case)
A69: 3 | B69: 9 | C69: 24.18333333 | D69: From Commission Staff (rate case)
A70: 3 | B70: 10 | C70: 23.58333333 | D70: From Commission Staff (rate case)
A71: 3 | B71: 11 | C71: 22.61666667 | D71: From Commission Staff (rate case)
A72: 3 | B72: 12 | C72: 20.35 | D72: From Commission Staff (rate case)
A73: 3 | B73: 13 | C73: 19.5 | D73: From Commission Staff (rate case)
A74: 3 | B74: 14 | C74: 18.45 | D74: From Commission Staff (rate case)
A75: 3 | B75: 15 | C75: 19.15 | D75: From Commission Staff (rate case)
A76: 3 | B76: 16 | C76: 19.31666667 | D76: From Commission Staff (rate case)
A77: 3 | B77: 17 | C77: 17.98333333 | D77: From Commission Staff (rate case)
A78: 3 | B78: 18 | C78: 18.88333333 | D78: From Commission Staff (rate case)
A79: 3 | B79: 19 | C79: 19.16666667 | D79: From Commission Staff (rate case)
A80: 3 | B80: 20 | C80: 18.8 | D80: From Commission Staff (rate case)
A81: 3 | B81: 21 | C81: 18.65 | D81: From Commission Staff (rate case)
A82: 3 | B82: 22 | C82: 17.61666667 | D82: From Commission Staff (rate case)
A83: 3 | B83: 23 | C83: 15.4 | D83: From Commission Staff (rate case)
A84: 3 | B84: 24 | C84: 18.21666667 | D84: From Commission Staff (rate case)
A85: 3 | B85: 25 | C85: 19.91666667 | D85: From Commission Staff (rate case)
A86: 3 | B86: 26 | C86: 17.86666667 | D86: From Commission Staff (rate case)
A87: 3 | B87: 27 | C87: 17.26666667 | D87: From Commission Staff (rate case)
A88: 3 | B88: 28 | C88: 16.71666667 | D88: From Commission Staff (rate case)
A89: 3 | B89: 29 | C89: 14.56666667 | D89: From Commission Staff (rate case)
A90: 3 | B90: 30 | C90: 13.9 | D90: From Commission Staff (rate case)
A91: 3 | B91: 31 | C91: 15.36666667 | D91: From Commission Staff (rate case)
A92: 4 | B92: 1 | C92: 16.06666667 | D92: From Commission Staff (rate case)
A93: 4 | B93: 2 | C93: 13.63333333 | D93: From Commission Staff (rate case)
A94: 4 | B94: 3 | C94: 14 | D94: From Commission Staff (rate case)
A95: 4 | B95: 4 | C95: 15.95 | D95: From Commission Staff (rate case)
A96: 4 | B96: 5 | C96: 13.58333333 | D96: From Commission Staff (rate case)
A97: 4 | B97: 6 | C97: 11.63333333 | D97: From Commission Staff (rate case)
A98: 4 | B98: 7 | C98: 13.08333333 | D98: From Commission Staff (rate case)
A99: 4 | B99: 8 | C99: 13.66666667 | D99: From Commission Staff (rate case)
A100: 4 | B100: 9 | C100: 13.05 | D100: From Commission Staff (rate case)
A101: 4 | B101: 10 | C101: 11.06666667 | D101: From Commission Staff (rate case)
A102: 4 | B102: 11 | C102: 12.01666667 | D102: From Commission Staff (rate case)
A103: 4 | B103: 12 | C103: 13.85 | D103: From Commission Staff (rate case)
A104: 4 | B104: 13 | C104: 12.1 | D104: From Commission Staff (rate case)
A105: 4 | B105: 14 | C105: 10.2 | D105: From Commission Staff (rate case)
A106: 4 | B106: 15 | C106: 10.53333333 | D106: From Commission Staff (rate case)
A107: 4 | B107: 16 | C107: 10.48333333 | D107: From Commission Staff (rate case)
A108: 4 | B108: 17 | C108: 10.5 | D108: From Commission Staff (rate case)
A109: 4 | B109: 18 | C109: 7.983333333 | D109: From Commission Staff (rate case)
A110: 4 | B110: 19 | C110: 8.116666667 | D110: From Commission Staff (rate case)
A111: 4 | B111: 20 | C111: 9.7 | D111: From Commission Staff (rate case)
A112: 4 | B112: 21 | C112: 9.366666667 | D112: From Commission Staff (rate case)
A113: 4 | B113: 22 | C113: 9.4 | D113: From Commission Staff (rate case)
A114: 4 | B114: 23 | C114: 8.15 | D114: From Commission Staff (rate case)
A115: 4 | B115: 24 | C115: 7.4 | D115: From Commission Staff (rate case)
A116: 4 | B116: 25 | C116: 8.283333333 | D116: From Commission Staff (rate case)
A117: 4 | B117: 26 | C117: 9.483333333 | D117: From Commission Staff (rate case)
A118: 4 | B118: 27 | C118: 9.566666667 | D118: From Commission Staff (rate case)
A119: 4 | B119: 28 | C119: 9.25 | D119: From Commission Staff (rate case)
A120: 4 | B120: 29 | C120: 7.916666667 | D120: From Commission Staff (rate case)
A121: 4 | B121: 30 | C121: 6.483333333 | D121: From Commission Staff (rate case)
A122: 5 | B122: 1 | C122: 7.566666667 | D122: From Commission Staff (rate case)
A123: 5 | B123: 2 | C123: 8.05 | D123: From Commission Staff (rate case)
A124: 5 | B124: 3 | C124: 7.016666667 | D124: From Commission Staff (rate case)
A125: 5 | B125: 4 | C125: 5.033333333 | D125: From Commission Staff (rate case)
A126: 5 | B126: 5 | C126: 4.25 | D126: From Commission Staff (rate case)
A127: 5 | B127: 6 | C127: 3.383333333 | D127: From Commission Staff (rate case)
A128: 5 | B128: 7 | C128: 3.483333333 | D128: From Commission Staff (rate case)
A129: 5 | B129: 8 | C129: 2.433333333 | D129: From Commission Staff (rate case)
A130: 5 | B130: 9 | C130: 4.216666667 | D130: From Commission Staff (rate case)
A131: 5 | B131: 10 | C131: 4.283333333 | D131: From Commission Staff (rate case)
A132: 5 | B132: 11 | C132: 4.733333333 | D132: From Commission Staff (rate case)
A133: 5 | B133: 12 | C133: 5.533333333 | D133: From Commission Staff (rate case)
A134: 5 | B134: 13 | C134: 4.816666667 | D134: From Commission Staff (rate case)
A135: 5 | B135: 14 | C135: 5.05 | D135: From Commission Staff (rate case)
A136: 5 | B136: 15 | C136: 3.6 | D136: From Commission Staff (rate case)
A137: 5 | B137: 16 | C137: 3.35 | D137: From Commission Staff (rate case)
A138: 5 | B138: 17 | C138: 2.8 | D138: From Commission Staff (rate case)
A139: 5 | B139: 18 | C139: 2.7 | D139: From Commission Staff (rate case)
A140: 5 | B140: 19 | C140: 3.35 | D140: From Commission Staff (rate case)
A141: 5 | B141: 20 | C141: 3.133333333 | D141: From Commission Staff (rate case)
A142: 5 | B142: 21 | C142: 2.616666667 | D142: From Commission Staff (rate case)
A143: 5 | B143: 22 | C143: 1.433333333 | D143: From Commission Staff (rate case)
A144: 5 | B144: 23 | C144: 1.566666667 | D144: From Commission Staff (rate case)
A145: 5 | B145: 24 | C145: 2.3 | D145: From Commission Staff (rate case)
A146: 5 | B146: 25 | C146: 1.883333333 | D146: From Commission Staff (rate case)
A147: 5 | B147: 26 | C147: 2.033333333 | D147: From Commission Staff (rate case)
A148: 5 | B148: 27 | C148: 1.733333333 | D148: From Commission Staff (rate case)
A149: 5 | B149: 28 | C149: 1.85 | D149: From Commission Staff (rate case)
A150: 5 | B150: 29 | C150: 1.166666667 | D150: From Commission Staff (rate case)
A151: 5 | B151: 30 | C151: 0.8 | D151: From Commission Staff (rate case)
A152: 5 | B152: 31 | C152: 1.2 | D152: From Commission Staff (rate case)
A153: 6 | B153: 1 | C153: 0.8833333333 | D153: From Commission Staff (rate case)
A154: 6 | B154: 2 | C154: 0.65 | D154: From Commission Staff (rate case)
A155: 6 | B155: 3 | C155: 0.9166666667 | D155: From Commission Staff (rate case)
A156: 6 | B156: 4 | C156: 1.2 | D156: From Commission Staff (rate case)
A157: 6 | B157: 5 | C157: 0.6833333333 | D157: From Commission Staff (rate case)
A158: 6 | B158: 6 | C158: 0.3166666667 | D158: From Commission Staff (rate case)
A159: 6 | B159: 7 | C159: 0.3 | D159: From Commission Staff (rate case)
A160: 6 | B160: 8 | C160: 0.2166666667 | D160: From Commission Staff (rate case)
A161: 6 | B161: 9 | C161: 0.1666666667 | D161: From Commission Staff (rate case)
A162: 6 | B162: 10 | C162: 0.03333333333 | D162: From Commission Staff (rate case)
A163: 6 | B163: 11 | C163: 0.05 | D163: From Commission Staff (rate case)
A164: 6 | B164: 12 | C164: 0.03333333333 | D164: From Commission Staff (rate case)
A165: 6 | B165: 13 | C165: 0.05 | D165: From Commission Staff (rate case)
A166: 6 | B166: 14 | C166: 0 | D166: From Commission Staff (rate case)
A167: 6 | B167: 15 | C167: 0 | D167: From Commission Staff (rate case)
A168: 6 | B168: 16 | C168: 0.25 | D168: From Commission Staff (rate case)
A169: 6 | B169: 17 | C169: 0.25 | D169: From Commission Staff (rate case)
A170: 6 | B170: 18 | C170: 0.08333333333 | D170: From Commission Staff (rate case)
A171: 6 | B171: 19 | C171: 0.06666666667 | D171: From Commission Staff (rate case)
A172: 6 | B172: 20 | C172: 0.05 | D172: From Commission Staff (rate case)
A173: 6 | B173: 21 | C173: 0.1 | D173: From Commission Staff (rate case)
A174: 6 | B174: 22 | C174: 0 | D174: From Commission Staff (rate case)
A175: 6 | B175: 23 | C175: 0 | D175: From Commission Staff (rate case)
A176: 6 | B176: 24 | C176: 0 | D176: From Commission Staff (rate case)
A177: 6 | B177: 25 | C177: 0.1 | D177: From Commission Staff (rate case)
A178: 6 | B178: 26 | C178: 0.05 | D178: From Commission Staff (rate case)
A179: 6 | B179: 27 | C179: 0.03333333333 | D179: From Commission Staff (rate case)
A180: 6 | B180: 28 | C180: 0 | D180: From Commission Staff (rate case)
A181: 6 | B181: 29 | C181: 0.01666666667 | D181: From Commission Staff (rate case)
A182: 6 | B182: 30 | C182: 0 | D182: From Commission Staff (rate case)
A183: 7 | B183: 1 | C183: 0.01666666667 | D183: From Commission Staff (rate case)
A184: 7 | B184: 2 | C184: 0.05 | D184: From Commission Staff (rate case)
A185: 7 | B185: 3 | C185: 0.03333333333 | D185: From Commission Staff (rate case)
A186: 7 | B186: 4 | C186: 0.08333333333 | D186: From Commission Staff (rate case)
A187: 7 | B187: 5 | C187: 0.01666666667 | D187: From Commission Staff (rate case)
A188: 7 | B188: 6 | C188: 0 | D188: From Commission Staff (rate case)
A189: 7 | B189: 7 | C189: 0 | D189: From Commission Staff (rate case)
A190: 7 | B190: 8 | C190: 0.06666666667 | D190: From Commission Staff (rate case)
A191: 7 | B191: 9 | C191: 0 | D191: From Commission Staff (rate case)
A192: 7 | B192: 10 | C192: 0 | D192: From Commission Staff (rate case)
A193: 7 | B193: 11 | C193: 0 | D193: From Commission Staff (rate case)
A194: 7 | B194: 12 | C194: 0 | D194: From Commission Staff (rate case)
A195: 7 | B195: 13 | C195: 0 | D195: From Commission Staff (rate case)
A196: 7 | B196: 14 | C196: 0 | D196: From Commission Staff (rate case)
A197: 7 | B197: 15 | C197: 0.03333333333 | D197: From Commission Staff (rate case)
A198: 7 | B198: 16 | C198: 0 | D198: From Commission Staff (rate case)
A199: 7 | B199: 17 | C199: 0 | D199: From Commission Staff (rate case)
A200: 7 | B200: 18 | C200: 0 | D200: From Commission Staff (rate case)
... 166 more rows

Sheet KCITempActuals
A1: Date | B1: KCIHigh | C1: KCILow | D1: KCIAve | E1: KCIHDD | F1: KCIHDDAdj | G1: KCINHDD | H1: KCINHDDAdj | I1: Preparer's Notes | J1: Reviewer's Notes | L1: Process for updating table:
A2: 2018-01-01 | B2: 9 | C2: -11 | D2: =AVERAGE(KCITempAct[[#This Row],[KCIHigh]:[KCILow]] ) -> -1 | E2: =IF(KCITempAct[[#This Row],[KCIAve]]<65,(65-KCITempAct[[#This Row],[KCIAve]]),0) -> 66 | F2: =IF(MONTH(KCITempAct[[#This Row],[Date]])=7,0,IF(MONTH(KCITempAct[[#This Row],[Date]])=8,0,KCITempAct[[#This Row],[KCIHDD]])) -> 66 | G2: =SUMPRODUCT((KCINHDD[Month]=MONTH(KCITempAct[[#This Row],[Date]]))*(KCINHDD[Day]=DAY(KCITempAct[[#This Row],[Date]]))*KCINHDD[KCINHDD]) -> 36.4 | H2: =IF(MONTH(KCITempAct[[#This Row],[Date]])=7,0,IF(MONTH(KCITempAct[[#This Row],[Date]])=8,0,KCITempAct[[#This Row],[KCINHDD]])) -> 36.4 | I2: Adj HDD and NDD =0 for July and August | L2: 1) Enter New Data at end of table
A3: 2018-01-02 | B3: 21 | C3: -6 | D3: =AVERAGE(KCITempAct[[#This Row],[KCIHigh]:[KCILow]] ) -> 7.5 | E3: =IF(KCITempAct[[#This Row],[KCIAve]]<65,(65-KCITempAct[[#This Row],[KCIAve]]),0) -> 57.5 | F3: =IF(MONTH(KCITempAct[[#This Row],[Date]])=7,0,IF(MONTH(KCITempAct[[#This Row],[Date]])=8,0,KCITempAct[[#This Row],[KCIHDD]])) -> 57.5 | G3: =SUMPRODUCT((KCINHDD[Month]=MONTH(KCITempAct[[#This Row],[Date]]))*(KCINHDD[Day]=DAY(KCITempAct[[#This Row],[Date]]))*KCINHDD[KCINHDD]) -> 35.58333333 | H3: =IF(MONTH(KCITempAct[[#This Row],[Date]])=7,0,IF(MONTH(KCITempAct[[#This Row],[Date]])=8,0,KCITempAct[[#This Row],[KCINHDD]])) -> 35.58333333 | I3: Adj HDD and NDD =0 for July and August | M3: New Data = Date, KCIHigh, KCILow
A4: 2018-01-03 | B4: 25 | C4: 8 | D4: =AVERAGE(KCITempAct[[#This Row],[KCIHigh]:[KCILow]] ) -> 16.5 | E4: =IF(KCITempAct[[#This Row],[KCIAve]]<65,(65-KCITempAct[[#This Row],[KCIAve]]),0) -> 48.5 | F4: =IF(MONTH(KCITempAct[[#This Row],[Date]])=7,0,IF(MONTH(KCITempAct[[#This Row],[Date]])=8,0,KCITempAct[[#This Row],[KCIHDD]])) -> 48.5 | G4: =SUMPRODUCT((KCINHDD[Month]=MONTH(KCITempAct[[#This Row],[Date]]))*(KCINHDD[Day]=DAY(KCITempAct[[#This Row],[Date]]))*KCINHDD[KCINHDD]) -> 35.61666667 | H4: =IF(MONTH(KCITempAct[[#This Row],[Date]])=7,0,IF(MONTH(KCITempAct[[#This Row],[Date]])=8,0,KCITempAct[[#This Row],[KCINHDD]])) -> 35.61666667 | I4: Adj HDD and NDD =0 for July and August | L4: 2) Formulas in rest of table will be applied to New Data
A5: 2018-01-04 | B5: 23 | C5: 2 | D5: =AVERAGE(KCITempAct[[#This Row],[KCIHigh]:[KCILow]] ) -> 12.5 | E5: =IF(KCITempAct[[#This Row],[KCIAve]]<65,(65-KCITempAct[[#This Row],[KCIAve]]),0) -> 52.5 | F5: =IF(MONTH(KCITempAct[[#This Row],[Date]])=7,0,IF(MONTH(KCITempAct[[#This Row],[Date]])=8,0,KCITempAct[[#This Row],[KCIHDD]])) -> 52.5 | G5: =SUMPRODUCT((KCINHDD[Month]=MONTH(KCITempAct[[#This Row],[Date]]))*(KCINHDD[Day]=DAY(KCITempAct[[#This Row],[Date]]))*KCINHDD[KCINHDD]) -> 37.56666667 | H5: =IF(MONTH(KCITempAct[[#This Row],[Date]])=7,0,IF(MONTH(KCITempAct[[#This Row],[Date]])=8,0,KCITempAct[[#This Row],[KCINHDD]])) -> 37.56666667 | I5: Adj HDD and NDD =0 for July and August | L5: 3) Do not overwrite formulas!
A6: 2018-01-05 | B6: 28 | C6: 12 | D6: =AVERAGE(KCITempAct[[#This Row],[KCIHigh]:[KCILow]] ) -> 20 | E6: =IF(KCITempAct[[#This Row],[KCIAve]]<65,(65-KCITempAct[[#This Row],[KCIAve]]),0) -> 45 | F6: =IF(MONTH(KCITempAct[[#This Row],[Date]])=7,0,IF(MONTH(KCITempAct[[#This Row],[Date]])=8,0,KCITempAct[[#This Row],[KCIHDD]])) -> 45 | G6: =SUMPRODUCT((KCINHDD[Month]=MONTH(KCITempAct[[#This Row],[Date]]))*(KCINHDD[Day]=DAY(KCITempAct[[#This Row],[Date]]))*KCINHDD[KCINHDD]) -> 36.75 | H6: =IF(MONTH(KCITempAct[[#This Row],[Date]])=7,0,IF(MONTH(KCITempAct[[#This Row],[Date]])=8,0,KCITempAct[[#This Row],[KCINHDD]])) -> 36.75 | I6: Adj HDD and NDD =0 for July and August | L6: 4) Weather Data is from the Kansas City, MO International Airport weather station
A7: 2018-01-06 | B7: 30 | C7: 11 | D7: =AVERAGE(KCITempAct[[#This Row],[KCIHigh]:[KCILow]] ) -> 20.5 | E7: =IF(KCITempAct[[#This Row],[KCIAve]]<65,(65-KCITempAct[[#This Row],[KCIAve]]),0) -> 44.5 | F7: =IF(MONTH(KCITempAct[[#This Row],[Date]])=7,0,IF(MONTH(KCITempAct[[#This Row],[Date]])=8,0,KCITempAct[[#This Row],[KCIHDD]])) -> 44.5 | G7: =SUMPRODUCT((KCINHDD[Month]=MONTH(KCITempAct[[#This Row],[Date]]))*(KCINHDD[Day]=DAY(KCITempAct[[#This Row],[Date]]))*KCINHDD[KCINHDD]) -> 37.41666667 | H7: =IF(MONTH(KCITempAct[[#This Row],[Date]])=7,0,IF(MONTH(KCITempAct[[#This Row],[Date]])=8,0,KCITempAct[[#This Row],[KCINHDD]])) -> 37.41666667 | I7: Adj HDD and NDD =0 for July and August | L7: 5) Station ID Information:
A8: 2018-01-07 | B8: 37 | C8: 30 | D8: =AVERAGE(KCITempAct[[#This Row],[KCIHigh]:[KCILow]] ) -> 33.5 | E8: =IF(KCITempAct[[#This Row],[KCIAve]]<65,(65-KCITempAct[[#This Row],[KCIAve]]),0) -> 31.5 | F8: =IF(MONTH(KCITempAct[[#This Row],[Date]])=7,0,IF(MONTH(KCITempAct[[#This Row],[Date]])=8,0,KCITempAct[[#This Row],[KCIHDD]])) -> 31.5 | G8: =SUMPRODUCT((KCINHDD[Month]=MONTH(KCITempAct[[#This Row],[Date]]))*(KCINHDD[Day]=DAY(KCITempAct[[#This Row],[Date]]))*KCINHDD[KCINHDD]) -> 37.01666667 | H8: =IF(MONTH(KCITempAct[[#This Row],[Date]])=7,0,IF(MONTH(KCITempAct[[#This Row],[Date]])=8,0,KCITempAct[[#This Row],[KCINHDD]])) -> 37.01666667 | I8: Adj HDD and NDD =0 for July and August | M8: WBAN: 03947
A9: 2018-01-08 | B9: 49 | C9: 25 | D9: =AVERAGE(KCITempAct[[#This Row],[KCIHigh]:[KCILow]] ) -> 37 | E9: =IF(KCITempAct[[#This Row],[KCIAve]]<65,(65-KCITempAct[[#This Row],[KCIAve]]),0) -> 28 | F9: =IF(MONTH(KCITempAct[[#This Row],[Date]])=7,0,IF(MONTH(KCITempAct[[#This Row],[Date]])=8,0,KCITempAct[[#This Row],[KCIHDD]])) -> 28 | G9: =SUMPRODUCT((KCINHDD[Month]=MONTH(KCITempAct[[#This Row],[Date]]))*(KCINHDD[Day]=DAY(KCITempAct[[#This Row],[Date]]))*KCINHDD[KCINHDD]) -> 34.48333333 | H9: =IF(MONTH(KCITempAct[[#This Row],[Date]])=7,0,IF(MONTH(KCITempAct[[#This Row],[Date]])=8,0,KCITempAct[[#This Row],[KCINHDD]])) -> 34.48333333 | I9: Adj HDD and NDD =0 for July and August
A10: 2018-01-09 | B10: 44 | C10: 29 | D10: =AVERAGE(KCITempAct[[#This Row],[KCIHigh]:[KCILow]] ) -> 36.5 | E10: =IF(KCITempAct[[#This Row],[KCIAve]]<65,(65-KCITempAct[[#This Row],[KCIAve]]),0) -> 28.5 | F10: =IF(MONTH(KCITempAct[[#This Row],[Date]])=7,0,IF(MONTH(KCITempAct[[#This Row],[Date]])=8,0,KCITempAct[[#This Row],[KCIHDD]])) -> 28.5 | G10: =SUMPRODUCT((KCINHDD[Month]=MONTH(KCITempAct[[#This Row],[Date]]))*(KCINHDD[Day]=DAY(KCITempAct[[#This Row],[Date]]))*KCINHDD[KCINHDD]) -> 35.33333333 | H10: =IF(MONTH(KCITempAct[[#This Row],[Date]])=7,0,IF(MONTH(KCITempAct[[#This Row],[Date]])=8,0,KCITempAct[[#This Row],[KCINHDD]])) -> 35.33333333 | I10: Adj HDD and NDD =0 for July and August
A11: 2018-01-10 | B11: 57 | C11: 38 | D11: =AVERAGE(KCITempAct[[#This Row],[KCIHigh]:[KCILow]] ) -> 47.5 | E11: =IF(KCITempAct[[#This Row],[KCIAve]]<65,(65-KCITempAct[[#This Row],[KCIAve]]),0) -> 17.5 | F11: =IF(MONTH(KCITempAct[[#This Row],[Date]])=7,0,IF(MONTH(KCITempAct[[#This Row],[Date]])=8,0,KCITempAct[[#This Row],[KCIHDD]])) -> 17.5 | G11: =SUMPRODUCT((KCINHDD[Month]=MONTH(KCITempAct[[#This Row],[Date]]))*(KCINHDD[Day]=DAY(KCITempAct[[#This Row],[Date]]))*KCINHDD[KCINHDD]) -> 35.46666667 | H11: =IF(MONTH(KCITempAct[[#This Row],[Date]])=7,0,IF(MONTH(KCITempAct[[#This Row],[Date]])=8,0,KCITempAct[[#This Row],[KCINHDD]])) -> 35.46666667 | I11: Adj HDD and NDD =0 for July and August
A12: 2018-01-11 | B12: 51 | C12: 11 | D12: =AVERAGE(KCITempAct[[#This Row],[KCIHigh]:[KCILow]] ) -> 31 | E12: =IF(KCITempAct[[#This Row],[KCIAve]]<65,(65-KCITempAct[[#This Row],[KCIAve]]),0) -> 34 | F12: =IF(MONTH(KCITempAct[[#This Row],[Date]])=7,0,IF(MONTH(KCITempAct[[#This Row],[Date]])=8,0,KCITempAct[[#This Row],[KCIHDD]])) -> 34 | G12: =SUMPRODUCT((KCINHDD[Month]=MONTH(KCITempAct[[#This Row],[Date]]))*(KCINHDD[Day]=DAY(KCITempAct[[#This Row],[Date]]))*KCINHDD[KCINHDD]) -> 33.03333333 | H12: =IF(MONTH(KCITempAct[[#This Row],[Date]])=7,0,IF(MONTH(KCITempAct[[#This Row],[Date]])=8,0,KCITempAct[[#This Row],[KCINHDD]])) -> 33.03333333 | I12: Adj HDD and NDD =0 for July and August
A13: 2018-01-12 | B13: 18 | C13: 4 | D13: =AVERAGE(KCITempAct[[#This Row],[KCIHigh]:[KCILow]] ) -> 11 | E13: =IF(KCITempAct[[#This Row],[KCIAve]]<65,(65-KCITempAct[[#This Row],[KCIAve]]),0) -> 54 | F13: =IF(MONTH(KCITempAct[[#This Row],[Date]])=7,0,IF(MONTH(KCITempAct[[#This Row],[Date]])=8,0,KCITempAct[[#This Row],[KCIHDD]])) -> 54 | G13: =SUMPRODUCT((KCINHDD[Month]=MONTH(KCITempAct[[#This Row],[Date]]))*(KCINHDD[Day]=DAY(KCITempAct[[#This Row],[Date]]))*KCINHDD[KCINHDD]) -> 35.31666667 | H13: =IF(MONTH(KCITempAct[[#This Row],[Date]])=7,0,IF(MONTH(KCITempAct[[#This Row],[Date]])=8,0,KCITempAct[[#This Row],[KCINHDD]])) -> 35.31666667 | I13: Adj HDD and NDD =0 for July and August
A14: 2018-01-13 | B14: 19 | C14: 10 | D14: =AVERAGE(KCITempAct[[#This Row],[KCIHigh]:[KCILow]] ) -> 14.5 | E14: =IF(KCITempAct[[#This Row],[KCIAve]]<65,(65-KCITempAct[[#This Row],[KCIAve]]),0) -> 50.5 | F14: =IF(MONTH(KCITempAct[[#This Row],[Date]])=7,0,IF(MONTH(KCITempAct[[#This Row],[Date]])=8,0,KCITempAct[[#This Row],[KCIHDD]])) -> 50.5 | G14: =SUMPRODUCT((KCINHDD[Month]=MONTH(KCITempAct[[#This Row],[Date]]))*(KCINHDD[Day]=DAY(KCITempAct[[#This Row],[Date]]))*KCINHDD[KCINHDD]) -> 38.45 | H14: =IF(MONTH(KCITempAct[[#This Row],[Date]])=7,0,IF(MONTH(KCITempAct[[#This Row],[Date]])=8,0,KCITempAct[[#This Row],[KCINHDD]])) -> 38.45 | I14: Adj HDD and NDD =0 for July and August
A15: 2018-01-14 | B15: 33 | C15: 16 | D15: =AVERAGE(KCITempAct[[#This Row],[KCIHigh]:[KCILow]] ) -> 24.5 | E15: =IF(KCITempAct[[#This Row],[KCIAve]]<65,(65-KCITempAct[[#This Row],[KCIAve]]),0) -> 40.5 | F15: =IF(MONTH(KCITempAct[[#This Row],[Date]])=7,0,IF(MONTH(KCITempAct[[#This Row],[Date]])=8,0,KCITempAct[[#This Row],[KCIHDD]])) -> 40.5 | G15: =SUMPRODUCT((KCINHDD[Month]=MONTH(KCITempAct[[#This Row],[Date]]))*(KCINHDD[Day]=DAY(KCITempAct[[#This Row],[Date]]))*KCINHDD[KCINHDD]) -> 36.01666667 | H15: =IF(MONTH(KCITempAct[[#This Row],[Date]])=7,0,IF(MONTH(KCITempAct[[#This Row],[Date]])=8,0,KCITempAct[[#This Row],[KCINHDD]])) -> 36.01666667 | I15: Adj HDD and NDD =0 for July and August
A16: 2018-01-15 | B16: 33 | C16: -1 | D16: =AVERAGE(KCITempAct[[#This Row],[KCIHigh]:[KCILow]] ) -> 16 | E16: =IF(KCITempAct[[#This Row],[KCIAve]]<65,(65-KCITempAct[[#This Row],[KCIAve]]),0) -> 49 | F16: =IF(MONTH(KCITempAct[[#This Row],[Date]])=7,0,IF(MONTH(KCITempAct[[#This Row],[Date]])=8,0,KCITempAct[[#This Row],[KCIHDD]])) -> 49 | G16: =SUMPRODUCT((KCINHDD[Month]=MONTH(KCITempAct[[#This Row],[Date]]))*(KCINHDD[Day]=DAY(KCITempAct[[#This Row],[Date]]))*KCINHDD[KCINHDD]) -> 37.25 | H16: =IF(MONTH(KCITempAct[[#This Row],[Date]])=7,0,IF(MONTH(KCITempAct[[#This Row],[Date]])=8,0,KCITempAct[[#This Row],[KCINHDD]])) -> 37.25 | I16: Adj HDD and NDD =0 for July and August
A17: 2018-01-16 | B17: 8 | C17: -5 | D17: =AVERAGE(KCITempAct[[#This Row],[KCIHigh]:[KCILow]] ) -> 1.5 | E17: =IF(KCITempAct[[#This Row],[KCIAve]]<65,(65-KCITempAct[[#This Row],[KCIAve]]),0) -> 63.5 | F17: =IF(MONTH(KCITempAct[[#This Row],[Date]])=7,0,IF(MONTH(KCITempAct[[#This Row],[Date]])=8,0,KCITempAct[[#This Row],[KCIHDD]])) -> 63.5 | G17: =SUMPRODUCT((KCINHDD[Month]=MONTH(KCITempAct[[#This Row],[Date]]))*(KCINHDD[Day]=DAY(KCITempAct[[#This Row],[Date]]))*KCINHDD[KCINHDD]) -> 36.73333333 | H17: =IF(MONTH(KCITempAct[[#This Row],[Date]])=7,0,IF(MONTH(KCITempAct[[#This Row],[Date]])=8,0,KCITempAct[[#This Row],[KCINHDD]])) -> 36.73333333 | I17: Adj HDD and NDD =0 for July and August
A18: 2018-01-17 | B18: 24 | C18: -4 | D18: =AVERAGE(KCITempAct[[#This Row],[KCIHigh]:[KCILow]] ) -> 10 | E18: =IF(KCITempAct[[#This Row],[KCIAve]]<65,(65-KCITempAct[[#This Row],[KCIAve]]),0) -> 55 | F18: =IF(MONTH(KCITempAct[[#This Row],[Date]])=7,0,IF(MONTH(KCITempAct[[#This Row],[Date]])=8,0,KCITempAct[[#This Row],[KCIHDD]])) -> 55 | G18: =SUMPRODUCT((KCINHDD[Month]=MONTH(KCITempAct[[#This Row],[Date]]))*(KCINHDD[Day]=DAY(KCITempAct[[#This Row],[Date]]))*KCINHDD[KCINHDD]) -> 37.75 | H18: =IF(MONTH(KCITempAct[[#This Row],[Date]])=7,0,IF(MONTH(KCITempAct[[#This Row],[Date]])=8,0,KCITempAct[[#This Row],[KCINHDD]])) -> 37.75 | I18: Adj HDD and NDD =0 for July and August
A19: 2018-01-18 | B19: 39 | C19: 16 | D19: =AVERAGE(KCITempAct[[#This Row],[KCIHigh]:[KCILow]] ) -> 27.5 | E19: =IF(KCITempAct[[#This Row],[KCIAve]]<65,(65-KCITempAct[[#This Row],[KCIAve]]),0) -> 37.5 | F19: =IF(MONTH(KCITempAct[[#This Row],[Date]])=7,0,IF(MONTH(KCITempAct[[#This Row],[Date]])=8,0,KCITempAct[[#This Row],[KCIHDD]])) -> 37.5 | G19: =SUMPRODUCT((KCINHDD[Month]=MONTH(KCITempAct[[#This Row],[Date]]))*(KCINHDD[Day]=DAY(KCITempAct[[#This Row],[Date]]))*KCINHDD[KCINHDD]) -> 37.16666667 | H19: =IF(MONTH(KCITempAct[[#This Row],[Date]])=7,0,IF(MONTH(KCITempAct[[#This Row],[Date]])=8,0,KCITempAct[[#This Row],[KCINHDD]])) -> 37.16666667 | I19: Adj HDD and NDD =0 for July and August
A20: 2018-01-19 | B20: 50 | C20: 30 | D20: =AVERAGE(KCITempAct[[#This Row],[KCIHigh]:[KCILow]] ) -> 40 | E20: =IF(KCITempAct[[#This Row],[KCIAve]]<65,(65-KCITempAct[[#This Row],[KCIAve]]),0) -> 25 | F20: =IF(MONTH(KCITempAct[[#This Row],[Date]])=7,0,IF(MONTH(KCITempAct[[#This Row],[Date]])=8,0,KCITempAct[[#This Row],[KCIHDD]])) -> 25 | G20: =SUMPRODUCT((KCINHDD[Month]=MONTH(KCITempAct[[#This Row],[Date]]))*(KCINHDD[Day]=DAY(KCITempAct[[#This Row],[Date]]))*KCINHDD[KCINHDD]) -> 35.98333333 | H20: =IF(MONTH(KCITempAct[[#This Row],[Date]])=7,0,IF(MONTH(KCITempAct[[#This Row],[Date]])=8,0,KCITempAct[[#This Row],[KCINHDD]])) -> 35.98333333 | I20: Adj HDD and NDD =0 for July and August
A21: 2018-01-20 | B21: 52 | C21: 40 | D21: =AVERAGE(KCITempAct[[#This Row],[KCIHigh]:[KCILow]] ) -> 46 | E21: =IF(KCITempAct[[#This Row],[KCIAve]]<65,(65-KCITempAct[[#This Row],[KCIAve]]),0) -> 19 | F21: =IF(MONTH(KCITempAct[[#This Row],[Date]])=7,0,IF(MONTH(KCITempAct[[#This Row],[Date]])=8,0,KCITempAct[[#This Row],[KCIHDD]])) -> 19 | G21: =SUMPRODUCT((KCINHDD[Month]=MONTH(KCITempAct[[#This Row],[Date]]))*(KCINHDD[Day]=DAY(KCITempAct[[#This Row],[Date]]))*KCINHDD[KCINHDD]) -> 35.93333333 | H21: =IF(MONTH(KCITempAct[[#This Row],[Date]])=7,0,IF(MONTH(KCITempAct[[#This Row],[Date]])=8,0,KCITempAct[[#This Row],[KCINHDD]])) -> 35.93333333 | I21: Adj HDD and NDD =0 for July and August
A22: 2018-01-21 | B22: 64 | C22: 39 | D22: =AVERAGE(KCITempAct[[#This Row],[KCIHigh]:[KCILow]] ) -> 51.5 | E22: =IF(KCITempAct[[#This Row],[KCIAve]]<65,(65-KCITempAct[[#This Row],[KCIAve]]),0) -> 13.5 | F22: =IF(MONTH(KCITempAct[[#This Row],[Date]])=7,0,IF(MONTH(KCITempAct[[#This Row],[Date]])=8,0,KCITempAct[[#This Row],[KCIHDD]])) -> 13.5 | G22: =SUMPRODUCT((KCINHDD[Month]=MONTH(KCITempAct[[#This Row],[Date]]))*(KCINHDD[Day]=DAY(KCITempAct[[#This Row],[Date]]))*KCINHDD[KCINHDD]) -> 33.8 | H22: =IF(MONTH(KCITempAct[[#This Row],[Date]])=7,0,IF(MONTH(KCITempAct[[#This Row],[Date]])=8,0,KCITempAct[[#This Row],[KCINHDD]])) -> 33.8 | I22: Adj HDD and NDD =0 for July and August
A23: 2018-01-22 | B23: 54 | C23: 30 | D23: =AVERAGE(KCITempAct[[#This Row],[KCIHigh]:[KCILow]] ) -> 42 | E23: =IF(KCITempAct[[#This Row],[KCIAve]]<65,(65-KCITempAct[[#This Row],[KCIAve]]),0) -> 23 | F23: =IF(MONTH(KCITempAct[[#This Row],[Date]])=7,0,IF(MONTH(KCITempAct[[#This Row],[Date]])=8,0,KCITempAct[[#This Row],[KCIHDD]])) -> 23 | G23: =SUMPRODUCT((KCINHDD[Month]=MONTH(KCITempAct[[#This Row],[Date]]))*(KCINHDD[Day]=DAY(KCITempAct[[#This Row],[Date]]))*KCINHDD[KCINHDD]) -> 33.43333333 | H23: =IF(MONTH(KCITempAct[[#This Row],[Date]])=7,0,IF(MONTH(KCITempAct[[#This Row],[Date]])=8,0,KCITempAct[[#This Row],[KCINHDD]])) -> 33.43333333 | I23: Adj HDD and NDD =0 for July and August
A24: 2018-01-23 | B24: 35 | C24: 27 | D24: =AVERAGE(KCITempAct[[#This Row],[KCIHigh]:[KCILow]] ) -> 31 | E24: =IF(KCITempAct[[#This Row],[KCIAve]]<65,(65-KCITempAct[[#This Row],[KCIAve]]),0) -> 34 | F24: =IF(MONTH(KCITempAct[[#This Row],[Date]])=7,0,IF(MONTH(KCITempAct[[#This Row],[Date]])=8,0,KCITempAct[[#This Row],[KCIHDD]])) -> 34 | G24: =SUMPRODUCT((KCINHDD[Month]=MONTH(KCITempAct[[#This Row],[Date]]))*(KCINHDD[Day]=DAY(KCITempAct[[#This Row],[Date]]))*KCINHDD[KCINHDD]) -> 36.41666667 | H24: =IF(MONTH(KCITempAct[[#This Row],[Date]])=7,0,IF(MONTH(KCITempAct[[#This Row],[Date]])=8,0,KCITempAct[[#This Row],[KCINHDD]])) -> 36.41666667 | I24: Adj HDD and NDD =0 for July and August
A25: 2018-01-24 | B25: 49 | C25: 23 | D25: =AVERAGE(KCITempAct[[#This Row],[KCIHigh]:[KCILow]] ) -> 36 | E25: =IF(KCITempAct[[#This Row],[KCIAve]]<65,(65-KCITempAct[[#This Row],[KCIAve]]),0) -> 29 | F25: =IF(MONTH(KCITempAct[[#This Row],[Date]])=7,0,IF(MONTH(KCITempAct[[#This Row],[Date]])=8,0,KCITempAct[[#This Row],[KCIHDD]])) -> 29 | G25: =SUMPRODUCT((KCINHDD[Month]=MONTH(KCITempAct[[#This Row],[Date]]))*(KCINHDD[Day]=DAY(KCITempAct[[#This Row],[Date]]))*KCINHDD[KCINHDD]) -> 35.8 | H25: =IF(MONTH(KCITempAct[[#This Row],[Date]])=7,0,IF(MONTH(KCITempAct[[#This Row],[Date]])=8,0,KCITempAct[[#This Row],[KCINHDD]])) -> 35.8 | I25: Adj HDD and NDD =0 for July and August
A26: 2018-01-25 | B26: 64 | C26: 37 | D26: =AVERAGE(KCITempAct[[#This Row],[KCIHigh]:[KCILow]] ) -> 50.5 | E26: =IF(KCITempAct[[#This Row],[KCIAve]]<65,(65-KCITempAct[[#This Row],[KCIAve]]),0) -> 14.5 | F26: =IF(MONTH(KCITempAct[[#This Row],[Date]])=7,0,IF(MONTH(KCITempAct[[#This Row],[Date]])=8,0,KCITempAct[[#This Row],[KCIHDD]])) -> 14.5 | G26: =SUMPRODUCT((KCINHDD[Month]=MONTH(KCITempAct[[#This Row],[Date]]))*(KCINHDD[Day]=DAY(KCITempAct[[#This Row],[Date]]))*KCINHDD[KCINHDD]) -> 34.06666667 | H26: =IF(MONTH(KCITempAct[[#This Row],[Date]])=7,0,IF(MONTH(KCITempAct[[#This Row],[Date]])=8,0,KCITempAct[[#This Row],[KCINHDD]])) -> 34.06666667 | I26: Adj HDD and NDD =0 for July and August
A27: 2018-01-26 | B27: 59 | C27: 37 | D27: =AVERAGE(KCITempAct[[#This Row],[KCIHigh]:[KCILow]] ) -> 48 | E27: =IF(KCITempAct[[#This Row],[KCIAve]]<65,(65-KCITempAct[[#This Row],[KCIAve]]),0) -> 17 | F27: =IF(MONTH(KCITempAct[[#This Row],[Date]])=7,0,IF(MONTH(KCITempAct[[#This Row],[Date]])=8,0,KCITempAct[[#This Row],[KCIHDD]])) -> 17 | G27: =SUMPRODUCT((KCINHDD[Month]=MONTH(KCITempAct[[#This Row],[Date]]))*(KCINHDD[Day]=DAY(KCITempAct[[#This Row],[Date]]))*KCINHDD[KCINHDD]) -> 33.05 | H27: =IF(MONTH(KCITempAct[[#This Row],[Date]])=7,0,IF(MONTH(KCITempAct[[#This Row],[Date]])=8,0,KCITempAct[[#This Row],[KCINHDD]])) -> 33.05 | I27: Adj HDD and NDD =0 for July and August
A28: 2018-01-27 | B28: 55 | C28: 26 | D28: =AVERAGE(KCITempAct[[#This Row],[KCIHigh]:[KCILow]] ) -> 40.5 | E28: =IF(KCITempAct[[#This Row],[KCIAve]]<65,(65-KCITempAct[[#This Row],[KCIAve]]),0) -> 24.5 | F28: =IF(MONTH(KCITempAct[[#This Row],[Date]])=7,0,IF(MONTH(KCITempAct[[#This Row],[Date]])=8,0,KCITempAct[[#This Row],[KCIHDD]])) -> 24.5 | G28: =SUMPRODUCT((KCINHDD[Month]=MONTH(KCITempAct[[#This Row],[Date]]))*(KCINHDD[Day]=DAY(KCITempAct[[#This Row],[Date]]))*KCINHDD[KCINHDD]) -> 33.5 | H28: =IF(MONTH(KCITempAct[[#This Row],[Date]])=7,0,IF(MONTH(KCITempAct[[#This Row],[Date]])=8,0,KCITempAct[[#This Row],[KCINHDD]])) -> 33.5 | I28: Adj HDD and NDD =0 for July and August
A29: 2018-01-28 | B29: 39 | C29: 23 | D29: =AVERAGE(KCITempAct[[#This Row],[KCIHigh]:[KCILow]] ) -> 31 | E29: =IF(KCITempAct[[#This Row],[KCIAve]]<65,(65-KCITempAct[[#This Row],[KCIAve]]),0) -> 34 | F29: =IF(MONTH(KCITempAct[[#This Row],[Date]])=7,0,IF(MONTH(KCITempAct[[#This Row],[Date]])=8,0,KCITempAct[[#This Row],[KCIHDD]])) -> 34 | G29: =SUMPRODUCT((KCINHDD[Month]=MONTH(KCITempAct[[#This Row],[Date]]))*(KCINHDD[Day]=DAY(KCITempAct[[#This Row],[Date]]))*KCINHDD[KCINHDD]) -> 33.06666667 | H29: =IF(MONTH(KCITempAct[[#This Row],[Date]])=7,0,IF(MONTH(KCITempAct[[#This Row],[Date]])=8,0,KCITempAct[[#This Row],[KCINHDD]])) -> 33.06666667 | I29: Adj HDD and NDD =0 for July and August
A30: 2018-01-29 | B30: 31 | C30: 12 | D30: =AVERAGE(KCITempAct[[#This Row],[KCIHigh]:[KCILow]] ) -> 21.5 | E30: =IF(KCITempAct[[#This Row],[KCIAve]]<65,(65-KCITempAct[[#This Row],[KCIAve]]),0) -> 43.5 | F30: =IF(MONTH(KCITempAct[[#This Row],[Date]])=7,0,IF(MONTH(KCITempAct[[#This Row],[Date]])=8,0,KCITempAct[[#This Row],[KCIHDD]])) -> 43.5 | G30: =SUMPRODUCT((KCINHDD[Month]=MONTH(KCITempAct[[#This Row],[Date]]))*(KCINHDD[Day]=DAY(KCITempAct[[#This Row],[Date]]))*KCINHDD[KCINHDD]) -> 34.86666667 | H30: =IF(MONTH(KCITempAct[[#This Row],[Date]])=7,0,IF(MONTH(KCITempAct[[#This Row],[Date]])=8,0,KCITempAct[[#This Row],[KCINHDD]])) -> 34.86666667 | I30: Adj HDD and NDD =0 for July and August
A31: 2018-01-30 | B31: 50 | C31: 18 | D31: =AVERAGE(KCITempAct[[#This Row],[KCIHigh]:[KCILow]] ) -> 34 | E31: =IF(KCITempAct[[#This Row],[KCIAve]]<65,(65-KCITempAct[[#This Row],[KCIAve]]),0) -> 31 | F31: =IF(MONTH(KCITempAct[[#This Row],[Date]])=7,0,IF(MONTH(KCITempAct[[#This Row],[Date]])=8,0,KCITempAct[[#This Row],[KCIHDD]])) -> 31 | G31: =SUMPRODUCT((KCINHDD[Month]=MONTH(KCITempAct[[#This Row],[Date]]))*(KCINHDD[Day]=DAY(KCITempAct[[#This Row],[Date]]))*KCINHDD[KCINHDD]) -> 36.31666667 | H31: =IF(MONTH(KCITempAct[[#This Row],[Date]])=7,0,IF(MONTH(KCITempAct[[#This Row],[Date]])=8,0,KCITempAct[[#This Row],[KCINHDD]])) -> 36.31666667 | I31: Adj HDD and NDD =0 for July and August
A32: 2018-01-31 | B32: 51 | C32: 34 | D32: =AVERAGE(KCITempAct[[#This Row],[KCIHigh]:[KCILow]] ) -> 42.5 | E32: =IF(KCITempAct[[#This Row],[KCIAve]]<65,(65-KCITempAct[[#This Row],[KCIAve]]),0) -> 22.5 | F32: =IF(MONTH(KCITempAct[[#This Row],[Date]])=7,0,IF(MONTH(KCITempAct[[#This Row],[Date]])=8,0,KCITempAct[[#This Row],[KCIHDD]])) -> 22.5 | G32: =SUMPRODUCT((KCINHDD[Month]=MONTH(KCITempAct[[#This Row],[Date]]))*(KCINHDD[Day]=DAY(KCITempAct[[#This Row],[Date]]))*KCINHDD[KCINHDD]) -> 32.7 | H32: =IF(MONTH(KCITempAct[[#This Row],[Date]])=7,0,IF(MONTH(KCITempAct[[#This Row],[Date]])=8,0,KCITempAct[[#This Row],[KCINHDD]])) -> 32.7 | I32: Adj HDD and NDD =0 for July and August
A33: 2018-02-01 | B33: 41 | C33: 11 | D33: =AVERAGE(KCITempAct[[#This Row],[KCIHigh]:[KCILow]] ) -> 26 | E33: =IF(KCITempAct[[#This Row],[KCIAve]]<65,(65-KCITempAct[[#This Row],[KCIAve]]),0) -> 39 | F33: =IF(MONTH(KCITempAct[[#This Row],[Date]])=7,0,IF(MONTH(KCITempAct[[#This Row],[Date]])=8,0,KCITempAct[[#This Row],[KCIHDD]])) -> 39 | G33: =SUMPRODUCT((KCINHDD[Month]=MONTH(KCITempAct[[#This Row],[Date]]))*(KCINHDD[Day]=DAY(KCITempAct[[#This Row],[Date]]))*KCINHDD[KCINHDD]) -> 33.26666667 | H33: =IF(MONTH(KCITempAct[[#This Row],[Date]])=7,0,IF(MONTH(KCITempAct[[#This Row],[Date]])=8,0,KCITempAct[[#This Row],[KCINHDD]])) -> 33.26666667 | I33: Adj HDD and NDD =0 for July and August
A34: 2018-02-02 | B34: 35 | C34: 7 | D34: =AVERAGE(KCITempAct[[#This Row],[KCIHigh]:[KCILow]] ) -> 21 | E34: =IF(KCITempAct[[#This Row],[KCIAve]]<65,(65-KCITempAct[[#This Row],[KCIAve]]),0) -> 44 | F34: =IF(MONTH(KCITempAct[[#This Row],[Date]])=7,0,IF(MONTH(KCITempAct[[#This Row],[Date]])=8,0,KCITempAct[[#This Row],[KCIHDD]])) -> 44 | G34: =SUMPRODUCT((KCINHDD[Month]=MONTH(KCITempAct[[#This Row],[Date]]))*(KCINHDD[Day]=DAY(KCITempAct[[#This Row],[Date]]))*KCINHDD[KCINHDD]) -> 33.7 | H34: =IF(MONTH(KCITempAct[[#This Row],[Date]])=7,0,IF(MONTH(KCITempAct[[#This Row],[Date]])=8,0,KCITempAct[[#This Row],[KCINHDD]])) -> 33.7 | I34: Adj HDD and NDD =0 for July and August
A35: 2018-02-03 | B35: 51 | C35: 28 | D35: =AVERAGE(KCITempAct[[#This Row],[KCIHigh]:[KCILow]] ) -> 39.5 | E35: =IF(KCITempAct[[#This Row],[KCIAve]]<65,(65-KCITempAct[[#This Row],[KCIAve]]),0) -> 25.5 | F35: =IF(MONTH(KCITempAct[[#This Row],[Date]])=7,0,IF(MONTH(KCITempAct[[#This Row],[Date]])=8,0,KCITempAct[[#This Row],[KCIHDD]])) -> 25.5 | G35: =SUMPRODUCT((KCINHDD[Month]=MONTH(KCITempAct[[#This Row],[Date]]))*(KCINHDD[Day]=DAY(KCITempAct[[#This Row],[Date]]))*KCINHDD[KCINHDD]) -> 32.66666667 | H35: =IF(MONTH(KCITempAct[[#This Row],[Date]])=7,0,IF(MONTH(KCITempAct[[#This Row],[Date]])=8,0,KCITempAct[[#This Row],[KCINHDD]])) -> 32.66666667 | I35: Adj HDD and NDD =0 for July and August
A36: 2018-02-04 | B36: 37 | C36: 3 | D36: =AVERAGE(KCITempAct[[#This Row],[KCIHigh]:[KCILow]] ) -> 20 | E36: =IF(KCITempAct[[#This Row],[KCIAve]]<65,(65-KCITempAct[[#This Row],[KCIAve]]),0) -> 45 | F36: =IF(MONTH(KCITempAct[[#This Row],[Date]])=7,0,IF(MONTH(KCITempAct[[#This Row],[Date]])=8,0,KCITempAct[[#This Row],[KCIHDD]])) -> 45 | G36: =SUMPRODUCT((KCINHDD[Month]=MONTH(KCITempAct[[#This Row],[Date]]))*(KCINHDD[Day]=DAY(KCITempAct[[#This Row],[Date]]))*KCINHDD[KCINHDD]) -> 35.5 | H36: =IF(MONTH(KCITempAct[[#This Row],[Date]])=7,0,IF(MONTH(KCITempAct[[#This Row],[Date]])=8,0,KCITempAct[[#This Row],[KCINHDD]])) -> 35.5 | I36: Adj HDD and NDD =0 for July and August
A37: 2018-02-05 | B37: 20 | C37: -2 | D37: =AVERAGE(KCITempAct[[#This Row],[KCIHigh]:[KCILow]] ) -> 9 | E37: =IF(KCITempAct[[#This Row],[KCIAve]]<65,(65-KCITempAct[[#This Row],[KCIAve]]),0) -> 56 | F37: =IF(MONTH(KCITempAct[[#This Row],[Date]])=7,0,IF(MONTH(KCITempAct[[#This Row],[Date]])=8,0,KCITempAct[[#This Row],[KCIHDD]])) -> 56 | G37: =SUMPRODUCT((KCINHDD[Month]=MONTH(KCITempAct[[#This Row],[Date]]))*(KCINHDD[Day]=DAY(KCITempAct[[#This Row],[Date]]))*KCINHDD[KCINHDD]) -> 35.61666667 | H37: =IF(MONTH(KCITempAct[[#This Row],[Date]])=7,0,IF(MONTH(KCITempAct[[#This Row],[Date]])=8,0,KCITempAct[[#This Row],[KCINHDD]])) -> 35.61666667 | I37: Adj HDD and NDD =0 for July and August
A38: 2018-02-06 | B38: 19 | C38: 9 | D38: =AVERAGE(KCITempAct[[#This Row],[KCIHigh]:[KCILow]] ) -> 14 | E38: =IF(KCITempAct[[#This Row],[KCIAve]]<65,(65-KCITempAct[[#This Row],[KCIAve]]),0) -> 51 | F38: =IF(MONTH(KCITempAct[[#This Row],[Date]])=7,0,IF(MONTH(KCITempAct[[#This Row],[Date]])=8,0,KCITempAct[[#This Row],[KCIHDD]])) -> 51 | G38: =SUMPRODUCT((KCINHDD[Month]=MONTH(KCITempAct[[#This Row],[Date]]))*(KCINHDD[Day]=DAY(KCITempAct[[#This Row],[Date]]))*KCINHDD[KCINHDD]) -> 32.71666667 | H38: =IF(MONTH(KCITempAct[[#This Row],[Date]])=7,0,IF(MONTH(KCITempAct[[#This Row],[Date]])=8,0,KCITempAct[[#This Row],[KCINHDD]])) -> 32.71666667 | I38: Adj HDD and NDD =0 for July and August
A39: 2018-02-07 | B39: 31 | C39: 10 | D39: =AVERAGE(KCITempAct[[#This Row],[KCIHigh]:[KCILow]] ) -> 20.5 | E39: =IF(KCITempAct[[#This Row],[KCIAve]]<65,(65-KCITempAct[[#This Row],[KCIAve]]),0) -> 44.5 | F39: =IF(MONTH(KCITempAct[[#This Row],[Date]])=7,0,IF(MONTH(KCITempAct[[#This Row],[Date]])=8,0,KCITempAct[[#This Row],[KCIHDD]])) -> 44.5 | G39: =SUMPRODUCT((KCINHDD[Month]=MONTH(KCITempAct[[#This Row],[Date]]))*(KCINHDD[Day]=DAY(KCITempAct[[#This Row],[Date]]))*KCINHDD[KCINHDD]) -> 34.33333333 | H39: =IF(MONTH(KCITempAct[[#This Row],[Date]])=7,0,IF(MONTH(KCITempAct[[#This Row],[Date]])=8,0,KCITempAct[[#This Row],[KCINHDD]])) -> 34.33333333 | I39: Adj HDD and NDD =0 for July and August
A40: 2018-02-08 | B40: 53 | C40: 17 | D40: =AVERAGE(KCITempAct[[#This Row],[KCIHigh]:[KCILow]] ) -> 35 | E40: =IF(KCITempAct[[#This Row],[KCIAve]]<65,(65-KCITempAct[[#This Row],[KCIAve]]),0) -> 30 | F40: =IF(MONTH(KCITempAct[[#This Row],[Date]])=7,0,IF(MONTH(KCITempAct[[#This Row],[Date]])=8,0,KCITempAct[[#This Row],[KCIHDD]])) -> 30 | G40: =SUMPRODUCT((KCINHDD[Month]=MONTH(KCITempAct[[#This Row],[Date]]))*(KCINHDD[Day]=DAY(KCITempAct[[#This Row],[Date]]))*KCINHDD[KCINHDD]) -> 36.26666667 | H40: =IF(MONTH(KCITempAct[[#This Row],[Date]])=7,0,IF(MONTH(KCITempAct[[#This Row],[Date]])=8,0,KCITempAct[[#This Row],[KCINHDD]])) -> 36.26666667 | I40: Adj HDD and NDD =0 for July and August
A41: 2018-02-09 | B41: 47 | C41: 16 | D41: =AVERAGE(KCITempAct[[#This Row],[KCIHigh]:[KCILow]] ) -> 31.5 | E41: =IF(KCITempAct[[#This Row],[KCIAve]]<65,(65-KCITempAct[[#This Row],[KCIAve]]),0) -> 33.5 | F41: =IF(MONTH(KCITempAct[[#This Row],[Date]])=7,0,IF(MONTH(KCITempAct[[#This Row],[Date]])=8,0,KCITempAct[[#This Row],[KCIHDD]])) -> 33.5 | G41: =SUMPRODUCT((KCINHDD[Month]=MONTH(KCITempAct[[#This Row],[Date]]))*(KCINHDD[Day]=DAY(KCITempAct[[#This Row],[Date]]))*KCINHDD[KCINHDD]) -> 34.51666667 | H41: =IF(MONTH(KCITempAct[[#This Row],[Date]])=7,0,IF(MONTH(KCITempAct[[#This Row],[Date]])=8,0,KCITempAct[[#This Row],[KCINHDD]])) -> 34.51666667 | I41: Adj HDD and NDD =0 for July and August
A42: 2018-02-10 | B42: 22 | C42: 11 | D42: =AVERAGE(KCITempAct[[#This Row],[KCIHigh]:[KCILow]] ) -> 16.5 | E42: =IF(KCITempAct[[#This Row],[KCIAve]]<65,(65-KCITempAct[[#This Row],[KCIAve]]),0) -> 48.5 | F42: =IF(MONTH(KCITempAct[[#This Row],[Date]])=7,0,IF(MONTH(KCITempAct[[#This Row],[Date]])=8,0,KCITempAct[[#This Row],[KCIHDD]])) -> 48.5 | G42: =SUMPRODUCT((KCINHDD[Month]=MONTH(KCITempAct[[#This Row],[Date]]))*(KCINHDD[Day]=DAY(KCITempAct[[#This Row],[Date]]))*KCINHDD[KCINHDD]) -> 33.88333333 | H42: =IF(MONTH(KCITempAct[[#This Row],[Date]])=7,0,IF(MONTH(KCITempAct[[#This Row],[Date]])=8,0,KCITempAct[[#This Row],[KCINHDD]])) -> 33.88333333 | I42: Adj HDD and NDD =0 for July and August
A43: 2018-02-11 | B43: 33 | C43: 13 | D43: =AVERAGE(KCITempAct[[#This Row],[KCIHigh]:[KCILow]] ) -> 23 | E43: =IF(KCITempAct[[#This Row],[KCIAve]]<65,(65-KCITempAct[[#This Row],[KCIAve]]),0) -> 42 | F43: =IF(MONTH(KCITempAct[[#This Row],[Date]])=7,0,IF(MONTH(KCITempAct[[#This Row],[Date]])=8,0,KCITempAct[[#This Row],[KCIHDD]])) -> 42 | G43: =SUMPRODUCT((KCINHDD[Month]=MONTH(KCITempAct[[#This Row],[Date]]))*(KCINHDD[Day]=DAY(KCITempAct[[#This Row],[Date]]))*KCINHDD[KCINHDD]) -> 35.08333333 | H43: =IF(MONTH(KCITempAct[[#This Row],[Date]])=7,0,IF(MONTH(KCITempAct[[#This Row],[Date]])=8,0,KCITempAct[[#This Row],[KCINHDD]])) -> 35.08333333 | I43: Adj HDD and NDD =0 for July and August
A44: 2018-02-12 | B44: 36 | C44: 11 | D44: =AVERAGE(KCITempAct[[#This Row],[KCIHigh]:[KCILow]] ) -> 23.5 | E44: =IF(KCITempAct[[#This Row],[KCIAve]]<65,(65-KCITempAct[[#This Row],[KCIAve]]),0) -> 41.5 | F44: =IF(MONTH(KCITempAct[[#This Row],[Date]])=7,0,IF(MONTH(KCITempAct[[#This Row],[Date]])=8,0,KCITempAct[[#This Row],[KCIHDD]])) -> 41.5 | G44: =SUMPRODUCT((KCINHDD[Month]=MONTH(KCITempAct[[#This Row],[Date]]))*(KCINHDD[Day]=DAY(KCITempAct[[#This Row],[Date]]))*KCINHDD[KCINHDD]) -> 36.6 | H44: =IF(MONTH(KCITempAct[[#This Row],[Date]])=7,0,IF(MONTH(KCITempAct[[#This Row],[Date]])=8,0,KCITempAct[[#This Row],[KCINHDD]])) -> 36.6 | I44: Adj HDD and NDD =0 for July and August
A45: 2018-02-13 | B45: 51 | C45: 25 | D45: =AVERAGE(KCITempAct[[#This Row],[KCIHigh]:[KCILow]] ) -> 38 | E45: =IF(KCITempAct[[#This Row],[KCIAve]]<65,(65-KCITempAct[[#This Row],[KCIAve]]),0) -> 27 | F45: =IF(MONTH(KCITempAct[[#This Row],[Date]])=7,0,IF(MONTH(KCITempAct[[#This Row],[Date]])=8,0,KCITempAct[[#This Row],[KCIHDD]])) -> 27 | G45: =SUMPRODUCT((KCINHDD[Month]=MONTH(KCITempAct[[#This Row],[Date]]))*(KCINHDD[Day]=DAY(KCITempAct[[#This Row],[Date]]))*KCINHDD[KCINHDD]) -> 33.26666667 | H45: =IF(MONTH(KCITempAct[[#This Row],[Date]])=7,0,IF(MONTH(KCITempAct[[#This Row],[Date]])=8,0,KCITempAct[[#This Row],[KCINHDD]])) -> 33.26666667 | I45: Adj HDD and NDD =0 for July and August
A46: 2018-02-14 | B46: 56 | C46: 32 | D46: =AVERAGE(KCITempAct[[#This Row],[KCIHigh]:[KCILow]] ) -> 44 | E46: =IF(KCITempAct[[#This Row],[KCIAve]]<65,(65-KCITempAct[[#This Row],[KCIAve]]),0) -> 21 | F46: =IF(MONTH(KCITempAct[[#This Row],[Date]])=7,0,IF(MONTH(KCITempAct[[#This Row],[Date]])=8,0,KCITempAct[[#This Row],[KCIHDD]])) -> 21 | G46: =SUMPRODUCT((KCINHDD[Month]=MONTH(KCITempAct[[#This Row],[Date]]))*(KCINHDD[Day]=DAY(KCITempAct[[#This Row],[Date]]))*KCINHDD[KCINHDD]) -> 30.71666667 | H46: =IF(MONTH(KCITempAct[[#This Row],[Date]])=7,0,IF(MONTH(KCITempAct[[#This Row],[Date]])=8,0,KCITempAct[[#This Row],[KCINHDD]])) -> 30.71666667 | I46: Adj HDD and NDD =0 for July and August
A47: 2018-02-15 | B47: 64 | C47: 34 | D47: =AVERAGE(KCITempAct[[#This Row],[KCIHigh]:[KCILow]] ) -> 49 | E47: =IF(KCITempAct[[#This Row],[KCIAve]]<65,(65-KCITempAct[[#This Row],[KCIAve]]),0) -> 16 | F47: =IF(MONTH(KCITempAct[[#This Row],[Date]])=7,0,IF(MONTH(KCITempAct[[#This Row],[Date]])=8,0,KCITempAct[[#This Row],[KCIHDD]])) -> 16 | G47: =SUMPRODUCT((KCINHDD[Month]=MONTH(KCITempAct[[#This Row],[Date]]))*(KCINHDD[Day]=DAY(KCITempAct[[#This Row],[Date]]))*KCINHDD[KCINHDD]) -> 33.76666667 | H47: =IF(MONTH(KCITempAct[[#This Row],[Date]])=7,0,IF(MONTH(KCITempAct[[#This Row],[Date]])=8,0,KCITempAct[[#This Row],[KCINHDD]])) -> 33.76666667 | I47: Adj HDD and NDD =0 for July and August
A48: 2018-02-16 | B48: 37 | C48: 22 | D48: =AVERAGE(KCITempAct[[#This Row],[KCIHigh]:[KCILow]] ) -> 29.5 | E48: =IF(KCITempAct[[#This Row],[KCIAve]]<65,(65-KCITempAct[[#This Row],[KCIAve]]),0) -> 35.5 | F48: =IF(MONTH(KCITempAct[[#This Row],[Date]])=7,0,IF(MONTH(KCITempAct[[#This Row],[Date]])=8,0,KCITempAct[[#This Row],[KCIHDD]])) -> 35.5 | G48: =SUMPRODUCT((KCINHDD[Month]=MONTH(KCITempAct[[#This Row],[Date]]))*(KCINHDD[Day]=DAY(KCITempAct[[#This Row],[Date]]))*KCINHDD[KCINHDD]) -> 34.56666667 | H48: =IF(MONTH(KCITempAct[[#This Row],[Date]])=7,0,IF(MONTH(KCITempAct[[#This Row],[Date]])=8,0,KCITempAct[[#This Row],[KCINHDD]])) -> 34.56666667 | I48: Adj HDD and NDD =0 for July and August
A49: 2018-02-17 | B49: 53 | C49: 29 | D49: =AVERAGE(KCITempAct[[#This Row],[KCIHigh]:[KCILow]] ) -> 41 | E49: =IF(KCITempAct[[#This Row],[KCIAve]]<65,(65-KCITempAct[[#This Row],[KCIAve]]),0) -> 24 | F49: =IF(MONTH(KCITempAct[[#This Row],[Date]])=7,0,IF(MONTH(KCITempAct[[#This Row],[Date]])=8,0,KCITempAct[[#This Row],[KCIHDD]])) -> 24 | G49: =SUMPRODUCT((KCINHDD[Month]=MONTH(KCITempAct[[#This Row],[Date]]))*(KCINHDD[Day]=DAY(KCITempAct[[#This Row],[Date]]))*KCINHDD[KCINHDD]) -> 29.55 | H49: =IF(MONTH(KCITempAct[[#This Row],[Date]])=7,0,IF(MONTH(KCITempAct[[#This Row],[Date]])=8,0,KCITempAct[[#This Row],[KCINHDD]])) -> 29.55 | I49: Adj HDD and NDD =0 for July and August
A50: 2018-02-18 | B50: 58 | C50: 31 | D50: =AVERAGE(KCITempAct[[#This Row],[KCIHigh]:[KCILow]] ) -> 44.5 | E50: =IF(KCITempAct[[#This Row],[KCIAve]]<65,(65-KCITempAct[[#This Row],[KCIAve]]),0) -> 20.5 | F50: =IF(MONTH(KCITempAct[[#This Row],[Date]])=7,0,IF(MONTH(KCITempAct[[#This Row],[Date]])=8,0,KCITempAct[[#This Row],[KCIHDD]])) -> 20.5 | G50: =SUMPRODUCT((KCINHDD[Month]=MONTH(KCITempAct[[#This Row],[Date]]))*(KCINHDD[Day]=DAY(KCITempAct[[#This Row],[Date]]))*KCINHDD[KCINHDD]) -> 28.05 | H50: =IF(MONTH(KCITempAct[[#This Row],[Date]])=7,0,IF(MONTH(KCITempAct[[#This Row],[Date]])=8,0,KCITempAct[[#This Row],[KCINHDD]])) -> 28.05 | I50: Adj HDD and NDD =0 for July and August
A51: 2018-02-19 | B51: 66 | C51: 29 | D51: =AVERAGE(KCITempAct[[#This Row],[KCIHigh]:[KCILow]] ) -> 47.5 | E51: =IF(KCITempAct[[#This Row],[KCIAve]]<65,(65-KCITempAct[[#This Row],[KCIAve]]),0) -> 17.5 | F51: =IF(MONTH(KCITempAct[[#This Row],[Date]])=7,0,IF(MONTH(KCITempAct[[#This Row],[Date]])=8,0,KCITempAct[[#This Row],[KCIHDD]])) -> 17.5 | G51: =SUMPRODUCT((KCINHDD[Month]=MONTH(KCITempAct[[#This Row],[Date]]))*(KCINHDD[Day]=DAY(KCITempAct[[#This Row],[Date]]))*KCINHDD[KCINHDD]) -> 27.25 | H51: =IF(MONTH(KCITempAct[[#This Row],[Date]])=7,0,IF(MONTH(KCITempAct[[#This Row],[Date]])=8,0,KCITempAct[[#This Row],[KCINHDD]])) -> 27.25 | I51: Adj HDD and NDD =0 for July and August
A52: 2018-02-20 | B52: 30 | C52: 19 | D52: =AVERAGE(KCITempAct[[#This Row],[KCIHigh]:[KCILow]] ) -> 24.5 | E52: =IF(KCITempAct[[#This Row],[KCIAve]]<65,(65-KCITempAct[[#This Row],[KCIAve]]),0) -> 40.5 | F52: =IF(MONTH(KCITempAct[[#This Row],[Date]])=7,0,IF(MONTH(KCITempAct[[#This Row],[Date]])=8,0,KCITempAct[[#This Row],[KCIHDD]])) -> 40.5 | G52: =SUMPRODUCT((KCINHDD[Month]=MONTH(KCITempAct[[#This Row],[Date]]))*(KCINHDD[Day]=DAY(KCITempAct[[#This Row],[Date]]))*KCINHDD[KCINHDD]) -> 26.1 | H52: =IF(MONTH(KCITempAct[[#This Row],[Date]])=7,0,IF(MONTH(KCITempAct[[#This Row],[Date]])=8,0,KCITempAct[[#This Row],[KCINHDD]])) -> 26.1 | I52: Adj HDD and NDD =0 for July and August
A53: 2018-02-21 | B53: 27 | C53: 14 | D53: =AVERAGE(KCITempAct[[#This Row],[KCIHigh]:[KCILow]] ) -> 20.5 | E53: =IF(KCITempAct[[#This Row],[KCIAve]]<65,(65-KCITempAct[[#This Row],[KCIAve]]),0) -> 44.5 | F53: =IF(MONTH(KCITempAct[[#This Row],[Date]])=7,0,IF(MONTH(KCITempAct[[#This Row],[Date]])=8,0,KCITempAct[[#This Row],[KCIHDD]])) -> 44.5 | G53: =SUMPRODUCT((KCINHDD[Month]=MONTH(KCITempAct[[#This Row],[Date]]))*(KCINHDD[Day]=DAY(KCITempAct[[#This Row],[Date]]))*KCINHDD[KCINHDD]) -> 29.15 | H53: =IF(MONTH(KCITempAct[[#This Row],[Date]])=7,0,IF(MONTH(KCITempAct[[#This Row],[Date]])=8,0,KCITempAct[[#This Row],[KCINHDD]])) -> 29.15 | I53: Adj HDD and NDD =0 for July and August
A54: 2018-02-22 | B54: 33 | C54: 25 | D54: =AVERAGE(KCITempAct[[#This Row],[KCIHigh]:[KCILow]] ) -> 29 | E54: =IF(KCITempAct[[#This Row],[KCIAve]]<65,(65-KCITempAct[[#This Row],[KCIAve]]),0) -> 36 | F54: =IF(MONTH(KCITempAct[[#This Row],[Date]])=7,0,IF(MONTH(KCITempAct[[#This Row],[Date]])=8,0,KCITempAct[[#This Row],[KCIHDD]])) -> 36 | G54: =SUMPRODUCT((KCINHDD[Month]=MONTH(KCITempAct[[#This Row],[Date]]))*(KCINHDD[Day]=DAY(KCITempAct[[#This Row],[Date]]))*KCINHDD[KCINHDD]) -> 27.78333333 | H54: =IF(MONTH(KCITempAct[[#This Row],[Date]])=7,0,IF(MONTH(KCITempAct[[#This Row],[Date]])=8,0,KCITempAct[[#This Row],[KCINHDD]])) -> 27.78333333 | I54: Adj HDD and NDD =0 for July and August
A55: 2018-02-23 | B55: 34 | C55: 32 | D55: =AVERAGE(KCITempAct[[#This Row],[KCIHigh]:[KCILow]] ) -> 33 | E55: =IF(KCITempAct[[#This Row],[KCIAve]]<65,(65-KCITempAct[[#This Row],[KCIAve]]),0) -> 32 | F55: =IF(MONTH(KCITempAct[[#This Row],[Date]])=7,0,IF(MONTH(KCITempAct[[#This Row],[Date]])=8,0,KCITempAct[[#This Row],[KCIHDD]])) -> 32 | G55: =SUMPRODUCT((KCINHDD[Month]=MONTH(KCITempAct[[#This Row],[Date]]))*(KCINHDD[Day]=DAY(KCITempAct[[#This Row],[Date]]))*KCINHDD[KCINHDD]) -> 27.9 | H55: =IF(MONTH(KCITempAct[[#This Row],[Date]])=7,0,IF(MONTH(KCITempAct[[#This Row],[Date]])=8,0,KCITempAct[[#This Row],[KCINHDD]])) -> 27.9 | I55: Adj HDD and NDD =0 for July and August
A56: 2018-02-24 | B56: 40 | C56: 31 | D56: =AVERAGE(KCITempAct[[#This Row],[KCIHigh]:[KCILow]] ) -> 35.5 | E56: =IF(KCITempAct[[#This Row],[KCIAve]]<65,(65-KCITempAct[[#This Row],[KCIAve]]),0) -> 29.5 | F56: =IF(MONTH(KCITempAct[[#This Row],[Date]])=7,0,IF(MONTH(KCITempAct[[#This Row],[Date]])=8,0,KCITempAct[[#This Row],[KCIHDD]])) -> 29.5 | G56: =SUMPRODUCT((KCINHDD[Month]=MONTH(KCITempAct[[#This Row],[Date]]))*(KCINHDD[Day]=DAY(KCITempAct[[#This Row],[Date]]))*KCINHDD[KCINHDD]) -> 29.4 | H56: =IF(MONTH(KCITempAct[[#This Row],[Date]])=7,0,IF(MONTH(KCITempAct[[#This Row],[Date]])=8,0,KCITempAct[[#This Row],[KCINHDD]])) -> 29.4 | I56: Adj HDD and NDD =0 for July and August
A57: 2018-02-25 | B57: 51 | C57: 23 | D57: =AVERAGE(KCITempAct[[#This Row],[KCIHigh]:[KCILow]] ) -> 37 | E57: =IF(KCITempAct[[#This Row],[KCIAve]]<65,(65-KCITempAct[[#This Row],[KCIAve]]),0) -> 28 | F57: =IF(MONTH(KCITempAct[[#This Row],[Date]])=7,0,IF(MONTH(KCITempAct[[#This Row],[Date]])=8,0,KCITempAct[[#This Row],[KCIHDD]])) -> 28 | G57: =SUMPRODUCT((KCINHDD[Month]=MONTH(KCITempAct[[#This Row],[Date]]))*(KCINHDD[Day]=DAY(KCITempAct[[#This Row],[Date]]))*KCINHDD[KCINHDD]) -> 29.68333333 | H57: =IF(MONTH(KCITempAct[[#This Row],[Date]])=7,0,IF(MONTH(KCITempAct[[#This Row],[Date]])=8,0,KCITempAct[[#This Row],[KCINHDD]])) -> 29.68333333 | I57: Adj HDD and NDD =0 for July and August
A58: 2018-02-26 | B58: 62 | C58: 28 | D58: =AVERAGE(KCITempAct[[#This Row],[KCIHigh]:[KCILow]] ) -> 45 | E58: =IF(KCITempAct[[#This Row],[KCIAve]]<65,(65-KCITempAct[[#This Row],[KCIAve]]),0) -> 20 | F58: =IF(MONTH(KCITempAct[[#This Row],[Date]])=7,0,IF(MONTH(KCITempAct[[#This Row],[Date]])=8,0,KCITempAct[[#This Row],[KCIHDD]])) -> 20 | G58: =SUMPRODUCT((KCINHDD[Month]=MONTH(KCITempAct[[#This Row],[Date]]))*(KCINHDD[Day]=DAY(KCITempAct[[#This Row],[Date]]))*KCINHDD[KCINHDD]) -> 30.3 | H58: =IF(MONTH(KCITempAct[[#This Row],[Date]])=7,0,IF(MONTH(KCITempAct[[#This Row],[Date]])=8,0,KCITempAct[[#This Row],[KCINHDD]])) -> 30.3 | I58: Adj HDD and NDD =0 for July and August
A59: 2018-02-27 | B59: 71 | C59: 39 | D59: =AVERAGE(KCITempAct[[#This Row],[KCIHigh]:[KCILow]] ) -> 55 | E59: =IF(KCITempAct[[#This Row],[KCIAve]]<65,(65-KCITempAct[[#This Row],[KCIAve]]),0) -> 10 | F59: =IF(MONTH(KCITempAct[[#This Row],[Date]])=7,0,IF(MONTH(KCITempAct[[#This Row],[Date]])=8,0,KCITempAct[[#This Row],[KCIHDD]])) -> 10 | G59: =SUMPRODUCT((KCINHDD[Month]=MONTH(KCITempAct[[#This Row],[Date]]))*(KCINHDD[Day]=DAY(KCITempAct[[#This Row],[Date]]))*KCINHDD[KCINHDD]) -> 30.65 | H59: =IF(MONTH(KCITempAct[[#This Row],[Date]])=7,0,IF(MONTH(KCITempAct[[#This Row],[Date]])=8,0,KCITempAct[[#This Row],[KCINHDD]])) -> 30.65 | I59: Adj HDD and NDD =0 for July and August
A60: 2018-02-28 | B60: 59 | C60: 44 | D60: =AVERAGE(KCITempAct[[#This Row],[KCIHigh]:[KCILow]] ) -> 51.5 | E60: =IF(KCITempAct[[#This Row],[KCIAve]]<65,(65-KCITempAct[[#This Row],[KCIAve]]),0) -> 13.5 | F60: =IF(MONTH(KCITempAct[[#This Row],[Date]])=7,0,IF(MONTH(KCITempAct[[#This Row],[Date]])=8,0,KCITempAct[[#This Row],[KCIHDD]])) -> 13.5 | G60: =SUMPRODUCT((KCINHDD[Month]=MONTH(KCITempAct[[#This Row],[Date]]))*(KCINHDD[Day]=DAY(KCITempAct[[#This Row],[Date]]))*KCINHDD[KCINHDD]) -> 27.9 | H60: =IF(MONTH(KCITempAct[[#This Row],[Date]])=7,0,IF(MONTH(KCITempAct[[#This Row],[Date]])=8,0,KCITempAct[[#This Row],[KCINHDD]])) -> 27.9 | I60: Adj HDD and NDD =0 for July and August
A61: 2018-03-01 | B61: 54 | C61: 31 | D61: =AVERAGE(KCITempAct[[#This Row],[KCIHigh]:[KCILow]] ) -> 42.5 | E61: =IF(KCITempAct[[#This Row],[KCIAve]]<65,(65-KCITempAct[[#This Row],[KCIAve]]),0) -> 22.5 | F61: =IF(MONTH(KCITempAct[[#This Row],[Date]])=7,0,IF(MONTH(KCITempAct[[#This Row],[Date]])=8,0,KCITempAct[[#This Row],[KCIHDD]])) -> 22.5 | G61: =SUMPRODUCT((KCINHDD[Month]=MONTH(KCITempAct[[#This Row],[Date]]))*(KCINHDD[Day]=DAY(KCITempAct[[#This Row],[Date]]))*KCINHDD[KCINHDD]) -> 27.53333333 | H61: =IF(MONTH(KCITempAct[[#This Row],[Date]])=7,0,IF(MONTH(KCITempAct[[#This Row],[Date]])=8,0,KCITempAct[[#This Row],[KCINHDD]])) -> 27.53333333 | I61: Adj HDD and NDD =0 for July and August
A62: 2018-03-02 | B62: 58 | C62: 30 | D62: =AVERAGE(KCITempAct[[#This Row],[KCIHigh]:[KCILow]] ) -> 44 | E62: =IF(KCITempAct[[#This Row],[KCIAve]]<65,(65-KCITempAct[[#This Row],[KCIAve]]),0) -> 21 | F62: =IF(MONTH(KCITempAct[[#This Row],[Date]])=7,0,IF(MONTH(KCITempAct[[#This Row],[Date]])=8,0,KCITempAct[[#This Row],[KCIHDD]])) -> 21 | G62: =SUMPRODUCT((KCINHDD[Month]=MONTH(KCITempAct[[#This Row],[Date]]))*(KCINHDD[Day]=DAY(KCITempAct[[#This Row],[Date]]))*KCINHDD[KCINHDD]) -> 30.35 | H62: =IF(MONTH(KCITempAct[[#This Row],[Date]])=7,0,IF(MONTH(KCITempAct[[#This Row],[Date]])=8,0,KCITempAct[[#This Row],[KCINHDD]])) -> 30.35 | I62: Adj HDD and NDD =0 for July and August
A63: 2018-03-03 | B63: 67 | C63: 38 | D63: =AVERAGE(KCITempAct[[#This Row],[KCIHigh]:[KCILow]] ) -> 52.5 | E63: =IF(KCITempAct[[#This Row],[KCIAve]]<65,(65-KCITempAct[[#This Row],[KCIAve]]),0) -> 12.5 | F63: =IF(MONTH(KCITempAct[[#This Row],[Date]])=7,0,IF(MONTH(KCITempAct[[#This Row],[Date]])=8,0,KCITempAct[[#This Row],[KCIHDD]])) -> 12.5 | G63: =SUMPRODUCT((KCINHDD[Month]=MONTH(KCITempAct[[#This Row],[Date]]))*(KCINHDD[Day]=DAY(KCITempAct[[#This Row],[Date]]))*KCINHDD[KCINHDD]) -> 28.8 | H63: =IF(MONTH(KCITempAct[[#This Row],[Date]])=7,0,IF(MONTH(KCITempAct[[#This Row],[Date]])=8,0,KCITempAct[[#This Row],[KCINHDD]])) -> 28.8 | I63: Adj HDD and NDD =0 for July and August
A64: 2018-03-04 | B64: 64 | C64: 44 | D64: =AVERAGE(KCITempAct[[#This Row],[KCIHigh]:[KCILow]] ) -> 54 | E64: =IF(KCITempAct[[#This Row],[KCIAve]]<65,(65-KCITempAct[[#This Row],[KCIAve]]),0) -> 11 | F64: =IF(MONTH(KCITempAct[[#This Row],[Date]])=7,0,IF(MONTH(KCITempAct[[#This Row],[Date]])=8,0,KCITempAct[[#This Row],[KCIHDD]])) -> 11 | G64: =SUMPRODUCT((KCINHDD[Month]=MONTH(KCITempAct[[#This Row],[Date]]))*(KCINHDD[Day]=DAY(KCITempAct[[#This Row],[Date]]))*KCINHDD[KCINHDD]) -> 25.11666667 | H64: =IF(MONTH(KCITempAct[[#This Row],[Date]])=7,0,IF(MONTH(KCITempAct[[#This Row],[Date]])=8,0,KCITempAct[[#This Row],[KCINHDD]])) -> 25.11666667 | I64: Adj HDD and NDD =0 for July and August
A65: 2018-03-05 | B65: 55 | C65: 40 | D65: =AVERAGE(KCITempAct[[#This Row],[KCIHigh]:[KCILow]] ) -> 47.5 | E65: =IF(KCITempAct[[#This Row],[KCIAve]]<65,(65-KCITempAct[[#This Row],[KCIAve]]),0) -> 17.5 | F65: =IF(MONTH(KCITempAct[[#This Row],[Date]])=7,0,IF(MONTH(KCITempAct[[#This Row],[Date]])=8,0,KCITempAct[[#This Row],[KCIHDD]])) -> 17.5 | G65: =SUMPRODUCT((KCINHDD[Month]=MONTH(KCITempAct[[#This Row],[Date]]))*(KCINHDD[Day]=DAY(KCITempAct[[#This Row],[Date]]))*KCINHDD[KCINHDD]) -> 23.93333333 | H65: =IF(MONTH(KCITempAct[[#This Row],[Date]])=7,0,IF(MONTH(KCITempAct[[#This Row],[Date]])=8,0,KCITempAct[[#This Row],[KCINHDD]])) -> 23.93333333 | I65: Adj HDD and NDD =0 for July and August
A66: 2018-03-06 | B66: 43 | C66: 31 | D66: =AVERAGE(KCITempAct[[#This Row],[KCIHigh]:[KCILow]] ) -> 37 | E66: =IF(KCITempAct[[#This Row],[KCIAve]]<65,(65-KCITempAct[[#This Row],[KCIAve]]),0) -> 28 | F66: =IF(MONTH(KCITempAct[[#This Row],[Date]])=7,0,IF(MONTH(KCITempAct[[#This Row],[Date]])=8,0,KCITempAct[[#This Row],[KCIHDD]])) -> 28 | G66: =SUMPRODUCT((KCINHDD[Month]=MONTH(KCITempAct[[#This Row],[Date]]))*(KCINHDD[Day]=DAY(KCITempAct[[#This Row],[Date]]))*KCINHDD[KCINHDD]) -> 22.66666667 | H66: =IF(MONTH(KCITempAct[[#This Row],[Date]])=7,0,IF(MONTH(KCITempAct[[#This Row],[Date]])=8,0,KCITempAct[[#This Row],[KCINHDD]])) -> 22.66666667 | I66: Adj HDD and NDD =0 for July and August
A67: 2018-03-07 | B67: 40 | C67: 22 | D67: =AVERAGE(KCITempAct[[#This Row],[KCIHigh]:[KCILow]] ) -> 31 | E67: =IF(KCITempAct[[#This Row],[KCIAve]]<65,(65-KCITempAct[[#This Row],[KCIAve]]),0) -> 34 | F67: =IF(MONTH(KCITempAct[[#This Row],[Date]])=7,0,IF(MONTH(KCITempAct[[#This Row],[Date]])=8,0,KCITempAct[[#This Row],[KCIHDD]])) -> 34 | G67: =SUMPRODUCT((KCINHDD[Month]=MONTH(KCITempAct[[#This Row],[Date]]))*(KCINHDD[Day]=DAY(KCITempAct[[#This Row],[Date]]))*KCINHDD[KCINHDD]) -> 22.05 | H67: =IF(MONTH(KCITempAct[[#This Row],[Date]])=7,0,IF(MONTH(KCITempAct[[#This Row],[Date]])=8,0,KCITempAct[[#This Row],[KCINHDD]])) -> 22.05 | I67: Adj HDD and NDD =0 for July and August
A68: 2018-03-08 | B68: 46 | C68: 19 | D68: =AVERAGE(KCITempAct[[#This Row],[KCIHigh]:[KCILow]] ) -> 32.5 | E68: =IF(KCITempAct[[#This Row],[KCIAve]]<65,(65-KCITempAct[[#This Row],[KCIAve]]),0) -> 32.5 | F68: =IF(MONTH(KCITempAct[[#This Row],[Date]])=7,0,IF(MONTH(KCITempAct[[#This Row],[Date]])=8,0,KCITempAct[[#This Row],[KCIHDD]])) -> 32.5 | G68: =SUMPRODUCT((KCINHDD[Month]=MONTH(KCITempAct[[#This Row],[Date]]))*(KCINHDD[Day]=DAY(KCITempAct[[#This Row],[Date]]))*KCINHDD[KCINHDD]) -> 22.65 | H68: =IF(MONTH(KCITempAct[[#This Row],[Date]])=7,0,IF(MONTH(KCITempAct[[#This Row],[Date]])=8,0,KCITempAct[[#This Row],[KCINHDD]])) -> 22.65 | I68: Adj HDD and NDD =0 for July and August
A69: 2018-03-09 | B69: 58 | C69: 31 | D69: =AVERAGE(KCITempAct[[#This Row],[KCIHigh]:[KCILow]] ) -> 44.5 | E69: =IF(KCITempAct[[#This Row],[KCIAve]]<65,(65-KCITempAct[[#This Row],[KCIAve]]),0) -> 20.5 | F69: =IF(MONTH(KCITempAct[[#This Row],[Date]])=7,0,IF(MONTH(KCITempAct[[#This Row],[Date]])=8,0,KCITempAct[[#This Row],[KCIHDD]])) -> 20.5 | G69: =SUMPRODUCT((KCINHDD[Month]=MONTH(KCITempAct[[#This Row],[Date]]))*(KCINHDD[Day]=DAY(KCITempAct[[#This Row],[Date]]))*KCINHDD[KCINHDD]) -> 24.18333333 | H69: =IF(MONTH(KCITempAct[[#This Row],[Date]])=7,0,IF(MONTH(KCITempAct[[#This Row],[Date]])=8,0,KCITempAct[[#This Row],[KCINHDD]])) -> 24.18333333 | I69: Adj HDD and NDD =0 for July and August
A70: 2018-03-10 | B70: 57 | C70: 28 | D70: =AVERAGE(KCITempAct[[#This Row],[KCIHigh]:[KCILow]] ) -> 42.5 | E70: =IF(KCITempAct[[#This Row],[KCIAve]]<65,(65-KCITempAct[[#This Row],[KCIAve]]),0) -> 22.5 | F70: =IF(MONTH(KCITempAct[[#This Row],[Date]])=7,0,IF(MONTH(KCITempAct[[#This Row],[Date]])=8,0,KCITempAct[[#This Row],[KCIHDD]])) -> 22.5 | G70: =SUMPRODUCT((KCINHDD[Month]=MONTH(KCITempAct[[#This Row],[Date]]))*(KCINHDD[Day]=DAY(KCITempAct[[#This Row],[Date]]))*KCINHDD[KCINHDD]) -> 23.58333333 | H70: =IF(MONTH(KCITempAct[[#This Row],[Date]])=7,0,IF(MONTH(KCITempAct[[#This Row],[Date]])=8,0,KCITempAct[[#This Row],[KCINHDD]])) -> 23.58333333 | I70: Adj HDD and NDD =0 for July and August
A71: 2018-03-11 | B71: 44 | C71: 33 | D71: =AVERAGE(KCITempAct[[#This Row],[KCIHigh]:[KCILow]] ) -> 38.5 | E71: =IF(KCITempAct[[#This Row],[KCIAve]]<65,(65-KCITempAct[[#This Row],[KCIAve]]),0) -> 26.5 | F71: =IF(MONTH(KCITempAct[[#This Row],[Date]])=7,0,IF(MONTH(KCITempAct[[#This Row],[Date]])=8,0,KCITempAct[[#This Row],[KCIHDD]])) -> 26.5 | G71: =SUMPRODUCT((KCINHDD[Month]=MONTH(KCITempAct[[#This Row],[Date]]))*(KCINHDD[Day]=DAY(KCITempAct[[#This Row],[Date]]))*KCINHDD[KCINHDD]) -> 22.61666667 | H71: =IF(MONTH(KCITempAct[[#This Row],[Date]])=7,0,IF(MONTH(KCITempAct[[#This Row],[Date]])=8,0,KCITempAct[[#This Row],[KCINHDD]])) -> 22.61666667 | I71: Adj HDD and NDD =0 for July and August
A72: 2018-03-12 | B72: 53 | C72: 31 | D72: =AVERAGE(KCITempAct[[#This Row],[KCIHigh]:[KCILow]] ) -> 42 | E72: =IF(KCITempAct[[#This Row],[KCIAve]]<65,(65-KCITempAct[[#This Row],[KCIAve]]),0) -> 23 | F72: =IF(MONTH(KCITempAct[[#This Row],[Date]])=7,0,IF(MONTH(KCITempAct[[#This Row],[Date]])=8,0,KCITempAct[[#This Row],[KCIHDD]])) -> 23 | G72: =SUMPRODUCT((KCINHDD[Month]=MONTH(KCITempAct[[#This Row],[Date]]))*(KCINHDD[Day]=DAY(KCITempAct[[#This Row],[Date]]))*KCINHDD[KCINHDD]) -> 20.35 | H72: =IF(MONTH(KCITempAct[[#This Row],[Date]])=7,0,IF(MONTH(KCITempAct[[#This Row],[Date]])=8,0,KCITempAct[[#This Row],[KCINHDD]])) -> 20.35 | I72: Adj HDD and NDD =0 for July and August
A73: 2018-03-13 | B73: 51 | C73: 24 | D73: =AVERAGE(KCITempAct[[#This Row],[KCIHigh]:[KCILow]] ) -> 37.5 | E73: =IF(KCITempAct[[#This Row],[KCIAve]]<65,(65-KCITempAct[[#This Row],[KCIAve]]),0) -> 27.5 | F73: =IF(MONTH(KCITempAct[[#This Row],[Date]])=7,0,IF(MONTH(KCITempAct[[#This Row],[Date]])=8,0,KCITempAct[[#This Row],[KCIHDD]])) -> 27.5 | G73: =SUMPRODUCT((KCINHDD[Month]=MONTH(KCITempAct[[#This Row],[Date]]))*(KCINHDD[Day]=DAY(KCITempAct[[#This Row],[Date]]))*KCINHDD[KCINHDD]) -> 19.5 | H73: =IF(MONTH(KCITempAct[[#This Row],[Date]])=7,0,IF(MONTH(KCITempAct[[#This Row],[Date]])=8,0,KCITempAct[[#This Row],[KCINHDD]])) -> 19.5 | I73: Adj HDD and NDD =0 for July and August
A74: 2018-03-14 | B74: 65 | C74: 20 | D74: =AVERAGE(KCITempAct[[#This Row],[KCIHigh]:[KCILow]] ) -> 42.5 | E74: =IF(KCITempAct[[#This Row],[KCIAve]]<65,(65-KCITempAct[[#This Row],[KCIAve]]),0) -> 22.5 | F74: =IF(MONTH(KCITempAct[[#This Row],[Date]])=7,0,IF(MONTH(KCITempAct[[#This Row],[Date]])=8,0,KCITempAct[[#This Row],[KCIHDD]])) -> 22.5 | G74: =SUMPRODUCT((KCINHDD[Month]=MONTH(KCITempAct[[#This Row],[Date]]))*(KCINHDD[Day]=DAY(KCITempAct[[#This Row],[Date]]))*KCINHDD[KCINHDD]) -> 18.45 | H74: =IF(MONTH(KCITempAct[[#This Row],[Date]])=7,0,IF(MONTH(KCITempAct[[#This Row],[Date]])=8,0,KCITempAct[[#This Row],[KCINHDD]])) -> 18.45 | I74: Adj HDD and NDD =0 for July and August
A75: 2018-03-15 | B75: 76 | C75: 40 | D75: =AVERAGE(KCITempAct[[#This Row],[KCIHigh]:[KCILow]] ) -> 58 | E75: =IF(KCITempAct[[#This Row],[KCIAve]]<65,(65-KCITempAct[[#This Row],[KCIAve]]),0) -> 7 | F75: =IF(MONTH(KCITempAct[[#This Row],[Date]])=7,0,IF(MONTH(KCITempAct[[#This Row],[Date]])=8,0,KCITempAct[[#This Row],[KCIHDD]])) -> 7 | G75: =SUMPRODUCT((KCINHDD[Month]=MONTH(KCITempAct[[#This Row],[Date]]))*(KCINHDD[Day]=DAY(KCITempAct[[#This Row],[Date]]))*KCINHDD[KCINHDD]) -> 19.15 | H75: =IF(MONTH(KCITempAct[[#This Row],[Date]])=7,0,IF(MONTH(KCITempAct[[#This Row],[Date]])=8,0,KCITempAct[[#This Row],[KCINHDD]])) -> 19.15 | I75: Adj HDD and NDD =0 for July and August
A76: 2018-03-16 | B76: 54 | C76: 41 | D76: =AVERAGE(KCITempAct[[#This Row],[KCIHigh]:[KCILow]] ) -> 47.5 | E76: =IF(KCITempAct[[#This Row],[KCIAve]]<65,(65-KCITempAct[[#This Row],[KCIAve]]),0) -> 17.5 | F76: =IF(MONTH(KCITempAct[[#This Row],[Date]])=7,0,IF(MONTH(KCITempAct[[#This Row],[Date]])=8,0,KCITempAct[[#This Row],[KCIHDD]])) -> 17.5 | G76: =SUMPRODUCT((KCINHDD[Month]=MONTH(KCITempAct[[#This Row],[Date]]))*(KCINHDD[Day]=DAY(KCITempAct[[#This Row],[Date]]))*KCINHDD[KCINHDD]) -> 19.31666667 | H76: =IF(MONTH(KCITempAct[[#This Row],[Date]])=7,0,IF(MONTH(KCITempAct[[#This Row],[Date]])=8,0,KCITempAct[[#This Row],[KCINHDD]])) -> 19.31666667 | I76: Adj HDD and NDD =0 for July and August
A77: 2018-03-17 | B77: 44 | C77: 36 | D77: =AVERAGE(KCITempAct[[#This Row],[KCIHigh]:[KCILow]] ) -> 40 | E77: =IF(KCITempAct[[#This Row],[KCIAve]]<65,(65-KCITempAct[[#This Row],[KCIAve]]),0) -> 25 | F77: =IF(MONTH(KCITempAct[[#This Row],[Date]])=7,0,IF(MONTH(KCITempAct[[#This Row],[Date]])=8,0,KCITempAct[[#This Row],[KCIHDD]])) -> 25 | G77: =SUMPRODUCT((KCINHDD[Month]=MONTH(KCITempAct[[#This Row],[Date]]))*(KCINHDD[Day]=DAY(KCITempAct[[#This Row],[Date]]))*KCINHDD[KCINHDD]) -> 17.98333333 | H77: =IF(MONTH(KCITempAct[[#This Row],[Date]])=7,0,IF(MONTH(KCITempAct[[#This Row],[Date]])=8,0,KCITempAct[[#This Row],[KCINHDD]])) -> 17.98333333 | I77: Adj HDD and NDD =0 for July and August
A78: 2018-03-18 | B78: 49 | C78: 38 | D78: =AVERAGE(KCITempAct[[#This Row],[KCIHigh]:[KCILow]] ) -> 43.5 | E78: =IF(KCITempAct[[#This Row],[KCIAve]]<65,(65-KCITempAct[[#This Row],[KCIAve]]),0) -> 21.5 | F78: =IF(MONTH(KCITempAct[[#This Row],[Date]])=7,0,IF(MONTH(KCITempAct[[#This Row],[Date]])=8,0,KCITempAct[[#This Row],[KCIHDD]])) -> 21.5 | G78: =SUMPRODUCT((KCINHDD[Month]=MONTH(KCITempAct[[#This Row],[Date]]))*(KCINHDD[Day]=DAY(KCITempAct[[#This Row],[Date]]))*KCINHDD[KCINHDD]) -> 18.88333333 | H78: =IF(MONTH(KCITempAct[[#This Row],[Date]])=7,0,IF(MONTH(KCITempAct[[#This Row],[Date]])=8,0,KCITempAct[[#This Row],[KCINHDD]])) -> 18.88333333 | I78: Adj HDD and NDD =0 for July and August
A79: 2018-03-19 | B79: 49 | C79: 39 | D79: =AVERAGE(KCITempAct[[#This Row],[KCIHigh]:[KCILow]] ) -> 44 | E79: =IF(KCITempAct[[#This Row],[KCIAve]]<65,(65-KCITempAct[[#This Row],[KCIAve]]),0) -> 21 | F79: =IF(MONTH(KCITempAct[[#This Row],[Date]])=7,0,IF(MONTH(KCITempAct[[#This Row],[Date]])=8,0,KCITempAct[[#This Row],[KCIHDD]])) -> 21 | G79: =SUMPRODUCT((KCINHDD[Month]=MONTH(KCITempAct[[#This Row],[Date]]))*(KCINHDD[Day]=DAY(KCITempAct[[#This Row],[Date]]))*KCINHDD[KCINHDD]) -> 19.16666667 | H79: =IF(MONTH(KCITempAct[[#This Row],[Date]])=7,0,IF(MONTH(KCITempAct[[#This Row],[Date]])=8,0,KCITempAct[[#This Row],[KCINHDD]])) -> 19.16666667 | I79: Adj HDD and NDD =0 for July and August
A80: 2018-03-20 | B80: 50 | C80: 36 | D80: =AVERAGE(KCITempAct[[#This Row],[KCIHigh]:[KCILow]] ) -> 43 | E80: =IF(KCITempAct[[#This Row],[KCIAve]]<65,(65-KCITempAct[[#This Row],[KCIAve]]),0) -> 22 | F80: =IF(MONTH(KCITempAct[[#This Row],[Date]])=7,0,IF(MONTH(KCITempAct[[#This Row],[Date]])=8,0,KCITempAct[[#This Row],[KCIHDD]])) -> 22 | G80: =SUMPRODUCT((KCINHDD[Month]=MONTH(KCITempAct[[#This Row],[Date]]))*(KCINHDD[Day]=DAY(KCITempAct[[#This Row],[Date]]))*KCINHDD[KCINHDD]) -> 18.8 | H80: =IF(MONTH(KCITempAct[[#This Row],[Date]])=7,0,IF(MONTH(KCITempAct[[#This Row],[Date]])=8,0,KCITempAct[[#This Row],[KCINHDD]])) -> 18.8 | I80: Adj HDD and NDD =0 for July and August
A81: 2018-03-21 | B81: 54 | C81: 30 | D81: =AVERAGE(KCITempAct[[#This Row],[KCIHigh]:[KCILow]] ) -> 42 | E81: =IF(KCITempAct[[#This Row],[KCIAve]]<65,(65-KCITempAct[[#This Row],[KCIAve]]),0) -> 23 | F81: =IF(MONTH(KCITempAct[[#This Row],[Date]])=7,0,IF(MONTH(KCITempAct[[#This Row],[Date]])=8,0,KCITempAct[[#This Row],[KCIHDD]])) -> 23 | G81: =SUMPRODUCT((KCINHDD[Month]=MONTH(KCITempAct[[#This Row],[Date]]))*(KCINHDD[Day]=DAY(KCITempAct[[#This Row],[Date]]))*KCINHDD[KCINHDD]) -> 18.65 | H81: =IF(MONTH(KCITempAct[[#This Row],[Date]])=7,0,IF(MONTH(KCITempAct[[#This Row],[Date]])=8,0,KCITempAct[[#This Row],[KCINHDD]])) -> 18.65 | I81: Adj HDD and NDD =0 for July and August
A82: 2018-03-22 | B82: 67 | C82: 37 | D82: =AVERAGE(KCITempAct[[#This Row],[KCIHigh]:[KCILow]] ) -> 52 | E82: =IF(KCITempAct[[#This Row],[KCIAve]]<65,(65-KCITempAct[[#This Row],[KCIAve]]),0) -> 13 | F82: =IF(MONTH(KCITempAct[[#This Row],[Date]])=7,0,IF(MONTH(KCITempAct[[#This Row],[Date]])=8,0,KCITempAct[[#This Row],[KCIHDD]])) -> 13 | G82: =SUMPRODUCT((KCINHDD[Month]=MONTH(KCITempAct[[#This Row],[Date]]))*(KCINHDD[Day]=DAY(KCITempAct[[#This Row],[Date]]))*KCINHDD[KCINHDD]) -> 17.61666667 | H82: =IF(MONTH(KCITempAct[[#This Row],[Date]])=7,0,IF(MONTH(KCITempAct[[#This Row],[Date]])=8,0,KCITempAct[[#This Row],[KCINHDD]])) -> 17.61666667 | I82: Adj HDD and NDD =0 for July and August
A83: 2018-03-23 | B83: 58 | C83: 43 | D83: =AVERAGE(KCITempAct[[#This Row],[KCIHigh]:[KCILow]] ) -> 50.5 | E83: =IF(KCITempAct[[#This Row],[KCIAve]]<65,(65-KCITempAct[[#This Row],[KCIAve]]),0) -> 14.5 | F83: =IF(MONTH(KCITempAct[[#This Row],[Date]])=7,0,IF(MONTH(KCITempAct[[#This Row],[Date]])=8,0,KCITempAct[[#This Row],[KCIHDD]])) -> 14.5 | G83: =SUMPRODUCT((KCINHDD[Month]=MONTH(KCITempAct[[#This Row],[Date]]))*(KCINHDD[Day]=DAY(KCITempAct[[#This Row],[Date]]))*KCINHDD[KCINHDD]) -> 15.4 | H83: =IF(MONTH(KCITempAct[[#This Row],[Date]])=7,0,IF(MONTH(KCITempAct[[#This Row],[Date]])=8,0,KCITempAct[[#This Row],[KCINHDD]])) -> 15.4 | I83: Adj HDD and NDD =0 for July and August
A84: 2018-03-24 | B84: 49 | C84: 35 | D84: =AVERAGE(KCITempAct[[#This Row],[KCIHigh]:[KCILow]] ) -> 42 | E84: =IF(KCITempAct[[#This Row],[KCIAve]]<65,(65-KCITempAct[[#This Row],[KCIAve]]),0) -> 23 | F84: =IF(MONTH(KCITempAct[[#This Row],[Date]])=7,0,IF(MONTH(KCITempAct[[#This Row],[Date]])=8,0,KCITempAct[[#This Row],[KCIHDD]])) -> 23 | G84: =SUMPRODUCT((KCINHDD[Month]=MONTH(KCITempAct[[#This Row],[Date]]))*(KCINHDD[Day]=DAY(KCITempAct[[#This Row],[Date]]))*KCINHDD[KCINHDD]) -> 18.21666667 | H84: =IF(MONTH(KCITempAct[[#This Row],[Date]])=7,0,IF(MONTH(KCITempAct[[#This Row],[Date]])=8,0,KCITempAct[[#This Row],[KCINHDD]])) -> 18.21666667 | I84: Adj HDD and NDD =0 for July and August
A85: 2018-03-25 | B85: 44 | C85: 33 | D85: =AVERAGE(KCITempAct[[#This Row],[KCIHigh]:[KCILow]] ) -> 38.5 | E85: =IF(KCITempAct[[#This Row],[KCIAve]]<65,(65-KCITempAct[[#This Row],[KCIAve]]),0) -> 26.5 | F85: =IF(MONTH(KCITempAct[[#This Row],[Date]])=7,0,IF(MONTH(KCITempAct[[#This Row],[Date]])=8,0,KCITempAct[[#This Row],[KCIHDD]])) -> 26.5 | G85: =SUMPRODUCT((KCINHDD[Month]=MONTH(KCITempAct[[#This Row],[Date]]))*(KCINHDD[Day]=DAY(KCITempAct[[#This Row],[Date]]))*KCINHDD[KCINHDD]) -> 19.91666667 | H85: =IF(MONTH(KCITempAct[[#This Row],[Date]])=7,0,IF(MONTH(KCITempAct[[#This Row],[Date]])=8,0,KCITempAct[[#This Row],[KCINHDD]])) -> 19.91666667 | I85: Adj HDD and NDD =0 for July and August
A86: 2018-03-26 | B86: 51 | C86: 41 | D86: =AVERAGE(KCITempAct[[#This Row],[KCIHigh]:[KCILow]] ) -> 46 | E86: =IF(KCITempAct[[#This Row],[KCIAve]]<65,(65-KCITempAct[[#This Row],[KCIAve]]),0) -> 19 | F86: =IF(MONTH(KCITempAct[[#This Row],[Date]])=7,0,IF(MONTH(KCITempAct[[#This Row],[Date]])=8,0,KCITempAct[[#This Row],[KCIHDD]])) -> 19 | G86: =SUMPRODUCT((KCINHDD[Month]=MONTH(KCITempAct[[#This Row],[Date]]))*(KCINHDD[Day]=DAY(KCITempAct[[#This Row],[Date]]))*KCINHDD[KCINHDD]) -> 17.86666667 | H86: =IF(MONTH(KCITempAct[[#This Row],[Date]])=7,0,IF(MONTH(KCITempAct[[#This Row],[Date]])=8,0,KCITempAct[[#This Row],[KCINHDD]])) -> 17.86666667 | I86: Adj HDD and NDD =0 for July and August
A87: 2018-03-27 | B87: 46 | C87: 39 | D87: =AVERAGE(KCITempAct[[#This Row],[KCIHigh]:[KCILow]] ) -> 42.5 | E87: =IF(KCITempAct[[#This Row],[KCIAve]]<65,(65-KCITempAct[[#This Row],[KCIAve]]),0) -> 22.5 | F87: =IF(MONTH(KCITempAct[[#This Row],[Date]])=7,0,IF(MONTH(KCITempAct[[#This Row],[Date]])=8,0,KCITempAct[[#This Row],[KCIHDD]])) -> 22.5 | G87: =SUMPRODUCT((KCINHDD[Month]=MONTH(KCITempAct[[#This Row],[Date]]))*(KCINHDD[Day]=DAY(KCITempAct[[#This Row],[Date]]))*KCINHDD[KCINHDD]) -> 17.26666667 | H87: =IF(MONTH(KCITempAct[[#This Row],[Date]])=7,0,IF(MONTH(KCITempAct[[#This Row],[Date]])=8,0,KCITempAct[[#This Row],[KCINHDD]])) -> 17.26666667 | I87: Adj HDD and NDD =0 for July and August
A88: 2018-03-28 | B88: 51 | C88: 38 | D88: =AVERAGE(KCITempAct[[#This Row],[KCIHigh]:[KCILow]] ) -> 44.5 | E88: =IF(KCITempAct[[#This Row],[KCIAve]]<65,(65-KCITempAct[[#This Row],[KCIAve]]),0) -> 20.5 | F88: =IF(MONTH(KCITempAct[[#This Row],[Date]])=7,0,IF(MONTH(KCITempAct[[#This Row],[Date]])=8,0,KCITempAct[[#This Row],[KCIHDD]])) -> 20.5 | G88: =SUMPRODUCT((KCINHDD[Month]=MONTH(KCITempAct[[#This Row],[Date]]))*(KCINHDD[Day]=DAY(KCITempAct[[#This Row],[Date]]))*KCINHDD[KCINHDD]) -> 16.71666667 | H88: =IF(MONTH(KCITempAct[[#This Row],[Date]])=7,0,IF(MONTH(KCITempAct[[#This Row],[Date]])=8,0,KCITempAct[[#This Row],[KCINHDD]])) -> 16.71666667 | I88: Adj HDD and NDD =0 for July and August
A89: 2018-03-29 | B89: 44 | C89: 35 | D89: =AVERAGE(KCITempAct[[#This Row],[KCIHigh]:[KCILow]] ) -> 39.5 | E89: =IF(KCITempAct[[#This Row],[KCIAve]]<65,(65-KCITempAct[[#This Row],[KCIAve]]),0) -> 25.5 | F89: =IF(MONTH(KCITempAct[[#This Row],[Date]])=7,0,IF(MONTH(KCITempAct[[#This Row],[Date]])=8,0,KCITempAct[[#This Row],[KCIHDD]])) -> 25.5 | G89: =SUMPRODUCT((KCINHDD[Month]=MONTH(KCITempAct[[#This Row],[Date]]))*(KCINHDD[Day]=DAY(KCITempAct[[#This Row],[Date]]))*KCINHDD[KCINHDD]) -> 14.56666667 | H89: =IF(MONTH(KCITempAct[[#This Row],[Date]])=7,0,IF(MONTH(KCITempAct[[#This Row],[Date]])=8,0,KCITempAct[[#This Row],[KCINHDD]])) -> 14.56666667 | I89: Adj HDD and NDD =0 for July and August
A90: 2018-03-30 | B90: 58 | C90: 27 | D90: =AVERAGE(KCITempAct[[#This Row],[KCIHigh]:[KCILow]] ) -> 42.5 | E90: =IF(KCITempAct[[#This Row],[KCIAve]]<65,(65-KCITempAct[[#This Row],[KCIAve]]),0) -> 22.5 | F90: =IF(MONTH(KCITempAct[[#This Row],[Date]])=7,0,IF(MONTH(KCITempAct[[#This Row],[Date]])=8,0,KCITempAct[[#This Row],[KCIHDD]])) -> 22.5 | G90: =SUMPRODUCT((KCINHDD[Month]=MONTH(KCITempAct[[#This Row],[Date]]))*(KCINHDD[Day]=DAY(KCITempAct[[#This Row],[Date]]))*KCINHDD[KCINHDD]) -> 13.9 | H90: =IF(MONTH(KCITempAct[[#This Row],[Date]])=7,0,IF(MONTH(KCITempAct[[#This Row],[Date]])=8,0,KCITempAct[[#This Row],[KCINHDD]])) -> 13.9 | I90: Adj HDD and NDD =0 for July and August
A91: 2018-03-31 | B91: 62 | C91: 32 | D91: =AVERAGE(KCITempAct[[#This Row],[KCIHigh]:[KCILow]] ) -> 47 | E91: =IF(KCITempAct[[#This Row],[KCIAve]]<65,(65-KCITempAct[[#This Row],[KCIAve]]),0) -> 18 | F91: =IF(MONTH(KCITempAct[[#This Row],[Date]])=7,0,IF(MONTH(KCITempAct[[#This Row],[Date]])=8,0,KCITempAct[[#This Row],[KCIHDD]])) -> 18 | G91: =SUMPRODUCT((KCINHDD[Month]=MONTH(KCITempAct[[#This Row],[Date]]))*(KCINHDD[Day]=DAY(KCITempAct[[#This Row],[Date]]))*KCINHDD[KCINHDD]) -> 15.36666667 | H91: =IF(MONTH(KCITempAct[[#This Row],[Date]])=7,0,IF(MONTH(KCITempAct[[#This Row],[Date]])=8,0,KCITempAct[[#This Row],[KCINHDD]])) -> 15.36666667 | I91: Adj HDD and NDD =0 for July and August
A92: 2018-04-01 | B92: 33 | C92: 22 | D92: =AVERAGE(KCITempAct[[#This Row],[KCIHigh]:[KCILow]] ) -> 27.5 | E92: =IF(KCITempAct[[#This Row],[KCIAve]]<65,(65-KCITempAct[[#This Row],[KCIAve]]),0) -> 37.5 | F92: =IF(MONTH(KCITempAct[[#This Row],[Date]])=7,0,IF(MONTH(KCITempAct[[#This Row],[Date]])=8,0,KCITempAct[[#This Row],[KCIHDD]])) -> 37.5 | G92: =SUMPRODUCT((KCINHDD[Month]=MONTH(KCITempAct[[#This Row],[Date]]))*(KCINHDD[Day]=DAY(KCITempAct[[#This Row],[Date]]))*KCINHDD[KCINHDD]) -> 16.06666667 | H92: =IF(MONTH(KCITempAct[[#This Row],[Date]])=7,0,IF(MONTH(KCITempAct[[#This Row],[Date]])=8,0,KCITempAct[[#This Row],[KCINHDD]])) -> 16.06666667 | I92: Adj HDD and NDD =0 for July and August
A93: 2018-04-02 | B93: 34 | C93: 21 | D93: =AVERAGE(KCITempAct[[#This Row],[KCIHigh]:[KCILow]] ) -> 27.5 | E93: =IF(KCITempAct[[#This Row],[KCIAve]]<65,(65-KCITempAct[[#This Row],[KCIAve]]),0) -> 37.5 | F93: =IF(MONTH(KCITempAct[[#This Row],[Date]])=7,0,IF(MONTH(KCITempAct[[#This Row],[Date]])=8,0,KCITempAct[[#This Row],[KCIHDD]])) -> 37.5 | G93: =SUMPRODUCT((KCINHDD[Month]=MONTH(KCITempAct[[#This Row],[Date]]))*(KCINHDD[Day]=DAY(KCITempAct[[#This Row],[Date]]))*KCINHDD[KCINHDD]) -> 13.63333333 | H93: =IF(MONTH(KCITempAct[[#This Row],[Date]])=7,0,IF(MONTH(KCITempAct[[#This Row],[Date]])=8,0,KCITempAct[[#This Row],[KCINHDD]])) -> 13.63333333 | I93: Adj HDD and NDD =0 for July and August
A94: 2018-04-03 | B94: 40 | C94: 24 | D94: =AVERAGE(KCITempAct[[#This Row],[KCIHigh]:[KCILow]] ) -> 32 | E94: =IF(KCITempAct[[#This Row],[KCIAve]]<65,(65-KCITempAct[[#This Row],[KCIAve]]),0) -> 33 | F94: =IF(MONTH(KCITempAct[[#This Row],[Date]])=7,0,IF(MONTH(KCITempAct[[#This Row],[Date]])=8,0,KCITempAct[[#This Row],[KCIHDD]])) -> 33 | G94: =SUMPRODUCT((KCINHDD[Month]=MONTH(KCITempAct[[#This Row],[Date]]))*(KCINHDD[Day]=DAY(KCITempAct[[#This Row],[Date]]))*KCINHDD[KCINHDD]) -> 14 | H94: =IF(MONTH(KCITempAct[[#This Row],[Date]])=7,0,IF(MONTH(KCITempAct[[#This Row],[Date]])=8,0,KCITempAct[[#This Row],[KCINHDD]])) -> 14 | I94: Adj HDD and NDD =0 for July and August
A95: 2018-04-04 | B95: 45 | C95: 17 | D95: =AVERAGE(KCITempAct[[#This Row],[KCIHigh]:[KCILow]] ) -> 31 | E95: =IF(KCITempAct[[#This Row],[KCIAve]]<65,(65-KCITempAct[[#This Row],[KCIAve]]),0) -> 34 | F95: =IF(MONTH(KCITempAct[[#This Row],[Date]])=7,0,IF(MONTH(KCITempAct[[#This Row],[Date]])=8,0,KCITempAct[[#This Row],[KCIHDD]])) -> 34 | G95: =SUMPRODUCT((KCINHDD[Month]=MONTH(KCITempAct[[#This Row],[Date]]))*(KCINHDD[Day]=DAY(KCITempAct[[#This Row],[Date]]))*KCINHDD[KCINHDD]) -> 15.95 | H95: =IF(MONTH(KCITempAct[[#This Row],[Date]])=7,0,IF(MONTH(KCITempAct[[#This Row],[Date]])=8,0,KCITempAct[[#This Row],[KCINHDD]])) -> 15.95 | I95: Adj HDD and NDD =0 for July and August
A96: 2018-04-05 | B96: 67 | C96: 34 | D96: =AVERAGE(KCITempAct[[#This Row],[KCIHigh]:[KCILow]] ) -> 50.5 | E96: =IF(KCITempAct[[#This Row],[KCIAve]]<65,(65-KCITempAct[[#This Row],[KCIAve]]),0) -> 14.5 | F96: =IF(MONTH(KCITempAct[[#This Row],[Date]])=7,0,IF(MONTH(KCITempAct[[#This Row],[Date]])=8,0,KCITempAct[[#This Row],[KCIHDD]])) -> 14.5 | G96: =SUMPRODUCT((KCINHDD[Month]=MONTH(KCITempAct[[#This Row],[Date]]))*(KCINHDD[Day]=DAY(KCITempAct[[#This Row],[Date]]))*KCINHDD[KCINHDD]) -> 13.58333333 | H96: =IF(MONTH(KCITempAct[[#This Row],[Date]])=7,0,IF(MONTH(KCITempAct[[#This Row],[Date]])=8,0,KCITempAct[[#This Row],[KCINHDD]])) -> 13.58333333 | I96: Adj HDD and NDD =0 for July and August
A97: 2018-04-06 | B97: 44 | C97: 23 | D97: =AVERAGE(KCITempAct[[#This Row],[KCIHigh]:[KCILow]] ) -> 33.5 | E97: =IF(KCITempAct[[#This Row],[KCIAve]]<65,(65-KCITempAct[[#This Row],[KCIAve]]),0) -> 31.5 | F97: =IF(MONTH(KCITempAct[[#This Row],[Date]])=7,0,IF(MONTH(KCITempAct[[#This Row],[Date]])=8,0,KCITempAct[[#This Row],[KCIHDD]])) -> 31.5 | G97: =SUMPRODUCT((KCINHDD[Month]=MONTH(KCITempAct[[#This Row],[Date]]))*(KCINHDD[Day]=DAY(KCITempAct[[#This Row],[Date]]))*KCINHDD[KCINHDD]) -> 11.63333333 | H97: =IF(MONTH(KCITempAct[[#This Row],[Date]])=7,0,IF(MONTH(KCITempAct[[#This Row],[Date]])=8,0,KCITempAct[[#This Row],[KCINHDD]])) -> 11.63333333 | I97: Adj HDD and NDD =0 for July and August
A98: 2018-04-07 | B98: 44 | C98: 16 | D98: =AVERAGE(KCITempAct[[#This Row],[KCIHigh]:[KCILow]] ) -> 30 | E98: =IF(KCITempAct[[#This Row],[KCIAve]]<65,(65-KCITempAct[[#This Row],[KCIAve]]),0) -> 35 | F98: =IF(MONTH(KCITempAct[[#This Row],[Date]])=7,0,IF(MONTH(KCITempAct[[#This Row],[Date]])=8,0,KCITempAct[[#This Row],[KCIHDD]])) -> 35 | G98: =SUMPRODUCT((KCINHDD[Month]=MONTH(KCITempAct[[#This Row],[Date]]))*(KCINHDD[Day]=DAY(KCITempAct[[#This Row],[Date]]))*KCINHDD[KCINHDD]) -> 13.08333333 | H98: =IF(MONTH(KCITempAct[[#This Row],[Date]])=7,0,IF(MONTH(KCITempAct[[#This Row],[Date]])=8,0,KCITempAct[[#This Row],[KCINHDD]])) -> 13.08333333 | I98: Adj HDD and NDD =0 for July and August
A99: 2018-04-08 | B99: 38 | C99: 30 | D99: =AVERAGE(KCITempAct[[#This Row],[KCIHigh]:[KCILow]] ) -> 34 | E99: =IF(KCITempAct[[#This Row],[KCIAve]]<65,(65-KCITempAct[[#This Row],[KCIAve]]),0) -> 31 | F99: =IF(MONTH(KCITempAct[[#This Row],[Date]])=7,0,IF(MONTH(KCITempAct[[#This Row],[Date]])=8,0,KCITempAct[[#This Row],[KCIHDD]])) -> 31 | G99: =SUMPRODUCT((KCINHDD[Month]=MONTH(KCITempAct[[#This Row],[Date]]))*(KCINHDD[Day]=DAY(KCITempAct[[#This Row],[Date]]))*KCINHDD[KCINHDD]) -> 13.66666667 | H99: =IF(MONTH(KCITempAct[[#This Row],[Date]])=7,0,IF(MONTH(KCITempAct[[#This Row],[Date]])=8,0,KCITempAct[[#This Row],[KCINHDD]])) -> 13.66666667 | I99: Adj HDD and NDD =0 for July and August
A100: 2018-04-09 | B100: 42 | C100: 29 | D100: =AVERAGE(KCITempAct[[#This Row],[KCIHigh]:[KCILow]] ) -> 35.5 | E100: =IF(KCITempAct[[#This Row],[KCIAve]]<65,(65-KCITempAct[[#This Row],[KCIAve]]),0) -> 29.5 | F100: =IF(MONTH(KCITempAct[[#This Row],[Date]])=7,0,IF(MONTH(KCITempAct[[#This Row],[Date]])=8,0,KCITempAct[[#This Row],[KCIHDD]])) -> 29.5 | G100: =SUMPRODUCT((KCINHDD[Month]=MONTH(KCITempAct[[#This Row],[Date]]))*(KCINHDD[Day]=DAY(KCITempAct[[#This Row],[Date]]))*KCINHDD[KCINHDD]) -> 13.05 | H100: =IF(MONTH(KCITempAct[[#This Row],[Date]])=7,0,IF(MONTH(KCITempAct[[#This Row],[Date]])=8,0,KCITempAct[[#This Row],[KCINHDD]])) -> 13.05 | I100: Adj HDD and NDD =0 for July and August
A101: 2018-04-10 | B101: 61 | C101: 26 | D101: =AVERAGE(KCITempAct[[#This Row],[KCIHigh]:[KCILow]] ) -> 43.5 | E101: =IF(KCITempAct[[#This Row],[KCIAve]]<65,(65-KCITempAct[[#This Row],[KCIAve]]),0) -> 21.5 | F101: =IF(MONTH(KCITempAct[[#This Row],[Date]])=7,0,IF(MONTH(KCITempAct[[#This Row],[Date]])=8,0,KCITempAct[[#This Row],[KCIHDD]])) -> 21.5 | G101: =SUMPRODUCT((KCINHDD[Month]=MONTH(KCITempAct[[#This Row],[Date]]))*(KCINHDD[Day]=DAY(KCITempAct[[#This Row],[Date]]))*KCINHDD[KCINHDD]) -> 11.06666667 | H101: =IF(MONTH(KCITempAct[[#This Row],[Date]])=7,0,IF(MONTH(KCITempAct[[#This Row],[Date]])=8,0,KCITempAct[[#This Row],[KCINHDD]])) -> 11.06666667 | I101: Adj HDD and NDD =0 for July and August
A102: 2018-04-11 | B102: 80 | C102: 47 | D102: =AVERAGE(KCITempAct[[#This Row],[KCIHigh]:[KCILow]] ) -> 63.5 | E102: =IF(KCITempAct[[#This Row],[KCIAve]]<65,(65-KCITempAct[[#This Row],[KCIAve]]),0) -> 1.5 | F102: =IF(MONTH(KCITempAct[[#This Row],[Date]])=7,0,IF(MONTH(KCITempAct[[#This Row],[Date]])=8,0,KCITempAct[[#This Row],[KCIHDD]])) -> 1.5 | G102: =SUMPRODUCT((KCINHDD[Month]=MONTH(KCITempAct[[#This Row],[Date]]))*(KCINHDD[Day]=DAY(KCITempAct[[#This Row],[Date]]))*KCINHDD[KCINHDD]) -> 12.01666667 | H102: =IF(MONTH(KCITempAct[[#This Row],[Date]])=7,0,IF(MONTH(KCITempAct[[#This Row],[Date]])=8,0,KCITempAct[[#This Row],[KCINHDD]])) -> 12.01666667 | I102: Adj HDD and NDD =0 for July and August
A103: 2018-04-12 | B103: 82 | C103: 55 | D103: =AVERAGE(KCITempAct[[#This Row],[KCIHigh]:[KCILow]] ) -> 68.5 | E103: =IF(KCITempAct[[#This Row],[KCIAve]]<65,(65-KCITempAct[[#This Row],[KCIAve]]),0) -> 0 | F103: =IF(MONTH(KCITempAct[[#This Row],[Date]])=7,0,IF(MONTH(KCITempAct[[#This Row],[Date]])=8,0,KCITempAct[[#This Row],[KCIHDD]])) -> 0 | G103: =SUMPRODUCT((KCINHDD[Month]=MONTH(KCITempAct[[#This Row],[Date]]))*(KCINHDD[Day]=DAY(KCITempAct[[#This Row],[Date]]))*KCINHDD[KCINHDD]) -> 13.85 | H103: =IF(MONTH(KCITempAct[[#This Row],[Date]])=7,0,IF(MONTH(KCITempAct[[#This Row],[Date]])=8,0,KCITempAct[[#This Row],[KCINHDD]])) -> 13.85 | I103: Adj HDD and NDD =0 for July and August
A104: 2018-04-13 | B104: 83 | C104: 51 | D104: =AVERAGE(KCITempAct[[#This Row],[KCIHigh]:[KCILow]] ) -> 67 | E104: =IF(KCITempAct[[#This Row],[KCIAve]]<65,(65-KCITempAct[[#This Row],[KCIAve]]),0) -> 0 | F104: =IF(MONTH(KCITempAct[[#This Row],[Date]])=7,0,IF(MONTH(KCITempAct[[#This Row],[Date]])=8,0,KCITempAct[[#This Row],[KCIHDD]])) -> 0 | G104: =SUMPRODUCT((KCINHDD[Month]=MONTH(KCITempAct[[#This Row],[Date]]))*(KCINHDD[Day]=DAY(KCITempAct[[#This Row],[Date]]))*KCINHDD[KCINHDD]) -> 12.1 | H104: =IF(MONTH(KCITempAct[[#This Row],[Date]])=7,0,IF(MONTH(KCITempAct[[#This Row],[Date]])=8,0,KCITempAct[[#This Row],[KCINHDD]])) -> 12.1 | I104: Adj HDD and NDD =0 for July and August
A105: 2018-04-14 | B105: 52 | C105: 30 | D105: =AVERAGE(KCITempAct[[#This Row],[KCIHigh]:[KCILow]] ) -> 41 | E105: =IF(KCITempAct[[#This Row],[KCIAve]]<65,(65-KCITempAct[[#This Row],[KCIAve]]),0) -> 24 | F105: =IF(MONTH(KCITempAct[[#This Row],[Date]])=7,0,IF(MONTH(KCITempAct[[#This Row],[Date]])=8,0,KCITempAct[[#This Row],[KCIHDD]])) -> 24 | G105: =SUMPRODUCT((KCINHDD[Month]=MONTH(KCITempAct[[#This Row],[Date]]))*(KCINHDD[Day]=DAY(KCITempAct[[#This Row],[Date]]))*KCINHDD[KCINHDD]) -> 10.2 | H105: =IF(MONTH(KCITempAct[[#This Row],[Date]])=7,0,IF(MONTH(KCITempAct[[#This Row],[Date]])=8,0,KCITempAct[[#This Row],[KCINHDD]])) -> 10.2 | I105: Adj HDD and NDD =0 for July and August
A106: 2018-04-15 | B106: 31 | C106: 26 | D106: =AVERAGE(KCITempAct[[#This Row],[KCIHigh]:[KCILow]] ) -> 28.5 | E106: =IF(KCITempAct[[#This Row],[KCIAve]]<65,(65-KCITempAct[[#This Row],[KCIAve]]),0) -> 36.5 | F106: =IF(MONTH(KCITempAct[[#This Row],[Date]])=7,0,IF(MONTH(KCITempAct[[#This Row],[Date]])=8,0,KCITempAct[[#This Row],[KCIHDD]])) -> 36.5 | G106: =SUMPRODUCT((KCINHDD[Month]=MONTH(KCITempAct[[#This Row],[Date]]))*(KCINHDD[Day]=DAY(KCITempAct[[#This Row],[Date]]))*KCINHDD[KCINHDD]) -> 10.53333333 | H106: =IF(MONTH(KCITempAct[[#This Row],[Date]])=7,0,IF(MONTH(KCITempAct[[#This Row],[Date]])=8,0,KCITempAct[[#This Row],[KCINHDD]])) -> 10.53333333 | I106: Adj HDD and NDD =0 for July and August
A107: 2018-04-16 | B107: 51 | C107: 26 | D107: =AVERAGE(KCITempAct[[#This Row],[KCIHigh]:[KCILow]] ) -> 38.5 | E107: =IF(KCITempAct[[#This Row],[KCIAve]]<65,(65-KCITempAct[[#This Row],[KCIAve]]),0) -> 26.5 | F107: =IF(MONTH(KCITempAct[[#This Row],[Date]])=7,0,IF(MONTH(KCITempAct[[#This Row],[Date]])=8,0,KCITempAct[[#This Row],[KCIHDD]])) -> 26.5 | G107: =SUMPRODUCT((KCINHDD[Month]=MONTH(KCITempAct[[#This Row],[Date]]))*(KCINHDD[Day]=DAY(KCITempAct[[#This Row],[Date]]))*KCINHDD[KCINHDD]) -> 10.48333333 | H107: =IF(MONTH(KCITempAct[[#This Row],[Date]])=7,0,IF(MONTH(KCITempAct[[#This Row],[Date]])=8,0,KCITempAct[[#This Row],[KCINHDD]])) -> 10.48333333 | I107: Adj HDD and NDD =0 for July and August
A108: 2018-04-17 | B108: 65 | C108: 33 | D108: =AVERAGE(KCITempAct[[#This Row],[KCIHigh]:[KCILow]] ) -> 49 | E108: =IF(KCITempAct[[#This Row],[KCIAve]]<65,(65-KCITempAct[[#This Row],[KCIAve]]),0) -> 16 | F108: =IF(MONTH(KCITempAct[[#This Row],[Date]])=7,0,IF(MONTH(KCITempAct[[#This Row],[Date]])=8,0,KCITempAct[[#This Row],[KCIHDD]])) -> 16 | G108: =SUMPRODUCT((KCINHDD[Month]=MONTH(KCITempAct[[#This Row],[Date]]))*(KCINHDD[Day]=DAY(KCITempAct[[#This Row],[Date]]))*KCINHDD[KCINHDD]) -> 10.5 | H108: =IF(MONTH(KCITempAct[[#This Row],[Date]])=7,0,IF(MONTH(KCITempAct[[#This Row],[Date]])=8,0,KCITempAct[[#This Row],[KCINHDD]])) -> 10.5 | I108: Adj HDD and NDD =0 for July and August
A109: 2018-04-18 | B109: 53 | C109: 35 | D109: =AVERAGE(KCITempAct[[#This Row],[KCIHigh]:[KCILow]] ) -> 44 | E109: =IF(KCITempAct[[#This Row],[KCIAve]]<65,(65-KCITempAct[[#This Row],[KCIAve]]),0) -> 21 | F109: =IF(MONTH(KCITempAct[[#This Row],[Date]])=7,0,IF(MONTH(KCITempAct[[#This Row],[Date]])=8,0,KCITempAct[[#This Row],[KCIHDD]])) -> 21 | G109: =SUMPRODUCT((KCINHDD[Month]=MONTH(KCITempAct[[#This Row],[Date]]))*(KCINHDD[Day]=DAY(KCITempAct[[#This Row],[Date]]))*KCINHDD[KCINHDD]) -> 7.983333333 | H109: =IF(MONTH(KCITempAct[[#This Row],[Date]])=7,0,IF(MONTH(KCITempAct[[#This Row],[Date]])=8,0,KCITempAct[[#This Row],[KCINHDD]])) -> 7.983333333 | I109: Adj HDD and NDD =0 for July and August
A110: 2018-04-19 | B110: 59 | C110: 28 | D110: =AVERAGE(KCITempAct[[#This Row],[KCIHigh]:[KCILow]] ) -> 43.5 | E110: =IF(KCITempAct[[#This Row],[KCIAve]]<65,(65-KCITempAct[[#This Row],[KCIAve]]),0) -> 21.5 | F110: =IF(MONTH(KCITempAct[[#This Row],[Date]])=7,0,IF(MONTH(KCITempAct[[#This Row],[Date]])=8,0,KCITempAct[[#This Row],[KCIHDD]])) -> 21.5 | G110: =SUMPRODUCT((KCINHDD[Month]=MONTH(KCITempAct[[#This Row],[Date]]))*(KCINHDD[Day]=DAY(KCITempAct[[#This Row],[Date]]))*KCINHDD[KCINHDD]) -> 8.116666667 | H110: =IF(MONTH(KCITempAct[[#This Row],[Date]])=7,0,IF(MONTH(KCITempAct[[#This Row],[Date]])=8,0,KCITempAct[[#This Row],[KCINHDD]])) -> 8.116666667 | I110: Adj HDD and NDD =0 for July and August
A111: 2018-04-20 | B111: 63 | C111: 37 | D111: =AVERAGE(KCITempAct[[#This Row],[KCIHigh]:[KCILow]] ) -> 50 | E111: =IF(KCITempAct[[#This Row],[KCIAve]]<65,(65-KCITempAct[[#This Row],[KCIAve]]),0) -> 15 | F111: =IF(MONTH(KCITempAct[[#This Row],[Date]])=7,0,IF(MONTH(KCITempAct[[#This Row],[Date]])=8,0,KCITempAct[[#This Row],[KCIHDD]])) -> 15 | G111: =SUMPRODUCT((KCINHDD[Month]=MONTH(KCITempAct[[#This Row],[Date]]))*(KCINHDD[Day]=DAY(KCITempAct[[#This Row],[Date]]))*KCINHDD[KCINHDD]) -> 9.7 | H111: =IF(MONTH(KCITempAct[[#This Row],[Date]])=7,0,IF(MONTH(KCITempAct[[#This Row],[Date]])=8,0,KCITempAct[[#This Row],[KCINHDD]])) -> 9.7 | I111: Adj HDD and NDD =0 for July and August
A112: 2018-04-21 | B112: 64 | C112: 48 | D112: =AVERAGE(KCITempAct[[#This Row],[KCIHigh]:[KCILow]] ) -> 56 | E112: =IF(KCITempAct[[#This Row],[KCIAve]]<65,(65-KCITempAct[[#This Row],[KCIAve]]),0) -> 9 | F112: =IF(MONTH(KCITempAct[[#This Row],[Date]])=7,0,IF(MONTH(KCITempAct[[#This Row],[Date]])=8,0,KCITempAct[[#This Row],[KCIHDD]])) -> 9 | G112: =SUMPRODUCT((KCINHDD[Month]=MONTH(KCITempAct[[#This Row],[Date]]))*(KCINHDD[Day]=DAY(KCITempAct[[#This Row],[Date]]))*KCINHDD[KCINHDD]) -> 9.366666667 | H112: =IF(MONTH(KCITempAct[[#This Row],[Date]])=7,0,IF(MONTH(KCITempAct[[#This Row],[Date]])=8,0,KCITempAct[[#This Row],[KCINHDD]])) -> 9.366666667 | I112: Adj HDD and NDD =0 for July and August
A113: 2018-04-22 | B113: 67 | C113: 47 | D113: =AVERAGE(KCITempAct[[#This Row],[KCIHigh]:[KCILow]] ) -> 57 | E113: =IF(KCITempAct[[#This Row],[KCIAve]]<65,(65-KCITempAct[[#This Row],[KCIAve]]),0) -> 8 | F113: =IF(MONTH(KCITempAct[[#This Row],[Date]])=7,0,IF(MONTH(KCITempAct[[#This Row],[Date]])=8,0,KCITempAct[[#This Row],[KCIHDD]])) -> 8 | G113: =SUMPRODUCT((KCINHDD[Month]=MONTH(KCITempAct[[#This Row],[Date]]))*(KCINHDD[Day]=DAY(KCITempAct[[#This Row],[Date]]))*KCINHDD[KCINHDD]) -> 9.4 | H113: =IF(MONTH(KCITempAct[[#This Row],[Date]])=7,0,IF(MONTH(KCITempAct[[#This Row],[Date]])=8,0,KCITempAct[[#This Row],[KCINHDD]])) -> 9.4 | I113: Adj HDD and NDD =0 for July and August
A114: 2018-04-23 | B114: 75 | C114: 52 | D114: =AVERAGE(KCITempAct[[#This Row],[KCIHigh]:[KCILow]] ) -> 63.5 | E114: =IF(KCITempAct[[#This Row],[KCIAve]]<65,(65-KCITempAct[[#This Row],[KCIAve]]),0) -> 1.5 | F114: =IF(MONTH(KCITempAct[[#This Row],[Date]])=7,0,IF(MONTH(KCITempAct[[#This Row],[Date]])=8,0,KCITempAct[[#This Row],[KCIHDD]])) -> 1.5 | G114: =SUMPRODUCT((KCINHDD[Month]=MONTH(KCITempAct[[#This Row],[Date]]))*(KCINHDD[Day]=DAY(KCITempAct[[#This Row],[Date]]))*KCINHDD[KCINHDD]) -> 8.15 | H114: =IF(MONTH(KCITempAct[[#This Row],[Date]])=7,0,IF(MONTH(KCITempAct[[#This Row],[Date]])=8,0,KCITempAct[[#This Row],[KCINHDD]])) -> 8.15 | I114: Adj HDD and NDD =0 for July and August
A115: 2018-04-24 | B115: 78 | C115: 46 | D115: =AVERAGE(KCITempAct[[#This Row],[KCIHigh]:[KCILow]] ) -> 62 | E115: =IF(KCITempAct[[#This Row],[KCIAve]]<65,(65-KCITempAct[[#This Row],[KCIAve]]),0) -> 3 | F115: =IF(MONTH(KCITempAct[[#This Row],[Date]])=7,0,IF(MONTH(KCITempAct[[#This Row],[Date]])=8,0,KCITempAct[[#This Row],[KCIHDD]])) -> 3 | G115: =SUMPRODUCT((KCINHDD[Month]=MONTH(KCITempAct[[#This Row],[Date]]))*(KCINHDD[Day]=DAY(KCITempAct[[#This Row],[Date]]))*KCINHDD[KCINHDD]) -> 7.4 | H115: =IF(MONTH(KCITempAct[[#This Row],[Date]])=7,0,IF(MONTH(KCITempAct[[#This Row],[Date]])=8,0,KCITempAct[[#This Row],[KCINHDD]])) -> 7.4 | I115: Adj HDD and NDD =0 for July and August
A116: 2018-04-25 | B116: 57 | C116: 43 | D116: =AVERAGE(KCITempAct[[#This Row],[KCIHigh]:[KCILow]] ) -> 50 | E116: =IF(KCITempAct[[#This Row],[KCIAve]]<65,(65-KCITempAct[[#This Row],[KCIAve]]),0) -> 15 | F116: =IF(MONTH(KCITempAct[[#This Row],[Date]])=7,0,IF(MONTH(KCITempAct[[#This Row],[Date]])=8,0,KCITempAct[[#This Row],[KCIHDD]])) -> 15 | G116: =SUMPRODUCT((KCINHDD[Month]=MONTH(KCITempAct[[#This Row],[Date]]))*(KCINHDD[Day]=DAY(KCITempAct[[#This Row],[Date]]))*KCINHDD[KCINHDD]) -> 8.283333333 | H116: =IF(MONTH(KCITempAct[[#This Row],[Date]])=7,0,IF(MONTH(KCITempAct[[#This Row],[Date]])=8,0,KCITempAct[[#This Row],[KCINHDD]])) -> 8.283333333 | I116: Adj HDD and NDD =0 for July and August
A117: 2018-04-26 | B117: 69 | C117: 36 | D117: =AVERAGE(KCITempAct[[#This Row],[KCIHigh]:[KCILow]] ) -> 52.5 | E117: =IF(KCITempAct[[#This Row],[KCIAve]]<65,(65-KCITempAct[[#This Row],[KCIAve]]),0) -> 12.5 | F117: =IF(MONTH(KCITempAct[[#This Row],[Date]])=7,0,IF(MONTH(KCITempAct[[#This Row],[Date]])=8,0,KCITempAct[[#This Row],[KCIHDD]])) -> 12.5 | G117: =SUMPRODUCT((KCINHDD[Month]=MONTH(KCITempAct[[#This Row],[Date]]))*(KCINHDD[Day]=DAY(KCITempAct[[#This Row],[Date]]))*KCINHDD[KCINHDD]) -> 9.483333333 | H117: =IF(MONTH(KCITempAct[[#This Row],[Date]])=7,0,IF(MONTH(KCITempAct[[#This Row],[Date]])=8,0,KCITempAct[[#This Row],[KCINHDD]])) -> 9.483333333 | I117: Adj HDD and NDD =0 for July and August
A118: 2018-04-27 | B118: 75 | C118: 42 | D118: =AVERAGE(KCITempAct[[#This Row],[KCIHigh]:[KCILow]] ) -> 58.5 | E118: =IF(KCITempAct[[#This Row],[KCIAve]]<65,(65-KCITempAct[[#This Row],[KCIAve]]),0) -> 6.5 | F118: =IF(MONTH(KCITempAct[[#This Row],[Date]])=7,0,IF(MONTH(KCITempAct[[#This Row],[Date]])=8,0,KCITempAct[[#This Row],[KCIHDD]])) -> 6.5 | G118: =SUMPRODUCT((KCINHDD[Month]=MONTH(KCITempAct[[#This Row],[Date]]))*(KCINHDD[Day]=DAY(KCITempAct[[#This Row],[Date]]))*KCINHDD[KCINHDD]) -> 9.566666667 | H118: =IF(MONTH(KCITempAct[[#This Row],[Date]])=7,0,IF(MONTH(KCITempAct[[#This Row],[Date]])=8,0,KCITempAct[[#This Row],[KCINHDD]])) -> 9.566666667 | I118: Adj HDD and NDD =0 for July and August
A119: 2018-04-28 | B119: 68 | C119: 41 | D119: =AVERAGE(KCITempAct[[#This Row],[KCIHigh]:[KCILow]] ) -> 54.5 | E119: =IF(KCITempAct[[#This Row],[KCIAve]]<65,(65-KCITempAct[[#This Row],[KCIAve]]),0) -> 10.5 | F119: =IF(MONTH(KCITempAct[[#This Row],[Date]])=7,0,IF(MONTH(KCITempAct[[#This Row],[Date]])=8,0,KCITempAct[[#This Row],[KCIHDD]])) -> 10.5 | G119: =SUMPRODUCT((KCINHDD[Month]=MONTH(KCITempAct[[#This Row],[Date]]))*(KCINHDD[Day]=DAY(KCITempAct[[#This Row],[Date]]))*KCINHDD[KCINHDD]) -> 9.25 | H119: =IF(MONTH(KCITempAct[[#This Row],[Date]])=7,0,IF(MONTH(KCITempAct[[#This Row],[Date]])=8,0,KCITempAct[[#This Row],[KCINHDD]])) -> 9.25 | I119: Adj HDD and NDD =0 for July and August
A120: 2018-04-29 | B120: 72 | C120: 45 | D120: =AVERAGE(KCITempAct[[#This Row],[KCIHigh]:[KCILow]] ) -> 58.5 | E120: =IF(KCITempAct[[#This Row],[KCIAve]]<65,(65-KCITempAct[[#This Row],[KCIAve]]),0) -> 6.5 | F120: =IF(MONTH(KCITempAct[[#This Row],[Date]])=7,0,IF(MONTH(KCITempAct[[#This Row],[Date]])=8,0,KCITempAct[[#This Row],[KCIHDD]])) -> 6.5 | G120: =SUMPRODUCT((KCINHDD[Month]=MONTH(KCITempAct[[#This Row],[Date]]))*(KCINHDD[Day]=DAY(KCITempAct[[#This Row],[Date]]))*KCINHDD[KCINHDD]) -> 7.916666667 | H120: =IF(MONTH(KCITempAct[[#This Row],[Date]])=7,0,IF(MONTH(KCITempAct[[#This Row],[Date]])=8,0,KCITempAct[[#This Row],[KCINHDD]])) -> 7.916666667 | I120: Adj HDD and NDD =0 for July and August
A121: 2018-04-30 | B121: 82 | C121: 57 | D121: =AVERAGE(KCITempAct[[#This Row],[KCIHigh]:[KCILow]] ) -> 69.5 | E121: =IF(KCITempAct[[#This Row],[KCIAve]]<65,(65-KCITempAct[[#This Row],[KCIAve]]),0) -> 0 | F121: =IF(MONTH(KCITempAct[[#This Row],[Date]])=7,0,IF(MONTH(KCITempAct[[#This Row],[Date]])=8,0,KCITempAct[[#This Row],[KCIHDD]])) -> 0 | G121: =SUMPRODUCT((KCINHDD[Month]=MONTH(KCITempAct[[#This Row],[Date]]))*(KCINHDD[Day]=DAY(KCITempAct[[#This Row],[Date]]))*KCINHDD[KCINHDD]) -> 6.483333333 | H121: =IF(MONTH(KCITempAct[[#This Row],[Date]])=7,0,IF(MONTH(KCITempAct[[#This Row],[Date]])=8,0,KCITempAct[[#This Row],[KCINHDD]])) -> 6.483333333 | I121: Adj HDD and NDD =0 for July and August
A122: 2018-05-01 | B122: 78 | C122: 63 | D122: =AVERAGE(KCITempAct[[#This Row],[KCIHigh]:[KCILow]] ) -> 70.5 | E122: =IF(KCITempAct[[#This Row],[KCIAve]]<65,(65-KCITempAct[[#This Row],[KCIAve]]),0) -> 0 | F122: =IF(MONTH(KCITempAct[[#This Row],[Date]])=7,0,IF(MONTH(KCITempAct[[#This Row],[Date]])=8,0,KCITempAct[[#This Row],[KCIHDD]])) -> 0 | G122: =SUMPRODUCT((KCINHDD[Month]=MONTH(KCITempAct[[#This Row],[Date]]))*(KCINHDD[Day]=DAY(KCITempAct[[#This Row],[Date]]))*KCINHDD[KCINHDD]) -> 7.566666667 | H122: =IF(MONTH(KCITempAct[[#This Row],[Date]])=7,0,IF(MONTH(KCITempAct[[#This Row],[Date]])=8,0,KCITempAct[[#This Row],[KCINHDD]])) -> 7.566666667 | I122: Adj HDD and NDD =0 for July and August
A123: 2018-05-02 | B123: 81 | C123: 62 | D123: =AVERAGE(KCITempAct[[#This Row],[KCIHigh]:[KCILow]] ) -> 71.5 | E123: =IF(KCITempAct[[#This Row],[KCIAve]]<65,(65-KCITempAct[[#This Row],[KCIAve]]),0) -> 0 | F123: =IF(MONTH(KCITempAct[[#This Row],[Date]])=7,0,IF(MONTH(KCITempAct[[#This Row],[Date]])=8,0,KCITempAct[[#This Row],[KCIHDD]])) -> 0 | G123: =SUMPRODUCT((KCINHDD[Month]=MONTH(KCITempAct[[#This Row],[Date]]))*(KCINHDD[Day]=DAY(KCITempAct[[#This Row],[Date]]))*KCINHDD[KCINHDD]) -> 8.05 | H123: =IF(MONTH(KCITempAct[[#This Row],[Date]])=7,0,IF(MONTH(KCITempAct[[#This Row],[Date]])=8,0,KCITempAct[[#This Row],[KCINHDD]])) -> 8.05 | I123: Adj HDD and NDD =0 for July and August
A124: 2018-05-03 | B124: 80 | C124: 57 | D124: =AVERAGE(KCITempAct[[#This Row],[KCIHigh]:[KCILow]] ) -> 68.5 | E124: =IF(KCITempAct[[#This Row],[KCIAve]]<65,(65-KCITempAct[[#This Row],[KCIAve]]),0) -> 0 | F124: =IF(MONTH(KCITempAct[[#This Row],[Date]])=7,0,IF(MONTH(KCITempAct[[#This Row],[Date]])=8,0,KCITempAct[[#This Row],[KCIHDD]])) -> 0 | G124: =SUMPRODUCT((KCINHDD[Month]=MONTH(KCITempAct[[#This Row],[Date]]))*(KCINHDD[Day]=DAY(KCITempAct[[#This Row],[Date]]))*KCINHDD[KCINHDD]) -> 7.016666667 | H124: =IF(MONTH(KCITempAct[[#This Row],[Date]])=7,0,IF(MONTH(KCITempAct[[#This Row],[Date]])=8,0,KCITempAct[[#This Row],[KCINHDD]])) -> 7.016666667 | I124: Adj HDD and NDD =0 for July and August
A125: 2018-05-04 | B125: 78 | C125: 55 | D125: =AVERAGE(KCITempAct[[#This Row],[KCIHigh]:[KCILow]] ) -> 66.5 | E125: =IF(KCITempAct[[#This Row],[KCIAve]]<65,(65-KCITempAct[[#This Row],[KCIAve]]),0) -> 0 | F125: =IF(MONTH(KCITempAct[[#This Row],[Date]])=7,0,IF(MONTH(KCITempAct[[#This Row],[Date]])=8,0,KCITempAct[[#This Row],[KCIHDD]])) -> 0 | G125: =SUMPRODUCT((KCINHDD[Month]=MONTH(KCITempAct[[#This Row],[Date]]))*(KCINHDD[Day]=DAY(KCITempAct[[#This Row],[Date]]))*KCINHDD[KCINHDD]) -> 5.033333333 | H125: =IF(MONTH(KCITempAct[[#This Row],[Date]])=7,0,IF(MONTH(KCITempAct[[#This Row],[Date]])=8,0,KCITempAct[[#This Row],[KCINHDD]])) -> 5.033333333 | I125: Adj HDD and NDD =0 for July and August
A126: 2018-05-05 | B126: 84 | C126: 54 | D126: =AVERAGE(KCITempAct[[#This Row],[KCIHigh]:[KCILow]] ) -> 69 | E126: =IF(KCITempAct[[#This Row],[KCIAve]]<65,(65-KCITempAct[[#This Row],[KCIAve]]),0) -> 0 | F126: =IF(MONTH(KCITempAct[[#This Row],[Date]])=7,0,IF(MONTH(KCITempAct[[#This Row],[Date]])=8,0,KCITempAct[[#This Row],[KCIHDD]])) -> 0 | G126: =SUMPRODUCT((KCINHDD[Month]=MONTH(KCITempAct[[#This Row],[Date]]))*(KCINHDD[Day]=DAY(KCITempAct[[#This Row],[Date]]))*KCINHDD[KCINHDD]) -> 4.25 | H126: =IF(MONTH(KCITempAct[[#This Row],[Date]])=7,0,IF(MONTH(KCITempAct[[#This Row],[Date]])=8,0,KCITempAct[[#This Row],[KCINHDD]])) -> 4.25 | I126: Adj HDD and NDD =0 for July and August
A127: 2018-05-06 | B127: 85 | C127: 55 | D127: =AVERAGE(KCITempAct[[#This Row],[KCIHigh]:[KCILow]] ) -> 70 | E127: =IF(KCITempAct[[#This Row],[KCIAve]]<65,(65-KCITempAct[[#This Row],[KCIAve]]),0) -> 0 | F127: =IF(MONTH(KCITempAct[[#This Row],[Date]])=7,0,IF(MONTH(KCITempAct[[#This Row],[Date]])=8,0,KCITempAct[[#This Row],[KCIHDD]])) -> 0 | G127: =SUMPRODUCT((KCINHDD[Month]=MONTH(KCITempAct[[#This Row],[Date]]))*(KCINHDD[Day]=DAY(KCITempAct[[#This Row],[Date]]))*KCINHDD[KCINHDD]) -> 3.383333333 | H127: =IF(MONTH(KCITempAct[[#This Row],[Date]])=7,0,IF(MONTH(KCITempAct[[#This Row],[Date]])=8,0,KCITempAct[[#This Row],[KCINHDD]])) -> 3.383333333 | I127: Adj HDD and NDD =0 for July and August
A128: 2018-05-07 | B128: 83 | C128: 58 | D128: =AVERAGE(KCITempAct[[#This Row],[KCIHigh]:[KCILow]] ) -> 70.5 | E128: =IF(KCITempAct[[#This Row],[KCIAve]]<65,(65-KCITempAct[[#This Row],[KCIAve]]),0) -> 0 | F128: =IF(MONTH(KCITempAct[[#This Row],[Date]])=7,0,IF(MONTH(KCITempAct[[#This Row],[Date]])=8,0,KCITempAct[[#This Row],[KCIHDD]])) -> 0 | G128: =SUMPRODUCT((KCINHDD[Month]=MONTH(KCITempAct[[#This Row],[Date]]))*(KCINHDD[Day]=DAY(KCITempAct[[#This Row],[Date]]))*KCINHDD[KCINHDD]) -> 3.483333333 | H128: =IF(MONTH(KCITempAct[[#This Row],[Date]])=7,0,IF(MONTH(KCITempAct[[#This Row],[Date]])=8,0,KCITempAct[[#This Row],[KCINHDD]])) -> 3.483333333 | I128: Adj HDD and NDD =0 for July and August
A129: 2018-05-08 | B129: 86 | C129: 64 | D129: =AVERAGE(KCITempAct[[#This Row],[KCIHigh]:[KCILow]] ) -> 75 | E129: =IF(KCITempAct[[#This Row],[KCIAve]]<65,(65-KCITempAct[[#This Row],[KCIAve]]),0) -> 0 | F129: =IF(MONTH(KCITempAct[[#This Row],[Date]])=7,0,IF(MONTH(KCITempAct[[#This Row],[Date]])=8,0,KCITempAct[[#This Row],[KCIHDD]])) -> 0 | G129: =SUMPRODUCT((KCINHDD[Month]=MONTH(KCITempAct[[#This Row],[Date]]))*(KCINHDD[Day]=DAY(KCITempAct[[#This Row],[Date]]))*KCINHDD[KCINHDD]) -> 2.433333333 | H129: =IF(MONTH(KCITempAct[[#This Row],[Date]])=7,0,IF(MONTH(KCITempAct[[#This Row],[Date]])=8,0,KCITempAct[[#This Row],[KCINHDD]])) -> 2.433333333 | I129: Adj HDD and NDD =0 for July and August
A130: 2018-05-09 | B130: 85 | C130: 62 | D130: =AVERAGE(KCITempAct[[#This Row],[KCIHigh]:[KCILow]] ) -> 73.5 | E130: =IF(KCITempAct[[#This Row],[KCIAve]]<65,(65-KCITempAct[[#This Row],[KCIAve]]),0) -> 0 | F130: =IF(MONTH(KCITempAct[[#This Row],[Date]])=7,0,IF(MONTH(KCITempAct[[#This Row],[Date]])=8,0,KCITempAct[[#This Row],[KCIHDD]])) -> 0 | G130: =SUMPRODUCT((KCINHDD[Month]=MONTH(KCITempAct[[#This Row],[Date]]))*(KCINHDD[Day]=DAY(KCITempAct[[#This Row],[Date]]))*KCINHDD[KCINHDD]) -> 4.216666667 | H130: =IF(MONTH(KCITempAct[[#This Row],[Date]])=7,0,IF(MONTH(KCITempAct[[#This Row],[Date]])=8,0,KCITempAct[[#This Row],[KCINHDD]])) -> 4.216666667 | I130: Adj HDD and NDD =0 for July and August
A131: 2018-05-10 | B131: 87 | C131: 59 | D131: =AVERAGE(KCITempAct[[#This Row],[KCIHigh]:[KCILow]] ) -> 73 | E131: =IF(KCITempAct[[#This Row],[KCIAve]]<65,(65-KCITempAct[[#This Row],[KCIAve]]),0) -> 0 | F131: =IF(MONTH(KCITempAct[[#This Row],[Date]])=7,0,IF(MONTH(KCITempAct[[#This Row],[Date]])=8,0,KCITempAct[[#This Row],[KCIHDD]])) -> 0 | G131: =SUMPRODUCT((KCINHDD[Month]=MONTH(KCITempAct[[#This Row],[Date]]))*(KCINHDD[Day]=DAY(KCITempAct[[#This Row],[Date]]))*KCINHDD[KCINHDD]) -> 4.283333333 | H131: =IF(MONTH(KCITempAct[[#This Row],[Date]])=7,0,IF(MONTH(KCITempAct[[#This Row],[Date]])=8,0,KCITempAct[[#This Row],[KCINHDD]])) -> 4.283333333 | I131: Adj HDD and NDD =0 for July and August
A132: 2018-05-11 | B132: 84 | C132: 64 | D132: =AVERAGE(KCITempAct[[#This Row],[KCIHigh]:[KCILow]] ) -> 74 | E132: =IF(KCITempAct[[#This Row],[KCIAve]]<65,(65-KCITempAct[[#This Row],[KCIAve]]),0) -> 0 | F132: =IF(MONTH(KCITempAct[[#This Row],[Date]])=7,0,IF(MONTH(KCITempAct[[#This Row],[Date]])=8,0,KCITempAct[[#This Row],[KCIHDD]])) -> 0 | G132: =SUMPRODUCT((KCINHDD[Month]=MONTH(KCITempAct[[#This Row],[Date]]))*(KCINHDD[Day]=DAY(KCITempAct[[#This Row],[Date]]))*KCINHDD[KCINHDD]) -> 4.733333333 | H132: =IF(MONTH(KCITempAct[[#This Row],[Date]])=7,0,IF(MONTH(KCITempAct[[#This Row],[Date]])=8,0,KCITempAct[[#This Row],[KCINHDD]])) -> 4.733333333 | I132: Adj HDD and NDD =0 for July and August
A133: 2018-05-12 | B133: 84 | C133: 69 | D133: =AVERAGE(KCITempAct[[#This Row],[KCIHigh]:[KCILow]] ) -> 76.5 | E133: =IF(KCITempAct[[#This Row],[KCIAve]]<65,(65-KCITempAct[[#This Row],[KCIAve]]),0) -> 0 | F133: =IF(MONTH(KCITempAct[[#This Row],[Date]])=7,0,IF(MONTH(KCITempAct[[#This Row],[Date]])=8,0,KCITempAct[[#This Row],[KCIHDD]])) -> 0 | G133: =SUMPRODUCT((KCINHDD[Month]=MONTH(KCITempAct[[#This Row],[Date]]))*(KCINHDD[Day]=DAY(KCITempAct[[#This Row],[Date]]))*KCINHDD[KCINHDD]) -> 5.533333333 | H133: =IF(MONTH(KCITempAct[[#This Row],[Date]])=7,0,IF(MONTH(KCITempAct[[#This Row],[Date]])=8,0,KCITempAct[[#This Row],[KCINHDD]])) -> 5.533333333 | I133: Adj HDD and NDD =0 for July and August
A134: 2018-05-13 | B134: 90 | C134: 69 | D134: =AVERAGE(KCITempAct[[#This Row],[KCIHigh]:[KCILow]] ) -> 79.5 | E134: =IF(KCITempAct[[#This Row],[KCIAve]]<65,(65-KCITempAct[[#This Row],[KCIAve]]),0) -> 0 | F134: =IF(MONTH(KCITempAct[[#This Row],[Date]])=7,0,IF(MONTH(KCITempAct[[#This Row],[Date]])=8,0,KCITempAct[[#This Row],[KCIHDD]])) -> 0 | G134: =SUMPRODUCT((KCINHDD[Month]=MONTH(KCITempAct[[#This Row],[Date]]))*(KCINHDD[Day]=DAY(KCITempAct[[#This Row],[Date]]))*KCINHDD[KCINHDD]) -> 4.816666667 | H134: =IF(MONTH(KCITempAct[[#This Row],[Date]])=7,0,IF(MONTH(KCITempAct[[#This Row],[Date]])=8,0,KCITempAct[[#This Row],[KCINHDD]])) -> 4.816666667 | I134: Adj HDD and NDD =0 for July and August
A135: 2018-05-14 | B135: 86 | C135: 65 | D135: =AVERAGE(KCITempAct[[#This Row],[KCIHigh]:[KCILow]] ) -> 75.5 | E135: =IF(KCITempAct[[#This Row],[KCIAve]]<65,(65-KCITempAct[[#This Row],[KCIAve]]),0) -> 0 | F135: =IF(MONTH(KCITempAct[[#This Row],[Date]])=7,0,IF(MONTH(KCITempAct[[#This Row],[Date]])=8,0,KCITempAct[[#This Row],[KCIHDD]])) -> 0 | G135: =SUMPRODUCT((KCINHDD[Month]=MONTH(KCITempAct[[#This Row],[Date]]))*(KCINHDD[Day]=DAY(KCITempAct[[#This Row],[Date]]))*KCINHDD[KCINHDD]) -> 5.05 | H135: =IF(MONTH(KCITempAct[[#This Row],[Date]])=7,0,IF(MONTH(KCITempAct[[#This Row],[Date]])=8,0,KCITempAct[[#This Row],[KCINHDD]])) -> 5.05 | I135: Adj HDD and NDD =0 for July and August
A136: 2018-05-15 | B136: 79 | C136: 65 | D136: =AVERAGE(KCITempAct[[#This Row],[KCIHigh]:[KCILow]] ) -> 72 | E136: =IF(KCITempAct[[#This Row],[KCIAve]]<65,(65-KCITempAct[[#This Row],[KCIAve]]),0) -> 0 | F136: =IF(MONTH(KCITempAct[[#This Row],[Date]])=7,0,IF(MONTH(KCITempAct[[#This Row],[Date]])=8,0,KCITempAct[[#This Row],[KCIHDD]])) -> 0 | G136: =SUMPRODUCT((KCINHDD[Month]=MONTH(KCITempAct[[#This Row],[Date]]))*(KCINHDD[Day]=DAY(KCITempAct[[#This Row],[Date]]))*KCINHDD[KCINHDD]) -> 3.6 | H136: =IF(MONTH(KCITempAct[[#This Row],[Date]])=7,0,IF(MONTH(KCITempAct[[#This Row],[Date]])=8,0,KCITempAct[[#This Row],[KCINHDD]])) -> 3.6 | I136: Adj HDD and NDD =0 for July and August
A137: 2018-05-16 | B137: 81 | C137: 59 | D137: =AVERAGE(KCITempAct[[#This Row],[KCIHigh]:[KCILow]] ) -> 70 | E137: =IF(KCITempAct[[#This Row],[KCIAve]]<65,(65-KCITempAct[[#This Row],[KCIAve]]),0) -> 0 | F137: =IF(MONTH(KCITempAct[[#This Row],[Date]])=7,0,IF(MONTH(KCITempAct[[#This Row],[Date]])=8,0,KCITempAct[[#This Row],[KCIHDD]])) -> 0 | G137: =SUMPRODUCT((KCINHDD[Month]=MONTH(KCITempAct[[#This Row],[Date]]))*(KCINHDD[Day]=DAY(KCITempAct[[#This Row],[Date]]))*KCINHDD[KCINHDD]) -> 3.35 | H137: =IF(MONTH(KCITempAct[[#This Row],[Date]])=7,0,IF(MONTH(KCITempAct[[#This Row],[Date]])=8,0,KCITempAct[[#This Row],[KCINHDD]])) -> 3.35 | I137: Adj HDD and NDD =0 for July and August
A138: 2018-05-17 | B138: 83 | C138: 60 | D138: =AVERAGE(KCITempAct[[#This Row],[KCIHigh]:[KCILow]] ) -> 71.5 | E138: =IF(KCITempAct[[#This Row],[KCIAve]]<65,(65-KCITempAct[[#This Row],[KCIAve]]),0) -> 0 | F138: =IF(MONTH(KCITempAct[[#This Row],[Date]])=7,0,IF(MONTH(KCITempAct[[#This Row],[Date]])=8,0,KCITempAct[[#This Row],[KCIHDD]])) -> 0 | G138: =SUMPRODUCT((KCINHDD[Month]=MONTH(KCITempAct[[#This Row],[Date]]))*(KCINHDD[Day]=DAY(KCITempAct[[#This Row],[Date]]))*KCINHDD[KCINHDD]) -> 2.8 | H138: =IF(MONTH(KCITempAct[[#This Row],[Date]])=7,0,IF(MONTH(KCITempAct[[#This Row],[Date]])=8,0,KCITempAct[[#This Row],[KCINHDD]])) -> 2.8 | I138: Adj HDD and NDD =0 for July and August
A139: 2018-05-18 | B139: 85 | C139: 58 | D139: =AVERAGE(KCITempAct[[#This Row],[KCIHigh]:[KCILow]] ) -> 71.5 | E139: =IF(KCITempAct[[#This Row],[KCIAve]]<65,(65-KCITempAct[[#This Row],[KCIAve]]),0) -> 0 | F139: =IF(MONTH(KCITempAct[[#This Row],[Date]])=7,0,IF(MONTH(KCITempAct[[#This Row],[Date]])=8,0,KCITempAct[[#This Row],[KCIHDD]])) -> 0 | G139: =SUMPRODUCT((KCINHDD[Month]=MONTH(KCITempAct[[#This Row],[Date]]))*(KCINHDD[Day]=DAY(KCITempAct[[#This Row],[Date]]))*KCINHDD[KCINHDD]) -> 2.7 | H139: =IF(MONTH(KCITempAct[[#This Row],[Date]])=7,0,IF(MONTH(KCITempAct[[#This Row],[Date]])=8,0,KCITempAct[[#This Row],[KCINHDD]])) -> 2.7 | I139: Adj HDD and NDD =0 for July and August
A140: 2018-05-19 | B140: 81 | C140: 64 | D140: =AVERAGE(KCITempAct[[#This Row],[KCIHigh]:[KCILow]] ) -> 72.5 | E140: =IF(KCITempAct[[#This Row],[KCIAve]]<65,(65-KCITempAct[[#This Row],[KCIAve]]),0) -> 0 | F140: =IF(MONTH(KCITempAct[[#This Row],[Date]])=7,0,IF(MONTH(KCITempAct[[#This Row],[Date]])=8,0,KCITempAct[[#This Row],[KCIHDD]])) -> 0 | G140: =SUMPRODUCT((KCINHDD[Month]=MONTH(KCITempAct[[#This Row],[Date]]))*(KCINHDD[Day]=DAY(KCITempAct[[#This Row],[Date]]))*KCINHDD[KCINHDD]) -> 3.35 | H140: =IF(MONTH(KCITempAct[[#This Row],[Date]])=7,0,IF(MONTH(KCITempAct[[#This Row],[Date]])=8,0,KCITempAct[[#This Row],[KCINHDD]])) -> 3.35 | I140: Adj HDD and NDD =0 for July and August
A141: 2018-05-20 | B141: 71 | C141: 61 | D141: =AVERAGE(KCITempAct[[#This Row],[KCIHigh]:[KCILow]] ) -> 66 | E141: =IF(KCITempAct[[#This Row],[KCIAve]]<65,(65-KCITempAct[[#This Row],[KCIAve]]),0) -> 0 | F141: =IF(MONTH(KCITempAct[[#This Row],[Date]])=7,0,IF(MONTH(KCITempAct[[#This Row],[Date]])=8,0,KCITempAct[[#This Row],[KCIHDD]])) -> 0 | G141: =SUMPRODUCT((KCINHDD[Month]=MONTH(KCITempAct[[#This Row],[Date]]))*(KCINHDD[Day]=DAY(KCITempAct[[#This Row],[Date]]))*KCINHDD[KCINHDD]) -> 3.133333333 | H141: =IF(MONTH(KCITempAct[[#This Row],[Date]])=7,0,IF(MONTH(KCITempAct[[#This Row],[Date]])=8,0,KCITempAct[[#This Row],[KCINHDD]])) -> 3.133333333 | I141: Adj HDD and NDD =0 for July and August
A142: 2018-05-21 | B142: 72 | C142: 59 | D142: =AVERAGE(KCITempAct[[#This Row],[KCIHigh]:[KCILow]] ) -> 65.5 | E142: =IF(KCITempAct[[#This Row],[KCIAve]]<65,(65-KCITempAct[[#This Row],[KCIAve]]),0) -> 0 | F142: =IF(MONTH(KCITempAct[[#This Row],[Date]])=7,0,IF(MONTH(KCITempAct[[#This Row],[Date]])=8,0,KCITempAct[[#This Row],[KCIHDD]])) -> 0 | G142: =SUMPRODUCT((KCINHDD[Month]=MONTH(KCITempAct[[#This Row],[Date]]))*(KCINHDD[Day]=DAY(KCITempAct[[#This Row],[Date]]))*KCINHDD[KCINHDD]) -> 2.616666667 | H142: =IF(MONTH(KCITempAct[[#This Row],[Date]])=7,0,IF(MONTH(KCITempAct[[#This Row],[Date]])=8,0,KCITempAct[[#This Row],[KCINHDD]])) -> 2.616666667 | I142: Adj HDD and NDD =0 for July and August
A143: 2018-05-22 | B143: 85 | C143: 56 | D143: =AVERAGE(KCITempAct[[#This Row],[KCIHigh]:[KCILow]] ) -> 70.5 | E143: =IF(KCITempAct[[#This Row],[KCIAve]]<65,(65-KCITempAct[[#This Row],[KCIAve]]),0) -> 0 | F143: =IF(MONTH(KCITempAct[[#This Row],[Date]])=7,0,IF(MONTH(KCITempAct[[#This Row],[Date]])=8,0,KCITempAct[[#This Row],[KCIHDD]])) -> 0 | G143: =SUMPRODUCT((KCINHDD[Month]=MONTH(KCITempAct[[#This Row],[Date]]))*(KCINHDD[Day]=DAY(KCITempAct[[#This Row],[Date]]))*KCINHDD[KCINHDD]) -> 1.433333333 | H143: =IF(MONTH(KCITempAct[[#This Row],[Date]])=7,0,IF(MONTH(KCITempAct[[#This Row],[Date]])=8,0,KCITempAct[[#This Row],[KCINHDD]])) -> 1.433333333 | I143: Adj HDD and NDD =0 for July and August
A144: 2018-05-23 | B144: 88 | C144: 66 | D144: =AVERAGE(KCITempAct[[#This Row],[KCIHigh]:[KCILow]] ) -> 77 | E144: =IF(KCITempAct[[#This Row],[KCIAve]]<65,(65-KCITempAct[[#This Row],[KCIAve]]),0) -> 0 | F144: =IF(MONTH(KCITempAct[[#This Row],[Date]])=7,0,IF(MONTH(KCITempAct[[#This Row],[Date]])=8,0,KCITempAct[[#This Row],[KCIHDD]])) -> 0 | G144: =SUMPRODUCT((KCINHDD[Month]=MONTH(KCITempAct[[#This Row],[Date]]))*(KCINHDD[Day]=DAY(KCITempAct[[#This Row],[Date]]))*KCINHDD[KCINHDD]) -> 1.566666667 | H144: =IF(MONTH(KCITempAct[[#This Row],[Date]])=7,0,IF(MONTH(KCITempAct[[#This Row],[Date]])=8,0,KCITempAct[[#This Row],[KCINHDD]])) -> 1.566666667 | I144: Adj HDD and NDD =0 for July and August
A145: 2018-05-24 | B145: 85 | C145: 64 | D145: =AVERAGE(KCITempAct[[#This Row],[KCIHigh]:[KCILow]] ) -> 74.5 | E145: =IF(KCITempAct[[#This Row],[KCIAve]]<65,(65-KCITempAct[[#This Row],[KCIAve]]),0) -> 0 | F145: =IF(MONTH(KCITempAct[[#This Row],[Date]])=7,0,IF(MONTH(KCITempAct[[#This Row],[Date]])=8,0,KCITempAct[[#This Row],[KCIHDD]])) -> 0 | G145: =SUMPRODUCT((KCINHDD[Month]=MONTH(KCITempAct[[#This Row],[Date]]))*(KCINHDD[Day]=DAY(KCITempAct[[#This Row],[Date]]))*KCINHDD[KCINHDD]) -> 2.3 | H145: =IF(MONTH(KCITempAct[[#This Row],[Date]])=7,0,IF(MONTH(KCITempAct[[#This Row],[Date]])=8,0,KCITempAct[[#This Row],[KCINHDD]])) -> 2.3 | I145: Adj HDD and NDD =0 for July and August
A146: 2018-05-25 | B146: 85 | C146: 66 | D146: =AVERAGE(KCITempAct[[#This Row],[KCIHigh]:[KCILow]] ) -> 75.5 | E146: =IF(KCITempAct[[#This Row],[KCIAve]]<65,(65-KCITempAct[[#This Row],[KCIAve]]),0) -> 0 | F146: =IF(MONTH(KCITempAct[[#This Row],[Date]])=7,0,IF(MONTH(KCITempAct[[#This Row],[Date]])=8,0,KCITempAct[[#This Row],[KCIHDD]])) -> 0 | G146: =SUMPRODUCT((KCINHDD[Month]=MONTH(KCITempAct[[#This Row],[Date]]))*(KCINHDD[Day]=DAY(KCITempAct[[#This Row],[Date]]))*KCINHDD[KCINHDD]) -> 1.883333333 | H146: =IF(MONTH(KCITempAct[[#This Row],[Date]])=7,0,IF(MONTH(KCITempAct[[#This Row],[Date]])=8,0,KCITempAct[[#This Row],[KCINHDD]])) -> 1.883333333 | I146: Adj HDD and NDD =0 for July and August
A147: 2018-05-26 | B147: 93 | C147: 68 | D147: =AVERAGE(KCITempAct[[#This Row],[KCIHigh]:[KCILow]] ) -> 80.5 | E147: =IF(KCITempAct[[#This Row],[KCIAve]]<65,(65-KCITempAct[[#This Row],[KCIAve]]),0) -> 0 | F147: =IF(MONTH(KCITempAct[[#This Row],[Date]])=7,0,IF(MONTH(KCITempAct[[#This Row],[Date]])=8,0,KCITempAct[[#This Row],[KCIHDD]])) -> 0 | G147: =SUMPRODUCT((KCINHDD[Month]=MONTH(KCITempAct[[#This Row],[Date]]))*(KCINHDD[Day]=DAY(KCITempAct[[#This Row],[Date]]))*KCINHDD[KCINHDD]) -> 2.033333333 | H147: =IF(MONTH(KCITempAct[[#This Row],[Date]])=7,0,IF(MONTH(KCITempAct[[#This Row],[Date]])=8,0,KCITempAct[[#This Row],[KCINHDD]])) -> 2.033333333 | I147: Adj HDD and NDD =0 for July and August
A148: 2018-05-27 | B148: 93 | C148: 69 | D148: =AVERAGE(KCITempAct[[#This Row],[KCIHigh]:[KCILow]] ) -> 81 | E148: =IF(KCITempAct[[#This Row],[KCIAve]]<65,(65-KCITempAct[[#This Row],[KCIAve]]),0) -> 0 | F148: =IF(MONTH(KCITempAct[[#This Row],[Date]])=7,0,IF(MONTH(KCITempAct[[#This Row],[Date]])=8,0,KCITempAct[[#This Row],[KCIHDD]])) -> 0 | G148: =SUMPRODUCT((KCINHDD[Month]=MONTH(KCITempAct[[#This Row],[Date]]))*(KCINHDD[Day]=DAY(KCITempAct[[#This Row],[Date]]))*KCINHDD[KCINHDD]) -> 1.733333333 | H148: =IF(MONTH(KCITempAct[[#This Row],[Date]])=7,0,IF(MONTH(KCITempAct[[#This Row],[Date]])=8,0,KCITempAct[[#This Row],[KCINHDD]])) -> 1.733333333 | I148: Adj HDD and NDD =0 for July and August
A149: 2018-05-28 | B149: 94 | C149: 70 | D149: =AVERAGE(KCITempAct[[#This Row],[KCIHigh]:[KCILow]] ) -> 82 | E149: =IF(KCITempAct[[#This Row],[KCIAve]]<65,(65-KCITempAct[[#This Row],[KCIAve]]),0) -> 0 | F149: =IF(MONTH(KCITempAct[[#This Row],[Date]])=7,0,IF(MONTH(KCITempAct[[#This Row],[Date]])=8,0,KCITempAct[[#This Row],[KCIHDD]])) -> 0 | G149: =SUMPRODUCT((KCINHDD[Month]=MONTH(KCITempAct[[#This Row],[Date]]))*(KCINHDD[Day]=DAY(KCITempAct[[#This Row],[Date]]))*KCINHDD[KCINHDD]) -> 1.85 | H149: =IF(MONTH(KCITempAct[[#This Row],[Date]])=7,0,IF(MONTH(KCITempAct[[#This Row],[Date]])=8,0,KCITempAct[[#This Row],[KCINHDD]])) -> 1.85 | I149: Adj HDD and NDD =0 for July and August
A150: 2018-05-29 | B150: 91 | C150: 64 | D150: =AVERAGE(KCITempAct[[#This Row],[KCIHigh]:[KCILow]] ) -> 77.5 | E150: =IF(KCITempAct[[#This Row],[KCIAve]]<65,(65-KCITempAct[[#This Row],[KCIAve]]),0) -> 0 | F150: =IF(MONTH(KCITempAct[[#This Row],[Date]])=7,0,IF(MONTH(KCITempAct[[#This Row],[Date]])=8,0,KCITempAct[[#This Row],[KCIHDD]])) -> 0 | G150: =SUMPRODUCT((KCINHDD[Month]=MONTH(KCITempAct[[#This Row],[Date]]))*(KCINHDD[Day]=DAY(KCITempAct[[#This Row],[Date]]))*KCINHDD[KCINHDD]) -> 1.166666667 | H150: =IF(MONTH(KCITempAct[[#This Row],[Date]])=7,0,IF(MONTH(KCITempAct[[#This Row],[Date]])=8,0,KCITempAct[[#This Row],[KCINHDD]])) -> 1.166666667 | I150: Adj HDD and NDD =0 for July and August
A151: 2018-05-30 | B151: 86 | C151: 61 | D151: =AVERAGE(KCITempAct[[#This Row],[KCIHigh]:[KCILow]] ) -> 73.5 | E151: =IF(KCITempAct[[#This Row],[KCIAve]]<65,(65-KCITempAct[[#This Row],[KCIAve]]),0) -> 0 | F151: =IF(MONTH(KCITempAct[[#This Row],[Date]])=7,0,IF(MONTH(KCITempAct[[#This Row],[Date]])=8,0,KCITempAct[[#This Row],[KCIHDD]])) -> 0 | G151: =SUMPRODUCT((KCINHDD[Month]=MONTH(KCITempAct[[#This Row],[Date]]))*(KCINHDD[Day]=DAY(KCITempAct[[#This Row],[Date]]))*KCINHDD[KCINHDD]) -> 0.8 | H151: =IF(MONTH(KCITempAct[[#This Row],[Date]])=7,0,IF(MONTH(KCITempAct[[#This Row],[Date]])=8,0,KCITempAct[[#This Row],[KCINHDD]])) -> 0.8 | I151: Adj HDD and NDD =0 for July and August
A152: 2018-05-31 | B152: 91 | C152: 68 | D152: =AVERAGE(KCITempAct[[#This Row],[KCIHigh]:[KCILow]] ) -> 79.5 | E152: =IF(KCITempAct[[#This Row],[KCIAve]]<65,(65-KCITempAct[[#This Row],[KCIAve]]),0) -> 0 | F152: =IF(MONTH(KCITempAct[[#This Row],[Date]])=7,0,IF(MONTH(KCITempAct[[#This Row],[Date]])=8,0,KCITempAct[[#This Row],[KCIHDD]])) -> 0 | G152: =SUMPRODUCT((KCINHDD[Month]=MONTH(KCITempAct[[#This Row],[Date]]))*(KCINHDD[Day]=DAY(KCITempAct[[#This Row],[Date]]))*KCINHDD[KCINHDD]) -> 1.2 | H152: =IF(MONTH(KCITempAct[[#This Row],[Date]])=7,0,IF(MONTH(KCITempAct[[#This Row],[Date]])=8,0,KCITempAct[[#This Row],[KCINHDD]])) -> 1.2 | I152: Adj HDD and NDD =0 for July and August
A153: 2018-06-01 | B153: 91 | C153: 67 | D153: =AVERAGE(KCITempAct[[#This Row],[KCIHigh]:[KCILow]] ) -> 79 | E153: =IF(KCITempAct[[#This Row],[KCIAve]]<65,(65-KCITempAct[[#This Row],[KCIAve]]),0) -> 0 | F153: =IF(MONTH(KCITempAct[[#This Row],[Date]])=7,0,IF(MONTH(KCITempAct[[#This Row],[Date]])=8,0,KCITempAct[[#This Row],[KCIHDD]])) -> 0 | G153: =SUMPRODUCT((KCINHDD[Month]=MONTH(KCITempAct[[#This Row],[Date]]))*(KCINHDD[Day]=DAY(KCITempAct[[#This Row],[Date]]))*KCINHDD[KCINHDD]) -> 0.8833333333 | H153: =IF(MONTH(KCITempAct[[#This Row],[Date]])=7,0,IF(MONTH(KCITempAct[[#This Row],[Date]])=8,0,KCITempAct[[#This Row],[KCINHDD]])) -> 0.8833333333 | I153: Adj HDD and NDD =0 for July and August
A154: 2018-06-02 | B154: 82 | C154: 62 | D154: =AVERAGE(KCITempAct[[#This Row],[KCIHigh]:[KCILow]] ) -> 72 | E154: =IF(KCITempAct[[#This Row],[KCIAve]]<65,(65-KCITempAct[[#This Row],[KCIAve]]),0) -> 0 | F154: =IF(MONTH(KCITempAct[[#This Row],[Date]])=7,0,IF(MONTH(KCITempAct[[#This Row],[Date]])=8,0,KCITempAct[[#This Row],[KCIHDD]])) -> 0 | G154: =SUMPRODUCT((KCINHDD[Month]=MONTH(KCITempAct[[#This Row],[Date]]))*(KCINHDD[Day]=DAY(KCITempAct[[#This Row],[Date]]))*KCINHDD[KCINHDD]) -> 0.65 | H154: =IF(MONTH(KCITempAct[[#This Row],[Date]])=7,0,IF(MONTH(KCITempAct[[#This Row],[Date]])=8,0,KCITempAct[[#This Row],[KCINHDD]])) -> 0.65 | I154: Adj HDD and NDD =0 for July and August
A155: 2018-06-03 | B155: 82 | C155: 57 | D155: =AVERAGE(KCITempAct[[#This Row],[KCIHigh]:[KCILow]] ) -> 69.5 | E155: =IF(KCITempAct[[#This Row],[KCIAve]]<65,(65-KCITempAct[[#This Row],[KCIAve]]),0) -> 0 | F155: =IF(MONTH(KCITempAct[[#This Row],[Date]])=7,0,IF(MONTH(KCITempAct[[#This Row],[Date]])=8,0,KCITempAct[[#This Row],[KCIHDD]])) -> 0 | G155: =SUMPRODUCT((KCINHDD[Month]=MONTH(KCITempAct[[#This Row],[Date]]))*(KCINHDD[Day]=DAY(KCITempAct[[#This Row],[Date]]))*KCINHDD[KCINHDD]) -> 0.9166666667 | H155: =IF(MONTH(KCITempAct[[#This Row],[Date]])=7,0,IF(MONTH(KCITempAct[[#This Row],[Date]])=8,0,KCITempAct[[#This Row],[KCINHDD]])) -> 0.9166666667 | I155: Adj HDD and NDD =0 for July and August
A156: 2018-06-04 | B156: 76 | C156: 61 | D156: =AVERAGE(KCITempAct[[#This Row],[KCIHigh]:[KCILow]] ) -> 68.5 | E156: =IF(KCITempAct[[#This Row],[KCIAve]]<65,(65-KCITempAct[[#This Row],[KCIAve]]),0) -> 0 | F156: =IF(MONTH(KCITempAct[[#This Row],[Date]])=7,0,IF(MONTH(KCITempAct[[#This Row],[Date]])=8,0,KCITempAct[[#This Row],[KCIHDD]])) -> 0 | G156: =SUMPRODUCT((KCINHDD[Month]=MONTH(KCITempAct[[#This Row],[Date]]))*(KCINHDD[Day]=DAY(KCITempAct[[#This Row],[Date]]))*KCINHDD[KCINHDD]) -> 1.2 | H156: =IF(MONTH(KCITempAct[[#This Row],[Date]])=7,0,IF(MONTH(KCITempAct[[#This Row],[Date]])=8,0,KCITempAct[[#This Row],[KCINHDD]])) -> 1.2 | I156: Adj HDD and NDD =0 for July and August
A157: 2018-06-05 | B157: 86 | C157: 56 | D157: =AVERAGE(KCITempAct[[#This Row],[KCIHigh]:[KCILow]] ) -> 71 | E157: =IF(KCITempAct[[#This Row],[KCIAve]]<65,(65-KCITempAct[[#This Row],[KCIAve]]),0) -> 0 | F157: =IF(MONTH(KCITempAct[[#This Row],[Date]])=7,0,IF(MONTH(KCITempAct[[#This Row],[Date]])=8,0,KCITempAct[[#This Row],[KCIHDD]])) -> 0 | G157: =SUMPRODUCT((KCINHDD[Month]=MONTH(KCITempAct[[#This Row],[Date]]))*(KCINHDD[Day]=DAY(KCITempAct[[#This Row],[Date]]))*KCINHDD[KCINHDD]) -> 0.6833333333 | H157: =IF(MONTH(KCITempAct[[#This Row],[Date]])=7,0,IF(MONTH(KCITempAct[[#This Row],[Date]])=8,0,KCITempAct[[#This Row],[KCINHDD]])) -> 0.6833333333 | I157: Adj HDD and NDD =0 for July and August
A158: 2018-06-06 | B158: 90 | C158: 64 | D158: =AVERAGE(KCITempAct[[#This Row],[KCIHigh]:[KCILow]] ) -> 77 | E158: =IF(KCITempAct[[#This Row],[KCIAve]]<65,(65-KCITempAct[[#This Row],[KCIAve]]),0) -> 0 | F158: =IF(MONTH(KCITempAct[[#This Row],[Date]])=7,0,IF(MONTH(KCITempAct[[#This Row],[Date]])=8,0,KCITempAct[[#This Row],[KCIHDD]])) -> 0 | G158: =SUMPRODUCT((KCINHDD[Month]=MONTH(KCITempAct[[#This Row],[Date]]))*(KCINHDD[Day]=DAY(KCITempAct[[#This Row],[Date]]))*KCINHDD[KCINHDD]) -> 0.3166666667 | H158: =IF(MONTH(KCITempAct[[#This Row],[Date]])=7,0,IF(MONTH(KCITempAct[[#This Row],[Date]])=8,0,KCITempAct[[#This Row],[KCINHDD]])) -> 0.3166666667 | I158: Adj HDD and NDD =0 for July and August
A159: 2018-06-07 | B159: 88 | C159: 66 | D159: =AVERAGE(KCITempAct[[#This Row],[KCIHigh]:[KCILow]] ) -> 77 | E159: =IF(KCITempAct[[#This Row],[KCIAve]]<65,(65-KCITempAct[[#This Row],[KCIAve]]),0) -> 0 | F159: =IF(MONTH(KCITempAct[[#This Row],[Date]])=7,0,IF(MONTH(KCITempAct[[#This Row],[Date]])=8,0,KCITempAct[[#This Row],[KCIHDD]])) -> 0 | G159: =SUMPRODUCT((KCINHDD[Month]=MONTH(KCITempAct[[#This Row],[Date]]))*(KCINHDD[Day]=DAY(KCITempAct[[#This Row],[Date]]))*KCINHDD[KCINHDD]) -> 0.3 | H159: =IF(MONTH(KCITempAct[[#This Row],[Date]])=7,0,IF(MONTH(KCITempAct[[#This Row],[Date]])=8,0,KCITempAct[[#This Row],[KCINHDD]])) -> 0.3 | I159: Adj HDD and NDD =0 for July and August
A160: 2018-06-08 | B160: 92 | C160: 66 | D160: =AVERAGE(KCITempAct[[#This Row],[KCIHigh]:[KCILow]] ) -> 79 | E160: =IF(KCITempAct[[#This Row],[KCIAve]]<65,(65-KCITempAct[[#This Row],[KCIAve]]),0) -> 0 | F160: =IF(MONTH(KCITempAct[[#This Row],[Date]])=7,0,IF(MONTH(KCITempAct[[#This Row],[Date]])=8,0,KCITempAct[[#This Row],[KCIHDD]])) -> 0 | G160: =SUMPRODUCT((KCINHDD[Month]=MONTH(KCITempAct[[#This Row],[Date]]))*(KCINHDD[Day]=DAY(KCITempAct[[#This Row],[Date]]))*KCINHDD[KCINHDD]) -> 0.2166666667 | H160: =IF(MONTH(KCITempAct[[#This Row],[Date]])=7,0,IF(MONTH(KCITempAct[[#This Row],[Date]])=8,0,KCITempAct[[#This Row],[KCINHDD]])) -> 0.2166666667 | I160: Adj HDD and NDD =0 for July and August
A161: 2018-06-09 | B161: 91 | C161: 70 | D161: =AVERAGE(KCITempAct[[#This Row],[KCIHigh]:[KCILow]] ) -> 80.5 | E161: =IF(KCITempAct[[#This Row],[KCIAve]]<65,(65-KCITempAct[[#This Row],[KCIAve]]),0) -> 0 | F161: =IF(MONTH(KCITempAct[[#This Row],[Date]])=7,0,IF(MONTH(KCITempAct[[#This Row],[Date]])=8,0,KCITempAct[[#This Row],[KCIHDD]])) -> 0 | G161: =SUMPRODUCT((KCINHDD[Month]=MONTH(KCITempAct[[#This Row],[Date]]))*(KCINHDD[Day]=DAY(KCITempAct[[#This Row],[Date]]))*KCINHDD[KCINHDD]) -> 0.1666666667 | H161: =IF(MONTH(KCITempAct[[#This Row],[Date]])=7,0,IF(MONTH(KCITempAct[[#This Row],[Date]])=8,0,KCITempAct[[#This Row],[KCINHDD]])) -> 0.1666666667 | I161: Adj HDD and NDD =0 for July and August
A162: 2018-06-10 | B162: 94 | C162: 75 | D162: =AVERAGE(KCITempAct[[#This Row],[KCIHigh]:[KCILow]] ) -> 84.5 | E162: =IF(KCITempAct[[#This Row],[KCIAve]]<65,(65-KCITempAct[[#This Row],[KCIAve]]),0) -> 0 | F162: =IF(MONTH(KCITempAct[[#This Row],[Date]])=7,0,IF(MONTH(KCITempAct[[#This Row],[Date]])=8,0,KCITempAct[[#This Row],[KCIHDD]])) -> 0 | G162: =SUMPRODUCT((KCINHDD[Month]=MONTH(KCITempAct[[#This Row],[Date]]))*(KCINHDD[Day]=DAY(KCITempAct[[#This Row],[Date]]))*KCINHDD[KCINHDD]) -> 0.03333333333 | H162: =IF(MONTH(KCITempAct[[#This Row],[Date]])=7,0,IF(MONTH(KCITempAct[[#This Row],[Date]])=8,0,KCITempAct[[#This Row],[KCINHDD]])) -> 0.03333333333 | I162: Adj HDD and NDD =0 for July and August
A163: 2018-06-11 | B163: 95 | C163: 68 | D163: =AVERAGE(KCITempAct[[#This Row],[KCIHigh]:[KCILow]] ) -> 81.5 | E163: =IF(KCITempAct[[#This Row],[KCIAve]]<65,(65-KCITempAct[[#This Row],[KCIAve]]),0) -> 0 | F163: =IF(MONTH(KCITempAct[[#This Row],[Date]])=7,0,IF(MONTH(KCITempAct[[#This Row],[Date]])=8,0,KCITempAct[[#This Row],[KCIHDD]])) -> 0 | G163: =SUMPRODUCT((KCINHDD[Month]=MONTH(KCITempAct[[#This Row],[Date]]))*(KCINHDD[Day]=DAY(KCITempAct[[#This Row],[Date]]))*KCINHDD[KCINHDD]) -> 0.05 | H163: =IF(MONTH(KCITempAct[[#This Row],[Date]])=7,0,IF(MONTH(KCITempAct[[#This Row],[Date]])=8,0,KCITempAct[[#This Row],[KCINHDD]])) -> 0.05 | I163: Adj HDD and NDD =0 for July and August
A164: 2018-06-12 | B164: 86 | C164: 68 | D164: =AVERAGE(KCITempAct[[#This Row],[KCIHigh]:[KCILow]] ) -> 77 | E164: =IF(KCITempAct[[#This Row],[KCIAve]]<65,(65-KCITempAct[[#This Row],[KCIAve]]),0) -> 0 | F164: =IF(MONTH(KCITempAct[[#This Row],[Date]])=7,0,IF(MONTH(KCITempAct[[#This Row],[Date]])=8,0,KCITempAct[[#This Row],[KCIHDD]])) -> 0 | G164: =SUMPRODUCT((KCINHDD[Month]=MONTH(KCITempAct[[#This Row],[Date]]))*(KCINHDD[Day]=DAY(KCITempAct[[#This Row],[Date]]))*KCINHDD[KCINHDD]) -> 0.03333333333 | H164: =IF(MONTH(KCITempAct[[#This Row],[Date]])=7,0,IF(MONTH(KCITempAct[[#This Row],[Date]])=8,0,KCITempAct[[#This Row],[KCINHDD]])) -> 0.03333333333 | I164: Adj HDD and NDD =0 for July and August
A165: 2018-06-13 | B165: 83 | C165: 71 | D165: =AVERAGE(KCITempAct[[#This Row],[KCIHigh]:[KCILow]] ) -> 77 | E165: =IF(KCITempAct[[#This Row],[KCIAve]]<65,(65-KCITempAct[[#This Row],[KCIAve]]),0) -> 0 | F165: =IF(MONTH(KCITempAct[[#This Row],[Date]])=7,0,IF(MONTH(KCITempAct[[#This Row],[Date]])=8,0,KCITempAct[[#This Row],[KCIHDD]])) -> 0 | G165: =SUMPRODUCT((KCINHDD[Month]=MONTH(KCITempAct[[#This Row],[Date]]))*(KCINHDD[Day]=DAY(KCITempAct[[#This Row],[Date]]))*KCINHDD[KCINHDD]) -> 0.05 | H165: =IF(MONTH(KCITempAct[[#This Row],[Date]])=7,0,IF(MONTH(KCITempAct[[#This Row],[Date]])=8,0,KCITempAct[[#This Row],[KCINHDD]])) -> 0.05 | I165: Adj HDD and NDD =0 for July and August
A166: 2018-06-14 | B166: 96 | C166: 71 | D166: =AVERAGE(KCITempAct[[#This Row],[KCIHigh]:[KCILow]] ) -> 83.5 | E166: =IF(KCITempAct[[#This Row],[KCIAve]]<65,(65-KCITempAct[[#This Row],[KCIAve]]),0) -> 0 | F166: =IF(MONTH(KCITempAct[[#This Row],[Date]])=7,0,IF(MONTH(KCITempAct[[#This Row],[Date]])=8,0,KCITempAct[[#This Row],[KCIHDD]])) -> 0 | G166: =SUMPRODUCT((KCINHDD[Month]=MONTH(KCITempAct[[#This Row],[Date]]))*(KCINHDD[Day]=DAY(KCITempAct[[#This Row],[Date]]))*KCINHDD[KCINHDD]) -> 0 | H166: =IF(MONTH(KCITempAct[[#This Row],[Date]])=7,0,IF(MONTH(KCITempAct[[#This Row],[Date]])=8,0,KCITempAct[[#This Row],[KCINHDD]])) -> 0 | I166: Adj HDD and NDD =0 for July and August
A167: 2018-06-15 | B167: 95 | C167: 75 | D167: =AVERAGE(KCITempAct[[#This Row],[KCIHigh]:[KCILow]] ) -> 85 | E167: =IF(KCITempAct[[#This Row],[KCIAve]]<65,(65-KCITempAct[[#This Row],[KCIAve]]),0) -> 0 | F167: =IF(MONTH(KCITempAct[[#This Row],[Date]])=7,0,IF(MONTH(KCITempAct[[#This Row],[Date]])=8,0,KCITempAct[[#This Row],[KCIHDD]])) -> 0 | G167: =SUMPRODUCT((KCINHDD[Month]=MONTH(KCITempAct[[#This Row],[Date]]))*(KCINHDD[Day]=DAY(KCITempAct[[#This Row],[Date]]))*KCINHDD[KCINHDD]) -> 0 | H167: =IF(MONTH(KCITempAct[[#This Row],[Date]])=7,0,IF(MONTH(KCITempAct[[#This Row],[Date]])=8,0,KCITempAct[[#This Row],[KCINHDD]])) -> 0 | I167: Adj HDD and NDD =0 for July and August
A168: 2018-06-16 | B168: 95 | C168: 73 | D168: =AVERAGE(KCITempAct[[#This Row],[KCIHigh]:[KCILow]] ) -> 84 | E168: =IF(KCITempAct[[#This Row],[KCIAve]]<65,(65-KCITempAct[[#This Row],[KCIAve]]),0) -> 0 | F168: =IF(MONTH(KCITempAct[[#This Row],[Date]])=7,0,IF(MONTH(KCITempAct[[#This Row],[Date]])=8,0,KCITempAct[[#This Row],[KCIHDD]])) -> 0 | G168: =SUMPRODUCT((KCINHDD[Month]=MONTH(KCITempAct[[#This Row],[Date]]))*(KCINHDD[Day]=DAY(KCITempAct[[#This Row],[Date]]))*KCINHDD[KCINHDD]) -> 0.25 | H168: =IF(MONTH(KCITempAct[[#This Row],[Date]])=7,0,IF(MONTH(KCITempAct[[#This Row],[Date]])=8,0,KCITempAct[[#This Row],[KCINHDD]])) -> 0.25 | I168: Adj HDD and NDD =0 for July and August
A169: 2018-06-17 | B169: 95 | C169: 74 | D169: =AVERAGE(KCITempAct[[#This Row],[KCIHigh]:[KCILow]] ) -> 84.5 | E169: =IF(KCITempAct[[#This Row],[KCIAve]]<65,(65-KCITempAct[[#This Row],[KCIAve]]),0) -> 0 | F169: =IF(MONTH(KCITempAct[[#This Row],[Date]])=7,0,IF(MONTH(KCITempAct[[#This Row],[Date]])=8,0,KCITempAct[[#This Row],[KCIHDD]])) -> 0 | G169: =SUMPRODUCT((KCINHDD[Month]=MONTH(KCITempAct[[#This Row],[Date]]))*(KCINHDD[Day]=DAY(KCITempAct[[#This Row],[Date]]))*KCINHDD[KCINHDD]) -> 0.25 | H169: =IF(MONTH(KCITempAct[[#This Row],[Date]])=7,0,IF(MONTH(KCITempAct[[#This Row],[Date]])=8,0,KCITempAct[[#This Row],[KCINHDD]])) -> 0.25 | I169: Adj HDD and NDD =0 for July and August
A170: 2018-06-18 | B170: 94 | C170: 73 | D170: =AVERAGE(KCITempAct[[#This Row],[KCIHigh]:[KCILow]] ) -> 83.5 | E170: =IF(KCITempAct[[#This Row],[KCIAve]]<65,(65-KCITempAct[[#This Row],[KCIAve]]),0) -> 0 | F170: =IF(MONTH(KCITempAct[[#This Row],[Date]])=7,0,IF(MONTH(KCITempAct[[#This Row],[Date]])=8,0,KCITempAct[[#This Row],[KCIHDD]])) -> 0 | G170: =SUMPRODUCT((KCINHDD[Month]=MONTH(KCITempAct[[#This Row],[Date]]))*(KCINHDD[Day]=DAY(KCITempAct[[#This Row],[Date]]))*KCINHDD[KCINHDD]) -> 0.08333333333 | H170: =IF(MONTH(KCITempAct[[#This Row],[Date]])=7,0,IF(MONTH(KCITempAct[[#This Row],[Date]])=8,0,KCITempAct[[#This Row],[KCINHDD]])) -> 0.08333333333 | I170: Adj HDD and NDD =0 for July and August
A171: 2018-06-19 | B171: 83 | C171: 68 | D171: =AVERAGE(KCITempAct[[#This Row],[KCIHigh]:[KCILow]] ) -> 75.5 | E171: =IF(KCITempAct[[#This Row],[KCIAve]]<65,(65-KCITempAct[[#This Row],[KCIAve]]),0) -> 0 | F171: =IF(MONTH(KCITempAct[[#This Row],[Date]])=7,0,IF(MONTH(KCITempAct[[#This Row],[Date]])=8,0,KCITempAct[[#This Row],[KCIHDD]])) -> 0 | G171: =SUMPRODUCT((KCINHDD[Month]=MONTH(KCITempAct[[#This Row],[Date]]))*(KCINHDD[Day]=DAY(KCITempAct[[#This Row],[Date]]))*KCINHDD[KCINHDD]) -> 0.06666666667 | H171: =IF(MONTH(KCITempAct[[#This Row],[Date]])=7,0,IF(MONTH(KCITempAct[[#This Row],[Date]])=8,0,KCITempAct[[#This Row],[KCINHDD]])) -> 0.06666666667 | I171: Adj HDD and NDD =0 for July and August
A172: 2018-06-20 | B172: 83 | C172: 65 | D172: =AVERAGE(KCITempAct[[#This Row],[KCIHigh]:[KCILow]] ) -> 74 | E172: =IF(KCITempAct[[#This Row],[KCIAve]]<65,(65-KCITempAct[[#This Row],[KCIAve]]),0) -> 0 | F172: =IF(MONTH(KCITempAct[[#This Row],[Date]])=7,0,IF(MONTH(KCITempAct[[#This Row],[Date]])=8,0,KCITempAct[[#This Row],[KCIHDD]])) -> 0 | G172: =SUMPRODUCT((KCINHDD[Month]=MONTH(KCITempAct[[#This Row],[Date]]))*(KCINHDD[Day]=DAY(KCITempAct[[#This Row],[Date]]))*KCINHDD[KCINHDD]) -> 0.05 | H172: =IF(MONTH(KCITempAct[[#This Row],[Date]])=7,0,IF(MONTH(KCITempAct[[#This Row],[Date]])=8,0,KCITempAct[[#This Row],[KCINHDD]])) -> 0.05 | I172: Adj HDD and NDD =0 for July and August
A173: 2018-06-21 | B173: 70 | C173: 62 | D173: =AVERAGE(KCITempAct[[#This Row],[KCIHigh]:[KCILow]] ) -> 66 | E173: =IF(KCITempAct[[#This Row],[KCIAve]]<65,(65-KCITempAct[[#This Row],[KCIAve]]),0) -> 0 | F173: =IF(MONTH(KCITempAct[[#This Row],[Date]])=7,0,IF(MONTH(KCITempAct[[#This Row],[Date]])=8,0,KCITempAct[[#This Row],[KCIHDD]])) -> 0 | G173: =SUMPRODUCT((KCINHDD[Month]=MONTH(KCITempAct[[#This Row],[Date]]))*(KCINHDD[Day]=DAY(KCITempAct[[#This Row],[Date]]))*KCINHDD[KCINHDD]) -> 0.1 | H173: =IF(MONTH(KCITempAct[[#This Row],[Date]])=7,0,IF(MONTH(KCITempAct[[#This Row],[Date]])=8,0,KCITempAct[[#This Row],[KCINHDD]])) -> 0.1 | I173: Adj HDD and NDD =0 for July and August
A174: 2018-06-22 | B174: 72 | C174: 62 | D174: =AVERAGE(KCITempAct[[#This Row],[KCIHigh]:[KCILow]] ) -> 67 | E174: =IF(KCITempAct[[#This Row],[KCIAve]]<65,(65-KCITempAct[[#This Row],[KCIAve]]),0) -> 0 | F174: =IF(MONTH(KCITempAct[[#This Row],[Date]])=7,0,IF(MONTH(KCITempAct[[#This Row],[Date]])=8,0,KCITempAct[[#This Row],[KCIHDD]])) -> 0 | G174: =SUMPRODUCT((KCINHDD[Month]=MONTH(KCITempAct[[#This Row],[Date]]))*(KCINHDD[Day]=DAY(KCITempAct[[#This Row],[Date]]))*KCINHDD[KCINHDD]) -> 0 | H174: =IF(MONTH(KCITempAct[[#This Row],[Date]])=7,0,IF(MONTH(KCITempAct[[#This Row],[Date]])=8,0,KCITempAct[[#This Row],[KCINHDD]])) -> 0 | I174: Adj HDD and NDD =0 for July and August
A175: 2018-06-23 | B175: 83 | C175: 61 | D175: =AVERAGE(KCITempAct[[#This Row],[KCIHigh]:[KCILow]] ) -> 72 | E175: =IF(KCITempAct[[#This Row],[KCIAve]]<65,(65-KCITempAct[[#This Row],[KCIAve]]),0) -> 0 | F175: =IF(MONTH(KCITempAct[[#This Row],[Date]])=7,0,IF(MONTH(KCITempAct[[#This Row],[Date]])=8,0,KCITempAct[[#This Row],[KCIHDD]])) -> 0 | G175: =SUMPRODUCT((KCINHDD[Month]=MONTH(KCITempAct[[#This Row],[Date]]))*(KCINHDD[Day]=DAY(KCITempAct[[#This Row],[Date]]))*KCINHDD[KCINHDD]) -> 0 | H175: =IF(MONTH(KCITempAct[[#This Row],[Date]])=7,0,IF(MONTH(KCITempAct[[#This Row],[Date]])=8,0,KCITempAct[[#This Row],[KCINHDD]])) -> 0 | I175: Adj HDD and NDD =0 for July and August
A176: 2018-06-24 | B176: 85 | C176: 67 | D176: =AVERAGE(KCITempAct[[#This Row],[KCIHigh]:[KCILow]] ) -> 76 | E176: =IF(KCITempAct[[#This Row],[KCIAve]]<65,(65-KCITempAct[[#This Row],[KCIAve]]),0) -> 0 | F176: =IF(MONTH(KCITempAct[[#This Row],[Date]])=7,0,IF(MONTH(KCITempAct[[#This Row],[Date]])=8,0,KCITempAct[[#This Row],[KCIHDD]])) -> 0 | G176: =SUMPRODUCT((KCINHDD[Month]=MONTH(KCITempAct[[#This Row],[Date]]))*(KCINHDD[Day]=DAY(KCITempAct[[#This Row],[Date]]))*KCINHDD[KCINHDD]) -> 0 | H176: =IF(MONTH(KCITempAct[[#This Row],[Date]])=7,0,IF(MONTH(KCITempAct[[#This Row],[Date]])=8,0,KCITempAct[[#This Row],[KCINHDD]])) -> 0 | I176: Adj HDD and NDD =0 for July and August
A177: 2018-06-25 | B177: 84 | C177: 68 | D177: =AVERAGE(KCITempAct[[#This Row],[KCIHigh]:[KCILow]] ) -> 76 | E177: =IF(KCITempAct[[#This Row],[KCIAve]]<65,(65-KCITempAct[[#This Row],[KCIAve]]),0) -> 0 | F177: =IF(MONTH(KCITempAct[[#This Row],[Date]])=7,0,IF(MONTH(KCITempAct[[#This Row],[Date]])=8,0,KCITempAct[[#This Row],[KCIHDD]])) -> 0 | G177: =SUMPRODUCT((KCINHDD[Month]=MONTH(KCITempAct[[#This Row],[Date]]))*(KCINHDD[Day]=DAY(KCITempAct[[#This Row],[Date]]))*KCINHDD[KCINHDD]) -> 0.1 | H177: =IF(MONTH(KCITempAct[[#This Row],[Date]])=7,0,IF(MONTH(KCITempAct[[#This Row],[Date]])=8,0,KCITempAct[[#This Row],[KCINHDD]])) -> 0.1 | I177: Adj HDD and NDD =0 for July and August
A178: 2018-06-26 | B178: 87 | C178: 67 | D178: =AVERAGE(KCITempAct[[#This Row],[KCIHigh]:[KCILow]] ) -> 77 | E178: =IF(KCITempAct[[#This Row],[KCIAve]]<65,(65-KCITempAct[[#This Row],[KCIAve]]),0) -> 0 | F178: =IF(MONTH(KCITempAct[[#This Row],[Date]])=7,0,IF(MONTH(KCITempAct[[#This Row],[Date]])=8,0,KCITempAct[[#This Row],[KCIHDD]])) -> 0 | G178: =SUMPRODUCT((KCINHDD[Month]=MONTH(KCITempAct[[#This Row],[Date]]))*(KCINHDD[Day]=DAY(KCITempAct[[#This Row],[Date]]))*KCINHDD[KCINHDD]) -> 0.05 | H178: =IF(MONTH(KCITempAct[[#This Row],[Date]])=7,0,IF(MONTH(KCITempAct[[#This Row],[Date]])=8,0,KCITempAct[[#This Row],[KCINHDD]])) -> 0.05 | I178: Adj HDD and NDD =0 for July and August
A179: 2018-06-27 | B179: 90 | C179: 68 | D179: =AVERAGE(KCITempAct[[#This Row],[KCIHigh]:[KCILow]] ) -> 79 | E179: =IF(KCITempAct[[#This Row],[KCIAve]]<65,(65-KCITempAct[[#This Row],[KCIAve]]),0) -> 0 | F179: =IF(MONTH(KCITempAct[[#This Row],[Date]])=7,0,IF(MONTH(KCITempAct[[#This Row],[Date]])=8,0,KCITempAct[[#This Row],[KCIHDD]])) -> 0 | G179: =SUMPRODUCT((KCINHDD[Month]=MONTH(KCITempAct[[#This Row],[Date]]))*(KCINHDD[Day]=DAY(KCITempAct[[#This Row],[Date]]))*KCINHDD[KCINHDD]) -> 0.03333333333 | H179: =IF(MONTH(KCITempAct[[#This Row],[Date]])=7,0,IF(MONTH(KCITempAct[[#This Row],[Date]])=8,0,KCITempAct[[#This Row],[KCINHDD]])) -> 0.03333333333 | I179: Adj HDD and NDD =0 for July and August
A180: 2018-06-28 | B180: 99 | C180: 76 | D180: =AVERAGE(KCITempAct[[#This Row],[KCIHigh]:[KCILow]] ) -> 87.5 | E180: =IF(KCITempAct[[#This Row],[KCIAve]]<65,(65-KCITempAct[[#This Row],[KCIAve]]),0) -> 0 | F180: =IF(MONTH(KCITempAct[[#This Row],[Date]])=7,0,IF(MONTH(KCITempAct[[#This Row],[Date]])=8,0,KCITempAct[[#This Row],[KCIHDD]])) -> 0 | G180: =SUMPRODUCT((KCINHDD[Month]=MONTH(KCITempAct[[#This Row],[Date]]))*(KCINHDD[Day]=DAY(KCITempAct[[#This Row],[Date]]))*KCINHDD[KCINHDD]) -> 0 | H180: =IF(MONTH(KCITempAct[[#This Row],[Date]])=7,0,IF(MONTH(KCITempAct[[#This Row],[Date]])=8,0,KCITempAct[[#This Row],[KCINHDD]])) -> 0 | I180: Adj HDD and NDD =0 for July and August
A181: 2018-06-29 | B181: 97 | C181: 77 | D181: =AVERAGE(KCITempAct[[#This Row],[KCIHigh]:[KCILow]] ) -> 87 | E181: =IF(KCITempAct[[#This Row],[KCIAve]]<65,(65-KCITempAct[[#This Row],[KCIAve]]),0) -> 0 | F181: =IF(MONTH(KCITempAct[[#This Row],[Date]])=7,0,IF(MONTH(KCITempAct[[#This Row],[Date]])=8,0,KCITempAct[[#This Row],[KCIHDD]])) -> 0 | G181: =SUMPRODUCT((KCINHDD[Month]=MONTH(KCITempAct[[#This Row],[Date]]))*(KCINHDD[Day]=DAY(KCITempAct[[#This Row],[Date]]))*KCINHDD[KCINHDD]) -> 0.01666666667 | H181: =IF(MONTH(KCITempAct[[#This Row],[Date]])=7,0,IF(MONTH(KCITempAct[[#This Row],[Date]])=8,0,KCITempAct[[#This Row],[KCINHDD]])) -> 0.01666666667 | I181: Adj HDD and NDD =0 for July and August
A182: 2018-06-30 | B182: 96 | C182: 72 | D182: =AVERAGE(KCITempAct[[#This Row],[KCIHigh]:[KCILow]] ) -> 84 | E182: =IF(KCITempAct[[#This Row],[KCIAve]]<65,(65-KCITempAct[[#This Row],[KCIAve]]),0) -> 0 | F182: =IF(MONTH(KCITempAct[[#This Row],[Date]])=7,0,IF(MONTH(KCITempAct[[#This Row],[Date]])=8,0,KCITempAct[[#This Row],[KCIHDD]])) -> 0 | G182: =SUMPRODUCT((KCINHDD[Month]=MONTH(KCITempAct[[#This Row],[Date]]))*(KCINHDD[Day]=DAY(KCITempAct[[#This Row],[Date]]))*KCINHDD[KCINHDD]) -> 0 | H182: =IF(MONTH(KCITempAct[[#This Row],[Date]])=7,0,IF(MONTH(KCITempAct[[#This Row],[Date]])=8,0,KCITempAct[[#This Row],[KCINHDD]])) -> 0 | I182: Adj HDD and NDD =0 for July and August
A183: 2018-07-01 | B183: 84 | C183: 71 | D183: =AVERAGE(KCITempAct[[#This Row],[KCIHigh]:[KCILow]] ) -> 77.5 | E183: =IF(KCITempAct[[#This Row],[KCIAve]]<65,(65-KCITempAct[[#This Row],[KCIAve]]),0) -> 0 | F183: =IF(MONTH(KCITempAct[[#This Row],[Date]])=7,0,IF(MONTH(KCITempAct[[#This Row],[Date]])=8,0,KCITempAct[[#This Row],[KCIHDD]])) -> 0 | G183: =SUMPRODUCT((KCINHDD[Month]=MONTH(KCITempAct[[#This Row],[Date]]))*(KCINHDD[Day]=DAY(KCITempAct[[#This Row],[Date]]))*KCINHDD[KCINHDD]) -> 0.01666666667 | H183: =IF(MONTH(KCITempAct[[#This Row],[Date]])=7,0,IF(MONTH(KCITempAct[[#This Row],[Date]])=8,0,KCITempAct[[#This Row],[KCINHDD]])) -> 0 | I183: Adj HDD and NDD =0 for July and August
A184: 2018-07-02 | B184: 87 | C184: 65 | D184: =AVERAGE(KCITempAct[[#This Row],[KCIHigh]:[KCILow]] ) -> 76 | E184: =IF(KCITempAct[[#This Row],[KCIAve]]<65,(65-KCITempAct[[#This Row],[KCIAve]]),0) -> 0 | F184: =IF(MONTH(KCITempAct[[#This Row],[Date]])=7,0,IF(MONTH(KCITempAct[[#This Row],[Date]])=8,0,KCITempAct[[#This Row],[KCIHDD]])) -> 0 | G184: =SUMPRODUCT((KCINHDD[Month]=MONTH(KCITempAct[[#This Row],[Date]]))*(KCINHDD[Day]=DAY(KCITempAct[[#This Row],[Date]]))*KCINHDD[KCINHDD]) -> 0.05 | H184: =IF(MONTH(KCITempAct[[#This Row],[Date]])=7,0,IF(MONTH(KCITempAct[[#This Row],[Date]])=8,0,KCITempAct[[#This Row],[KCINHDD]])) -> 0 | I184: Adj HDD and NDD =0 for July and August
A185: 2018-07-03 | B185: 94 | C185: 72 | D185: =AVERAGE(KCITempAct[[#This Row],[KCIHigh]:[KCILow]] ) -> 83 | E185: =IF(KCITempAct[[#This Row],[KCIAve]]<65,(65-KCITempAct[[#This Row],[KCIAve]]),0) -> 0 | F185: =IF(MONTH(KCITempAct[[#This Row],[Date]])=7,0,IF(MONTH(KCITempAct[[#This Row],[Date]])=8,0,KCITempAct[[#This Row],[KCIHDD]])) -> 0 | G185: =SUMPRODUCT((KCINHDD[Month]=MONTH(KCITempAct[[#This Row],[Date]]))*(KCINHDD[Day]=DAY(KCITempAct[[#This Row],[Date]]))*KCINHDD[KCINHDD]) -> 0.03333333333 | H185: =IF(MONTH(KCITempAct[[#This Row],[Date]])=7,0,IF(MONTH(KCITempAct[[#This Row],[Date]])=8,0,KCITempAct[[#This Row],[KCINHDD]])) -> 0 | I185: Adj HDD and NDD =0 for July and August
A186: 2018-07-04 | B186: 93 | C186: 73 | D186: =AVERAGE(KCITempAct[[#This Row],[KCIHigh]:[KCILow]] ) -> 83 | E186: =IF(KCITempAct[[#This Row],[KCIAve]]<65,(65-KCITempAct[[#This Row],[KCIAve]]),0) -> 0 | F186: =IF(MONTH(KCITempAct[[#This Row],[Date]])=7,0,IF(MONTH(KCITempAct[[#This Row],[Date]])=8,0,KCITempAct[[#This Row],[KCIHDD]])) -> 0 | G186: =SUMPRODUCT((KCINHDD[Month]=MONTH(KCITempAct[[#This Row],[Date]]))*(KCINHDD[Day]=DAY(KCITempAct[[#This Row],[Date]]))*KCINHDD[KCINHDD]) -> 0.08333333333 | H186: =IF(MONTH(KCITempAct[[#This Row],[Date]])=7,0,IF(MONTH(KCITempAct[[#This Row],[Date]])=8,0,KCITempAct[[#This Row],[KCINHDD]])) -> 0 | I186: Adj HDD and NDD =0 for July and August
A187: 2018-07-05 | B187: 91 | C187: 73 | D187: =AVERAGE(KCITempAct[[#This Row],[KCIHigh]:[KCILow]] ) -> 82 | E187: =IF(KCITempAct[[#This Row],[KCIAve]]<65,(65-KCITempAct[[#This Row],[KCIAve]]),0) -> 0 | F187: =IF(MONTH(KCITempAct[[#This Row],[Date]])=7,0,IF(MONTH(KCITempAct[[#This Row],[Date]])=8,0,KCITempAct[[#This Row],[KCIHDD]])) -> 0 | G187: =SUMPRODUCT((KCINHDD[Month]=MONTH(KCITempAct[[#This Row],[Date]]))*(KCINHDD[Day]=DAY(KCITempAct[[#This Row],[Date]]))*KCINHDD[KCINHDD]) -> 0.01666666667 | H187: =IF(MONTH(KCITempAct[[#This Row],[Date]])=7,0,IF(MONTH(KCITempAct[[#This Row],[Date]])=8,0,KCITempAct[[#This Row],[KCINHDD]])) -> 0 | I187: Adj HDD and NDD =0 for July and August
A188: 2018-07-06 | B188: 92 | C188: 74 | D188: =AVERAGE(KCITempAct[[#This Row],[KCIHigh]:[KCILow]] ) -> 83 | E188: =IF(KCITempAct[[#This Row],[KCIAve]]<65,(65-KCITempAct[[#This Row],[KCIAve]]),0) -> 0 | F188: =IF(MONTH(KCITempAct[[#This Row],[Date]])=7,0,IF(MONTH(KCITempAct[[#This Row],[Date]])=8,0,KCITempAct[[#This Row],[KCIHDD]])) -> 0 | G188: =SUMPRODUCT((KCINHDD[Month]=MONTH(KCITempAct[[#This Row],[Date]]))*(KCINHDD[Day]=DAY(KCITempAct[[#This Row],[Date]]))*KCINHDD[KCINHDD]) -> 0 | H188: =IF(MONTH(KCITempAct[[#This Row],[Date]])=7,0,IF(MONTH(KCITempAct[[#This Row],[Date]])=8,0,KCITempAct[[#This Row],[KCINHDD]])) -> 0 | I188: Adj HDD and NDD =0 for July and August
A189: 2018-07-07 | B189: 87 | C189: 69 | D189: =AVERAGE(KCITempAct[[#This Row],[KCIHigh]:[KCILow]] ) -> 78 | E189: =IF(KCITempAct[[#This Row],[KCIAve]]<65,(65-KCITempAct[[#This Row],[KCIAve]]),0) -> 0 | F189: =IF(MONTH(KCITempAct[[#This Row],[Date]])=7,0,IF(MONTH(KCITempAct[[#This Row],[Date]])=8,0,KCITempAct[[#This Row],[KCIHDD]])) -> 0 | G189: =SUMPRODUCT((KCINHDD[Month]=MONTH(KCITempAct[[#This Row],[Date]]))*(KCINHDD[Day]=DAY(KCITempAct[[#This Row],[Date]]))*KCINHDD[KCINHDD]) -> 0 | H189: =IF(MONTH(KCITempAct[[#This Row],[Date]])=7,0,IF(MONTH(KCITempAct[[#This Row],[Date]])=8,0,KCITempAct[[#This Row],[KCINHDD]])) -> 0 | I189: Adj HDD and NDD =0 for July and August
A190: 2018-07-08 | B190: 91 | C190: 62 | D190: =AVERAGE(KCITempAct[[#This Row],[KCIHigh]:[KCILow]] ) -> 76.5 | E190: =IF(KCITempAct[[#This Row],[KCIAve]]<65,(65-KCITempAct[[#This Row],[KCIAve]]),0) -> 0 | F190: =IF(MONTH(KCITempAct[[#This Row],[Date]])=7,0,IF(MONTH(KCITempAct[[#This Row],[Date]])=8,0,KCITempAct[[#This Row],[KCIHDD]])) -> 0 | G190: =SUMPRODUCT((KCINHDD[Month]=MONTH(KCITempAct[[#This Row],[Date]]))*(KCINHDD[Day]=DAY(KCITempAct[[#This Row],[Date]]))*KCINHDD[KCINHDD]) -> 0.06666666667 | H190: =IF(MONTH(KCITempAct[[#This Row],[Date]])=7,0,IF(MONTH(KCITempAct[[#This Row],[Date]])=8,0,KCITempAct[[#This Row],[KCINHDD]])) -> 0 | I190: Adj HDD and NDD =0 for July and August
A191: 2018-07-09 | B191: 95 | C191: 67 | D191: =AVERAGE(KCITempAct[[#This Row],[KCIHigh]:[KCILow]] ) -> 81 | E191: =IF(KCITempAct[[#This Row],[KCIAve]]<65,(65-KCITempAct[[#This Row],[KCIAve]]),0) -> 0 | F191: =IF(MONTH(KCITempAct[[#This Row],[Date]])=7,0,IF(MONTH(KCITempAct[[#This Row],[Date]])=8,0,KCITempAct[[#This Row],[KCIHDD]])) -> 0 | G191: =SUMPRODUCT((KCINHDD[Month]=MONTH(KCITempAct[[#This Row],[Date]]))*(KCINHDD[Day]=DAY(KCITempAct[[#This Row],[Date]]))*KCINHDD[KCINHDD]) -> 0 | H191: =IF(MONTH(KCITempAct[[#This Row],[Date]])=7,0,IF(MONTH(KCITempAct[[#This Row],[Date]])=8,0,KCITempAct[[#This Row],[KCINHDD]])) -> 0 | I191: Adj HDD and NDD =0 for July and August
A192: 2018-07-10 | B192: 96 | C192: 71 | D192: =AVERAGE(KCITempAct[[#This Row],[KCIHigh]:[KCILow]] ) -> 83.5 | E192: =IF(KCITempAct[[#This Row],[KCIAve]]<65,(65-KCITempAct[[#This Row],[KCIAve]]),0) -> 0 | F192: =IF(MONTH(KCITempAct[[#This Row],[Date]])=7,0,IF(MONTH(KCITempAct[[#This Row],[Date]])=8,0,KCITempAct[[#This Row],[KCIHDD]])) -> 0 | G192: =SUMPRODUCT((KCINHDD[Month]=MONTH(KCITempAct[[#This Row],[Date]]))*(KCINHDD[Day]=DAY(KCITempAct[[#This Row],[Date]]))*KCINHDD[KCINHDD]) -> 0 | H192: =IF(MONTH(KCITempAct[[#This Row],[Date]])=7,0,IF(MONTH(KCITempAct[[#This Row],[Date]])=8,0,KCITempAct[[#This Row],[KCINHDD]])) -> 0 | I192: Adj HDD and NDD =0 for July and August
A193: 2018-07-11 | B193: 99 | C193: 76 | D193: =AVERAGE(KCITempAct[[#This Row],[KCIHigh]:[KCILow]] ) -> 87.5 | E193: =IF(KCITempAct[[#This Row],[KCIAve]]<65,(65-KCITempAct[[#This Row],[KCIAve]]),0) -> 0 | F193: =IF(MONTH(KCITempAct[[#This Row],[Date]])=7,0,IF(MONTH(KCITempAct[[#This Row],[Date]])=8,0,KCITempAct[[#This Row],[KCIHDD]])) -> 0 | G193: =SUMPRODUCT((KCINHDD[Month]=MONTH(KCITempAct[[#This Row],[Date]]))*(KCINHDD[Day]=DAY(KCITempAct[[#This Row],[Date]]))*KCINHDD[KCINHDD]) -> 0 | H193: =IF(MONTH(KCITempAct[[#This Row],[Date]])=7,0,IF(MONTH(KCITempAct[[#This Row],[Date]])=8,0,KCITempAct[[#This Row],[KCINHDD]])) -> 0 | I193: Adj HDD and NDD =0 for July and August
A194: 2018-07-12 | B194: 100 | C194: 76 | D194: =AVERAGE(KCITempAct[[#This Row],[KCIHigh]:[KCILow]] ) -> 88 | E194: =IF(KCITempAct[[#This Row],[KCIAve]]<65,(65-KCITempAct[[#This Row],[KCIAve]]),0) -> 0 | F194: =IF(MONTH(KCITempAct[[#This Row],[Date]])=7,0,IF(MONTH(KCITempAct[[#This Row],[Date]])=8,0,KCITempAct[[#This Row],[KCIHDD]])) -> 0 | G194: =SUMPRODUCT((KCINHDD[Month]=MONTH(KCITempAct[[#This Row],[Date]]))*(KCINHDD[Day]=DAY(KCITempAct[[#This Row],[Date]]))*KCINHDD[KCINHDD]) -> 0 | H194: =IF(MONTH(KCITempAct[[#This Row],[Date]])=7,0,IF(MONTH(KCITempAct[[#This Row],[Date]])=8,0,KCITempAct[[#This Row],[KCINHDD]])) -> 0 | I194: Adj HDD and NDD =0 for July and August
A195: 2018-07-13 | B195: 99 | C195: 73 | D195: =AVERAGE(KCITempAct[[#This Row],[KCIHigh]:[KCILow]] ) -> 86 | E195: =IF(KCITempAct[[#This Row],[KCIAve]]<65,(65-KCITempAct[[#This Row],[KCIAve]]),0) -> 0 | F195: =IF(MONTH(KCITempAct[[#This Row],[Date]])=7,0,IF(MONTH(KCITempAct[[#This Row],[Date]])=8,0,KCITempAct[[#This Row],[KCIHDD]])) -> 0 | G195: =SUMPRODUCT((KCINHDD[Month]=MONTH(KCITempAct[[#This Row],[Date]]))*(KCINHDD[Day]=DAY(KCITempAct[[#This Row],[Date]]))*KCINHDD[KCINHDD]) -> 0 | H195: =IF(MONTH(KCITempAct[[#This Row],[Date]])=7,0,IF(MONTH(KCITempAct[[#This Row],[Date]])=8,0,KCITempAct[[#This Row],[KCINHDD]])) -> 0 | I195: Adj HDD and NDD =0 for July and August
A196: 2018-07-14 | B196: 89 | C196: 72 | D196: =AVERAGE(KCITempAct[[#This Row],[KCIHigh]:[KCILow]] ) -> 80.5 | E196: =IF(KCITempAct[[#This Row],[KCIAve]]<65,(65-KCITempAct[[#This Row],[KCIAve]]),0) -> 0 | F196: =IF(MONTH(KCITempAct[[#This Row],[Date]])=7,0,IF(MONTH(KCITempAct[[#This Row],[Date]])=8,0,KCITempAct[[#This Row],[KCIHDD]])) -> 0 | G196: =SUMPRODUCT((KCINHDD[Month]=MONTH(KCITempAct[[#This Row],[Date]]))*(KCINHDD[Day]=DAY(KCITempAct[[#This Row],[Date]]))*KCINHDD[KCINHDD]) -> 0 | H196: =IF(MONTH(KCITempAct[[#This Row],[Date]])=7,0,IF(MONTH(KCITempAct[[#This Row],[Date]])=8,0,KCITempAct[[#This Row],[KCINHDD]])) -> 0 | I196: Adj HDD and NDD =0 for July and August
A197: 2018-07-15 | B197: 94 | C197: 69 | D197: =AVERAGE(KCITempAct[[#This Row],[KCIHigh]:[KCILow]] ) -> 81.5 | E197: =IF(KCITempAct[[#This Row],[KCIAve]]<65,(65-KCITempAct[[#This Row],[KCIAve]]),0) -> 0 | F197: =IF(MONTH(KCITempAct[[#This Row],[Date]])=7,0,IF(MONTH(KCITempAct[[#This Row],[Date]])=8,0,KCITempAct[[#This Row],[KCIHDD]])) -> 0 | G197: =SUMPRODUCT((KCINHDD[Month]=MONTH(KCITempAct[[#This Row],[Date]]))*(KCINHDD[Day]=DAY(KCITempAct[[#This Row],[Date]]))*KCINHDD[KCINHDD]) -> 0.03333333333 | H197: =IF(MONTH(KCITempAct[[#This Row],[Date]])=7,0,IF(MONTH(KCITempAct[[#This Row],[Date]])=8,0,KCITempAct[[#This Row],[KCINHDD]])) -> 0 | I197: Adj HDD and NDD =0 for July and August
A198: 2018-07-16 | B198: 95 | C198: 72 | D198: =AVERAGE(KCITempAct[[#This Row],[KCIHigh]:[KCILow]] ) -> 83.5 | E198: =IF(KCITempAct[[#This Row],[KCIAve]]<65,(65-KCITempAct[[#This Row],[KCIAve]]),0) -> 0 | F198: =IF(MONTH(KCITempAct[[#This Row],[Date]])=7,0,IF(MONTH(KCITempAct[[#This Row],[Date]])=8,0,KCITempAct[[#This Row],[KCIHDD]])) -> 0 | G198: =SUMPRODUCT((KCINHDD[Month]=MONTH(KCITempAct[[#This Row],[Date]]))*(KCINHDD[Day]=DAY(KCITempAct[[#This Row],[Date]]))*KCINHDD[KCINHDD]) -> 0 | H198: =IF(MONTH(KCITempAct[[#This Row],[Date]])=7,0,IF(MONTH(KCITempAct[[#This Row],[Date]])=8,0,KCITempAct[[#This Row],[KCINHDD]])) -> 0 | I198: Adj HDD and NDD =0 for July and August
A199: 2018-07-17 | B199: 81 | C199: 72 | D199: =AVERAGE(KCITempAct[[#This Row],[KCIHigh]:[KCILow]] ) -> 76.5 | E199: =IF(KCITempAct[[#This Row],[KCIAve]]<65,(65-KCITempAct[[#This Row],[KCIAve]]),0) -> 0 | F199: =IF(MONTH(KCITempAct[[#This Row],[Date]])=7,0,IF(MONTH(KCITempAct[[#This Row],[Date]])=8,0,KCITempAct[[#This Row],[KCIHDD]])) -> 0 | G199: =SUMPRODUCT((KCINHDD[Month]=MONTH(KCITempAct[[#This Row],[Date]]))*(KCINHDD[Day]=DAY(KCITempAct[[#This Row],[Date]]))*KCINHDD[KCINHDD]) -> 0 | H199: =IF(MONTH(KCITempAct[[#This Row],[Date]])=7,0,IF(MONTH(KCITempAct[[#This Row],[Date]])=8,0,KCITempAct[[#This Row],[KCINHDD]])) -> 0 | I199: Adj HDD and NDD =0 for July and August
A200: 2018-07-18 | B200: 85 | C200: 69 | D200: =AVERAGE(KCITempAct[[#This Row],[KCIHigh]:[KCILow]] ) -> 77 | E200: =IF(KCITempAct[[#This Row],[KCIAve]]<65,(65-KCITempAct[[#This Row],[KCIAve]]),0) -> 0 | F200: =IF(MONTH(KCITempAct[[#This Row],[Date]])=7,0,IF(MONTH(KCITempAct[[#This Row],[Date]])=8,0,KCITempAct[[#This Row],[KCIHDD]])) -> 0 | G200: =SUMPRODUCT((KCINHDD[Month]=MONTH(KCITempAct[[#This Row],[Date]]))*(KCINHDD[Day]=DAY(KCITempAct[[#This Row],[Date]]))*KCINHDD[KCINHDD]) -> 0 | H200: =IF(MONTH(KCITempAct[[#This Row],[Date]])=7,0,IF(MONTH(KCITempAct[[#This Row],[Date]])=8,0,KCITempAct[[#This Row],[KCINHDD]])) -> 0 | I200: Adj HDD and NDD =0 for July and August
... 1836 more rows

Sheet CustCount
A1: MonthFlow | B1: MonthBill | C1: N-RS | D1: NW-RS | E1: S-RS | F1: N-SC | G1: NW-SC | H1: S-SC | I1: Total-RS | J1: Total-SCFS | K1: Preparer's Notes | L1: Reviewer's Notes
A2: 2022-07-01 | B2: =EDATE(CustCount[[#This Row],[MonthFlow]],1) -> 2022-08-01 | C2: 7742 | D2: 4703 | E2: 24396 | F2: 1113 | G2: 671 | H2: 2701 | I2: =SUM(CustCount[[#This Row],[N-RS]:[S-RS]]) -> 36841 | J2: =SUM(CustCount[[#This Row],[N-SC]:[S-SC]]) -> 4485 | K2: Customer count from Revenue Dept.
A3: 2022-08-01 | B3: =EDATE(CustCount[[#This Row],[MonthFlow]],1) -> 2022-09-01 | C3: 7770 | D3: 4706 | E3: 24450 | F3: 1116 | G3: 669 | H3: 2695 | I3: =SUM(CustCount[[#This Row],[N-RS]:[S-RS]]) -> 36926 | J3: =SUM(CustCount[[#This Row],[N-SC]:[S-SC]]) -> 4480 | K3: Customer count from Revenue Dept.
A4: 2022-09-01 | B4: =EDATE(CustCount[[#This Row],[MonthFlow]],1) -> 2022-10-01 | C4: 7912 | D4: 4795 | E4: 24699 | F4: 1128 | G4: 671 | H4: 2713 | I4: =SUM(CustCount[[#This Row],[N-RS]:[S-RS]]) -> 37406 | J4: =SUM(CustCount[[#This Row],[N-SC]:[S-SC]]) -> 4512 | K4: Customer count from Revenue Dept.
A5: 2022-10-01 | B5: =EDATE(CustCount[[#This Row],[MonthFlow]],1) -> 2022-11-01 | C5: 8077 | D5: 4870 | E5: 25025 | F5: 1138 | G5: 677 | H5: 2742 | I5: =SUM(CustCount[[#This Row],[N-RS]:[S-RS]]) -> 37972 | J5: =SUM(CustCount[[#This Row],[N-SC]:[S-SC]]) -> 4557 | K5: Customer count from Revenue Dept.
A6: 2022-11-01 | B6: =EDATE(CustCount[[#This Row],[MonthFlow]],1) -> 2022-12-01 | C6: 8147 | D6: 4891 | E6: 25172 | F6: 1146 | G6: 676 | H6: 2768 | I6: =SUM(CustCount[[#This Row],[N-RS]:[S-RS]]) -> 38210 | J6: =SUM(CustCount[[#This Row],[N-SC]:[S-SC]]) -> 4590 | K6: Customer count from Revenue Dept.
A7: 2022-12-01 | B7: =EDATE(CustCount[[#This Row],[MonthFlow]],1) -> 2023-01-01 | C7: 8157 | D7: 4894 | E7: 25231 | F7: 1143 | G7: 679 | H7: 2766 | I7: =SUM(CustCount[[#This Row],[N-RS]:[S-RS]]) -> 38282 | J7: =SUM(CustCount[[#This Row],[N-SC]:[S-SC]]) -> 4588 | K7: Customer count from Revenue Dept.
A8: 2023-01-01 | B8: =EDATE(CustCount[[#This Row],[MonthFlow]],1) -> 2023-02-01 | C8: 8162 | D8: 4900 | E8: 25236 | F8: 1143 | G8: 680 | H8: 2756 | I8: =SUM(CustCount[[#This Row],[N-RS]:[S-RS]]) -> 38298 | J8: =SUM(CustCount[[#This Row],[N-SC]:[S-SC]]) -> 4579 | K8: Customer count from Revenue Dept.
A9: 2023-02-01 | B9: =EDATE(CustCount[[#This Row],[MonthFlow]],1) -> 2023-03-01 | C9: 8155 | D9: 4886 | E9: 25245 | F9: 1139 | G9: 679 | H9: 2754 | I9: =SUM(CustCount[[#This Row],[N-RS]:[S-RS]]) -> 38286 | J9: =SUM(CustCount[[#This Row],[N-SC]:[S-SC]]) -> 4572 | K9: Customer count from Revenue Dept.
A10: 2023-03-01 | B10: =EDATE(CustCount[[#This Row],[MonthFlow]],1) -> 2023-04-01 | C10: 8052 | D10: 4814 | E10: 24978 | F10: 1136 | G10: 676 | H10: 2737 | I10: =SUM(CustCount[[#This Row],[N-RS]:[S-RS]]) -> 37844 | J10: =SUM(CustCount[[#This Row],[N-SC]:[S-SC]]) -> 4549 | K10: Customer count from Revenue Dept.
A11: 2023-04-01 | B11: =EDATE(CustCount[[#This Row],[MonthFlow]],1) -> 2023-05-01 | C11: 7976 | D11: 4760 | E11: 24850 | F11: 1128 | G11: 673 | H11: 2728 | I11: =SUM(CustCount[[#This Row],[N-RS]:[S-RS]]) -> 37586 | J11: =SUM(CustCount[[#This Row],[N-SC]:[S-SC]]) -> 4529 | K11: Customer count from Revenue Dept.
A12: 2023-05-01 | B12: =EDATE(CustCount[[#This Row],[MonthFlow]],1) -> 2023-06-01 | C12: 7738 | D12: 4707 | E12: 24545 | F12: 1119 | G12: 669 | H12: 2709 | I12: =SUM(CustCount[[#This Row],[N-RS]:[S-RS]]) -> 36990 | J12: =SUM(CustCount[[#This Row],[N-SC]:[S-SC]]) -> 4497 | K12: Customer count from Revenue Dept.
A13: 2023-06-01 | B13: =EDATE(CustCount[[#This Row],[MonthFlow]],1) -> 2023-07-01 | C13: 7699 | D13: 4661 | E13: 24471 | F13: 1117 | G13: 665 | H13: 2698 | I13: =SUM(CustCount[[#This Row],[N-RS]:[S-RS]]) -> 36831 | J13: =SUM(CustCount[[#This Row],[N-SC]:[S-SC]]) -> 4480 | K13: Customer count from Revenue Dept.

Sheet MeterReadSch
A1: MonthFlow | B1: MonthBill | C1: North | D1: NW | E1: South | F1: Preparer's Notes | G1: Reviewer's Notes
A2: 2022-08-01 | B2: =EDATE(MeterReadSch[[#This Row],[MonthFlow]],1) -> 2022-09-01 | C2: 2022-08-29 | D2: 2022-08-29 | E2: 2022-08-30 | F2: Rev. Dept. Meter Read Sched.
A3: 2022-09-01 | B3: =EDATE(MeterReadSch[[#This Row],[MonthFlow]],1) -> 2022-10-01 | C3: 2022-09-29 | D3: 2022-09-28 | E3: 2022-09-29 | F3: Rev. Dept. Meter Read Sched.
A4: 2022-10-01 | B4: =EDATE(MeterReadSch[[#This Row],[MonthFlow]],1) -> 2022-11-01 | C4: 2022-10-31 | D4: 2022-10-28 | E4: 2022-10-31 | F4: Rev. Dept. Meter Read Sched.
A5: 2022-11-01 | B5: =EDATE(MeterReadSch[[#This Row],[MonthFlow]],1) -> 2022-12-01 | C5: 2022-11-28 | D5: 2022-11-29 | E5: 2022-11-29 | F5: Rev. Dept. Meter Read Sched.
A6: 2022-12-01 | B6: =EDATE(MeterReadSch[[#This Row],[MonthFlow]],1) -> 2023-01-01 | C6: 2022-12-28 | D6: 2022-12-27 | E6: 2022-12-29 | F6: Rev. Dept. Meter Read Sched.
A7: 2023-01-01 | B7: =EDATE(MeterReadSch[[#This Row],[MonthFlow]],1) -> 2023-02-01 | C7: 2023-01-27 | D7: 2023-01-26 | E7: 2023-01-30 | F7: Rev. Dept. Meter Read Sched.
A8: 2023-02-01 | B8: =EDATE(MeterReadSch[[#This Row],[MonthFlow]],1) -> 2023-03-01 | C8: 2023-02-26 | D8: 2023-02-27 | E8: 2023-02-27 | F8: Rev. Dept. Meter Read Sched.
A9: 2023-03-01 | B9: =EDATE(MeterReadSch[[#This Row],[MonthFlow]],1) -> 2023-04-01 | C9: 2023-03-29 | D9: 2023-03-28 | E9: 2023-03-30 | F9: Rev. Dept. Meter Read Sched.
A10: 2023-04-01 | B10: =EDATE(MeterReadSch[[#This Row],[MonthFlow]],1) -> 2023-05-01 | C10: 2023-04-28 | D10: 2023-04-26 | E10: 2023-04-29 | F10: Rev. Dept. Meter Read Sched.
A11: 2023-05-01 | B11: =EDATE(MeterReadSch[[#This Row],[MonthFlow]],1) -> 2023-06-01 | C11: 2023-05-30 | D11: 2023-05-30 | E11: 2023-05-30 | F11: Rev. Dept. Meter Read Sched.
A12: 2023-06-01 | B12: =EDATE(MeterReadSch[[#This Row],[MonthFlow]],1) -> 2023-07-01 | C12: 2023-06-28 | D12: 2023-06-28 | E12: 2023-06-29 | F12: Rev. Dept. Meter Read Sched.
A13: 2023-07-01 | B13: =EDATE(MeterReadSch[[#This Row],[MonthFlow]],1) -> 2023-08-01 | C13: 2023-07-25 | D13: 2023-07-25 | E13: 2023-07-25 | F13: Billing Dept. Meter Read Sched.
A14: 2023-08-01 | B14: =EDATE(MeterReadSch[[#This Row],[MonthFlow]],1) -> 2023-09-01 | C14: 2023-08-25 | D14: 2023-08-25 | E14: 2023-08-25 | F14: Billing Dept. Meter Read Sched.
A15: 2023-09-01 | B15: =EDATE(MeterReadSch[[#This Row],[MonthFlow]],1) -> 2023-10-01 | C15: 2023-09-22 | D15: 2023-09-22 | E15: 2023-09-22 | F15: Billing Dept. Meter Read Sched.
A16: 2023-10-01 | B16: =EDATE(MeterReadSch[[#This Row],[MonthFlow]],1) -> 2023-11-01 | C16: 2023-10-25 | D16: 2023-10-25 | E16: 2023-10-25 | F16: Billing Dept. Meter Read Sched.
A17: 2023-11-01 | B17: =EDATE(MeterReadSch[[#This Row],[MonthFlow]],1) -> 2023-12-01 | C17: 2023-11-22 | D17: 2023-11-22 | E17: 2023-11-22 | F17: Billing Dept. Meter Read Sched.

Sheet ReconPerAdj
A1: Year | B1: EffDate | C1: Territory | D1: CustClass | E1: RateName | F1: ReconcilingPeriodAdj | G1: Preparer's Notes | H1: Reviewer's Notes
A2: 2023 | B2: 2023-10-01 | C2: North | D2: Res | E2: CAWNA | F2: 88777.89 | G2: CAWNA Summary Worksheet, row 24, column C
A3: 2023 | B3: 2023-10-01 | C3: NW | D3: Res | E3: CAWNA | F3: 53453.99 | G3: CAWNA Summary Worksheet, row 24, column D
A4: 2023 | B4: 2023-10-01 | C4: South | D4: Res | E4: CAWNA | F4: 275717.14 | G4: CAWNA Summary Worksheet, row 24, column E
A5: 2023 | B5: 2023-10-01 | C5: North | D5: SCFS | E5: CAWNA | F5: 33852.88 | G5: CAWNA Summary Worksheet, row 24, column G
A6: 2023 | B6: 2023-10-01 | C6: NW | D6: SCFS | E6: CAWNA | F6: 20162.66 | G6: CAWNA Summary Worksheet, row 24, column H
A7: 2023 | B7: 2023-10-01 | C7: South | D7: SCFS | E7: CAWNA | F7: 81683.57 | G7: CAWNA Summary Worksheet, row 24, column I

Sheet VolumetricRates
A1: BeginDate | B1: EndDate | C1: CustClass | D1: VolRate | E1: Preparer's Notes | F1: Reviewer's Notes
A2: 2022-09-01 | B2: 9999-01-01 | C2: Res | D2: 0.21748 | E2: From Tariff
A3: 2022-09-01 | B3: 9999-01-01 | C3: SCFS | D3: 0.26033 | E3: From Tariff

Sheet BillDeter
A1: Territory | B1: CustClass | C1: CustClassLong | D1: BillingDeterminants | E1: Preparer's Notes | F1: Reviewer's Notes
A2: All | B2: SCFS | C2: Small Commercial | D2: 7155623 | E2: Set in previous rate case.
A3: All | B3: Res | C3: Residential | D3: 25605076.09 | E3: Set in previous rate case.

Sheet BetaCoeff
A1: CustClass | B1: BetaCoeff | C1: Preparer's Notes | D1: Reviewer's Notes
A2: Res | B2: 0.1234365
A3: SCFS | B3: 0.2793279

Sheet Rate Case Summary

Sheet Validation Lists
A1: Territory | C1: CustClassLong | D1: CustClassShort | F1: RateName
A2: North | C2: Residential | D2: Res | F2: CAWNA
A3: NW | C3: Small Commercial | D3: SCFS | F3: ARR
A4: South
A5: All

Sheet Sheet1 (hidden)
B4: Dis | C4: RevClass | D4: FX030 | E4: FSX017
E5: All | F5: >0 Only
B6: 750 | C6: Res | D6: 7699 | E6: 7842 | F6: 7811
B7: 750 | C7: Com | D7: 1117 | E7: 1152 | F7: 1147
B8: 760 | C8: Res | D8: 4661 | E8: 4715 | F8: 4703
B9: 760 | C9: Com | D9: 665 | E9: 698 | F9: 698
B10: 770 | C10: Res | D10: 24471 | E10: 24632 | F10: 24546
B11: 770 | C11: Com | D11: 2698 | E11: 2809 | F11: 2801
B12: Total | D12: =SUM(D6:D11) -> 41311 | E12: =SUM(E6:E11) -> 41848 | F12: 41706

Sheet DateSet (hidden)
B2: Filing Year | C2: =INDEX(B7:B17,C7) -> 2023
B3: Analysis Start Period | C3: =DATE(C2-1,9,1) -> 2022-09-01
B4: New Rate Eff: | C4: =DATE(C2,10,1) -> 2023-10-01
B6: Year
B7: 2020 | C7: 4
B8: 2021
B9: 2022
B10: 2023
B11: 2024
B12: 2025
B13: 2026
B14: 2027
B15: 2028
B16: 2029
B17: 2030
